Workbook

Sheet Willkommen
B5: 1
B7: =VLOOKUP("Willkommen_Titel",Texte,SpracheID+1,FALSE) -> Auslegungsprogramm für Photovoltaikanlagen
D9: =VLOOKUP("Version",Texte,SpracheID+1,FALSE) & " 1.0" -> Version 1.0
B11: =VLOOKUP("Einleitung",Texte,SpracheID+1,FALSE) -> Mit Energy Depot Inverter Tool können Sie Ihre Solaranlage für den Einsatz von Energy Depot Hybrid Invertern dimensionieren. In der Tabelle "Auslegung" wählen Sie dazu die gewünschten Solar-Inverter (bis zu drei Typen) sowie die Solarmodule aus. Möchten Sie die Auslegung für spätere Zwecke archivieren, können Sie der Auslegung unter "Datei", "speichern unter" einen beliebigen Namen zuordnen. Die gewählte Konfiguration wird auf die Einhaltung der wichtigsten Grenzwerte überprüft. Überschrittene Grenzwerte werden in rot, noch mögliche in gelb markiert. Verändern Sie die Anzahl der Strings und der Module, bis Sie eine optimale Konfiguration gefunden haben. In der Tabelle "Ihr System" können Sie die Details der geplanten Anlage anschauen und ausdrucken. Benutzen sie in der Tabelle "Auslegung" den Button "neues Modul", um einen neuen Modultyp hinzuzufügen. Ein bestehendes Modul können Sie bearbeiten, indem Sie den Button "betrachten" auswählen und dann das Häkchen "Modul bearbeiten" setzen. | K11: deutsch
K12: english
K13: español
K14: italiano
K15: français
K16: czech
B25: =VLOOKUP("Wichtig",Texte,SpracheID+1,FALSE) -> Wichtig: Diese Datei ist ein Werkzeug für die Überprüfung der Auslegung von PV-Anlagen und wird den Anwendern von Energy Depot-Produkten zur Verfügung gestellt. Daten und Funktion wurden sorgfältig geprüft, trotzdem kann weder für mittelbare noch für unmittelbare Schäden, die aus dem Gebrauch dieser Arbeitsmappe entstehen, gehaftet werden. Vielen Dank für Ihr Verständnis!
B33: =VLOOKUP("Hinweis",Texte,SpracheID+1,FALSE) -> Hinweis
B34: =VLOOKUP("Hinweis_txt",Texte,SpracheID+1,FALSE) -> Die Makro-Sicherheitsstufe sollte auf "Mittel" (empfohlen), oder "Niedrig" (nicht empfohlen) eingestellt sein

Sheet Auslegung
M1: =VLOOKUP("Daten fehlen",Daten_fehlen,SpracheID+1,FALSE) -> Daten fehlen
M2: =VLOOKUP("Optimum",Texte,SpracheID+1,FALSE) -> Optimum
M3: =VLOOKUP("Grenzbereich",Texte,SpracheID+1,FALSE) -> noch möglich
M4: 0.03 | N4: 0.01
M5: =IF(OR(INDEX(Solarmodule,SolarmodulID,11)="-",INDEX(Solarmodule,SolarmodulID,7)="-",ISERROR(min_Module_pro_String),ISERROR(max_Module_pro_String)),VLOOKUP("für Solarmodul fehlen Daten",Daten_fehlen,SpracheID+1),IF(min_Module_pro_String>max_Module_pro_String,"","")) -> 
M6: Canadian Solar Inc. | N6: Canadian Solar Inc. | O6: Canadian Solar Inc.
B7: =VLOOKUP("Auslegung_Titel",Texte,SpracheID+1,FALSE) -> Auslegung der Photovoltaikanlage: | E7: Energy Depot GmbH | M7: HiKu CS3L-365P | N7: HiKu CS3L-365P | O7: CS5A-130
D9: =IF(INDEX(Wechselrichter,E1_WechselrichterID,25)=3,VLOOKUP("Eingang",Texte,SpracheID+1,FALSE) & " 1 ",VLOOKUP("Teilanlage",Texte,SpracheID+1,FALSE) & " 1 ") -> Teilanlage 1 | F9: =IF(INDEX(Wechselrichter,E1_WechselrichterID,25)=3,VLOOKUP("Eingang",Texte,SpracheID+1,FALSE) & " 2 ",VLOOKUP("Teilanlage",Texte,SpracheID+1,FALSE) & " 2 ") -> Teilanlage 2 | H9: =IF(INDEX(Wechselrichter,E1_WechselrichterID,25)=3,VLOOKUP("Eingang",Texte,SpracheID+1,FALSE) & " 3 ",VLOOKUP("Teilanlage",Texte,SpracheID+1,FALSE) & " 3 ") -> Teilanlage 3 | K9: =VLOOKUP("Zelltemperatur",Texte,SpracheID+1,FALSE) -> Zelltemperatur
C11: =VLOOKUP("Wechselrichter",Texte,SpracheID+1,FALSE) -> Wechselrichter | E11: 7 | G11: 8 | I11: 1 | K11: =VLOOKUP("Zelltemp_min",Texte,SpracheID+1,FALSE) -> min | L11: 8 | M11: =INDEX(min_Zellentemperatur,min_ZellentempID,1) -> -20
E12: 0 | G12: 0 | I12: 0
C13: =VLOOKUP("Anzahl",Texte,SpracheID+1,FALSE) -> Anzahl | E13: 1 | G13: 1 | I13: 0 | K13: =VLOOKUP("Zelltemp_max",Texte,SpracheID+1,FALSE) -> max | L13: 2 | M13: =INDEX(max_Zellentemperatur,max_ZellentempID,1) -> 65
C15: =VLOOKUP("Hersteller",Texte,SpracheID+1,FALSE) -> Hersteller | E15: 95 | G15: 95 | I15: 95
C17: =VLOOKUP("Solarmodule",Texte,SpracheID+1,FALSE) -> Solarmodule | E17: 200 | G17: 200 | I17: 1
L20: 95
C21: =VLOOKUP("Stringanzahl",Texte,SpracheID+1,FALSE) -> Stringanzahl | E21: 2 | G21: 1 | I21: 0 | K21: Cos Phi | L21: =L20/100 -> 0.95
L22: TRUE
C23: =VLOOKUP("ModuleProString",Texte,SpracheID+1,FALSE) -> Module pro String | D23: =IF(ISERROR(IF(E1_min_Module_pro_String > E1_max_Module_pro_String," "," (" & E1_min_Module_pro_String & "-" & E1_max_Module_pro_String & ") ")),"",IF(E1_min_Module_pro_String > E1_max_Module_pro_String," "," (" & E1_min_Module_pro_String & "-" & E1_max_Module_pro_String & ") ")) -> (7-19) | E23: 14 | F23: =IF(ISERROR(IF(E2_min_Module_pro_String > E2_max_Module_pro_String," "," (" & E2_min_Module_pro_String & "-" & E2_max_Module_pro_String & ") ")),"",IF(E2_min_Module_pro_String > E2_max_Module_pro_String," "," (" & E2_min_Module_pro_String & "-" & E2_max_Module_pro_String & ") ")) -> (7-19) | G23: 13 | H23: =IF(ISERROR(IF(E3_min_Module_pro_String > E3_max_Module_pro_String," "," (" & E3_min_Module_pro_String & "-" & E3_max_Module_pro_String & ") ")),"",IF(E3_min_Module_pro_String > E3_max_Module_pro_String," "," (" & E3_min_Module_pro_String & "-" & E3_max_Module_pro_String & ") ")) ->  | I23: 0 | K23: =VLOOKUP("KommKopp",Texte,SpracheID+1,FALSE) -> Schieflastprüfung | L23: 4600
B26: =VLOOKUP("KommKopp",Texte,SpracheID+1,FALSE) -> Schieflastprüfung | D26: 1 | E26: =VLOOKUP("Anzahl2",Texte,SpracheID+1,FALSE) -> Anzahl | F26: 1 | G26: 97.5 | I26: =VLOOKUP("Anzahl2",Texte,SpracheID+1,FALSE) -> Anzahl | K26: =VLOOKUP("LeistungSumme",Texte,SpracheID+1,FALSE) -> Max. AC-Leistung | L26: =VLOOKUP("MaxAbregelung",Texte,SpracheID+1,FALSE) -> Max. Abregelung
C27: =VLOOKUP("Netzphase L1",Texte,SpracheID+1,FALSE) -> Netzphase L1 | E27: 0 | G27: 0.3333333333 | I27: 0 | K27: =MIN(SUMPRODUCT(E27:I27,D$40:H$40),SUMPRODUCT(E27:I27,E$40:I$40,E$50:I$50)) -> 0 | L27: =IF(K27-MIN($K$27:$K$29)>$L$23,K27-MIN($K$27:$K$29)-$L$23,"-") -> -
C28: =VLOOKUP("Netzphase L2",Texte,SpracheID+1,FALSE) -> Netzphase L2 | E28: 0 | G28: 0.3333333333 | I28: 0 | K28: =MIN(SUMPRODUCT(E28:I28,D$40:H$40),SUMPRODUCT(E28:I28,E$40:I$40,E$50:I$50)) -> 0 | L28: =IF(K28-MIN($K$27:$K$29)>$L$23,K28-MIN($K$27:$K$29)-$L$23,"-") -> -
C29: =VLOOKUP("Netzphase L3",Texte,SpracheID+1,FALSE) -> Netzphase L3 | E29: 0.3333333333 | G29: 0.3333333333 | I29: 0 | K29: =MIN(SUMPRODUCT(E29:I29,D$40:H$40),SUMPRODUCT(E29:I29,E$40:I$40,E$50:I$50)) -> 0 | L29: =IF(K29-MIN($K$27:$K$29)>$L$23,K29-MIN($K$27:$K$29)-$L$23,"-") -> -
C31: =VLOOKUP("Kompatibilität",Texte,SpracheID+1,FALSE) -> Kompatibilität | D31: 1 | E31: =IF(ISTEXT(INDEX(Wechselrichter,E1_WechselrichterID,23)),INDEX(Wechselrichter,E1_WechselrichterID,23),IF(ISTEXT(INDEX(E1_Solarmodule,E1_SolarmodulID,34)),VLOOKUP("Achtung",Texte,SpracheID+1,FALSE),"")) ->  | F31: 1 | G31: =IF(ISTEXT(INDEX(Wechselrichter,E2_WechselrichterID,23)),INDEX(Wechselrichter,E2_WechselrichterID,23),IF(ISTEXT(INDEX(E2_Solarmodule,E2_SolarmodulID,34)),VLOOKUP("Achtung",Texte,SpracheID+1,FALSE),"")) ->  | H31: 1 | I31: =IF(ISTEXT(INDEX(Wechselrichter,E3_WechselrichterID,23)),INDEX(Wechselrichter,E3_WechselrichterID,23),IF(ISTEXT(INDEX(E3_Solarmodule,E3_SolarmodulID,34)),VLOOKUP("Achtung",Texte,SpracheID+1,FALSE),"")) -> 
C32: =VLOOKUP("Wechselrichter",Texte,SpracheID+1,FALSE) -> Wechselrichter | D32: =IF(INDEX(Wechselrichter,E1_WechselrichterID,24)<>"",INDEX(Wechselrichter,E1_WechselrichterID,24),"") ->  | F32: =IF(INDEX(Wechselrichter,E2_WechselrichterID,24)<>"",INDEX(Wechselrichter,E2_WechselrichterID,24),"") ->  | H32: =IF(INDEX(Wechselrichter,E3_WechselrichterID,24)<>"",INDEX(Wechselrichter,E3_WechselrichterID,24),"") -> 
C35: =VLOOKUP("Solarmodule",Texte,SpracheID+1,FALSE) -> Solarmodule | D35: =IF(E1_WechselrichterID<>1,VLOOKUP("Verschaltung_"&D31,Texte,SpracheID+1,FALSE),"") -> Verschaltung möglich | F35: =IF(E2_WechselrichterID<>1,VLOOKUP("Verschaltung_"&F31,Texte,SpracheID+1,FALSE),"") -> Verschaltung möglich | H35: =IF(E3_WechselrichterID<>1,VLOOKUP("Verschaltung_"&H31,Texte,SpracheID+1,FALSE),"") -> 
C36: =VLOOKUP("Initialwerte",Texte,SpracheID+1,FALSE) -> Initialwerte prüfen (Dünnschicht Module)
B37: FALSE
B39: =VLOOKUP("SolaranlageGesamtgrößen",Texte,SpracheID+1,FALSE) -> Solaranlage (Gesamtgrößen) | D39: =VLOOKUP("Inverter",Texte,SpracheID+1,FALSE) -> Inverter | E39: =VLOOKUP("Generator",Texte,SpracheID+1,FALSE) -> Generator | F39: =VLOOKUP("Inverter",Texte,SpracheID+1,FALSE) -> Inverter | G39: =VLOOKUP("Generator",Texte,SpracheID+1,FALSE) -> Generator | H39: =VLOOKUP("Inverter",Texte,SpracheID+1,FALSE) -> Inverter | I39: =VLOOKUP("Generator",Texte,SpracheID+1,FALSE) -> Generator | N39: min | O39: max
C40: =VLOOKUP("Nennleistung_PV",Texte,SpracheID+1,FALSE) -> Nennleistung [W] | D40: =IF(E12,INDEX(Wechselrichter,E1_WechselrichterID,29),INDEX(Wechselrichter,E1_WechselrichterID,4)) * IF(INDEX(Wechselrichter,E1_WechselrichterID,28)=0,1,$L$21) -> 10450 | E40: =IF(E1_WR_Anzahl=0,0,IF(InitValues=FALSE,INDEX(E1_Solarmodule,E1_SolarmodulID,4)*E1_Stringanzahl*E1_Module_in_Reihe,IF(ISERROR(INDEX(E1_Solarmodule,E1_SolarmodulID,27)*E1_Stringanzahl*E1_Module_in_Reihe),txt_Daten_fehlen,INDEX(E1_Solarmodule,E1_SolarmodulID,27)*E1_Stringanzahl*E1_Module_in_Reihe))) -> 10220 | F40: =IF(G12,INDEX(Wechselrichter,E2_WechselrichterID,29),INDEX(Wechselrichter,E2_WechselrichterID,4)) * IF(INDEX(Wechselrichter,E2_WechselrichterID,28)=0,1,$L$21) -> 5225 | G40: =IF(E2_WR_Anzahl=0,0,IF(InitValues=FALSE,INDEX(E2_Solarmodule,E2_SolarmodulID,4)*E2_Stringanzahl*E2_Module_in_Reihe,IF(ISERROR(INDEX(E2_Solarmodule,E2_SolarmodulID,27)*E2_Stringanzahl*E2_Module_in_Reihe),txt_Daten_fehlen,INDEX(E2_Solarmodule,E2_SolarmodulID,27)*E2_Stringanzahl*E2_Module_in_Reihe))) -> 4745 | H40: =IF(I12,INDEX(Wechselrichter,E3_WechselrichterID,29),INDEX(Wechselrichter,E3_WechselrichterID,4)) * IF(INDEX(Wechselrichter,E3_WechselrichterID,28)=0,1,$L$21) -> 0 | I40: =IF(E3_WR_Anzahl=0,0,IF(InitValues=FALSE,INDEX(E3_Solarmodule,E3_SolarmodulID,4)*E3_Stringanzahl*E3_Module_in_Reihe,IF(ISERROR(INDEX(E3_Solarmodule,E3_SolarmodulID,27)*E3_Stringanzahl*E3_Module_in_Reihe),txt_Daten_fehlen,INDEX(E3_Solarmodule,E3_SolarmodulID,27)*E3_Stringanzahl*E3_Module_in_Reihe))) -> 0 | M40: Leistung | N40: =(INDEX(Wechselrichter,E1_WechselrichterID,2))*(1-Faktor_Grenzbereich) -> 8536 | O40: =(INDEX(Wechselrichter,E1_WechselrichterID,3))*(1+Faktor_Grenzbereich) -> 12463 | P40: =(INDEX(Wechselrichter,E2_WechselrichterID,2))*(1-Faktor_Grenzbereich) -> 4268 | Q40: =(INDEX(Wechselrichter,E2_WechselrichterID,3))*(1+Faktor_Grenzbereich) -> 6180 | R40: =(INDEX(Wechselrichter,E3_WechselrichterID,2))*(1-Faktor_Grenzbereich) -> 0 | S40: =(INDEX(Wechselrichter,E3_WechselrichterID,3))*(1+Faktor_Grenzbereich) -> 0
C41: =VLOOKUP("MinMPPSpannung_PV",Texte,SpracheID+1,FALSE) -> min. MPP-Spannung [V] | D41: =INDEX(Wechselrichter,E1_WechselrichterID,10) -> 200 | E41: =IF(DCspannungsabfall=TRUE,IF(ISERROR(E1_MPP_Spannung_min-(Spez_Widerstand_Kupfer*E1_DC_Leitungslänge/INDEX(Leitungsquerschnitt,E1_DC_LquerschnittID,1)*E1_MPP_Strom_max / E1_Stringanzahl)),txt_Daten_fehlen,E1_MPP_Spannung_min-(Spez_Widerstand_Kupfer*E1_DC_Leitungslänge/INDEX(Leitungsquerschnitt,E1_DC_LquerschnittID,1)*E1_MPP_Strom_max/ E1_Stringanzahl)),E1_MPP_Spannung_min) -> 403.1218572 | F41: =INDEX(Wechselrichter,E2_WechselrichterID,10) -> 200 | G41: =IF(DCspannungsabfall=TRUE,IF(ISERROR(E2_MPP_Spannung_min-(Spez_Widerstand_Kupfer*E2_DC_Leitungslänge/INDEX(Leitungsquerschnitt,E2_DC_LquerschnittID,1)*E2_MPP_Strom_max/ E2_Stringanzahl)),txt_Daten_fehlen,E2_MPP_Spannung_min-(Spez_Widerstand_Kupfer*E2_DC_Leitungslänge/INDEX(Leitungsquerschnitt,E2_DC_LquerschnittID,1)*E2_MPP_Strom_max/ E2_Stringanzahl)),E2_MPP_Spannung_min) -> 374.0914572 | H41: =INDEX(Wechselrichter,E3_WechselrichterID,10) -> 0 | I41: =IF(DCspannungsabfall=TRUE,IF(ISERROR(E3_MPP_spannung_min-(Spez_Widerstand_Kupfer*E3_DC_Leitungslänge/INDEX(Leitungsquerschnitt,E3_DC_LquerschnittID,1)*E3_MPP_Strom_max/ E3_Stringanzahl)),txt_Daten_fehlen,E3_MPP_spannung_min-(Spez_Widerstand_Kupfer*E3_DC_Leitungslänge/INDEX(Leitungsquerschnitt,E3_DC_LquerschnittID,1)*E3_MPP_Strom_max/ E3_Stringanzahl)),E3_MPP_spannung_min) -> Daten fehlen | M41: DC-Spannung | N41: =E1_WR_MPP_Spannung_min*(1-Faktor_Grenzbereich) -> 194 | O41: =E1_WR_MPP_Spannung_max*(1+Faktor_Grenzbereich) -> 762.2 | P41: =E2_WR_MPP_Spannung_min*(1-Faktor_Grenzbereich) -> 194 | Q41: =E2_WR_MPP_Spannung_max*(1+Faktor_Grenzbereich) -> 762.2 | R41: =E3_WR_MPP_Spannung_min*(1-Faktor_Grenzbereich) -> 0 | S41: =E3_WR_MPP_Spannung_max*(1+Faktor_Grenzbereich) -> 0
C42: =VLOOKUP("MaxMPPSpannung_PV",Texte,SpracheID+1,FALSE) -> max. MPP-Spannung [V] | D42: =INDEX(Wechselrichter,E1_WechselrichterID,11) -> 740 | E42: =IF(DCspannungsabfall=TRUE,IF(ISERROR(E1_MPP_Spannung_max-(Spez_Widerstand_Kupfer*E1_DC_Leitungslänge/INDEX(Leitungsquerschnitt,E1_DC_LquerschnittID,1)*E71/ E1_Stringanzahl)),txt_Daten_fehlen,E1_MPP_Spannung_max-(Spez_Widerstand_Kupfer*E1_DC_Leitungslänge/INDEX(Leitungsquerschnitt,E1_DC_LquerschnittID,1)*E71/ E1_Stringanzahl)),E1_MPP_Spannung_max) -> 539.2121827 | F42: =INDEX(Wechselrichter,E2_WechselrichterID,11) -> 740 | G42: =IF(DCspannungsabfall=TRUE,IF(ISERROR(E2_MPP_Spannung_max-(Spez_Widerstand_Kupfer*E2_DC_Leitungslänge/INDEX(Leitungsquerschnitt,E2_DC_LquerschnittID,1)*E78 / E2_Stringanzahl)),txt_Daten_fehlen,E2_MPP_Spannung_max-(Spez_Widerstand_Kupfer*E2_DC_Leitungslänge/INDEX(Leitungsquerschnitt,E2_DC_LquerschnittID,1)*E78/ E2_Stringanzahl)),E2_MPP_Spannung_max) -> 500.4713827 | H42: =INDEX(Wechselrichter,E3_WechselrichterID,11) -> 0 | I42: =IF(DCspannungsabfall=TRUE,IF(ISERROR(E3_MPP_Spannung_max-(Spez_Widerstand_Kupfer*E3_DC_Leitungslänge/INDEX(Leitungsquerschnitt,E3_DC_LquerschnittID,1)*E85/ E3_Stringanzahl)),txt_Daten_fehlen,E3_MPP_Spannung_max-(Spez_Widerstand_Kupfer*E3_DC_Leitungslänge/INDEX(Leitungsquerschnitt,E3_DC_LquerschnittID,1)*E85/ E3_Stringanzahl)),E3_MPP_Spannung_max) -> Daten fehlen | M42: MPP-Spannung | N42: =E1_WR_MPP_Spannung_min*(1-Faktor_Grenzbereich) -> 194 | O42: =E1_WR_MPP_Spannung_max*(1+Faktor_Grenzbereich) -> 762.2 | P42: =E2_WR_MPP_Spannung_min*(1-Faktor_Grenzbereich) -> 194 | Q42: =E2_WR_MPP_Spannung_max*(1+Faktor_Grenzbereich) -> 762.2 | R42: =E3_WR_MPP_Spannung_min*(1-Faktor_Grenzbereich) -> 0 | S42: =E3_WR_MPP_Spannung_max*(1+Faktor_Grenzbereich) -> 0
C43: =VLOOKUP("MaxMPPStrom_PV",Texte,SpracheID+1,FALSE) -> max. MPP-Strom [A] | D43: =INDEX(Wechselrichter,E1_WechselrichterID,21) -> 24 | E43: =E1_MPP_Strom_max -> 22.1976 | F43: =INDEX(Wechselrichter,E2_WechselrichterID,21) -> 12 | G43: =E2_MPP_Strom_max -> 11.0988 | H43: =INDEX(Wechselrichter,E3_WechselrichterID,21) -> 0 | I43: =E3_MPP_Strom_max -> 0 | N43: =E1_WR_MPP_Strom_max*(1+Faktor_Grenzbereich) -> 24.72 | P43: =E2_WR_MPP_Strom_max*(1+Faktor_Grenzbereich) -> 12.36 | R43: =E3_WR_MPP_Strom_max*(1+Faktor_Grenzbereich) -> 0
C44: =VLOOKUP("MaxLeerlaufspannung_PV",Texte,SpracheID+1,FALSE) -> max. Leerlauf-Spannung [V] | D44: =INDEX(Wechselrichter,E1_WechselrichterID,12) -> 900 | E44: =IF(DCspannungsabfall=TRUE,IF(ISERROR(E1_Leerlaufspannung_max-(Spez_Widerstand_Kupfer*E1_DC_Leitungslänge/INDEX(Leitungsquerschnitt,E1_DC_LquerschnittID,1)*E71/ E1_Stringanzahl)),txt_Daten_fehlen,E1_Leerlaufspannung_max-(Spez_Widerstand_Kupfer*E1_DC_Leitungslänge/INDEX(Leitungsquerschnitt,E1_DC_LquerschnittID,1)*E71/ E1_Stringanzahl)),E1_Leerlaufspannung_max) -> 640.0121827 | F44: =INDEX(Wechselrichter,E2_WechselrichterID,12) -> 900 | G44: =IF(DCspannungsabfall=TRUE,IF(ISERROR(E2_Leerlaufspannung_max-(Spez_Widerstand_Kupfer*E2_DC_Leitungslänge/INDEX(Leitungsquerschnitt,E2_DC_LquerschnittID,1)*E78 / E2_Stringanzahl)),txt_Daten_fehlen,E2_Leerlaufspannung_max-(Spez_Widerstand_Kupfer*E2_DC_Leitungslänge/INDEX(Leitungsquerschnitt,E2_DC_LquerschnittID,1)*E78/ E2_Stringanzahl)),E2_Leerlaufspannung_max) -> 594.0713827 | H44: =INDEX(Wechselrichter,E3_WechselrichterID,12) -> 0 | I44: =IF(DCspannungsabfall=TRUE,IF(ISERROR(E3_Leerlaufspannung_max-(Spez_Widerstand_Kupfer*E3_DC_Leitungslänge/INDEX(Leitungsquerschnitt,E3_DC_LquerschnittID,1)*E85/ E3_Stringanzahl)),txt_Daten_fehlen,E3_Leerlaufspannung_max-(Spez_Widerstand_Kupfer*E3_DC_Leitungslänge/INDEX(Leitungsquerschnitt,E3_DC_LquerschnittID,1)*E85/ E3_Stringanzahl)),E3_Leerlaufspannung_max) -> Daten fehlen | M44: max. Leerlaufspannung | N44: =(MIN(E1_WR_Leerlaufspannung_max,E1_max_Systemspannung)) -> 900 | O44: =(MIN(E1_WR_Leerlaufspannung_max,E1_max_Systemspannung)) -> 900 | P44: =(MIN(E2_WR_Leerlaufspannung_max,E2_max_Systemspannung)) -> 900 | Q44: =(MIN(E2_WR_Leerlaufspannung_max,E2_max_Systemspannung)) -> 900 | R44: =(MIN(E3_WR_Leerlaufspannung_max,E3_max_Systemspannung)) -> 0 | S44: =(MIN(E3_WR_Leerlaufspannung_max,E3_max_Systemspannung)) -> 0
C45: =VLOOKUP("MinLeerlaufspannung_PV",Texte,SpracheID+1,FALSE) -> min. Leerlauf-Spannung [V] | D45: =INDEX(Wechselrichter,E1_WechselrichterID,13) -> 200 | E45: =E1_Leerlaufspannung_min -> 507.2256 | F45: =INDEX(Wechselrichter,E2_WechselrichterID,13) -> 200 | G45: =E2_Leerlaufspannung_min -> 470.9952 | H45: =INDEX(Wechselrichter,E3_WechselrichterID,13) -> 0 | I45: =E3_Leerlaufspannung_min -> 0 | N45: =E1_WR_Leerlaufspannung_min*(1-Faktor_Grenzbereich) -> 194 | O45: =(MIN(E1_WR_Leerlaufspannung_max,E1_max_Systemspannung)) -> 900 | P45: =E2_WR_Leerlaufspannung_min*(1-Faktor_Grenzbereich) -> 194 | Q45: =(MIN(E2_WR_Leerlaufspannung_max,E2_max_Systemspannung)) -> 900 | R45: =E3_WR_Leerlaufspannung_min*(1-Faktor_Grenzbereich) -> 0 | S45: =(MIN(E3_WR_Leerlaufspannung_max,E3_max_Systemspannung)) -> 0
C46: =VLOOKUP("maxSystemspannung_PV",Texte,SpracheID+1,FALSE) -> max. Systemspannung [V] | E46: =IF(E1_WechselrichterID=1,0,IF(INDEX(E1_Solarmodule,E1_SolarmodulID,13)="-",txt_Daten_fehlen,INDEX(E1_Solarmodule,E1_SolarmodulID,13))) -> 1000 | G46: =IF(E2_WechselrichterID=1,0,IF(INDEX(E2_Solarmodule,E2_SolarmodulID,13)="-",txt_Daten_fehlen,INDEX(E2_Solarmodule,E2_SolarmodulID,13))) -> 1000 | I46: =IF(E3_WechselrichterID=1,0,IF(INDEX(E3_Solarmodule,E3_SolarmodulID,13)="-",txt_Daten_fehlen,INDEX(E3_Solarmodule,E3_SolarmodulID,13))) -> 0
C48: =VLOOKUP("WechselrichterGrenzwerte",Texte,SpracheID+1,FALSE) -> Anlagen-Kenngrößen | D48: =IF(ISERROR(SUM(E1_max_ACLeistung*E1_WR_Anzahl,IF(INDEX(Wechselrichter,E1_WechselrichterID,25)=3,E2_max_ACLeistung*E1_WR_Anzahl,E2_max_ACLeistung*E2_WR_Anzahl),IF(INDEX(Wechselrichter,E1_WechselrichterID,25)=3,E3_max_ACLeistung*E1_WR_Anzahl,E3_max_ACLeistung*E3_WR_Anzahl))/1000),txt_Daten_fehlen,SUM(E1_max_ACLeistung*E1_WR_Anzahl,IF(INDEX(Wechselrichter,E1_WechselrichterID,25)=3,E2_max_ACLeistung*E1_WR_Anzahl,E2_max_ACLeistung*E2_WR_Anzahl),IF(INDEX(Wechselrichter,E1_WechselrichterID,25)=3,E3_max_ACLeistung*E1_WR_Anzahl,E3_max_ACLeistung*E3_WR_Anzahl))/1000) -> 15.675 | E48: =IF(ISERROR(SUM(E1_max_MPPLeistung*E1_WR_Anzahl,IF(INDEX(Wechselrichter,E1_WechselrichterID,25)=3,E2_max_MPPLeistung*E1_WR_Anzahl,E2_max_MPPLeistung*E2_WR_Anzahl),IF(INDEX(Wechselrichter,E1_WechselrichterID,25)=3,E3_max_MPPLeistung*E1_WR_Anzahl,E3_max_MPPLeistung*E3_WR_Anzahl))/1000),txt_Daten_fehlen,SUM(E1_max_MPPLeistung*E1_WR_Anzahl,IF(INDEX(Wechselrichter,E1_WechselrichterID,25)=3,E2_max_MPPLeistung*E1_WR_Anzahl,E2_max_MPPLeistung*E2_WR_Anzahl),IF(INDEX(Wechselrichter,E1_WechselrichterID,25)=3,E3_max_MPPLeistung*E1_WR_Anzahl,E3_max_MPPLeistung*E3_WR_Anzahl))/1000) -> 14.965 | G48: =SUM(E53+G53+I53) & " " & VLOOKUP("Module",Texte,SpracheID+1,FALSE) -> 41 Module
C49: =VLOOKUP("möglicheDauerleistung",Texte,SpracheID+1,FALSE) -> mögliche Dauerleistung | E49: =IF(INDEX(Wechselrichter,E1_WechselrichterID,25)=0,0,IF(INDEX(Wechselrichter,E1_WechselrichterID,25)=3,D40*E1_WR_Anzahl,D40*E1_WR_Anzahl)) -> 10450 | G49: =IF(INDEX(Wechselrichter,E2_WechselrichterID,25)=0,0,IF(INDEX(Wechselrichter,E1_WechselrichterID,25)=3,D40*E1_WR_Anzahl,F40*E2_WR_Anzahl)) -> 5225 | I49: =IF(INDEX(Wechselrichter,E3_WechselrichterID,25)=0,0,IF(INDEX(Wechselrichter,E1_WechselrichterID,25)=3,D40*E1_WR_Anzahl,H40*E3_WR_Anzahl)) -> 0
C50: =VLOOKUP("EuropäischerJahreswirkungsgrad",Texte,SpracheID+1,FALSE) -> EU Jahreswirkungsgrad | E50: =IF(ISERROR(IF(E1_WechselrichterID<>1,ROUND(VLOOKUP(E1_WechselrichterID,_Daten!$V$6:$AC$40,6,FALSE),1),"")),txt_Daten_fehlen,IF(E1_WechselrichterID<>1,ROUND(VLOOKUP(E1_WechselrichterID,_Daten!$V$6:$AC$40,6,FALSE),1)/100,"")) -> Daten fehlen | G50: =IF(ISERROR(IF(E2_WechselrichterID<>1,ROUND(VLOOKUP(E2_WechselrichterID,_Daten!$V$6:$AC$40,7,FALSE),1),"")),txt_Daten_fehlen,IF(E2_WechselrichterID<>1,ROUND(VLOOKUP(E2_WechselrichterID,_Daten!$V$6:$AC$40,7,FALSE),1)/100,"")) -> Daten fehlen | I50: =IF(ISERROR(IF(E3_WechselrichterID<>1,ROUND(VLOOKUP(E3_WechselrichterID,_Daten!$V$6:$AC$40,8,FALSE),1),"")),txt_Daten_fehlen,IF(E3_WechselrichterID<>1,ROUND(VLOOKUP(E3_WechselrichterID,_Daten!$V$6:$AC$40,8,FALSE),1)/100,"")) -> 
C51: =VLOOKUP("Auslegungsverhältnis",Texte,SpracheID+1,FALSE) -> Auslegungsverhältnis DC/AC | E51: =IF(E1_WechselrichterID>1,E1_max_MPPLeistung/D40,"") -> 0.9779904306 | G51: =IF(E2_WechselrichterID>1,E2_max_MPPLeistung/F40,"") -> 0.9081339713 | I51: =IF(E3_WechselrichterID>1,E3_max_MPPLeistung/H40,"") -> 
C52: =VLOOKUP("Auslegungsverhältnis2",Texte,SpracheID+1,FALSE) -> Power Control Einstellung | E52: =IF(AND(E1_WechselrichterID>1,E1_WR_Anzahl<>0,$E$48<30),FLOOR(E1_max_MPPLeistung*70%/E1_max_ACLeistung,10%),"") -> 0.6 | G52: =IF(AND(E2_WechselrichterID>1,E2_WR_Anzahl<>0,$E$48<30),FLOOR(E2_max_MPPLeistung*70%/E2_max_ACLeistung,10%),"") -> 0.6 | I52: =IF(AND(E3_WechselrichterID>1,E3_WR_Anzahl<>0,$E$48<30),FLOOR(E3_max_MPPLeistung*70%/E3_max_ACLeistung,10%),"") -> 
B53: TRUE | C53: =VLOOKUP("ModuleGesamt_PV",Texte,SpracheID+1,FALSE) -> Modulanzahl | D53: =E1_Stringanzahl*E1_Module_in_Reihe -> 28 | E53: =E1_Module_in_Reihe*E1_Stringanzahl*E1_WR_Anzahl -> 28 | F53: =E2_Stringanzahl*E2_Module_in_Reihe -> 13 | G53: =IF(INDEX(Wechselrichter,E1_WechselrichterID,25)=3,E2_Module_in_Reihe*E2_Stringanzahl*E1_WR_Anzahl,E2_Module_in_Reihe*E2_Stringanzahl*E2_WR_Anzahl) -> 13 | H53: =E3_Stringanzahl*E3_Module_in_Reihe -> 0 | I53: =IF(INDEX(Wechselrichter,E1_WechselrichterID,25)=3,E3_Module_in_Reihe*E3_Stringanzahl*E1_WR_Anzahl,E3_Module_in_Reihe*E3_Stringanzahl*E3_WR_Anzahl) -> 0
C55: =VLOOKUP("Grafische Auslegung",Texte,SpracheID+1,FALSE) -> Grafische Auslegung
B60: =VLOOKUP("Betriebsbereich",Texte,SpracheID+1,FALSE) -> Wechselrichter Betriebsbereich
B62: =VLOOKUP("MPPPunkt",Texte,SpracheID+1,FALSE) -> Solar-Generator MPP-Punkt
C68: =VLOOKUP("Temperatur erweitert",Texte,SpracheID+1,FALSE) -> Erweiterte Temperatur-Informationen
B69: =D9&" "&VLOOKUP("E1_DCWerte",Texte,SpracheID+1,FALSE) -> Teilanlage 1 DC-Werte mit Berücksichtigung der Temperatur für 2 Strings mit je 14 Modulen | M69: Anzahl Module pro String | O69: Anzahl Strings
C70: =VLOOKUP("Temperatur",Texte,SpracheID+1,FALSE) -> Temperatur [°C] | D70: =Temp_min-5 -> -25 | E70: =INDEX(min_Zellentemperatur,min_ZellentempID,1) -> -20 | F70: 25 | G70: =H70-5 -> 60 | H70: =INDEX(max_Zellentemperatur,max_ZellentempID,1) -> 65 | I70: =H70+5 -> 70 | M70: min | N70: max | O70: min | P70: max
C71: =VLOOKUP("MPP-Strom_A",Texte,SpracheID+1,FALSE) -> MPP-Strom [A] | D71: =IF(E1_WR_Anzahl=0,0,IF(InitValues=FALSE,IF(ISERROR((INDEX(E1_Solarmodule,E1_SolarmodulID,7)+(D$70-25)*INDEX(E1_Solarmodule,E1_SolarmodulID,11)/1000)*E1_Stringanzahl),txt_Daten_fehlen,(INDEX(E1_Solarmodule,E1_SolarmodulID,7)+(D$70-25)*INDEX(E1_Solarmodule,E1_SolarmodulID,11)/1000)*E1_Stringanzahl),IF(ISERROR((INDEX(E1_Solarmodule,E1_SolarmodulID,29)+(D$70-25)*INDEX(E1_Solarmodule,E1_SolarmodulID,11)/1000)*E1_Stringanzahl),txt_Daten_fehlen,(INDEX(E1_Solarmodule,E1_SolarmodulID,29)+(D$70-25)*INDEX(E1_Solarmodule,E1_SolarmodulID,11)/1000)*E1_Stringanzahl))) -> 21.168 | E71: 21.2252 | F71: 21.74 | G71: 22.1404 | H71: 22.1976 | I71: 22.2548 | L71: Gesamt | M71: =MAX(M73:M75) -> 7 | N71: =MIN(N72:N75) -> 19 | O71: =MAX(O73:O75) -> 1 | P71: =MIN(P73:P75) -> 1 | Q71: Gesamt
C72: =VLOOKUP("MPP-Spannung_V",Texte,SpracheID+1,FALSE) -> MPP-Spannung [V] | D72: =IF(E1_WR_Anzahl=0,0,IF(InitValues=FALSE,IF(ISERROR((INDEX(E1_Solarmodule,E1_SolarmodulID,6)+(D$70-25)*INDEX(E1_Solarmodule,E1_SolarmodulID,10)/1000)*E1_Module_in_Reihe),txt_Daten_fehlen,(INDEX(E1_Solarmodule,E1_SolarmodulID,6)+(D$70-25)*INDEX(E1_Solarmodule,E1_SolarmodulID,10)/1000)*E1_Module_in_Reihe),IF(ISERROR((INDEX(E1_Solarmodule,E1_SolarmodulID,28)+(D$70-25)*INDEX(E1_Solarmodule,E1_SolarmodulID,10)/1000)*E1_Module_in_Reihe),txt_Daten_fehlen,(INDEX(E1_Solarmodule,E1_SolarmodulID,28)+(D$70-25)*INDEX(E1_Solarmodule,E1_SolarmodulID,10)/1000)*E1_Module_in_Reihe))) -> 550.368 | E72: 542.3712 | F72: 470.4 | G72: 414.4224 | H72: 406.4256 | I72: 398.4288 | L72: empf. PV-Leistung / Modul PN | N72: =IF(CB_EEG,"",TRUNC((INDEX(Wechselrichter,E1_WechselrichterID,3)*(1+Faktor_Grenzbereich))/(INDEX(E1_Solarmodule,E1_SolarmodulID,4))/E1_Stringanzahl,0)) -> 
C73: =VLOOKUP("Leerlaufspannung_V",Texte,SpracheID+1,FALSE) -> Leerlaufspannung [V] | D73: =IF(E1_WR_Anzahl=0,0,IF(InitValues=FALSE,IF(ISERROR((INDEX(E1_Solarmodule,E1_SolarmodulID,8)+(D$70-25)*INDEX(E1_Solarmodule,E1_SolarmodulID,10)/1000)*E1_Module_in_Reihe),txt_Daten_fehlen,(INDEX(E1_Solarmodule,E1_SolarmodulID,8)+(D$70-25)*INDEX(E1_Solarmodule,E1_SolarmodulID,10)/1000)*E1_Module_in_Reihe),IF(ISERROR((INDEX(E1_Solarmodule,E1_SolarmodulID,30)+(D$70-25)*INDEX(E1_Solarmodule,E1_SolarmodulID,10)/1000)*E1_Module_in_Reihe),txt_Daten_fehlen,(INDEX(E1_Solarmodule,E1_SolarmodulID,30)+(D$70-25)*INDEX(E1_Solarmodule,E1_SolarmodulID,10)/1000)*E1_Module_in_Reihe))) -> 651.168 | E73: 643.1712 | F73: 571.2 | G73: 515.2224 | H73: 507.2256 | I73: 499.2288 | L73: max. MPP-Spannung | M73: =INT(E1_WR_MPP_Spannung_min*(1-Faktor_Grenzbereich)*E1_Module_in_Reihe/E1_MPP_Spannung_min) -> 6 | N73: =INT(E1_WR_MPP_Spannung_max*(1+Faktor_Grenzbereich)*E1_Module_in_Reihe/E1_MPP_Spannung_max) -> 19 | O73: =INT((INDEX(Wechselrichter,E1_WechselrichterID,2)*(1+Faktor_Grenzbereich))/(E1_Leistung_min*E1_Module_in_Reihe))+1 -> 1 | P73: =INT((INDEX(Wechselrichter,E1_WechselrichterID,3)*(1+Faktor_Grenzbereich))*E1_Stringanzahl*E1_Module_in_Reihe/(E1_Leistung_max*E1_max_Module_pro_String)) -> 1
C74: =VLOOKUP("Gesamtleistung_W",Texte,SpracheID+1,FALSE) -> Gesamtleistung [W] | D74: =IF(ISERROR(D71*D72),txt_Daten_fehlen,D71*D72) -> 11650.18982 | E74: 11511.93719 | F74: 10226.496 | G74: 9175.477705 | H74: 9021.672899 | I74: 8866.953258 | L74: min. MPP-Spannung | M74: =INT(E1_WR_MPP_Spannung_min*(1-Faktor_Grenzbereich)*E1_Module_in_Reihe/E1_MPP_Spannung_min)+1 -> 7 | N74: =INT(E1_WR_Leerlaufspannung_max*(1+Faktor_Grenzbereich)*E1_Module_in_Reihe/E1_Leerlaufspannung_max) -> 20 | P74: =INT(E1_WR_MPP_Strom_max*(1+Faktor_Grenzbereich)*E1_Stringanzahl/E1_MPP_Strom_max) -> 2
L75: max. Systemspannung | M75: =INT(E1_WR_MPP_Spannung_min*(1-Faktor_Grenzbereich)*E1_Module_in_Reihe/E1_Leerlaufspannung_min)+1 -> 6 | N75: =INT(E1_max_Systemspannung/(E1_Leerlaufspannung_max/E1_Module_in_Reihe)) -> 21
B76: =F9&" "&VLOOKUP("E2_DCWerte",Texte,SpracheID+1,FALSE) -> Teilanlage 2 DC-Werte mit Berücksichtigung der Temperatur für einen String mit je 13 Modulen
C77: =VLOOKUP("Temperatur",Texte,SpracheID+1,FALSE) -> Temperatur [°C] | D77: =Temp_min-5 -> -25 | E77: =INDEX(min_Zellentemperatur,min_ZellentempID,1) -> -20 | F77: 25 | G77: =H77-5 -> 60 | H77: =INDEX(max_Zellentemperatur,max_ZellentempID,1) -> 65 | I77: =H77+5 -> 70
C78: =VLOOKUP("MPP-Strom_A",Texte,SpracheID+1,FALSE) -> MPP-Strom [A] | D78: =IF(E2_WR_Anzahl=0,0,IF(InitValues=FALSE,IF(ISERROR((INDEX(E2_Solarmodule,E2_SolarmodulID,7)+(D$70-25)*INDEX(E2_Solarmodule,E2_SolarmodulID,11)/1000)*E2_Stringanzahl),txt_Daten_fehlen,(INDEX(E2_Solarmodule,E2_SolarmodulID,7)+(D$70-25)*INDEX(E2_Solarmodule,E2_SolarmodulID,11)/1000)*E2_Stringanzahl),IF(ISERROR((INDEX(E2_Solarmodule,E2_SolarmodulID,29)+(D$70-25)*INDEX(E2_Solarmodule,E2_SolarmodulID,11)/1000)*E2_Stringanzahl),txt_Daten_fehlen,(INDEX(E2_Solarmodule,E2_SolarmodulID,29)+(D$70-25)*INDEX(E2_Solarmodule,E2_SolarmodulID,11)/1000)*E2_Stringanzahl))) -> 10.584 | E78: 10.6126 | F78: 10.87 | G78: 11.0702 | H78: 11.0988 | I78: 11.1274 | M78: =MAX(M80:M82) -> 7 | N78: =MIN(N79:N82) -> 19 | O78: =MAX(O80:O82) -> 1 | P78: =MIN(P80:P82) -> 0
C79: =VLOOKUP("MPP-Spannung_V",Texte,SpracheID+1,FALSE) -> MPP-Spannung [V] | D79: =IF(E2_WR_Anzahl=0,0,IF(InitValues=FALSE,IF(ISERROR((INDEX(E2_Solarmodule,E2_SolarmodulID,6)+(D$70-25)*INDEX(E2_Solarmodule,E2_SolarmodulID,10)/1000)*E2_Module_in_Reihe),txt_Daten_fehlen,(INDEX(E2_Solarmodule,E2_SolarmodulID,6)+(D$70-25)*INDEX(E2_Solarmodule,E2_SolarmodulID,10)/1000)*E2_Module_in_Reihe),IF(ISERROR((INDEX(E2_Solarmodule,E2_SolarmodulID,28)+(D$70-25)*INDEX(E2_Solarmodule,E2_SolarmodulID,10)/1000)*E2_Module_in_Reihe),txt_Daten_fehlen,(INDEX(E2_Solarmodule,E2_SolarmodulID,28)+(D$70-25)*INDEX(E2_Solarmodule,E2_SolarmodulID,10)/1000)*E2_Module_in_Reihe))) -> 511.056 | E79: 503.6304 | F79: 436.8 | G79: 384.8208 | H79: 377.3952 | I79: 369.9696 | N79: =IF(CB_EEG,"",TRUNC((INDEX(Wechselrichter,E2_WechselrichterID,3)*(1+Faktor_Grenzbereich))/(INDEX(E2_Solarmodule,E2_SolarmodulID,4))/E2_Stringanzahl,0)) -> 
C80: =VLOOKUP("Leerlaufspannung_V",Texte,SpracheID+1,FALSE) -> Leerlaufspannung [V] | D80: =IF(E2_WR_Anzahl=0,0,IF(InitValues=FALSE,IF(ISERROR((INDEX(E2_Solarmodule,E2_SolarmodulID,8)+(D$70-25)*INDEX(E2_Solarmodule,E2_SolarmodulID,10)/1000)*E2_Module_in_Reihe),txt_Daten_fehlen,(INDEX(E2_Solarmodule,E2_SolarmodulID,8)+(D$70-25)*INDEX(E2_Solarmodule,E2_SolarmodulID,10)/1000)*E2_Module_in_Reihe),IF(ISERROR((INDEX(E2_Solarmodule,E2_SolarmodulID,30)+(D$70-25)*INDEX(E2_Solarmodule,E2_SolarmodulID,10)/1000)*E2_Module_in_Reihe),txt_Daten_fehlen,(INDEX(E2_Solarmodule,E2_SolarmodulID,30)+(D$70-25)*INDEX(E2_Solarmodule,E2_SolarmodulID,10)/1000)*E2_Module_in_Reihe))) -> 604.656 | E80: 597.2304 | F80: 530.4 | G80: 478.4208 | H80: 470.9952 | I80: 463.5696 | M80: =INT(E2_WR_MPP_Spannung_min*(1-Faktor_Grenzbereich)*E2_Module_in_Reihe/E2_MPP_Spannung_min) -> 6 | N80: =INT(E2_WR_MPP_Spannung_max*(1+Faktor_Grenzbereich)*E2_Module_in_Reihe/E2_MPP_Spannung_max) -> 19 | O80: =INT((INDEX(Wechselrichter,E2_WechselrichterID,2)*(1+Faktor_Grenzbereich))/(E2_Leistung_min*E2_Module_in_Reihe))+1 -> 1 | P80: =INT((INDEX(Wechselrichter,E2_WechselrichterID,3)*(1+Faktor_Grenzbereich))*E2_Stringanzahl*E2_Module_in_Reihe/(E2_Leistung_max*E2_max_Module_pro_String)) -> 0
C81: =VLOOKUP("Gesamtleistung_W",Texte,SpracheID+1,FALSE) -> Gesamtleistung [W] | D81: =IF(ISERROR(D78*D79),txt_Daten_fehlen,D78*D79) -> 5409.016704 | E81: 5344.827983 | F81: 4748.016 | G81: 4260.04322 | H81: 4188.633846 | I81: 4116.799727 | M81: =INT(E2_WR_MPP_Spannung_min*(1-Faktor_Grenzbereich)*E2_Module_in_Reihe/E2_MPP_Spannung_min)+1 -> 7 | N81: =INT(E2_WR_Leerlaufspannung_max*(1+Faktor_Grenzbereich)*E2_Module_in_Reihe/E2_Leerlaufspannung_max) -> 20 | P81: =INT(E2_WR_MPP_Strom_max*(1+Faktor_Grenzbereich)*E2_Stringanzahl/E2_MPP_Strom_max) -> 1
M82: =INT(E2_WR_MPP_Spannung_min*(1-Faktor_Grenzbereich)*E2_Module_in_Reihe/E2_Leerlaufspannung_min)+1 -> 6 | N82: =INT(E2_max_Systemspannung/(E2_Leerlaufspannung_max/E2_Module_in_Reihe)) -> 21
B83: =H9&" "&VLOOKUP("E3_DCWerte",Texte,SpracheID+1,FALSE) -> Teilanlage 3 DC-Werte mit Berücksichtigung der Temperatur für einen String mit je einem Modul
C84: =VLOOKUP("Temperatur",Texte,SpracheID+1,FALSE) -> Temperatur [°C] | D84: =Temp_min-5 -> -25 | E84: =INDEX(min_Zellentemperatur,min_ZellentempID,1) -> -20 | F84: 25 | G84: =H84-5 -> 60 | H84: =INDEX(max_Zellentemperatur,max_ZellentempID,1) -> 65 | I84: =H84+5 -> 70
C85: =VLOOKUP("MPP-Strom_A",Texte,SpracheID+1,FALSE) -> MPP-Strom [A] | D85: =IF(E3_WR_Anzahl=0,0,IF(InitValues=FALSE,IF(ISERROR((INDEX(E3_Solarmodule,E3_SolarmodulID,7)+(D$70-25)*INDEX(E3_Solarmodule,E3_SolarmodulID,11)/1000)*E3_Stringanzahl),txt_Daten_fehlen,(INDEX(E3_Solarmodule,E3_SolarmodulID,7)+(D$70-25)*INDEX(E3_Solarmodule,E3_SolarmodulID,11)/1000)*E3_Stringanzahl),IF(ISERROR((INDEX(E3_Solarmodule,E3_SolarmodulID,29)+(D$70-25)*INDEX(E3_Solarmodule,E3_SolarmodulID,11)/1000)*E3_Stringanzahl),txt_Daten_fehlen,(INDEX(E3_Solarmodule,E3_SolarmodulID,29)+(D$70-25)*INDEX(E3_Solarmodule,E3_SolarmodulID,11)/1000)*E3_Stringanzahl))) -> 0 | E85: 0 | F85: 0 | G85: 0 | H85: 0 | I85: 0 | M85: =MAX(M87:M89) ->  | N85: =MIN(N86:N89) ->  | O85: =MAX(O87:O89) ->  | P85: =MIN(P87:P89) -> 
C86: =VLOOKUP("MPP-Spannung_V",Texte,SpracheID+1,FALSE) -> MPP-Spannung [V] | D86: =IF(E3_WR_Anzahl=0,0,IF(InitValues=FALSE,IF(ISERROR((INDEX(E3_Solarmodule,E3_SolarmodulID,6)+(D$70-25)*INDEX(E3_Solarmodule,E3_SolarmodulID,10)/1000)*E3_Module_in_Reihe),txt_Daten_fehlen,(INDEX(E3_Solarmodule,E3_SolarmodulID,6)+(D$70-25)*INDEX(E3_Solarmodule,E3_SolarmodulID,10)/1000)*E3_Module_in_Reihe),IF(ISERROR((INDEX(E3_Solarmodule,E3_SolarmodulID,28)+(D$70-25)*INDEX(E3_Solarmodule,E3_SolarmodulID,10)/1000)*E3_Module_in_Reihe),txt_Daten_fehlen,(INDEX(E3_Solarmodule,E3_SolarmodulID,28)+(D$70-25)*INDEX(E3_Solarmodule,E3_SolarmodulID,10)/1000)*E3_Module_in_Reihe))) -> 0 | E86: 0 | F86: 0 | G86: 0 | H86: 0 | I86: 0 | N86: =IF(CB_EEG,"",TRUNC((INDEX(Wechselrichter,E3_WechselrichterID,3)*(1+Faktor_Grenzbereich))/(INDEX(E3_Solarmodule,E3_SolarmodulID,4))/E3_Stringanzahl,0)) -> 
C87: =VLOOKUP("Leerlaufspannung_V",Texte,SpracheID+1,FALSE) -> Leerlaufspannung [V] | D87: =IF(E3_WR_Anzahl=0,0,IF(InitValues=FALSE,IF(ISERROR((INDEX(E3_Solarmodule,E3_SolarmodulID,8)+(D$70-25)*INDEX(E3_Solarmodule,E3_SolarmodulID,10)/1000)*E3_Module_in_Reihe),txt_Daten_fehlen,(INDEX(E3_Solarmodule,E3_SolarmodulID,8)+(D$70-25)*INDEX(E3_Solarmodule,E3_SolarmodulID,10)/1000)*E3_Module_in_Reihe),IF(ISERROR((INDEX(E3_Solarmodule,E3_SolarmodulID,30)+(D$70-25)*INDEX(E3_Solarmodule,E3_SolarmodulID,10)/1000)*E3_Module_in_Reihe),txt_Daten_fehlen,(INDEX(E3_Solarmodule,E3_SolarmodulID,30)+(D$70-25)*INDEX(E3_Solarmodule,E3_SolarmodulID,10)/1000)*E3_Module_in_Reihe))) -> 0 | E87: 0 | F87: 0 | G87: 0 | H87: 0 | I87: 0 | M87: =INT(E3_WR_MPP_Spannung_min*(1-Faktor_Grenzbereich)*E3_Module_in_Reihe/E3_MPP_spannung_min) ->  | N87: =INT(E3_WR_MPP_Spannung_max*(1+Faktor_Grenzbereich)*E3_Module_in_Reihe/E3_MPP_Spannung_max) ->  | O87: =INT((INDEX(Wechselrichter,E3_WechselrichterID,2)*(1+Faktor_Grenzbereich))/(E3_Leistung_min*E3_Module_in_Reihe))+1 ->  | P87: =INT((INDEX(Wechselrichter,E3_WechselrichterID,3)*(1+Faktor_Grenzbereich))*E3_Stringanzahl*E3_Module_in_Reihe/(E3_Leistung_max*E3_max_Module_pro_String)) -> 
C88: =VLOOKUP("Gesamtleistung_W",Texte,SpracheID+1,FALSE) -> Gesamtleistung [W] | D88: =IF(ISERROR(D85*D86),txt_Daten_fehlen,D85*D86) -> 0 | E88: 0 | F88: 0 | G88: 0 | H88: 0 | I88: 0 | M88: =INT(E3_WR_MPP_Spannung_min*(1-Faktor_Grenzbereich)*E3_Module_in_Reihe/E3_MPP_spannung_min)+1 ->  | N88: =INT(E3_WR_Leerlaufspannung_max*(1+Faktor_Grenzbereich)*E3_Module_in_Reihe/E3_Leerlaufspannung_max) ->  | P88: =INT(E3_WR_MPP_Strom_max*(1+Faktor_Grenzbereich)*E3_Stringanzahl/E3_MPP_Strom_max) -> 
M89: =INT(E3_WR_MPP_Spannung_min*(1-Faktor_Grenzbereich)*E3_Module_in_Reihe/E3_Leerlaufspannung_min)+1 ->  | N89: =INT(E3_max_Systemspannung/(E3_Leerlaufspannung_max/E3_Module_in_Reihe)) -> 
C90: =VLOOKUP("Kabelverluste",Texte,SpracheID+1,FALSE) -> Für die Berechnung der Kabelverluste bitte eintragen
B91: TRUE | C91: =VLOOKUP("DCLeitung Spannungsabfall",Texte,SpracheID+1,FALSE) -> Spannungsabfall der DC-Leitung in Rechnung einbeziehen
C93: =VLOOKUP("DCLeitungslänge",Texte,SpracheID+1,FALSE) -> DC-Leitungslänge [m] | D93: 100 | E93: 2 | F93: 100 | G93: 2 | H93: 100 | I93: 2
C95: =VLOOKUP("ACLeitungslänge",Texte,SpracheID+1,FALSE) -> AC-Leitungslänge [m] | D95: 25 | E95: 5 | F95: 25 | G95: 5 | H95: 25 | I95: 5

Sheet Ertragsberechnung
C7: =VLOOKUP("Ertragsberechnung",Texte_Ertrag,SpracheID+1,FALSE) -> Ertragsberechnung
C10: =VLOOKUP("Ort",Texte_Ertrag,SpracheID+1,FALSE) -> Ort | P10: 1
D11: =VLOOKUP("Breitengrad",Texte_Ertrag,SpracheID+1,FALSE) -> Breitengrad: | F11: 50,8 | G11: °N | H11: =HYPERLINK(VLOOKUP("Koordinaten_URL",Texte_Ertrag,SpracheID+1,FALSE),VLOOKUP("Koordinaten",Texte_Ertrag,SpracheID+1,FALSE)) -> zur Ermittlung der Koordinaten (Internet)
D13: =VLOOKUP("Längengrad",Texte_Ertrag,SpracheID+1,FALSE) -> Längengrad: | F13: 12,92 | G13: °O | H13: =VLOOKUP("Kommahinweis",Texte_Ertrag,SpracheID+1,FALSE) -> Komma-Werte bitte mit "," und nicht mit "." eingeben !
D15: =VLOOKUP("Einstrahlung",Texte_Ertrag,SpracheID+1,FALSE) -> Einstrahlung (horiz.): | F15: 1100 | G15: kWh/m² | H15: =HYPERLINK(VLOOKUP("PVGIS_URL",Texte_Ertrag,SpracheID+1,FALSE),VLOOKUP("PVGIS_Text",Texte_Ertrag,SpracheID+1,FALSE)) -> Einstrahlung bei SOLAR ATLAS online Nachschlagen (GHI-Wert)
F18: =IF(INDEX(Wechselrichter,E1_WechselrichterID,25)=3,VLOOKUP("Eingang",Texte,SpracheID+1,FALSE) & " 1 ",VLOOKUP("Teilanlage",Texte,SpracheID+1,FALSE) & " 1 ") -> Teilanlage 1 | H18: =IF(INDEX(Wechselrichter,E1_WechselrichterID,25)=3,VLOOKUP("Eingang",Texte,SpracheID+1,FALSE) & " 2 ",VLOOKUP("Teilanlage",Texte,SpracheID+1,FALSE) & " 2 ") -> Teilanlage 2 | J18: =IF(INDEX(Wechselrichter,E1_WechselrichterID,25)=3,VLOOKUP("Eingang",Texte,SpracheID+1,FALSE) & " 3 ",VLOOKUP("Teilanlage",Texte,SpracheID+1,FALSE) & " 3 ") -> Teilanlage 3
C19: =VLOOKUP("Wechselrichter",Texte_Ertrag,SpracheID+1,FALSE) -> Solar Inverter
D20: =VLOOKUP("Wechselrichter",Texte_Ertrag,SpracheID+1,FALSE)&":" -> Solar Inverter: | F20: =INDEX(Wechselrichter,E1_WechselrichterID,1) -> Centurio 10.0 | H20: =INDEX(Wechselrichter,E2_WechselrichterID,1) -> Centurio 10.0 - 1 String | J20: =INDEX(Wechselrichter,E3_WechselrichterID,1) -> (keine Auswahl)
D22: =VLOOKUP("EU-Wirkungsgrad",Texte_Ertrag,SpracheID+1,FALSE)&":" -> EU-Wirkungsgrad: | F22: =IF(ISERROR(IF(E1_WechselrichterID<>1,ROUND(VLOOKUP(E1_WechselrichterID,_Daten!$V$6:$AC$40,6,FALSE),1),"")),"- ",IF(E1_WechselrichterID<>1,ROUND(VLOOKUP(E1_WechselrichterID,_Daten!$V$6:$AC$40,6,FALSE),1),"- ")) -> - | G22: % | H22: =IF(ISERROR(IF(E2_WechselrichterID<>1,ROUND(VLOOKUP(E2_WechselrichterID,_Daten!$V$6:$AC$40,7,FALSE),1),"")),"- ",IF(E2_WechselrichterID<>1,ROUND(VLOOKUP(E2_WechselrichterID,_Daten!$V$6:$AC$40,7,FALSE),1),"- ")) -> - | I22: % | J22: =IF(ISERROR(IF(E3_WechselrichterID<>1,ROUND(VLOOKUP(E3_WechselrichterID,_Daten!$V$6:$AC$40,8,FALSE),1),"")),"- ",IF(E3_WechselrichterID<>1,ROUND(VLOOKUP(E3_WechselrichterID,_Daten!$V$6:$AC$40,8,FALSE),1),"- ")) -> - | K22: %
D24: =VLOOKUP("Anzahl",Texte_Ertrag,SpracheID+1,FALSE) -> Anzahl: | F24: =E1_WR_Anzahl -> 1 | H24: =IF(INDEX(Wechselrichter,E1_WechselrichterID,25)=3,E1_WR_Anzahl,E2_WR_Anzahl) -> 1 | J24: =IF(INDEX(Wechselrichter,E1_WechselrichterID,25)=3,E1_WR_Anzahl,E3_WR_Anzahl) -> 0
C25: =VLOOKUP("Modul",Texte_Ertrag,SpracheID+1,FALSE) -> Modul
D26: Typ | F26: =IF(F24=0,0,INDEX(E1_Solarmodule,E1_SolarmodulID,3)) -> HiKu CS3L-365P | H26: =IF(H24=0,0,INDEX(E2_Solarmodule,E2_SolarmodulID,3)) -> HiKu CS3L-365P | J26: =IF(J24=0,0,INDEX(E3_Solarmodule,E3_SolarmodulID,3)) -> 0
D28: =VLOOKUP("Neigung",Texte_Ertrag,SpracheID+1,FALSE) -> Neigung: | F28: 2 | H28: 2 | J28: 2
D30: =VLOOKUP("Ausrichtung",Texte_Ertrag,SpracheID+1,FALSE) -> Ausrichtung: | F30: 3 | H30: 3 | J30: 3
C33: =VLOOKUP("Vergütung",Texte_Ertrag,SpracheID+1,FALSE) -> Vergütung | F33: =0.12*(1-15%) -> 0.102 | G33: € / kWh
B36: =VLOOKUP("Jahresertrag",Texte_Ertrag,SpracheID+1,FALSE) -> Jahresertrag
D38: =VLOOKUP("Modulertrag",Texte_Ertrag,SpracheID+1,FALSE) -> Modulertrag: | F38: =IF(ISERROR(T96*E1_WR_Anzahl2),0,T96*E1_WR_Anzahl2) -> 11093.88306 | G38: kWh | H38: =IF(ISERROR(T131*E2_WR_Anzahl2),0,T131*E2_WR_Anzahl2) -> 5150.731419 | I38: kWh | J38: =IF(ISERROR(T166*E3_WR_Anzahl2),0,T166*E3_WR_Anzahl2) -> 0 | K38: kWh
D40: =VLOOKUP("Systemverluste",Texte_Ertrag,SpracheID+1,FALSE) -> Systemverluste: | F40: =IF(ISERROR(100-F22+E1_Verlust_Kabel_DC+E1_Verlust_Kabel_AC),0,100-F22+E1_Verlust_Kabel_DC+E1_Verlust_Kabel_AC) -> 0 | G40: % | H40: =IF(ISERROR(100-H22+E2_Verlust_Kabel_DC+E2_Verlust_Kabel_AC),0,100-H22+E2_Verlust_Kabel_DC+E2_Verlust_Kabel_AC) -> 0 | I40: % | J40: =IF(ISERROR(100-J22+E3_Verlust_Kabel_DC+E3_Verlust_Kabel_AC),0,100-J22+E3_Verlust_Kabel_DC+E3_Verlust_Kabel_AC) -> 0 | K40: % | L40: =VLOOKUP("inkl_Kabel",Texte_Ertrag,SpracheID+1,FALSE) -> (inkl. Kabel)
D42: kWh / kWp: | F42: =IF(ISERROR(Ertrag_kWh*1000/E1_max_MPPLeistung/E1_WR_Anzahl),0,Ertrag_kWh*1000/E1_max_MPPLeistung/E1_WR_Anzahl2) -> 1085.507148 | G42: kWh / kWp | H42: =IF(ISERROR(H44*1000/E2_max_MPPLeistung/E2_WR_Anzahl2),0,H44*1000/E2_max_MPPLeistung/E2_WR_Anzahl2) -> 1085.507148 | I42: kWh / kWp | J42: =IF(ISERROR(J44*1000/E3_max_MPPLeistung/E3_WR_Anzahl2),0,J44*1000/E3_max_MPPLeistung/E3_WR_Anzahl2) -> 0 | K42: kWh / kWp
D44: =VLOOKUP("Ertrag",Texte_Ertrag,SpracheID+1,FALSE) -> Energieeinspeisung: | F44: =U96 -> 11093.88306 | G44: kWh | H44: =U131 -> 5150.731419 | I44: kWh | J44: =U166 -> 0 | K44: kWh | L44: ="("& VLOOKUP("Netz",Texte_Ertrag,SpracheID+1,FALSE)& ")" -> (Netz)
F46: =V96 -> 1131.576072 | G46: € | H46: =V131 -> 525.3746048 | I46: € | J46: =V166 -> 0 | K46: €
D48: =VLOOKUP("Summe",Texte_Ertrag,SpracheID+1,FALSE) -> Summe: | G48: =SUM(F44,H44,J44) -> 16244.61448 | H48: kWh | I48: =SUM(F46,H46,J46) -> 1656.950677 | J48: €
B50: =VLOOKUP("1wechselrichter",Texte_Ertrag,SpracheID+1,FALSE) -> Monatsverteilung - am Einspeisepunkt
D66: =VLOOKUP("Achtung",Texte_Ertrag,SpracheID+1,FALSE) -> Achtung: | F66: =VLOOKUP("Achtung_txt",Texte_Ertrag,SpracheID+1,FALSE) -> Die berechneten Ergebnisse können von realen Werten um 10% oder mehr abweichen
T81: [kWh] | U81: =F18&" "&"[kWh]" -> Teilanlage 1 [kWh]
E82: Tag | F82: höhe | G82: azimut | I82: Monat | J82: höhe | K82: azimut | N82: Jahr | Q82: %/100 | R82: S_kwh/M | S82: S_kWh/d | T82: Möglich | U82: nach Verlusten | V82: €
E83: 0 | F83: -62.30244416 | G83: 1 | I83: 1 | J83: 1 | M83: Jan | N83: 1 | O83: 152.0489021 | Q83: =O83/O$96 -> 0.02221538097 | R83: =Sonneneinstrahlung*Q83 -> 24.43691907 | S83: =R83/30 -> 0.8145639691 | T83: =Sonneneinstrahlung/1000*INDEX(E1_Solarmodule,E1_SolarmodulID,4)*$Q83*E1_Anzahl_Module_gesamt*INDEX(Korrekturfaktor_ausrichtung,(INDEX(Modul_ausrichtung_range2,E1_Modul_ausrichtung,1)+INDEX(Modul_neigung_range2,E1_Modul_neigung,1)),$N83)*INDEX(Korrekturfaktor_temperatur,1,$N83) -> 366.8259156 | U83: =IF(E1_WR_Anzahl<>0,E1_WR_Anzahl*(Sonneneinstrahlung/1000*INDEX(E1_Solarmodule,E1_SolarmodulID,4)*$Q83*E1_Anzahl_Module_gesamt*INDEX(Korrekturfaktor_ausrichtung,(INDEX(Modul_ausrichtung_range2,E1_Modul_ausrichtung,1)+INDEX(Modul_neigung_range2,E1_Modul_neigung,1)),$N83)*INDEX(Korrekturfaktor_temperatur,1,$N83)*((100-F$40)/100)),0) -> 366.8259156 | V83: =U83*Verguetung -> 37.41624339
E84: 1 | F84: -57.04672959 | G84: 1 | I84: 2 | J84: 1 | M84: Feb | N84: 2 | O84: 313.4273729 | Q84: 0.04579387553 | R84: 50.37326309 | S84: =R84/30 -> 1.67910877 | T84: =Sonneneinstrahlung/1000*INDEX(E1_Solarmodule,E1_SolarmodulID,4)*$Q84*E1_Anzahl_Module_gesamt*INDEX(Korrekturfaktor_ausrichtung,(INDEX(Modul_ausrichtung_range2,E1_Modul_ausrichtung,1)+INDEX(Modul_neigung_range2,E1_Modul_neigung,1)),$N84)*INDEX(Korrekturfaktor_temperatur,1,$N84) -> 727.9480547 | U84: =IF(E1_WR_Anzahl<>0,E1_WR_Anzahl*(Sonneneinstrahlung/1000*INDEX(E1_Solarmodule,E1_SolarmodulID,4)*$Q84*E1_Anzahl_Module_gesamt*INDEX(Korrekturfaktor_ausrichtung,(INDEX(Modul_ausrichtung_range2,E1_Modul_ausrichtung,1)+INDEX(Modul_neigung_range2,E1_Modul_neigung,1)),$N84)*INDEX(Korrekturfaktor_temperatur,1,$N84)*((100-F$40)/100)),0) -> 727.9480547 | V84: =U84*Verguetung -> 74.25070158
E85: 2 | F85: -49.14677466 | G85: 1 | I85: 3 | J85: 1 | M85: Mrz | N85: 3 | O85: 555.5786031 | Q85: 0.0811738208 | R85: 89.29120287 | S85: 2.976373429 | T85: 1014.306098 | U85: 1014.306098 | V85: 103.459222
E86: 3 | F86: -40.00622758 | G86: 1 | I86: 4 | J86: 1 | M86: Apr | N86: 4 | O86: 819.8587645 | Q86: 0.1197869538 | R86: 131.7656491 | S86: 4.392188304 | T86: 1323.482641 | U86: 1323.482641 | V86: 134.9952294
E87: 4 | F87: -30.41768023 | G87: 1 | I87: 5 | J87: 1 | M87: Mai | N87: 5 | O87: 1017.172662 | Q87: 0.148615859 | R87: 163.4774449 | S87: 5.449248165 | T87: 1470.250749 | U87: 1470.250749 | V87: 149.9655764
E88: 5 | F88: -20.85363408 | G88: 1 | I88: 6 | J88: 1 | M88: Jun | N88: 6 | O88: 1093.096382 | Q88: 0.1597088321 | R88: 175.6797153 | S88: 5.85599051 | T88: 1499.557076 | U88: 1499.557076 | V88: 152.9548217
E89: 6 | F89: -11.66334406 | G89: 1 | I89: 7 | J89: 1 | M89: Jul | N89: 7 | O89: 1009.857474 | Q89: 0.1475470603 | R89: 162.3017663 | S89: 5.410058877 | T89: 1383.707604 | U89: 1383.707604 | V89: 141.1381756
E90: 7 | F90: -3.171176638 | G90: 1 | I90: 8 | J90: 1 | M90: Aug | N90: 8 | O90: 795.5898098 | Q90: 0.116241094 | R90: 127.8652034 | S90: 4.262173448 | T90: 1157.547832 | U90: 1157.547832 | V90: 118.0698788
E91: 8 | F91: 4.274549864 | G91: 1 | I91: 9 | J91: 1 | M91: Sep | N91: 9 | O91: 531.1720847 | Q91: 0.0776078621 | R91: 85.36864831 | S91: 2.84562161 | T91: 908.500497 | U91: 908.500497 | V91: 92.6670507
E92: 9 | F92: 10.28559343 | G92: 1 | I92: 10 | J92: 1 | M92: Okt | N92: 10 | O92: 305.3928544 | Q92: 0.04461997763 | R92: 49.08197539 | S92: 1.636065846 | T92: 639.0610625 | U92: 639.0610625 | V92: 65.18422838
E93: 10 | F93: 14.45675281 | G93: 1 | I93: 11 | J93: 1 | M93: Nov | N93: 11 | O93: 149.0223176 | Q93: 0.02177317635 | R93: 23.95049399 | S93: 0.7983497995 | T93: 359.8178513 | U93: 359.8178513 | V93: 36.70142084
E94: 11 | F94: 16.43777495 | G94: 1 | I94: 12 | J94: 1 | M94: Dez | N94: 12 | O94: 102.0904282 | Q94: 0.01491610741 | R94: 16.40771816 | S94: 0.5469239385 | T94: 242.8776763 | U94: 242.8776763 | V94: 24.77352299
E95: 12 | F95: 16.03699045 | G95: 1 | I95: 13 | J95: 1 | O95: =AVERAGE(O83:O94) -> 570.3589713 | Q95: =AVERAGE(Q83:Q94) -> 0.08333333333 | R95: 91.66666667 | S95: 3.055555556 | T95: 924.4902547 | U95: 924.4902547 | V95: 94.29800598
E96: 13 | F96: 13.29465367 | G96: 1 | I96: 14 | J96: 1 | O96: =SUM(O83:O94) -> 6844.307655 | Q96: =SUM(Q83:Q94) -> 1 | R96: 1100 | S96: 36.66666667 | T96: 11093.88306 | U96: 11093.88306 | V96: 1131.576072
E97: 14 | F97: 8.466560572 | G97: 1 | I97: 15 | J97: 1
E98: 15 | F98: 1.93211101 | G98: 1 | I98: 16 | J98: 1
E99: 16 | F99: -5.903636408 | G99: 1 | I99: 17 | J99: 1
E100: 17 | F100: -14.66539354 | G100: 1 | I100: 18 | J100: 1
E101: 18 | F101: -24.01619093 | G101: 1 | I101: 19 | J101: 1
E102: 19 | F102: -33.63060219 | G102: 1 | I102: 20 | J102: 1
E103: 20 | F103: -43.13277532 | G103: 1 | I103: 21 | J103: 1
E104: 21 | F104: -51.97205482 | G104: 1 | I104: 22 | J104: 1
E105: 22 | F105: -59.18264178 | G105: 1 | I105: 23 | J105: 1
E106: 23 | F106: -63.14206179 | G106: 1 | I106: 24 | J106: 1
E107: 24 | G107: 1 | I107: 25 | J107: 1
E108: mittel | I108: 26 | J108: 1
E109: summe | I109: 27 | J109: 1
I110: 28 | J110: 1
I111: 29 | J111: 1
I112: 30 | J112: 1
I113: mittel | J113: =AVERAGE(J83:J112) -> 1
I114: summe | J114: =SUM(J83:J112) -> 30
T116: [kWh] | U116: =H18&" "&"[kWh]" -> Teilanlage 2 [kWh]
E117: Tag | I117: Monat | N117: Jahr | Q117: %/100 | R117: S_kwh/M | S117: S_kWh/d | T117: Möglich | U117: nach Verlusten | V117: €
E118: 0 | I118: 1 | M118: Jan | N118: 1 | O118: 152.0489021 | Q118: =O118/O$131 -> 0.02221538097 | R118: =Sonneneinstrahlung*Q118 -> 24.43691907 | S118: =R118/30 -> 0.8145639691 | T118: =Sonneneinstrahlung/1000*INDEX(E2_Solarmodule,E2_SolarmodulID,4)*$Q118*E2_Anzahl_Module_gesamt*INDEX(Korrekturfaktor_ausrichtung,(INDEX(Modul_ausrichtung_range2,E2_Modul_ausrichtung,1)+INDEX(Modul_neigung_range2,E2_Modul_neigung,1)),$N118)*INDEX(Korrekturfaktor_temperatur,1,$N118) -> 170.3120322 | U118: =IF(E2_WR_Anzahl<>0,IF(INDEX(Wechselrichter,E1_WechselrichterID,25)=3,E1_WR_Anzahl,E2_WR_Anzahl)*(Sonneneinstrahlung/1000*INDEX(E2_Solarmodule,E2_SolarmodulID,4)*$Q118*E2_Anzahl_Module_gesamt*INDEX(Korrekturfaktor_ausrichtung,(INDEX(Modul_ausrichtung_range2,E2_Modul_ausrichtung,1)+INDEX(Modul_neigung_range2,E2_Modul_neigung,1)),$N118)*INDEX(Korrekturfaktor_temperatur,1,$N118)*((100-H$40)/100)),0) -> 170.3120322 | V118: =U118*Verguetung -> 17.37182729
E119: 1 | I119: 2 | M119: Feb | N119: 2 | O119: 313.4273729 | Q119: 0.04579387553 | R119: 50.37326309 | S119: =R119/30 -> 1.67910877 | T119: 337.9758825 | U119: =IF(E2_WR_Anzahl<>0,IF(INDEX(Wechselrichter,E1_WechselrichterID,25)=3,E1_WR_Anzahl,E2_WR_Anzahl)*(Sonneneinstrahlung/1000*INDEX(E2_Solarmodule,E2_SolarmodulID,4)*$Q119*E2_Anzahl_Module_gesamt*INDEX(Korrekturfaktor_ausrichtung,(INDEX(Modul_ausrichtung_range2,E2_Modul_ausrichtung,1)+INDEX(Modul_neigung_range2,E2_Modul_neigung,1)),$N119)*INDEX(Korrekturfaktor_temperatur,1,$N119)*((100-H$40)/100)),0) -> 337.9758825 | V119: =U119*Verguetung -> 34.47354002
E120: 2 | I120: 3 | M120: Mrz | N120: 3 | O120: 555.5786031 | Q120: 0.0811738208 | R120: 89.29120287 | S120: 2.976373429 | T120: 470.9278311 | U120: 470.9278311 | V120: 48.03463877
E121: 3 | I121: 4 | M121: Apr | N121: 4 | O121: 819.8587645 | Q121: 0.1197869538 | R121: 131.7656491 | S121: 4.392188304 | T121: 614.4740834 | U121: 614.4740834 | V121: 62.67635651
E122: 4 | I122: 5 | M122: Mai | N122: 5 | O122: 1017.172662 | Q122: 0.148615859 | R122: 163.4774449 | S122: 5.449248165 | T122: 682.6164191 | U122: 682.6164191 | V122: 69.62687475
E123: 5 | I123: 6 | M123: Jun | N123: 6 | O123: 1093.096382 | Q123: 0.1597088321 | R123: 175.6797153 | S123: 5.85599051 | T123: 696.222928 | U123: 696.222928 | V123: 71.01473866
E124: 6 | I124: 7 | M124: Jul | N124: 7 | O124: 1009.857474 | Q124: 0.1475470603 | R124: 162.3017663 | S124: 5.410058877 | T124: 642.4356732 | U124: 642.4356732 | V124: 65.52843867
E125: 7 | I125: 8 | M125: Aug | N125: 8 | O125: 795.5898098 | Q125: 0.116241094 | R125: 127.8652034 | S125: 4.262173448 | T125: 537.4329218 | U125: 537.4329218 | V125: 54.81815802
E126: 8 | I126: 9 | M126: Sep | N126: 9 | O126: 531.1720847 | Q126: 0.0776078621 | R126: 85.36864831 | S126: 2.84562161 | T126: 421.8038022 | U126: 421.8038022 | V126: 43.02398782
E127: 9 | I127: 10 | M127: Okt | N127: 10 | O127: 305.3928544 | Q127: 0.04461997763 | R127: 49.08197539 | S127: 1.636065846 | T127: 296.7069219 | U127: 296.7069219 | V127: 30.26410603
E128: 10 | I128: 11 | M128: Nov | N128: 11 | O128: 149.0223176 | Q128: 0.02177317635 | R128: 23.95049399 | S128: 0.7983497995 | T128: 167.0582881 | U128: 167.0582881 | V128: 17.03994539
E129: 11 | I129: 12 | M129: Dez | N129: 12 | O129: 102.0904282 | Q129: 0.01491610741 | R129: 16.40771816 | S129: 0.5469239385 | T129: 112.7646354 | U129: 112.7646354 | V129: 11.50199282
E130: 12 | I130: 13 | O130: =AVERAGE(O118:O129) -> 570.3589713 | Q130: =AVERAGE(Q118:Q129) -> 0.08333333333 | R130: 91.66666667 | S130: 3.055555556 | T130: =AVERAGE(T118:T129) -> 429.2276183 | U130: 429.2276183 | V130: 43.78121706
E131: 13 | I131: 14 | O131: =SUM(O118:O129) -> 6844.307655 | Q131: =SUM(Q118:Q129) -> 1 | R131: 1100 | S131: 36.66666667 | T131: 5150.731419 | U131: 5150.731419 | V131: 525.3746048
E132: 14 | I132: 15
E133: 15 | I133: 16
E134: 16 | I134: 17
E135: 17 | I135: 18
E136: 18 | I136: 19
E137: 19 | I137: 20
E138: 20 | I138: 21
E139: 21 | I139: 22
E140: 22 | I140: 23
E141: 23 | I141: 24
E142: 24 | I142: 25
E143: mittel | I143: 26
E144: summe | I144: 27
I145: 28
I146: 29
I147: 30
I148: mittel
I149: summe
T151: [kWh] | U151: =J18&" "&"[kWh]" -> Teilanlage 3 [kWh]
E152: Tag | I152: Monat | N152: Jahr | Q152: %/100 | R152: S_kwh/M | S152: S_kWh/d | T152: Möglich | U152: nach Verlusten | V152: €
E153: 0 | I153: 1 | M153: Jan | N153: 1 | O153: 152.0489021 | Q153: =O153/O$166 -> 0.02221538097 | R153: =Sonneneinstrahlung*Q153 -> 24.43691907 | S153: =R153/30 -> 0.8145639691 | T153: =Sonneneinstrahlung/1000*INDEX(E3_Solarmodule,E3_SolarmodulID,4)*$Q153*E3_Anzahl_Module_gesamt*INDEX(Korrekturfaktor_ausrichtung,(INDEX(Modul_ausrichtung_range2,E3_Modul_ausrichtung,1)+INDEX(Modul_neigung_range2,E3_Modul_neigung,1)),$N153)*INDEX(Korrekturfaktor_temperatur,1,$N153) -> 0 | U153: =IF(E3_WR_Anzahl<>0,IF(INDEX(Wechselrichter,E1_WechselrichterID,25)=3,E1_WR_Anzahl,E3_WR_Anzahl)*(Sonneneinstrahlung/1000*INDEX(E3_Solarmodule,E3_SolarmodulID,4)*$Q153*E3_Anzahl_Module_gesamt*INDEX(Korrekturfaktor_ausrichtung,(INDEX(Modul_ausrichtung_range2,E3_Modul_ausrichtung,1)+INDEX(Modul_neigung_range2,E3_Modul_neigung,1)),$N153)*INDEX(Korrekturfaktor_temperatur,1,$N153)*((100-J$40)/100)),0) -> 0 | V153: =U153*Verguetung -> 0
E154: 1 | I154: 2 | M154: Feb | N154: 2 | O154: 313.4273729 | Q154: =O154/O$166 -> 0.04579387553 | R154: 50.37326309 | S154: =R154/30 -> 1.67910877 | T154: 0 | U154: =IF(E3_WR_Anzahl<>0,IF(INDEX(Wechselrichter,E1_WechselrichterID,25)=3,E1_WR_Anzahl,E3_WR_Anzahl)*(Sonneneinstrahlung/1000*INDEX(E3_Solarmodule,E3_SolarmodulID,4)*$Q154*E3_Anzahl_Module_gesamt*INDEX(Korrekturfaktor_ausrichtung,(INDEX(Modul_ausrichtung_range2,E3_Modul_ausrichtung,1)+INDEX(Modul_neigung_range2,E3_Modul_neigung,1)),$N154)*INDEX(Korrekturfaktor_temperatur,1,$N154)*((100-J$40)/100)),0) -> 0 | V154: =U154*Verguetung -> 0
E155: 2 | I155: 3 | M155: Mrz | N155: 3 | O155: 555.5786031 | Q155: 0.0811738208 | R155: 89.29120287 | S155: 2.976373429 | T155: 0 | U155: 0 | V155: 0
E156: 3 | I156: 4 | M156: Apr | N156: 4 | O156: 819.8587645 | Q156: 0.1197869538 | R156: 131.7656491 | S156: 4.392188304 | T156: 0 | U156: 0 | V156: 0
E157: 4 | I157: 5 | M157: Mai | N157: 5 | O157: 1017.172662 | Q157: 0.148615859 | R157: 163.4774449 | S157: 5.449248165 | T157: 0 | U157: 0 | V157: 0
E158: 5 | I158: 6 | M158: Jun | N158: 6 | O158: 1093.096382 | Q158: 0.1597088321 | R158: 175.6797153 | S158: 5.85599051 | T158: 0 | U158: 0 | V158: 0
E159: 6 | I159: 7 | M159: Jul | N159: 7 | O159: 1009.857474 | Q159: 0.1475470603 | R159: 162.3017663 | S159: 5.410058877 | T159: 0 | U159: 0 | V159: 0
E160: 7 | I160: 8 | M160: Aug | N160: 8 | O160: 795.5898098 | Q160: 0.116241094 | R160: 127.8652034 | S160: 4.262173448 | T160: 0 | U160: 0 | V160: 0
E161: 8 | I161: 9 | M161: Sep | N161: 9 | O161: 531.1720847 | Q161: 0.0776078621 | R161: 85.36864831 | S161: 2.84562161 | T161: 0 | U161: 0 | V161: 0
E162: 9 | I162: 10 | M162: Okt | N162: 10 | O162: 305.3928544 | Q162: 0.04461997763 | R162: 49.08197539 | S162: 1.636065846 | T162: 0 | U162: 0 | V162: 0
E163: 10 | I163: 11 | M163: Nov | N163: 11 | O163: 149.0223176 | Q163: 0.02177317635 | R163: 23.95049399 | S163: 0.7983497995 | T163: 0 | U163: 0 | V163: 0
E164: 11 | I164: 12 | M164: Dez | N164: 12 | O164: 102.0904282 | Q164: 0.01491610741 | R164: 16.40771816 | S164: 0.5469239385 | T164: 0 | U164: 0 | V164: 0
E165: 12 | I165: 13 | O165: =AVERAGE(O153:O164) -> 570.3589713 | Q165: =AVERAGE(Q153:Q164) -> 0.08333333333 | R165: 91.66666667 | S165: 3.055555556 | T165: 0 | U165: 0 | V165: 0
E166: 13 | I166: 14 | O166: =SUM(O153:O164) -> 6844.307655 | Q166: =SUM(Q153:Q164) -> 1 | R166: 1100 | S166: 36.66666667 | T166: 0 | U166: 0 | V166: 0
E167: 14 | I167: 15
E168: 15 | I168: 16
E169: 16 | I169: 17
E170: 17 | I170: 18
E171: 18 | I171: 19
E172: 19 | I172: 20
E173: 20 | I173: 21
E174: 21 | I174: 22
E175: 22 | I175: 23
E176: 23 | I176: 24
E177: 24 | I177: 25
E178: mittel | I178: 26
E179: summe | I179: 27
I180: 28
I181: 29
I182: 30
I183: mittel
I184: summe

Sheet Ihr System
C3: =VLOOKUP("Auslegung",Texte,SpracheID+1,FALSE) -> Auslegung: | D3: =IF(ISBLANK(Auslegung!E7),"",Auslegung!E7) -> Energy Depot GmbH
C5: =IF(INDEX(Wechselrichter,E1_WechselrichterID,25)=3," " &VLOOKUP("Eingang",Texte,SpracheID+1,FALSE) & " 1 "," " &VLOOKUP("Teilanlage",Texte,SpracheID+1,FALSE) & " 1 ") -> Teilanlage 1 | H5: 1
C6: =IF(INDEX(Wechselrichter,E1_WechselrichterID,25)=3," " &VLOOKUP("Eingang",Texte,SpracheID+1,FALSE) & " 2 "," " &VLOOKUP("Teilanlage",Texte,SpracheID+1,FALSE) & " 2 ") -> Teilanlage 2 | H6: 0
C7: =IF(INDEX(Wechselrichter,E1_WechselrichterID,25)=3," " &VLOOKUP("Eingang",Texte,SpracheID+1,FALSE) & " 3 "," " &VLOOKUP("Teilanlage",Texte,SpracheID+1,FALSE) & " 3 ") -> Teilanlage 3 | H7: 0
C9: =VLOOKUP("GewählterWechselrichter",Texte,SpracheID+1,FALSE) -> Gewählter Solar Inverter: | D9: =E1_WR_Anzahl & " x " & INDEX(Wechselrichter,E1_WechselrichterID,1) -> 1 x Centurio 10.0 | H9: =C5 -> Teilanlage 1
C11: =VLOOKUP("TechnischeDaten",Texte,SpracheID+1,FALSE) -> Technische Daten | F11: =VLOOKUP("Grenzwerte",Texte,SpracheID+1,FALSE) -> Grenzwerte
C13: =VLOOKUP("min. empfohlene DC-Leistung",Texte,SpracheID+1,FALSE) -> min. empfohlene DC-Leistung: | D13: =INDEX(Wechselrichter,E1_WechselrichterID,2) -> 8800 | E13: =INDEX(Wechselrichter_Bezeichnungen,3,2) -> W | F13: =VLOOKUP("min. MPP-Spannung",Texte,SpracheID+1,FALSE) -> min. MPP-Spannung: | G13: =INDEX(Wechselrichter,E1_WechselrichterID,10) -> 200 | H13: =INDEX(Wechselrichter_Bezeichnungen,3,10) -> V
C14: =VLOOKUP("max. empfohlene DC-Leistung",Texte,SpracheID+1,FALSE) -> max. empfohlene DC-Leistung: | D14: =INDEX(Wechselrichter,E1_WechselrichterID,3) -> 12100 | E14: =INDEX(Wechselrichter_Bezeichnungen,3,3) -> W | F14: =VLOOKUP("max. MPP-Spannung",Texte,SpracheID+1,FALSE) -> max. MPP-Spannung: | G14: =INDEX(Wechselrichter,E1_WechselrichterID,11) -> 740 | H14: =INDEX(Wechselrichter_Bezeichnungen,3,11) -> V
C15: =VLOOKUP("Nennausgangsleistung PN",Texte,SpracheID+1,FALSE) -> Nennausgangsleistung PN: | D15: =INDEX(Wechselrichter,E1_WechselrichterID,4) -> 11000 | E15: =INDEX(Wechselrichter_Bezeichnungen,3,4) -> W | F15: =VLOOKUP("max. Leerlaufspannung",Texte,SpracheID+1,FALSE) -> max. Leerlaufspannung: | G15: =INDEX(Wechselrichter,E1_WechselrichterID,12) -> 900 | H15: =INDEX(Wechselrichter_Bezeichnungen,3,12) -> V
C16: =VLOOKUP("Einspeisung ab DC-Leistung",Texte,SpracheID+1,FALSE) -> Einspeisung ab DC-Leistung: | D16: =INDEX(Wechselrichter,E1_WechselrichterID,5) -> 9 | E16: =INDEX(Wechselrichter_Bezeichnungen,3,5) -> W | F16: =VLOOKUP("Einschaltschwelle",Texte,SpracheID+1,FALSE) -> Einschaltschwelle: | G16: =INDEX(Wechselrichter,E1_WechselrichterID,13) -> 200 | H16: =INDEX(Wechselrichter_Bezeichnungen,3,13) -> V
C17: =VLOOKUP("Nachtverbrauch",Texte,SpracheID+1,FALSE) -> Nachtverbrauch: | D17: =INDEX(Wechselrichter,E1_WechselrichterID,6) -> 0.1 | E17: =INDEX(Wechselrichter_Bezeichnungen,3,6) -> W | F17: =VLOOKUP("Abschaltschwelle",Texte,SpracheID+1,FALSE) -> Abschaltschwelle: | G17: =INDEX(Wechselrichter,E1_WechselrichterID,14) -> 175 | H17: =INDEX(Wechselrichter_Bezeichnungen,3,14) -> V
C18: =VLOOKUP("Europäischer Jahreswirkungsgrad",Texte,SpracheID+1,FALSE) -> Europäischer Jahreswirkungsgrad: | D18: =IF(ISERROR(IF(E1_WechselrichterID<>1,TEXT(ROUND(VLOOKUP(E1_WechselrichterID,_Daten!$V$6:$AC$40,6,FALSE),1),"00,0"),"")),"- ",IF(E1_WechselrichterID<>1,TEXT(ROUND(VLOOKUP(E1_WechselrichterID,_Daten!$V$6:$AC$40,6,FALSE),1),"00,0"),"- ")) -> - | E18: =INDEX(Wechselrichter_Bezeichnungen,3,7) -> % | F18: =VLOOKUP("max. Netzstrom",Texte,SpracheID+1,FALSE) -> max. Netzstrom: | G18: =INDEX(Wechselrichter,E1_WechselrichterID,15) -> 14.3 | H18: =INDEX(Wechselrichter_Bezeichnungen,3,15) -> A
F19: =VLOOKUP("max. DC-Strom",Texte,SpracheID+1,FALSE) -> max. DC-Strom: | G19: =INDEX(Wechselrichter,E1_WechselrichterID,21) -> 24 | H19: =INDEX(Wechselrichter_Bezeichnungen,3,21) -> A
C20: =IF(INDEX(Wechselrichter,E1_WechselrichterID,8)<>"","Features","") -> Features
C21: =INDEX(Wechselrichter,E1_WechselrichterID,22) -> 10 kWp, 3-phasig mit Notstromfunktion, max. AC Leistung 11 KVA, max. Leistung je Phase 3,3 kW, nom. Spannung 210 - 264 VAC, Spannungsbereich: 184 - 264VAC 47,5 Hz - 62 Hz, trafolos, symmetrische/asymmetrische Einspeisung, 2 PV-Eingänge je 6 kW, Eingangspannungsbereich 200 VDC - 900 VDC, Mpp Spannungsbereich: 200VDC bis 740 VDC, Max. Eingangsstrom je MPPT: 12A, DC-Schalter integriert. echter Sinus, max. Wirkungsgrad >98% PV-Netz, >97% Batteriemode DC nach AC.
C25: =VLOOKUP("gewählteSolarmodule",Texte,SpracheID+1,FALSE) -> Gewählte Solarmodule: | D25: =E1_AnzahlSG&" x " & INDEX(E1_Solarmodule,E1_SolarmodulID,1) -> 28 x Canadian Solar Inc. HiKu CS3L-365P
D26: 11000 | G26: 97.5
C27: =VLOOKUP("TechnischeDaten",Texte,SpracheID+1,FALSE) -> Technische Daten | F27: =VLOOKUP("WeitereInfos",Texte,SpracheID+1,FALSE) -> Weitere Infos
C29: =VLOOKUP("Nennleistung",Texte,SpracheID+1,FALSE) -> Nennleistung: | D29: =INDEX(E1_Solarmodule,E1_SolarmodulID,4) -> 365 | E29: =INDEX(Solarmodule_Bezeichnungen,3,4) -> Wp | F29: =VLOOKUP("Herstellungsland",Texte,SpracheID+1,FALSE) -> Herstellungsland: | G29: =IF(ISERROR(VLOOKUP(INDEX(E1_Solarmodule,E1_SolarmodulID,14),Texte_Länder,SpracheID+1)),INDEX(E1_Solarmodule,E1_SolarmodulID,14),VLOOKUP(INDEX(E1_Solarmodule,E1_SolarmodulID,14),Texte_Länder,SpracheID+1)) -> China
C30: =VLOOKUP("Toleranz",Texte,SpracheID+1,FALSE) -> Toleranz: | D30: =INDEX(E1_Solarmodule,E1_SolarmodulID,5) -> 5 | E30: =INDEX(Solarmodule_Bezeichnungen,3,5) -> + | - % | F30: =VLOOKUP("Zellhersteller",Texte,SpracheID+1,FALSE) -> Zellhersteller: | G30: =INDEX(E1_Solarmodule,E1_SolarmodulID,15) -> -
C31: =VLOOKUP("MPP-Spannung",Texte,SpracheID+1,FALSE) -> MPP-Spannung: | D31: =INDEX(E1_Solarmodule,E1_SolarmodulID,6) -> 33.6 | E31: =INDEX(Solarmodule_Bezeichnungen,3,6) -> V | F31: =VLOOKUP("Modulwirkungsgrad",Texte,SpracheID+1,FALSE) -> Modulwirkungsgrad: | G31: =INDEX(E1_Solarmodule,E1_SolarmodulID,16) -> 19.7 | H31: =INDEX(Solarmodule_Bezeichnungen,3,16) -> %
C32: =VLOOKUP("MPP-Strom",Texte,SpracheID+1,FALSE) -> MPP-Strom: | D32: =INDEX(E1_Solarmodule,E1_SolarmodulID,7) -> 10.87 | E32: =INDEX(Solarmodule_Bezeichnungen,3,7) -> A | F32: =VLOOKUP("Zelltyp",Texte,SpracheID+1,FALSE) -> Zelltyp: | G32: =IF(ISERROR(VLOOKUP(INDEX(E1_Solarmodule,E1_SolarmodulID,17),Texte_Zellentyp,SpracheID+1)),INDEX(E1_Solarmodule,E1_SolarmodulID,17),VLOOKUP(INDEX(E1_Solarmodule,E1_SolarmodulID,17),Texte_Zellentyp,SpracheID+1)) -> mono
C33: =VLOOKUP("Leerlaufspannung",Texte,SpracheID+1,FALSE) -> Leerlaufspannung: | D33: =INDEX(E1_Solarmodule,E1_SolarmodulID,8) -> 40.8 | E33: =INDEX(Solarmodule_Bezeichnungen,3,8) -> V | F33: =VLOOKUP("Zellen pro Modul",Texte,SpracheID+1,FALSE) -> Zellen pro Modul: | G33: =INDEX(E1_Solarmodule,E1_SolarmodulID,18) -> 120
C34: =VLOOKUP("Kurzschlußstrom",Texte,SpracheID+1,FALSE) -> Kurzschlußstrom: | D34: =INDEX(E1_Solarmodule,E1_SolarmodulID,9) -> 11.44 | E34: =INDEX(Solarmodule_Bezeichnungen,3,9) -> A | F34: =VLOOKUP("Zellform",Texte,SpracheID+1,FALSE) -> Zellform: | G34: =IF(ISERROR(VLOOKUP(INDEX(E1_Solarmodule,E1_SolarmodulID,19),Texte_Zellenform,SpracheID+1)),INDEX(E1_Solarmodule,E1_SolarmodulID,19),VLOOKUP(INDEX(E1_Solarmodule,E1_SolarmodulID,19),Texte_Zellenform,SpracheID+1)) -> half cell
C35: =VLOOKUP("Spannungsänderung",Texte,SpracheID+1,FALSE) -> Spannungsänderung: | D35: =INDEX(E1_Solarmodule,E1_SolarmodulID,10) -> -114.24 | E35: =INDEX(Solarmodule_Bezeichnungen,3,10) -> mV/°C | F35: =VLOOKUP("Höhe",Texte,SpracheID+1,FALSE) -> Höhe: | G35: =INDEX(E1_Solarmodule,E1_SolarmodulID,20) -> 1765 | H35: =INDEX(Solarmodule_Bezeichnungen,3,20) -> mm
C36: =VLOOKUP("Stromänderung",Texte,SpracheID+1,FALSE) -> Stromänderung: | D36: =INDEX(E1_Solarmodule,E1_SolarmodulID,11) -> 5.72 | E36: =INDEX(Solarmodule_Bezeichnungen,3,11) -> mA/°C | F36: =VLOOKUP("Breite",Texte,SpracheID+1,FALSE) -> Breite: | G36: =INDEX(E1_Solarmodule,E1_SolarmodulID,21) -> 1048 | H36: =INDEX(Solarmodule_Bezeichnungen,3,21) -> mm
C37: =VLOOKUP("Leistungsänderung",Texte,SpracheID+1,FALSE) -> Leistungsänderung: | D37: =INDEX(E1_Solarmodule,E1_SolarmodulID,12) -> -0.36 | E37: =INDEX(Solarmodule_Bezeichnungen,3,12) -> %/°C | F37: =VLOOKUP("Dicke",Texte,SpracheID+1,FALSE) -> Dicke: | G37: =INDEX(E1_Solarmodule,E1_SolarmodulID,22) -> 40 | H37: =INDEX(Solarmodule_Bezeichnungen,3,22) -> mm
C38: =VLOOKUP("max. Systemspannung",Texte,SpracheID+1,FALSE) -> max. Systemspannung: | D38: =INDEX(E1_Solarmodule,E1_SolarmodulID,13) -> 1000 | E38: =INDEX(Solarmodule_Bezeichnungen,3,13) -> V | F38: =VLOOKUP("Rahmung",Texte,SpracheID+1,FALSE) -> Rahmung: | G38: =IF(ISERROR(VLOOKUP(INDEX(E1_Solarmodule,E1_SolarmodulID,23),Texte_Rahmenart,SpracheID+1,FALSE)),INDEX(E1_Solarmodule,E1_SolarmodulID,23),VLOOKUP(INDEX(E1_Solarmodule,E1_SolarmodulID,23),Texte_Rahmenart,SpracheID+1,FALSE)) -> -
C39: =IF(J39,INDEX(Solarmodule_Bezeichnungen,1,J39 ) & ":","") ->  | D39: =IF(J39,INDEX(E1_Solarmodule,E1_SolarmodulID,J39),"") ->  | F39: =VLOOKUP("Anschluß",Texte,SpracheID+1,FALSE) -> Anschluß: | G39: =IF(ISERROR(VLOOKUP(INDEX(E1_Solarmodule,E1_SolarmodulID,24),Texte_Anschluss,SpracheID+1,FALSE)),INDEX(E1_Solarmodule,E1_SolarmodulID,24),VLOOKUP(INDEX(E1_Solarmodule,E1_SolarmodulID,24),Texte_Anschluss,SpracheID+1,FALSE)) -> T4
C40: =IF(INDEX(E1_Solarmodule,E1_SolarmodulID,26)<>"",VLOOKUP("WeitereInfosSolarmodule",Texte,SpracheID+1,FALSE),"") -> Weitere Informationen zu dem Solarmodul finden Sie unter | F40: =VLOOKUP("Gewicht",Texte,SpracheID+1,FALSE) -> Gewicht: | G40: =INDEX(E1_Solarmodule,E1_SolarmodulID,25) -> 21.1 | H40: =INDEX(Solarmodule_Bezeichnungen,3,25) -> kg
C41: =INDEX(E1_Solarmodule,E1_SolarmodulID,26) -> - | G41: =IF(K41,INDEX(Solarmodule,SolarmoduleID,K41),"") -> 
H42: =IF(K42,INDEX(Solarmodule_Bezeichnungen,2,K42),"") -> 
C43: =IF(E1_WechselrichterID=10,VLOOKUP("Eingang",Texte,SpracheID+1,FALSE) & " 1 ",VLOOKUP("IhreSolaranlage",Texte,SpracheID+1,FALSE)) -> Ihre Solaranlage
C45: =VLOOKUP("Gesamt-Nennleistung",Texte,SpracheID+1,FALSE) -> Gesamt-Nennleistung: | D45: =E1_max_MPPLeistung -> 10220 | E45: W | F45: =VLOOKUP("DC-Kabellänge",Texte,SpracheID+1,FALSE) -> DC-Kabellänge: | G45: =E1_DC_Leitungslänge -> 100 | H45: m
C46: =VLOOKUP("AnzahlStrings",Texte,SpracheID+1,FALSE) -> Anzahl der Strings: | D46: =E1_Stringanzahl* E1_WR_Anzahl -> 2 | F46: =VLOOKUP("DC-Kabelquerschnitt",Texte,SpracheID+1,FALSE) -> DC-Kabelquerschnitt: | G46: =INDEX(Leitungsquerschnitt,E1_DC_LquerschnittID,1) -> 6 | H46: mm²
C47: =VLOOKUP("Module Pro String",Texte,SpracheID+1,FALSE) -> Module pro String: | D47: =E1_Module_in_Reihe -> 14 | F47: =VLOOKUP("MaxVerlusteDCKabel",Texte,SpracheID+1,FALSE) -> Verluste im DC-Kabel: | G47: =IF(OR(E1_Nennleistung_25=0,ISTEXT(E1_Nennleistung_25)),0,((POWER(E1_MPP_Strom_25,2)*Spez_Widerstand_Kupfer*E1_DC_Leitungslänge)/((INDEX(Leitungsquerschnitt,E1_DC_LquerschnittID,1))*E1_Nennleistung_25))*100) -> 1.375695862 | H47: %
C48: =VLOOKUP("GesamtanzahlModule",Texte,SpracheID+1,FALSE) -> Gesamtanzahl Module: | D48: =E1_AnzahlSG -> 28 | F48: =VLOOKUP("AC-Kabellänge",Texte,SpracheID+1,FALSE) -> AC-Kabellänge: | G48: =E1_AC_Leitungslänge -> 25 | H48: m
C49: =VLOOKUP("Flächenverbrauch",Texte,SpracheID+1,FALSE) -> Flächenverbrauch: | D49: =IF(ISERROR(INDEX(E1_Solarmodule,E1_SolarmodulID,20)/1000*INDEX(E1_Solarmodule,E1_SolarmodulID,21)/1000*E1_AnzahlSG),"-",INDEX(E1_Solarmodule,E1_SolarmodulID,20)/1000*INDEX(E1_Solarmodule,E1_SolarmodulID,21)/1000*E1_AnzahlSG) -> 51.79216 | E49: qm | F49: =VLOOKUP("AC-Kabelquerschnitt",Texte,SpracheID+1,FALSE) -> AC-Kabelquerschnitt: | G49: =INDEX(Leitungsquerschnitt,E1_AC_LquerschnittID,1) -> 25 | H49: mm²
C50: =VLOOKUP("GewichtModule",Texte,SpracheID+1,FALSE) -> Gewicht der Module: | D50: =IF(ISERROR(E1_AnzahlSG*INDEX(E1_Solarmodule,E1_SolarmodulID,25)),"-",E1_AnzahlSG*INDEX(E1_Solarmodule,E1_SolarmodulID,25)) -> 590.8 | E50: kg | F50: =VLOOKUP("MaxVerlusteACKabel",Texte,SpracheID+1,FALSE) -> Verluste im AC-Kabel: | G50: =IF(OR(INDEX(Wechselrichter,E1_WechselrichterID,4)=0,E1_max_MPPLeistung=0,ISTEXT(E1_Nennleistung_25)),0,IF(E1_Nennleistung_25 <= INDEX(Wechselrichter,E1_WechselrichterID,4),((IF(INDEX(Wechselrichter,E1_WechselrichterID,25)=4,1,2))*(POWER(IF(INDEX(Wechselrichter,E1_WechselrichterID,25)=4,E1_Nennleistung_25/3,E1_Nennleistung_25)/230,2)*Spez_Widerstand_Kupfer*E1_AC_Leitungslänge)/((INDEX(Leitungsquerschnitt,E1_AC_LquerschnittID,1))*IF(INDEX(Wechselrichter,E1_WechselrichterID,25)=4,E1_Nennleistung_25/3,E1_Nennleistung_25)))*100,((IF(INDEX(Wechselrichter,E1_WechselrichterID,25)=4,1,2))*(POWER(IF(INDEX(Wechselrichter,E1_WechselrichterID,25)=4,INDEX(Wechselrichter,E1_WechselrichterID,4)/3,INDEX(Wechselrichter,E1_WechselrichterID,4))/230,2)*Spez_Widerstand_Kupfer*E1_AC_Leitungslänge)/((INDEX(Leitungsquerschnitt,E1_AC_LquerschnittID,1))*IF(INDEX(Wechselrichter,E1_WechselrichterID,25)=4,INDEX(Wechselrichter,E1_WechselrichterID,4)/3,INDEX(Wechselrichter,E1_WechselrichterID,4))))*100)) -> 0.1150883545 | H50: %
C55: =VLOOKUP("AchtungText",Texte,SpracheID+1,FALSE) -> Achtung: alle hier angezeigten und berechneten Werte ohne Gewähr! Vielen Dank für Ihr Verständnis!
D56: =VLOOKUP("Erstellt am",Texte,SpracheID+1,FALSE) & " " -> Erstellt am | E56: =NOW() -> 2020-10-14T08:09:51.970
C63: =VLOOKUP("GewählterWechselrichter",Texte,SpracheID+1,FALSE) -> Gewählter Solar Inverter: | D63: =IF(INDEX(Wechselrichter,E1_WechselrichterID,25)=3,E1_WR_Anzahl & " x ",E2_WR_Anzahl & " x ") & INDEX(Wechselrichter,E2_WechselrichterID,1) -> 1 x Centurio 10.0 - 1 String | H63: =C6 -> Teilanlage 2
C65: =VLOOKUP("TechnischeDaten",Texte,SpracheID+1,FALSE) -> Technische Daten | F65: =VLOOKUP("Grenzwerte",Texte,SpracheID+1,FALSE) -> Grenzwerte
C67: =VLOOKUP("min. empfohlene DC-Leistung",Texte,SpracheID+1,FALSE) -> min. empfohlene DC-Leistung: | D67: =INDEX(Wechselrichter,E2_WechselrichterID,2) -> 4400 | E67: =INDEX(Wechselrichter_Bezeichnungen,3,2) -> W | F67: =VLOOKUP("min. MPP-Spannung",Texte,SpracheID+1,FALSE) -> min. MPP-Spannung: | G67: =INDEX(Wechselrichter,E2_WechselrichterID,10) -> 200 | H67: =INDEX(Wechselrichter_Bezeichnungen,3,10) -> V
C68: =VLOOKUP("max. empfohlene DC-Leistung",Texte,SpracheID+1,FALSE) -> max. empfohlene DC-Leistung: | D68: =INDEX(Wechselrichter,E2_WechselrichterID,3) -> 6000 | E68: =INDEX(Wechselrichter_Bezeichnungen,3,3) -> W | F68: =VLOOKUP("max. MPP-Spannung",Texte,SpracheID+1,FALSE) -> max. MPP-Spannung: | G68: =INDEX(Wechselrichter,E2_WechselrichterID,11) -> 740 | H68: =INDEX(Wechselrichter_Bezeichnungen,3,11) -> V
C69: =VLOOKUP("Nennausgangsleistung PN",Texte,SpracheID+1,FALSE) -> Nennausgangsleistung PN: | D69: =INDEX(Wechselrichter,E2_WechselrichterID,4) -> 5500 | E69: =INDEX(Wechselrichter_Bezeichnungen,3,4) -> W | F69: =VLOOKUP("max. Leerlaufspannung",Texte,SpracheID+1,FALSE) -> max. Leerlaufspannung: | G69: =INDEX(Wechselrichter,E2_WechselrichterID,12) -> 900 | H69: =INDEX(Wechselrichter_Bezeichnungen,3,12) -> V
C70: =VLOOKUP("Einspeisung ab DC-Leistung",Texte,SpracheID+1,FALSE) -> Einspeisung ab DC-Leistung: | D70: =INDEX(Wechselrichter,E2_WechselrichterID,5) -> 9 | E70: =INDEX(Wechselrichter_Bezeichnungen,3,5) -> W | F70: =VLOOKUP("Einschaltschwelle",Texte,SpracheID+1,FALSE) -> Einschaltschwelle: | G70: =INDEX(Wechselrichter,E2_WechselrichterID,13) -> 200 | H70: =INDEX(Wechselrichter_Bezeichnungen,3,13) -> V
C71: =VLOOKUP("Nachtverbrauch",Texte,SpracheID+1,FALSE) -> Nachtverbrauch: | D71: =INDEX(Wechselrichter,E2_WechselrichterID,6) -> 0.1 | E71: =INDEX(Wechselrichter_Bezeichnungen,3,6) -> W | F71: =VLOOKUP("Abschaltschwelle",Texte,SpracheID+1,FALSE) -> Abschaltschwelle: | G71: =INDEX(Wechselrichter,E2_WechselrichterID,14) -> 175 | H71: =INDEX(Wechselrichter_Bezeichnungen,3,14) -> V
C72: =VLOOKUP("Europäischer Jahreswirkungsgrad",Texte,SpracheID+1,FALSE) -> Europäischer Jahreswirkungsgrad: | D72: =IF(ISERROR(IF(E2_WechselrichterID<>1,TEXT(ROUND(VLOOKUP(E2_WechselrichterID,_Daten!$V$6:$AC$40,7,FALSE),1),"00,0"),"")),"- ",IF(E2_WechselrichterID<>1,TEXT(ROUND(VLOOKUP(E2_WechselrichterID,_Daten!$V$6:$AC$40,6,FALSE),1),"00,0"),"- ")) -> - | E72: =INDEX(Wechselrichter_Bezeichnungen,3,7) -> % | F72: =VLOOKUP("max. Netzstrom",Texte,SpracheID+1,FALSE) -> max. Netzstrom: | G72: =INDEX(Wechselrichter,E2_WechselrichterID,15) -> 14.3 | H72: =INDEX(Wechselrichter_Bezeichnungen,3,15) -> A
F73: =VLOOKUP("max. DC-Strom",Texte,SpracheID+1,FALSE) -> max. DC-Strom: | G73: =INDEX(Wechselrichter,E2_WechselrichterID,21) -> 12 | H73: =INDEX(Wechselrichter_Bezeichnungen,3,21) -> A
C74: =IF(INDEX(Wechselrichter,E1_WechselrichterID,8)<>"","Features","") -> Features
C75: =INDEX(Wechselrichter,E2_WechselrichterID,22) -> 10 kWp, 3-phasig mit Notstromfunktion, max. AC Leistung 11 KVA, max. Leistung je Phase 3,3 kW, nom. Spannung 210 - 264 VAC, Spannungsbereich: 184 - 264VAC 47,5 Hz - 62 Hz, trafolos, symmetrische/asymmetrische Einspeisung, 2 PV-Eingänge je 6 kW, Eingangspannungsbereich 200 VDC - 900 VDC, Mpp Spannungsbereich: 200VDC bis 740 VDC, Max. Eingangsstrom je MPPT: 12A, DC-Schalter integriert. echter Sinus, max. Wirkungsgrad >98% PV-Netz, >97% Batteriemode DC nach AC.
C79: =VLOOKUP("gewählteSolarmodule",Texte,SpracheID+1,FALSE) -> Gewählte Solarmodule: | D79: =E2_AnzahlSG &" x " & INDEX(E2_Solarmodule,E2_SolarmodulID,1) -> 13 x Canadian Solar Inc. HiKu CS3L-365P
C81: =VLOOKUP("TechnischeDaten",Texte,SpracheID+1,FALSE) -> Technische Daten | F81: =VLOOKUP("WeitereInfos",Texte,SpracheID+1,FALSE) -> Weitere Infos
C83: =VLOOKUP("Nennleistung",Texte,SpracheID+1,FALSE) -> Nennleistung: | D83: =INDEX(E2_Solarmodule,E2_SolarmodulID,4) -> 365 | E83: =INDEX(Solarmodule_Bezeichnungen,3,4) -> Wp | F83: =VLOOKUP("Herstellungsland",Texte,SpracheID+1,FALSE) -> Herstellungsland: | G83: =IF(ISERROR(VLOOKUP(INDEX(E2_Solarmodule,E2_SolarmodulID,14),Texte_Länder,SpracheID+1)),INDEX(E2_Solarmodule,E2_SolarmodulID,14),VLOOKUP(INDEX(E2_Solarmodule,E2_SolarmodulID,14),Texte_Länder,SpracheID+1)) -> China
C84: =VLOOKUP("Toleranz",Texte,SpracheID+1,FALSE) -> Toleranz: | D84: =INDEX(E2_Solarmodule,E2_SolarmodulID,5) -> 5 | E84: =INDEX(Solarmodule_Bezeichnungen,3,5) -> + | - % | F84: =VLOOKUP("Zellhersteller",Texte,SpracheID+1,FALSE) -> Zellhersteller: | G84: =INDEX(E2_Solarmodule,E2_SolarmodulID,15) -> -
C85: =VLOOKUP("MPP-Spannung",Texte,SpracheID+1,FALSE) -> MPP-Spannung: | D85: =INDEX(E2_Solarmodule,E2_SolarmodulID,6) -> 33.6 | E85: =INDEX(Solarmodule_Bezeichnungen,3,6) -> V | F85: =VLOOKUP("Modulwirkungsgrad",Texte,SpracheID+1,FALSE) -> Modulwirkungsgrad: | G85: =INDEX(E2_Solarmodule,E2_SolarmodulID,16) -> 19.7 | H85: =INDEX(Solarmodule_Bezeichnungen,3,16) -> %
C86: =VLOOKUP("MPP-Strom",Texte,SpracheID+1,FALSE) -> MPP-Strom: | D86: =INDEX(E2_Solarmodule,E2_SolarmodulID,7) -> 10.87 | E86: =INDEX(Solarmodule_Bezeichnungen,3,7) -> A | F86: =VLOOKUP("Zelltyp",Texte,SpracheID+1,FALSE) -> Zelltyp: | G86: =IF(ISERROR(VLOOKUP(INDEX(E2_Solarmodule,E2_SolarmodulID,17),Texte_Zellentyp,SpracheID+1)),INDEX(E2_Solarmodule,E2_SolarmodulID,17),VLOOKUP(INDEX(E2_Solarmodule,E2_SolarmodulID,17),Texte_Zellentyp,SpracheID+1)) -> mono
C87: =VLOOKUP("Leerlaufspannung",Texte,SpracheID+1,FALSE) -> Leerlaufspannung: | D87: =INDEX(E2_Solarmodule,E2_SolarmodulID,8) -> 40.8 | E87: =INDEX(Solarmodule_Bezeichnungen,3,8) -> V | F87: =VLOOKUP("Zellen pro Modul",Texte,SpracheID+1,FALSE) -> Zellen pro Modul: | G87: =INDEX(E2_Solarmodule,E2_SolarmodulID,18) -> 120
C88: =VLOOKUP("Kurzschlußstrom",Texte,SpracheID+1,FALSE) -> Kurzschlußstrom: | D88: =INDEX(E2_Solarmodule,E2_SolarmodulID,9) -> 11.44 | E88: =INDEX(Solarmodule_Bezeichnungen,3,9) -> A | F88: =VLOOKUP("Zellform",Texte,SpracheID+1,FALSE) -> Zellform: | G88: =IF(ISERROR(VLOOKUP(INDEX(E2_Solarmodule,E2_SolarmodulID,19),Texte_Zellenform,SpracheID+1)),INDEX(E2_Solarmodule,E2_SolarmodulID,19),VLOOKUP(INDEX(E2_Solarmodule,E2_SolarmodulID,19),Texte_Zellenform,SpracheID+1)) -> half cell
C89: =VLOOKUP("Spannungsänderung",Texte,SpracheID+1,FALSE) -> Spannungsänderung: | D89: =INDEX(E2_Solarmodule,E2_SolarmodulID,10) -> -114.24 | E89: =INDEX(Solarmodule_Bezeichnungen,3,10) -> mV/°C | F89: =VLOOKUP("Höhe",Texte,SpracheID+1,FALSE) -> Höhe: | G89: =INDEX(E2_Solarmodule,E2_SolarmodulID,20) -> 1765 | H89: =INDEX(Solarmodule_Bezeichnungen,3,20) -> mm
C90: =VLOOKUP("Stromänderung",Texte,SpracheID+1,FALSE) -> Stromänderung: | D90: =INDEX(E2_Solarmodule,E2_SolarmodulID,11) -> 5.72 | E90: =INDEX(Solarmodule_Bezeichnungen,3,11) -> mA/°C | F90: =VLOOKUP("Breite",Texte,SpracheID+1,FALSE) -> Breite: | G90: =INDEX(E2_Solarmodule,E2_SolarmodulID,21) -> 1048 | H90: =INDEX(Solarmodule_Bezeichnungen,3,21) -> mm
C91: =VLOOKUP("Leistungsänderung",Texte,SpracheID+1,FALSE) -> Leistungsänderung: | D91: =INDEX(E2_Solarmodule,E2_SolarmodulID,12) -> -0.36 | E91: =INDEX(Solarmodule_Bezeichnungen,3,12) -> %/°C | F91: =VLOOKUP("Dicke",Texte,SpracheID+1,FALSE) -> Dicke: | G91: =INDEX(E2_Solarmodule,E2_SolarmodulID,22) -> 40 | H91: =INDEX(Solarmodule_Bezeichnungen,3,22) -> mm
C92: =VLOOKUP("max. Systemspannung",Texte,SpracheID+1,FALSE) -> max. Systemspannung: | D92: =INDEX(E2_Solarmodule,E2_SolarmodulID,13) -> 1000 | E92: =INDEX(Solarmodule_Bezeichnungen,3,13) -> V | F92: =VLOOKUP("Rahmung",Texte,SpracheID+1,FALSE) -> Rahmung: | G92: =IF(ISERROR(VLOOKUP(INDEX(E2_Solarmodule,E2_SolarmodulID,23),Texte_Rahmenart,SpracheID+1)),INDEX(E2_Solarmodule,E2_SolarmodulID,23),VLOOKUP(INDEX(E2_Solarmodule,E2_SolarmodulID,23),Texte_Rahmenart,SpracheID+1)) -> -
C93: =IF(J93,INDEX(Solarmodule_Bezeichnungen,1,J93 ) & ":","") ->  | D93: =IF(J93,INDEX(E2_Solarmodule,E2_SolarmodulID,J93),"") ->  | F93: =VLOOKUP("Anschluß",Texte,SpracheID+1,FALSE) -> Anschluß: | G93: =IF(ISERROR(VLOOKUP(INDEX(E2_Solarmodule,E2_SolarmodulID,24),Texte_Anschluss,SpracheID+1,FALSE)),INDEX(E2_Solarmodule,E2_SolarmodulID,24),VLOOKUP(INDEX(E2_Solarmodule,E2_SolarmodulID,24),Texte_Anschluss,SpracheID+1,FALSE)) -> T4
C94: =IF(INDEX(E2_Solarmodule,E2_SolarmodulID,26)<>"",VLOOKUP("WeitereInfosSolarmodule",Texte,SpracheID+1,FALSE),"") -> Weitere Informationen zu dem Solarmodul finden Sie unter | F94: =VLOOKUP("Gewicht",Texte,SpracheID+1,FALSE) -> Gewicht: | G94: =INDEX(E2_Solarmodule,E2_SolarmodulID,25) -> 21.1 | H94: =INDEX(Solarmodule_Bezeichnungen,3,25) -> kg
C95: =INDEX(E2_Solarmodule,E2_SolarmodulID,26) -> - | G95: =IF(K95,INDEX(Solarmodule,SolarmoduleID,K95),"") -> 
H96: =IF(K96,INDEX(Solarmodule_Bezeichnungen,2,K96),"") -> 
C97: =IF(E1_WechselrichterID=10,VLOOKUP("Eingang",Texte,SpracheID+1,FALSE) & " 2 ",VLOOKUP("IhreSolaranlage",Texte,SpracheID+1,FALSE)) -> Ihre Solaranlage
C99: =VLOOKUP("Gesamt-Nennleistung",Texte,SpracheID+1,FALSE) -> Gesamt-Nennleistung: | D99: =E2_max_MPPLeistung -> 4745 | E99: W | F99: =VLOOKUP("DC-Kabellänge",Texte,SpracheID+1,FALSE) -> DC-Kabellänge: | G99: =E2_DC_Leitungslänge -> 100 | H99: m
C100: =VLOOKUP("AnzahlStrings",Texte,SpracheID+1,FALSE) -> Anzahl der Strings: | D100: =E2_Stringanzahl* E2_WR_Anzahl -> 1 | F100: =VLOOKUP("DC-Kabelquerschnitt",Texte,SpracheID+1,FALSE) -> DC-Kabelquerschnitt: | G100: =INDEX(Leitungsquerschnitt,E2_DC_LquerschnittID,1) -> 6 | H100: mm²
C101: =VLOOKUP("Module Pro String",Texte,SpracheID+1,FALSE) -> Module pro String: | D101: =E2_Module_in_Reihe -> 13 | F101: =VLOOKUP("MaxVerlusteDCKabel",Texte,SpracheID+1,FALSE) -> Verluste im DC-Kabel: | G101: =IF(OR(E2_Nennleistung_25=0,ISTEXT(E2_Nennleistung_25)),0,((POWER(E2_MPP_Strom_25,2)*Spez_Widerstand_Kupfer*E2_DC_Leitungslänge)/((INDEX(Leitungsquerschnitt,E2_DC_LquerschnittID,1))*E2_Nennleistung_25))*100) -> 0.7407593101 | H101: %
C102: =VLOOKUP("GesamtanzahlModule",Texte,SpracheID+1,FALSE) -> Gesamtanzahl Module: | D102: =E2_AnzahlSG -> 13 | F102: =VLOOKUP("AC-Kabellänge",Texte,SpracheID+1,FALSE) -> AC-Kabellänge: | G102: =E2_AC_Leitungslänge -> 25 | H102: m
C103: =VLOOKUP("Flächenverbrauch",Texte,SpracheID+1,FALSE) -> Flächenverbrauch: | D103: =IF(ISERROR(INDEX(E2_Solarmodule,E2_SolarmodulID,20)/1000*INDEX(E2_Solarmodule,E2_SolarmodulID,21)/1000*E2_AnzahlSG),"-",INDEX(E2_Solarmodule,E2_SolarmodulID,20)/1000*INDEX(E2_Solarmodule,E2_SolarmodulID,21)/1000*E2_AnzahlSG) -> 24.04636 | E103: qm | F103: =VLOOKUP("AC-Kabelquerschnitt",Texte,SpracheID+1,FALSE) -> AC-Kabelquerschnitt: | G103: =INDEX(Leitungsquerschnitt,E2_AC_LquerschnittID,1) -> 25 | H103: mm²
C104: =VLOOKUP("GewichtModule",Texte,SpracheID+1,FALSE) -> Gewicht der Module: | D104: =IF(ISERROR(E2_AnzahlSG*INDEX(E2_Solarmodule,E2_SolarmodulID,25)),"-",E2_AnzahlSG*INDEX(E2_Solarmodule,E2_SolarmodulID,25)) -> 274.3 | E104: kg | F104: =VLOOKUP("MaxVerlusteACKabel",Texte,SpracheID+1,FALSE) -> Verluste im AC-Kabel: | G104: =IF(OR(INDEX(Wechselrichter,E2_WechselrichterID,4)=0,E2_max_MPPLeistung=0,ISTEXT(E2_Nennleistung_25)),0,IF(E2_Nennleistung_25 <= INDEX(Wechselrichter,E2_WechselrichterID,4),((IF(INDEX(Wechselrichter,E2_WechselrichterID,25)=4,1,2))*(POWER(IF(INDEX(Wechselrichter,E2_WechselrichterID,25)=4,E2_Nennleistung_25/3,E2_Nennleistung_25)/230,2)*Spez_Widerstand_Kupfer*E2_AC_Leitungslänge)/((INDEX(Leitungsquerschnitt,E2_AC_LquerschnittID,1))*IF(INDEX(Wechselrichter,E2_WechselrichterID,25)=4,E2_Nennleistung_25/3,E2_Nennleistung_25)))*100,((IF(INDEX(Wechselrichter,E2_WechselrichterID,25)=4,1,2))*(POWER(IF(INDEX(Wechselrichter,E2_WechselrichterID,25)=4,INDEX(Wechselrichter,E2_WechselrichterID,4)/3,INDEX(Wechselrichter,E2_WechselrichterID,4))/230,2)*Spez_Widerstand_Kupfer*E2_AC_Leitungslänge)/((INDEX(Leitungsquerschnitt,E2_AC_LquerschnittID,1))*IF(INDEX(Wechselrichter,E2_WechselrichterID,25)=4,INDEX(Wechselrichter,E2_WechselrichterID,4)/3,INDEX(Wechselrichter,E2_WechselrichterID,4))))*100)) -> 0.05343387887 | H104: %
C113: =VLOOKUP("AchtungText",Texte,SpracheID+1,FALSE) -> Achtung: alle hier angezeigten und berechneten Werte ohne Gewähr! Vielen Dank für Ihr Verständnis!
D114: =VLOOKUP("Erstellt am",Texte,SpracheID+1,FALSE) & " " -> Erstellt am | E114: =NOW() -> 2020-10-14T08:09:51.970
C121: =VLOOKUP("GewählterWechselrichter",Texte,SpracheID+1,FALSE) -> Gewählter Solar Inverter: | D121: =IF(INDEX(Wechselrichter,E1_WechselrichterID,25)=3,E1_WR_Anzahl & " x ",E3_WR_Anzahl & " x ") & INDEX(Wechselrichter,E3_WechselrichterID,1) -> 0 x (keine Auswahl) | H121: =C7 -> Teilanlage 3
C123: =VLOOKUP("TechnischeDaten",Texte,SpracheID+1,FALSE) -> Technische Daten | F123: =VLOOKUP("Grenzwerte",Texte,SpracheID+1,FALSE) -> Grenzwerte
C125: =VLOOKUP("min. empfohlene DC-Leistung",Texte,SpracheID+1,FALSE) -> min. empfohlene DC-Leistung: | D125: =INDEX(Wechselrichter,E3_WechselrichterID,2) -> 0 | E125: =INDEX(Wechselrichter_Bezeichnungen,3,2) -> W | F125: =VLOOKUP("min. MPP-Spannung",Texte,SpracheID+1,FALSE) -> min. MPP-Spannung: | G125: =INDEX(Wechselrichter,E3_WechselrichterID,10) -> 0 | H125: =INDEX(Wechselrichter_Bezeichnungen,3,10) -> V
C126: =VLOOKUP("max. empfohlene DC-Leistung",Texte,SpracheID+1,FALSE) -> max. empfohlene DC-Leistung: | D126: =INDEX(Wechselrichter,E3_WechselrichterID,3) -> 0 | E126: =INDEX(Wechselrichter_Bezeichnungen,3,3) -> W | F126: =VLOOKUP("max. MPP-Spannung",Texte,SpracheID+1,FALSE) -> max. MPP-Spannung: | G126: =INDEX(Wechselrichter,E3_WechselrichterID,11) -> 0 | H126: =INDEX(Wechselrichter_Bezeichnungen,3,11) -> V
C127: =VLOOKUP("Nennausgangsleistung PN",Texte,SpracheID+1,FALSE) -> Nennausgangsleistung PN: | D127: =INDEX(Wechselrichter,E3_WechselrichterID,4) -> 0 | E127: =INDEX(Wechselrichter_Bezeichnungen,3,4) -> W | F127: =VLOOKUP("max. Leerlaufspannung",Texte,SpracheID+1,FALSE) -> max. Leerlaufspannung: | G127: =INDEX(Wechselrichter,E3_WechselrichterID,12) -> 0 | H127: =INDEX(Wechselrichter_Bezeichnungen,3,12) -> V
C128: =VLOOKUP("Einspeisung ab DC-Leistung",Texte,SpracheID+1,FALSE) -> Einspeisung ab DC-Leistung: | D128: =INDEX(Wechselrichter,E3_WechselrichterID,5) -> 0 | E128: =INDEX(Wechselrichter_Bezeichnungen,3,5) -> W | F128: =VLOOKUP("Einschaltschwelle",Texte,SpracheID+1,FALSE) -> Einschaltschwelle: | G128: =INDEX(Wechselrichter,E3_WechselrichterID,13) -> 0 | H128: =INDEX(Wechselrichter_Bezeichnungen,3,13) -> V
C129: =VLOOKUP("Nachtverbrauch",Texte,SpracheID+1,FALSE) -> Nachtverbrauch: | D129: =INDEX(Wechselrichter,E3_WechselrichterID,6) -> 0 | E129: =INDEX(Wechselrichter_Bezeichnungen,3,6) -> W | F129: =VLOOKUP("Abschaltschwelle",Texte,SpracheID+1,FALSE) -> Abschaltschwelle: | G129: =INDEX(Wechselrichter,E3_WechselrichterID,14) -> 0 | H129: =INDEX(Wechselrichter_Bezeichnungen,3,14) -> V
C130: =VLOOKUP("Europäischer Jahreswirkungsgrad",Texte,SpracheID+1,FALSE) -> Europäischer Jahreswirkungsgrad: | D130: =IF(ISERROR(IF(E3_WechselrichterID<>1,TEXT(ROUND(VLOOKUP(E3_WechselrichterID,_Daten!$V$6:$AC$40,8,FALSE),1),"00,0"),"")),"- ",IF(E3_WechselrichterID<>1,TEXT(ROUND(VLOOKUP(E3_WechselrichterID,_Daten!$V$6:$AC$40,8,FALSE),1),"00,0"),"- ")) -> - | E130: =INDEX(Wechselrichter_Bezeichnungen,3,7) -> % | F130: =VLOOKUP("max. Netzstrom",Texte,SpracheID+1,FALSE) -> max. Netzstrom: | G130: =INDEX(Wechselrichter,E3_WechselrichterID,15) -> 0 | H130: =INDEX(Wechselrichter_Bezeichnungen,3,15) -> A
F131: =VLOOKUP("max. DC-Strom",Texte,SpracheID+1,FALSE) -> max. DC-Strom: | G131: =INDEX(Wechselrichter,E3_WechselrichterID,21) -> 0 | H131: =INDEX(Wechselrichter_Bezeichnungen,3,21) -> A
C132: =IF(INDEX(Wechselrichter,E1_WechselrichterID,8)<>"","Features","") -> Features
C133: =INDEX(Wechselrichter,E3_WechselrichterID,22) -> 
C137: =VLOOKUP("gewählteSolarmodule",Texte,SpracheID+1,FALSE) -> Gewählte Solarmodule: | D137: =E3_AnzahlSG &" x " &INDEX(E3_Solarmodule,E3_SolarmodulID,1) -> 0 x Canadian Solar Inc. CS5A-130
C139: =VLOOKUP("TechnischeDaten",Texte,SpracheID+1,FALSE) -> Technische Daten | F139: =VLOOKUP("WeitereInfos",Texte,SpracheID+1,FALSE) -> Weitere Infos
C141: =VLOOKUP("Nennleistung",Texte,SpracheID+1,FALSE) -> Nennleistung: | D141: =INDEX(E3_Solarmodule,E3_SolarmodulID,4) -> 130 | E141: =INDEX(Solarmodule_Bezeichnungen,3,4) -> Wp | F141: =VLOOKUP("Herstellungsland",Texte,SpracheID+1,FALSE) -> Herstellungsland: | G141: =IF(ISERROR(VLOOKUP(INDEX(E3_Solarmodule,E3_SolarmodulID,14),Texte_Länder,SpracheID+1)),INDEX(E3_Solarmodule,E3_SolarmodulID,14),VLOOKUP(INDEX(E3_Solarmodule,E3_SolarmodulID,14),Texte_Länder,SpracheID+1)) -> China
C142: =VLOOKUP("Toleranz",Texte,SpracheID+1,FALSE) -> Toleranz: | D142: =INDEX(E3_Solarmodule,E3_SolarmodulID,5) -> +3...-3 | E142: =INDEX(Solarmodule_Bezeichnungen,3,5) -> + | - % | F142: =VLOOKUP("Zellhersteller",Texte,SpracheID+1,FALSE) -> Zellhersteller: | G142: =INDEX(E3_Solarmodule,E3_SolarmodulID,15) -> 0
C143: =VLOOKUP("MPP-Spannung",Texte,SpracheID+1,FALSE) -> MPP-Spannung: | D143: =INDEX(E3_Solarmodule,E3_SolarmodulID,6) -> 34.6 | E143: =INDEX(Solarmodule_Bezeichnungen,3,6) -> V | F143: =VLOOKUP("Modulwirkungsgrad",Texte,SpracheID+1,FALSE) -> Modulwirkungsgrad: | G143: =INDEX(E3_Solarmodule,E3_SolarmodulID,16) -> 10.17537022 | H143: =INDEX(Solarmodule_Bezeichnungen,3,16) -> %
C144: =VLOOKUP("MPP-Strom",Texte,SpracheID+1,FALSE) -> MPP-Strom: | D144: =INDEX(E3_Solarmodule,E3_SolarmodulID,7) -> 3.75 | E144: =INDEX(Solarmodule_Bezeichnungen,3,7) -> A | F144: =VLOOKUP("Zelltyp",Texte,SpracheID+1,FALSE) -> Zelltyp: | G144: =IF(ISERROR(VLOOKUP(INDEX(E3_Solarmodule,E3_SolarmodulID,17),Texte_Zellentyp,SpracheID+1)),INDEX(E3_Solarmodule,E3_SolarmodulID,17),VLOOKUP(INDEX(E3_Solarmodule,E3_SolarmodulID,17),Texte_Zellentyp,SpracheID+1)) -> poly
C145: =VLOOKUP("Leerlaufspannung",Texte,SpracheID+1,FALSE) -> Leerlaufspannung: | D145: =INDEX(E3_Solarmodule,E3_SolarmodulID,8) -> 42.9 | E145: =INDEX(Solarmodule_Bezeichnungen,3,8) -> V | F145: =VLOOKUP("Zellen pro Modul",Texte,SpracheID+1,FALSE) -> Zellen pro Modul: | G145: =INDEX(E3_Solarmodule,E3_SolarmodulID,18) -> 72
C146: =VLOOKUP("Kurzschlußstrom",Texte,SpracheID+1,FALSE) -> Kurzschlußstrom: | D146: =INDEX(E3_Solarmodule,E3_SolarmodulID,9) -> 4.21 | E146: =INDEX(Solarmodule_Bezeichnungen,3,9) -> A | F146: =VLOOKUP("Zellform",Texte,SpracheID+1,FALSE) -> Zellform: | G146: =IF(ISERROR(VLOOKUP(INDEX(E3_Solarmodule,E3_SolarmodulID,19),Texte_Zellenform,SpracheID+1)),INDEX(E3_Solarmodule,E3_SolarmodulID,19),VLOOKUP(INDEX(E3_Solarmodule,E3_SolarmodulID,19),Texte_Zellenform,SpracheID+1)) -> -
C147: =VLOOKUP("Spannungsänderung",Texte,SpracheID+1,FALSE) -> Spannungsänderung: | D147: =INDEX(E3_Solarmodule,E3_SolarmodulID,10) -> -150.15 | E147: =INDEX(Solarmodule_Bezeichnungen,3,10) -> mV/°C | F147: =VLOOKUP("Höhe",Texte,SpracheID+1,FALSE) -> Höhe: | G147: =INDEX(E3_Solarmodule,E3_SolarmodulID,20) -> 1595 | H147: =INDEX(Solarmodule_Bezeichnungen,3,20) -> mm
C148: =VLOOKUP("Stromänderung",Texte,SpracheID+1,FALSE) -> Stromänderung: | D148: =INDEX(E3_Solarmodule,E3_SolarmodulID,11) -> 0 | E148: =INDEX(Solarmodule_Bezeichnungen,3,11) -> mA/°C | F148: =VLOOKUP("Breite",Texte,SpracheID+1,FALSE) -> Breite: | G148: =INDEX(E3_Solarmodule,E3_SolarmodulID,21) -> 801 | H148: =INDEX(Solarmodule_Bezeichnungen,3,21) -> mm
C149: =VLOOKUP("Leistungsänderung",Texte,SpracheID+1,FALSE) -> Leistungsänderung: | D149: =INDEX(E3_Solarmodule,E3_SolarmodulID,12) -> 0 | E149: =INDEX(Solarmodule_Bezeichnungen,3,12) -> %/°C | F149: =VLOOKUP("Dicke",Texte,SpracheID+1,FALSE) -> Dicke: | G149: =INDEX(E3_Solarmodule,E3_SolarmodulID,22) -> 40 | H149: =INDEX(Solarmodule_Bezeichnungen,3,22) -> mm
C150: =VLOOKUP("max. Systemspannung",Texte,SpracheID+1,FALSE) -> max. Systemspannung: | D150: =INDEX(E3_Solarmodule,E3_SolarmodulID,13) -> 0 | E150: =INDEX(Solarmodule_Bezeichnungen,3,13) -> V | F150: =VLOOKUP("Rahmung",Texte,SpracheID+1,FALSE) -> Rahmung: | G150: =IF(ISERROR(VLOOKUP(INDEX(E3_Solarmodule,E3_SolarmodulID,23),Texte_Rahmenart,SpracheID+1)),INDEX(E3_Solarmodule,E3_SolarmodulID,23),VLOOKUP(INDEX(E3_Solarmodule,E3_SolarmodulID,23),Texte_Rahmenart,SpracheID+1)) -> 0
C151: =IF(J151,INDEX(Solarmodule_Bezeichnungen,1,J151 ) & ":","") ->  | D151: =IF(J151,INDEX(E3_Solarmodule,SolarmodulID,J151),"") ->  | F151: =VLOOKUP("Anschluß",Texte,SpracheID+1,FALSE) -> Anschluß: | G151: =IF(ISERROR(VLOOKUP(INDEX(E3_Solarmodule,E3_SolarmodulID,24),Texte_Anschluss,SpracheID+1,FALSE)),INDEX(E3_Solarmodule,E3_SolarmodulID,24),VLOOKUP(INDEX(E3_Solarmodule,E3_SolarmodulID,24),Texte_Anschluss,SpracheID+1,FALSE)) -> 0
C152: =IF(INDEX(E3_Solarmodule,E3_SolarmodulID,26)<>"",VLOOKUP("WeitereInfosSolarmodule",Texte,SpracheID+1,FALSE),"") ->  | F152: =VLOOKUP("Gewicht",Texte,SpracheID+1,FALSE) -> Gewicht: | G152: =INDEX(E3_Solarmodule,E3_SolarmodulID,25) -> 15.5 | H152: =INDEX(Solarmodule_Bezeichnungen,3,25) -> kg
C153: =INDEX(E3_Solarmodule,E3_SolarmodulID,26) -> 0 | G153: =IF(K153,INDEX(Solarmodule,SolarmoduleID,K153),"") -> 
H154: =IF(K154,INDEX(Solarmodule_Bezeichnungen,2,K154),"") -> 
C155: =IF(E1_WechselrichterID=10,VLOOKUP("Eingang",Texte,SpracheID+1,FALSE) & " 3 ",VLOOKUP("IhreSolaranlage",Texte,SpracheID+1,FALSE)) -> Ihre Solaranlage
C157: =VLOOKUP("Gesamt-Nennleistung",Texte,SpracheID+1,FALSE) -> Gesamt-Nennleistung: | D157: =E3_max_MPPLeistung -> 0 | E157: W | F157: =VLOOKUP("DC-Kabellänge",Texte,SpracheID+1,FALSE) -> DC-Kabellänge: | G157: =E3_DC_Leitungslänge -> 100 | H157: m
C158: =VLOOKUP("AnzahlStrings",Texte,SpracheID+1,FALSE) -> Anzahl der Strings: | D158: =E3_Stringanzahl* E3_WR_Anzahl -> 0 | F158: =VLOOKUP("DC-Kabelquerschnitt",Texte,SpracheID+1,FALSE) -> DC-Kabelquerschnitt: | G158: =INDEX(Leitungsquerschnitt,E3_DC_LquerschnittID,1) -> 6 | H158: mm²
C159: =VLOOKUP("Module Pro String",Texte,SpracheID+1,FALSE) -> Module pro String: | D159: =E3_Module_in_Reihe -> 0 | F159: =VLOOKUP("MaxVerlusteDCKabel",Texte,SpracheID+1,FALSE) -> Verluste im DC-Kabel: | G159: =IF(OR(E3_Nennleistung_25=0,ISTEXT(E3_Nennleistung_25)),0,((POWER(E3_MPP_Strom_25,2)*Spez_Widerstand_Kupfer*E3_DC_Leitungslänge)/((INDEX(Leitungsquerschnitt,E3_DC_LquerschnittID,1))*E3_Nennleistung_25))*100) -> 0 | H159: %
C160: =VLOOKUP("GesamtanzahlModule",Texte,SpracheID+1,FALSE) -> Gesamtanzahl Module: | D160: =E3_AnzahlSG -> 0 | F160: =VLOOKUP("AC-Kabellänge",Texte,SpracheID+1,FALSE) -> AC-Kabellänge: | G160: =E3_AC_Leitungslänge -> 25 | H160: m
C161: =VLOOKUP("Flächenverbrauch",Texte,SpracheID+1,FALSE) -> Flächenverbrauch: | D161: =IF(ISERROR(INDEX(E3_Solarmodule,E3_SolarmodulID,20)/1000*INDEX(E3_Solarmodule,E3_SolarmodulID,21)/1000*E3_AnzahlSG),"-",INDEX(E3_Solarmodule,E3_SolarmodulID,20)/1000*INDEX(E3_Solarmodule,E3_SolarmodulID,21)/1000*E3_AnzahlSG) -> 0 | E161: qm | F161: =VLOOKUP("AC-Kabelquerschnitt",Texte,SpracheID+1,FALSE) -> AC-Kabelquerschnitt: | G161: =INDEX(Leitungsquerschnitt,E3_AC_LquerschnittID,1) -> 25 | H161: mm²
C162: =VLOOKUP("GewichtModule",Texte,SpracheID+1,FALSE) -> Gewicht der Module: | D162: =IF(ISERROR(E3_AnzahlSG*INDEX(E3_Solarmodule,E3_SolarmodulID,25)),"-",E3_AnzahlSG*INDEX(E3_Solarmodule,E3_SolarmodulID,25)) -> 0 | E162: kg | F162: =VLOOKUP("MaxVerlusteACKabel",Texte,SpracheID+1,FALSE) -> Verluste im AC-Kabel: | G162: =IF(OR(INDEX(Wechselrichter,E3_WechselrichterID,4)=0,E3_max_MPPLeistung=0,ISTEXT(E3_Nennleistung_25)),0,IF(E3_Nennleistung_25 <= INDEX(Wechselrichter,E3_WechselrichterID,4),((IF(INDEX(Wechselrichter,E3_WechselrichterID,25)=4,1,2))*(POWER(IF(INDEX(Wechselrichter,E3_WechselrichterID,25)=4,E3_Nennleistung_25/3,E3_Nennleistung_25)/230,2)*Spez_Widerstand_Kupfer*E3_AC_Leitungslänge)/((INDEX(Leitungsquerschnitt,E3_AC_LquerschnittID,1))*IF(INDEX(Wechselrichter,E3_WechselrichterID,25)=4,E3_Nennleistung_25/3,E3_Nennleistung_25)))*100,((IF(INDEX(Wechselrichter,E3_WechselrichterID,25)=4,1,2))*(POWER(IF(INDEX(Wechselrichter,E3_WechselrichterID,25)=4,INDEX(Wechselrichter,E3_WechselrichterID,4)/3,INDEX(Wechselrichter,E3_WechselrichterID,4))/230,2)*Spez_Widerstand_Kupfer*E3_AC_Leitungslänge)/((INDEX(Leitungsquerschnitt,E3_AC_LquerschnittID,1))*IF(INDEX(Wechselrichter,E3_WechselrichterID,25)=4,INDEX(Wechselrichter,E3_WechselrichterID,4)/3,INDEX(Wechselrichter,E3_WechselrichterID,4))))*100)) -> 0 | H162: %
C172: =VLOOKUP("AchtungText",Texte,SpracheID+1,FALSE) -> Achtung: alle hier angezeigten und berechneten Werte ohne Gewähr! Vielen Dank für Ihr Verständnis!
D173: =VLOOKUP("Erstellt am",Texte,SpracheID+1,FALSE) & " " -> Erstellt am | E173: =NOW() -> 2020-10-14T08:09:51.970
C179: =VLOOKUP("Gesamtübersicht",Texte,SpracheID+1,FALSE) -> Gesamtübersicht
C181: =IF(INDEX(Wechselrichter,E1_WechselrichterID,25)=3," " &VLOOKUP("Eingang",Texte,SpracheID+1,FALSE) & " 1 "," " &VLOOKUP("Teilanlage",Texte,SpracheID+1,FALSE) & " 1:") -> Teilanlage 1:
C183: =VLOOKUP("Wechselrichter2",Texte,SpracheID+1,FALSE) -> Wechselrichter: | D183: =IF(INDEX(Wechselrichter,E1_WechselrichterID,25)=3,E1_WR_Anzahl & " x",E1_WR_Anzahl & " x") -> 1 x | E183: =INDEX(Wechselrichter,E1_WechselrichterID,1) -> Centurio 10.0
C184: =VLOOKUP("Module2",Texte,SpracheID+1,FALSE) -> Module: | D184: =E1_Stringanzahl *E1_WR_Anzahl & " x " & E1_Module_in_Reihe -> 2 x 14 | E184: =INDEX(E1_Solarmodule,E1_SolarmodulID,1) -> Canadian Solar Inc. HiKu CS3L-365P
C185: =VLOOKUP("Nennleistung2",Texte,SpracheID+1,FALSE) -> Nennleistung: | E185: =IF(ISERROR(IF(INDEX(Wechselrichter,E1_WechselrichterID,25)=3,E1_WR_Anzahl*E1_max_MPPLeistung,E1_WR_Anzahl*E1_max_MPPLeistung)),txt_Daten_fehlen,IF(INDEX(Wechselrichter,E1_WechselrichterID,25)=3,E1_WR_Anzahl*E1_max_MPPLeistung,E1_WR_Anzahl*E1_max_MPPLeistung)) -> 10220 | F185: Wp
C187: =IF(INDEX(Wechselrichter,E2_WechselrichterID,25)=3," " &VLOOKUP("Eingang",Texte,SpracheID+1,FALSE) & " 2:"," " &VLOOKUP("Teilanlage",Texte,SpracheID+1,FALSE) & " 2:") -> Teilanlage 2:
C189: =VLOOKUP("Wechselrichter2",Texte,SpracheID+1,FALSE) -> Wechselrichter: | D189: =IF(INDEX(Wechselrichter,E1_WechselrichterID,25)=3,E1_WR_Anzahl & " x",E2_WR_Anzahl & " x") -> 1 x | E189: =INDEX(Wechselrichter,E2_WechselrichterID,1) -> Centurio 10.0 - 1 String
C190: =VLOOKUP("Module2",Texte,SpracheID+1,FALSE) -> Module: | D190: =E2_Stringanzahl *E2_WR_Anzahl & " x " & E2_Module_in_Reihe -> 1 x 13 | E190: =INDEX(E2_Solarmodule,E2_SolarmodulID,1) -> Canadian Solar Inc. HiKu CS3L-365P
C191: =VLOOKUP("Nennleistung2",Texte,SpracheID+1,FALSE) -> Nennleistung: | E191: =IF(ISERROR(IF(INDEX(Wechselrichter,E1_WechselrichterID,25)=3,E1_WR_Anzahl*E2_max_MPPLeistung,E2_WR_Anzahl*E2_max_MPPLeistung)),txt_Daten_fehlen,IF(INDEX(Wechselrichter,E1_WechselrichterID,25)=3,E1_WR_Anzahl*E2_max_MPPLeistung,E2_WR_Anzahl*E2_max_MPPLeistung)) -> 4745 | F191: Wp
C193: =IF(INDEX(Wechselrichter,E3_WechselrichterID,25)=3," " &VLOOKUP("Eingang",Texte,SpracheID+1,FALSE) & " 3:"," " &VLOOKUP("Teilanlage",Texte,SpracheID+1,FALSE) & " 3:") -> Teilanlage 3:
C195: =VLOOKUP("Wechselrichter2",Texte,SpracheID+1,FALSE) -> Wechselrichter: | D195: =IF(INDEX(Wechselrichter,E1_WechselrichterID,25)=3,E1_WR_Anzahl & " x",E3_WR_Anzahl & " x") -> 0 x | E195: =INDEX(Wechselrichter,E3_WechselrichterID,1) -> (keine Auswahl)
C196: =VLOOKUP("Module2",Texte,SpracheID+1,FALSE) -> Module: | D196: =E3_Stringanzahl *E3_WR_Anzahl & " x " & E3_Module_in_Reihe -> 0 x 0 | E196: =INDEX(E3_Solarmodule,E3_SolarmodulID,1) -> Canadian Solar Inc. CS5A-130
C197: =VLOOKUP("Nennleistung2",Texte,SpracheID+1,FALSE) -> Nennleistung: | E197: =IF(ISERROR(IF(INDEX(Wechselrichter,E1_WechselrichterID,25)=3,E1_WR_Anzahl*E3_max_MPPLeistung,E3_WR_Anzahl*E3_max_MPPLeistung)),txt_Daten_fehlen,IF(INDEX(Wechselrichter,E1_WechselrichterID,25)=3,E1_WR_Anzahl*E3_max_MPPLeistung,E3_WR_Anzahl*E3_max_MPPLeistung)) -> 0 | F197: Wp
C199: =VLOOKUP("Gesamtnennleistung",Texte,SpracheID+1,FALSE) -> Gesamtnennleistung | E199: =IF(ISERROR(IF(INDEX(Wechselrichter,E1_WechselrichterID,25)=3,E1_WR_Anzahl*(E1_max_MPPLeistung+E2_max_MPPLeistung+E3_max_MPPLeistung),H5*E1_WR_Anzahl*E1_max_MPPLeistung+H6*E2_WR_Anzahl*E2_max_MPPLeistung+H7*E3_WR_Anzahl*E3_max_MPPLeistung)),txt_Daten_fehlen,IF(INDEX(Wechselrichter,E1_WechselrichterID,25)=3,E1_WR_Anzahl*(E1_max_MPPLeistung+E2_max_MPPLeistung+E3_max_MPPLeistung),H5*E1_WR_Anzahl*E1_max_MPPLeistung+H6*E2_WR_Anzahl*E2_max_MPPLeistung+H7*E3_WR_Anzahl*E3_max_MPPLeistung)) -> 10220 | F199: Wp
C202: =VLOOKUP("IhreAnsprechpartner",Texte,SpracheID+1,FALSE) -> Ihr Ansprechpartner
C213: =VLOOKUP("AchtungText",Texte,SpracheID+1,FALSE) -> Achtung: alle hier angezeigten und berechneten Werte ohne Gewähr! Vielen Dank für Ihr Verständnis!
D214: =VLOOKUP("Erstellt am",Texte,SpracheID+1,FALSE) & " " -> Erstellt am | E214: =NOW() -> 2020-10-14T08:09:51.970

Sheet Changes (hidden)
A1: Änderungen
A3: Version | B3: Datum | C3: Kürzel | D3: Kommentar
A4: B1 | B4: 2017-07-24 | C4: PWI | D4: Beta-Release, Initialversion

Sheet PV Module
A1: Sie können am Ende der Liste Solarmodule hinzufügen und danach drücken Sie bitte den "Refresh" button (Spalte B) um die Herstellerliste zu aktualisieren. You can add solar panels at the end of the list. Afterwards, please press button (colum B) to refresh manufacturer list | C1: 593 | F1: 0 | G1: 0
A2: =COLUMN() -> 1 | B2: =COLUMN() -> 2 | C2: =COLUMN() -> 3 | D2: =COLUMN() -> 4 | E2: =COLUMN() -> 5 | F2: =COLUMN() -> 6 | G2: =COLUMN() -> 7 | H2: =COLUMN() -> 8 | I2: =COLUMN() -> 9 | J2: =COLUMN() -> 10 | K2: =COLUMN() -> 11 | L2: =COLUMN() -> 12 | M2: =COLUMN() -> 13 | N2: =COLUMN() -> 14 | O2: =COLUMN() -> 15 | P2: =COLUMN() -> 16 | Q2: =COLUMN() -> 17 | R2: =COLUMN() -> 18 | S2: =COLUMN() -> 19 | T2: =COLUMN() -> 20 | U2: =COLUMN() -> 21 | V2: =COLUMN() -> 22 | W2: =COLUMN() -> 23 | X2: =COLUMN() -> 24 | Y2: =COLUMN() -> 25 | Z2: =COLUMN() -> 26 | AA2: 27 | AB2: 28 | AC2: 29 | AD2: 30 | AE2: 31 | AF2: 32 | AG2: 33 | AH2: 34 | AI2: 35 | AJ2: 36 | AK2: 37 | AL2: 38
A3: Modulname | B3: Hersteller | C3: Modul | D3: Nennleistung | E3: Toleranz | F3: MPP-Spannung | G3: MPP-Strom | H3: Leerlaufspannung | I3: Kurzschlußstrom | J3: Spannungsänderung | K3: Stromänderung | L3: Leistungsänderung | M3: max Systemspannung | N3: Herstellungsland | O3: Zellhersteller | P3: Modulwirkungsgrad | Q3: Zelltyp | R3: Zellen pro Modul | S3: Zellform | T3: Höhe | U3: Breite | V3: Dicke | W3: Rahmung | X3: Anschluß | Y3: Gewicht | Z3: Internet | AA3: [InitValues] Nennleistung | AB3: [InitValues] MPP-Spannung | AC3: [InitValues] MPP-Strom | AD3: [InitValues] Leerlaufspannung | AE3: [InitValues] Kurzschlußstrom | AF3: Kompatibilität NT | AG3: Kompatibilität AT | AH3: Kompatibilität PT | AI3: Type | AJ3: Notiz | AK3: Sortierung | AL3: Photon Modul ID 2011 | AM3: Anmerkung | AN3: Anmerkung | AO3: ED DB ID
A4: Module name | B4: manufacturer | C4: panel | D4: nominal power | E4: tolerance | F4: MPP voltage | G4: MPP current | H4: open circuit voltage | I4: short circuit current | J4: voltage change | K4: current change | L4: power change | M4: max. System voltage | N4: country of origin | O4: manufacturer of cells | P4: panel efficiency | Q4: cell type | R4: cells per panel | S4: cell shape | T4: height | U4: width | V4: thickness | W4: frame | X4: connector | Y4: weight | Z4: internet | AF4: 1: grün 2: gelb 3: rot | AG4: 1: grün 2: gelb 3: rot | AH4: 1: grün 2: gelb 3: rot
A5: Einheit | B5: Name | C5: Bezeichung | D5: Wp | E5: ="+ | - %" -> + | - % | F5: V | G5: A | H5: V | I5: A | J5: mV/°C | K5: mA/°C | L5: %/°C | M5: V | N5: - | O5: - | P5: % | Q5: - | R5: - | S5: - | T5: mm | U5: mm | V5: mm | W5: - | X5: - | Y5: kg | Z5: - | AA5: - | AB5: - | AC5: - | AD5: - | AE5: -
A7: 1 Soltech Inc. 1 STH-235 | B7: 1 Soltech Inc. | C7: 1 STH-235 | D7: 236 | E7: +3...-3 | F7: 29.3 | G7: 8.02 | H7: 37 | I7: 8.54 | J7: -136.9 | K7: 7.69 | L7: -0.48 | M7: - | N7: - | O7: - | P7: 14.37 | Q7: mono | R7: 60 | S7: pseudo-square | T7: 1652 | U7: 990 | V7: 50 | W7: aluminum | X7: junction box MC4 | Y7: 24 | Z7: www.1soltech.com | AA7: - | AB7: - | AC7: - | AD7: - | AE7: - | AF7: 1 | AG7: 1 | AH7: 1 | AI7: 0 | AJ7: 0 | AK7: 0 | AL7: NEW
A8: 1 Soltech Inc. 1 STH-240 | B8: 1 Soltech Inc. | C8: 1 STH-240 | D8: 240 | E8: +3...-3 | F8: 29.7 | G8: 8.07 | H8: 37.1 | I8: 8.58 | J8: -137.27 | K8: 7.722 | L8: -0.48 | M8: - | N8: - | O8: - | P8: 14.67459011 | Q8: mono | R8: 60 | S8: pseudo-square | T8: 1652 | U8: 990 | V8: 50 | W8: aluminum | X8: junction box MC4 | Y8: 24 | Z8: www.1soltech.com | AA8: - | AB8: - | AC8: - | AD8: - | AE8: - | AF8: =IF($O8="Sunpower Corp.",3,(IF(OR($Q8="mono",$Q8="poly",$Q8="HIT",$Q8="EFG",$Q8="mono-LGBC"),1,IF(OR($Q8="µc-Si / a-Si",$Q8="a-Si (single)",$Q8="a-Si (tandem)",$Q8="a-Si (triple)"),3,2)))) -> 1 | AG8: =IF($O8="Sunpower Corp.",3,(IF(OR($Q8="mono",$Q8="poly",$Q8="HIT",$Q8="EFG",$Q8="mono-LGBC"),1,2))) -> 1 | AH8: =IF($O8="Sunpower Corp.",3,(IF(OR($Q8="mono",$Q8="poly",$Q8="HIT",$Q8="EFG",$Q8="mono-LGBC"),1,IF(OR($Q8="µc-Si / a-Si",$Q8="a-Si (single)",$Q8="a-Si (tandem)",$Q8="a-Si (triple)"),3,2)))) -> 1 | AI8: 0 | AL8: 16537
A9: 1 Soltech Inc. 1 STH-245 | B9: 1 Soltech Inc. | C9: 1 STH-245 | D9: 245,0 | E9: +3...-3 | F9: 30,2 | G9: 8,1 | H9: 37,2 | I9: 8,62 | J9: -137,64 | K9: 7,76 | L9: -0,48 | M9: - | N9: - | O9: - | P9: 14,98 | Q9: mono | R9: 60 | S9: pseudo-square | T9: 1652,0 | U9: 990,0 | V9: 50,0 | W9: aluminum | X9: junction box MC4 | Y9: 24,0 | Z9: www.1soltech.com | AA9: - | AB9: - | AC9: - | AD9: - | AE9: - | AF9: =IF($O9="Sunpower Corp.",3,(IF(OR($Q9="mono",$Q9="poly",$Q9="HIT",$Q9="EFG",$Q9="mono-LGBC"),1,IF(OR($Q9="µc-Si / a-Si",$Q9="a-Si (single)",$Q9="a-Si (tandem)",$Q9="a-Si (triple)"),3,2)))) -> 1 | AG9: =IF($O9="Sunpower Corp.",3,(IF(OR($Q9="mono",$Q9="poly",$Q9="HIT",$Q9="EFG",$Q9="mono-LGBC"),1,2))) -> 1 | AH9: =IF($O9="Sunpower Corp.",3,(IF(OR($Q9="mono",$Q9="poly",$Q9="HIT",$Q9="EFG",$Q9="mono-LGBC"),1,IF(OR($Q9="µc-Si / a-Si",$Q9="a-Si (single)",$Q9="a-Si (tandem)",$Q9="a-Si (triple)"),3,2)))) -> 1 | AL9: NEW | AO9: 3
A10: 1 Soltech Inc. 1 STH-245 | B10: 1 Soltech Inc. | C10: 1 STH-245 | D10: 245 | E10: +3...-3 | F10: 30.2 | G10: 8.1 | H10: 37.2 | I10: 8.62 | J10: -137.64 | K10: 7.758 | L10: -0.48 | M10: - | N10: - | O10: - | P10: 14.98031044 | Q10: mono | R10: 60 | S10: pseudo-square | T10: 1652 | U10: 990 | V10: 50 | W10: aluminum | X10: junction box MC4 | Y10: 24 | Z10: www.1soltech.com | AA10: - | AB10: - | AC10: - | AD10: - | AE10: - | AF10: =IF($O10="Sunpower Corp.",3,(IF(OR($Q10="mono",$Q10="poly",$Q10="HIT",$Q10="EFG",$Q10="mono-LGBC"),1,IF(OR($Q10="µc-Si / a-Si",$Q10="a-Si (single)",$Q10="a-Si (tandem)",$Q10="a-Si (triple)"),3,2)))) -> 1 | AG10: =IF($O10="Sunpower Corp.",3,(IF(OR($Q10="mono",$Q10="poly",$Q10="HIT",$Q10="EFG",$Q10="mono-LGBC"),1,2))) -> 1 | AH10: =IF($O10="Sunpower Corp.",3,(IF(OR($Q10="mono",$Q10="poly",$Q10="HIT",$Q10="EFG",$Q10="mono-LGBC"),1,IF(OR($Q10="µc-Si / a-Si",$Q10="a-Si (single)",$Q10="a-Si (tandem)",$Q10="a-Si (triple)"),3,2)))) -> 1 | AI10: 0 | AL10: 16538
A11: 1 Soltech Inc. 1 STH-250 | B11: 1 Soltech Inc. | C11: 1 STH-250 | D11: 250 | E11: +3...-3 | F11: 30.7 | G11: 8.15 | H11: 37.3 | I11: 8.66 | J11: -138.01 | K11: 7.794 | L11: -0.48 | M11: - | N11: - | O11: - | P11: 15.28602982 | Q11: mono | R11: 60 | S11: pseudo-square | T11: 1652 | U11: 990 | V11: 50 | W11: aluminum | X11: junction box MC4 | Y11: 24 | Z11: www.1soltech.com | AA11: - | AB11: - | AC11: - | AD11: - | AE11: - | AF11: =IF($O11="Sunpower Corp.",3,(IF(OR($Q11="mono",$Q11="poly",$Q11="HIT",$Q11="EFG",$Q11="mono-LGBC"),1,IF(OR($Q11="µc-Si / a-Si",$Q11="a-Si (single)",$Q11="a-Si (tandem)",$Q11="a-Si (triple)"),3,2)))) -> 1 | AG11: =IF($O11="Sunpower Corp.",3,(IF(OR($Q11="mono",$Q11="poly",$Q11="HIT",$Q11="EFG",$Q11="mono-LGBC"),1,2))) -> 1 | AH11: =IF($O11="Sunpower Corp.",3,(IF(OR($Q11="mono",$Q11="poly",$Q11="HIT",$Q11="EFG",$Q11="mono-LGBC"),1,IF(OR($Q11="µc-Si / a-Si",$Q11="a-Si (single)",$Q11="a-Si (tandem)",$Q11="a-Si (triple)"),3,2)))) -> 1 | AI11: 0 | AL11: 16539 | AO11: 5
A12: 3S Swiss Solar Systems AG MegaSlate® II Indachmodul 160 | B12: 3S Swiss Solar Systems AG | C12: MegaSlate® II Indachmodul 160 | D12: 160 | E12: +3...-3 | F12: 19.79 | G12: 8.09 | H12: 24.64 | I12: 8.57 | J12: -88.704 | K12: 1.714 | L12: -0.47 | M12: 1000 | N12: Europe | O12: Bosch Solar Energy AG | P12: 14.91841984 | Q12: mono | R12: 40 | S12: pseudo-square | T12: 1300 | U12: 875 | W12: frameless | X12: junction box Tyco | Y12: 17 | Z12: www.3s-pv.ch | AA12: - | AB12: - | AC12: - | AD12: - | AE12: - | AF12: =IF($O12="Sunpower Corp.",3,(IF(OR($Q12="mono",$Q12="poly",$Q12="HIT",$Q12="EFG",$Q12="mono-LGBC"),1,IF(OR($Q12="µc-Si / a-Si",$Q12="a-Si (single)",$Q12="a-Si (tandem)",$Q12="a-Si (triple)"),3,2)))) -> 1 | AG12: =IF($O12="Sunpower Corp.",3,(IF(OR($Q12="mono",$Q12="poly",$Q12="HIT",$Q12="EFG",$Q12="mono-LGBC"),1,2))) -> 1 | AH12: =IF($O12="Sunpower Corp.",3,(IF(OR($Q12="mono",$Q12="poly",$Q12="HIT",$Q12="EFG",$Q12="mono-LGBC"),1,IF(OR($Q12="µc-Si / a-Si",$Q12="a-Si (single)",$Q12="a-Si (tandem)",$Q12="a-Si (triple)"),3,2)))) -> 1 | AI12: 0 | AL12: 26865 | AO12: 10
A13: 3SUN Company Limited 240W monocrystalline | B13: 3SUN Company Limited | C13: 240W monocrystalline | D13: 240 | E13: +5...-5 | F13: 46.85 | G13: 5.13 | H13: 57.62 | I13: 5.48 | J13: -218.956 | K13: 5.48 | L13: -0.47 | M13: 1000 | P13: 14.06470013 | Q13: mono | R13: 96 | S13: pseudo-square | T13: 1580 | U13: 1080 | V13: 45 | X13: junction box | Y13: 22 | Z13: www.3sun.com.cn | AA13: - | AB13: - | AC13: - | AD13: - | AE13: - | AF13: =IF($O13="Sunpower Corp.",3,(IF(OR($Q13="mono",$Q13="poly",$Q13="HIT",$Q13="EFG",$Q13="mono-LGBC"),1,IF(OR($Q13="µc-Si / a-Si",$Q13="a-Si (single)",$Q13="a-Si (tandem)",$Q13="a-Si (triple)"),3,2)))) -> 1 | AG13: =IF($O13="Sunpower Corp.",3,(IF(OR($Q13="mono",$Q13="poly",$Q13="HIT",$Q13="EFG",$Q13="mono-LGBC"),1,2))) -> 1 | AH13: =IF($O13="Sunpower Corp.",3,(IF(OR($Q13="mono",$Q13="poly",$Q13="HIT",$Q13="EFG",$Q13="mono-LGBC"),1,IF(OR($Q13="µc-Si / a-Si",$Q13="a-Si (single)",$Q13="a-Si (tandem)",$Q13="a-Si (triple)"),3,2)))) -> 1 | AI13: 0 | AL13: 22776 | AO13: 11
A14: 3SUN Company Limited 80W monocrystalline | B14: 3SUN Company Limited | C14: 80W monocrystalline | D14: 80 | E14: +5...-5 | F14: 17.6 | G14: 4.55 | H14: 21.8 | I14: 5.23 | J14: -82.84 | K14: 5.23 | L14: -0.47 | M14: 1000 | P14: 12.24365044 | Q14: mono | R14: 36 | S14: others | T14: 1210 | U14: 540 | V14: 30 | X14: junction box | Y14: 8.2 | Z14: www.3sun.com.cn | AA14: - | AB14: - | AC14: - | AD14: - | AE14: - | AF14: =IF($O14="Sunpower Corp.",3,(IF(OR($Q14="mono",$Q14="poly",$Q14="HIT",$Q14="EFG",$Q14="mono-LGBC"),1,IF(OR($Q14="µc-Si / a-Si",$Q14="a-Si (single)",$Q14="a-Si (tandem)",$Q14="a-Si (triple)"),3,2)))) -> 1 | AG14: =IF($O14="Sunpower Corp.",3,(IF(OR($Q14="mono",$Q14="poly",$Q14="HIT",$Q14="EFG",$Q14="mono-LGBC"),1,2))) -> 1 | AH14: =IF($O14="Sunpower Corp.",3,(IF(OR($Q14="mono",$Q14="poly",$Q14="HIT",$Q14="EFG",$Q14="mono-LGBC"),1,IF(OR($Q14="µc-Si / a-Si",$Q14="a-Si (single)",$Q14="a-Si (tandem)",$Q14="a-Si (triple)"),3,2)))) -> 1 | AI14: 0 | AL14: 22775 | AO14: 12
A15: A.C. Service srl PEM170/72 | B15: A.C. Service srl | C15: PEM170/72 | D15: 170 | E15: +3...-3 | F15: 35.6 | G15: 4.77 | H15: 44.3 | I15: 5.12 | J15: -150.62 | K15: 1.536 | L15: -0.49 | M15: 1000 | P15: 13.31620979 | Q15: mono | R15: 72 | T15: 1580 | U15: 808 | V15: 46 | X15: junction box | Y15: 15.5 | Z15: www.acservice-energy.it | AA15: - | AB15: - | AC15: - | AD15: - | AE15: - | AF15: =IF($O15="Sunpower Corp.",3,(IF(OR($Q15="mono",$Q15="poly",$Q15="HIT",$Q15="EFG",$Q15="mono-LGBC"),1,IF(OR($Q15="µc-Si / a-Si",$Q15="a-Si (single)",$Q15="a-Si (tandem)",$Q15="a-Si (triple)"),3,2)))) -> 1 | AG15: =IF($O15="Sunpower Corp.",3,(IF(OR($Q15="mono",$Q15="poly",$Q15="HIT",$Q15="EFG",$Q15="mono-LGBC"),1,2))) -> 1 | AH15: =IF($O15="Sunpower Corp.",3,(IF(OR($Q15="mono",$Q15="poly",$Q15="HIT",$Q15="EFG",$Q15="mono-LGBC"),1,IF(OR($Q15="µc-Si / a-Si",$Q15="a-Si (single)",$Q15="a-Si (tandem)",$Q15="a-Si (triple)"),3,2)))) -> 1 | AI15: 0 | AL15: 12262 | AO15: 13
A16: A.C. Service srl PEM175/72 | B16: A.C. Service srl | C16: PEM175/72 | D16: 175 | E16: +3...-3 | F16: 35.9 | G16: 4.88 | H16: 44.6 | I16: 5.2 | J16: -151.64 | K16: 1.56 | L16: -0.49 | M16: 1000 | P16: 13.70785999 | Q16: mono | R16: 72 | T16: 1580 | U16: 808 | V16: 46 | X16: junction box | Y16: 15.5 | Z16: www.acservice-energy.it | AA16: - | AB16: - | AC16: - | AD16: - | AE16: - | AF16: =IF($O16="Sunpower Corp.",3,(IF(OR($Q16="mono",$Q16="poly",$Q16="HIT",$Q16="EFG",$Q16="mono-LGBC"),1,IF(OR($Q16="µc-Si / a-Si",$Q16="a-Si (single)",$Q16="a-Si (tandem)",$Q16="a-Si (triple)"),3,2)))) -> 1 | AG16: =IF($O16="Sunpower Corp.",3,(IF(OR($Q16="mono",$Q16="poly",$Q16="HIT",$Q16="EFG",$Q16="mono-LGBC"),1,2))) -> 1 | AH16: =IF($O16="Sunpower Corp.",3,(IF(OR($Q16="mono",$Q16="poly",$Q16="HIT",$Q16="EFG",$Q16="mono-LGBC"),1,IF(OR($Q16="µc-Si / a-Si",$Q16="a-Si (single)",$Q16="a-Si (tandem)",$Q16="a-Si (triple)"),3,2)))) -> 1 | AI16: 0 | AL16: 12261 | AO16: 14
A17: A.C. Service srl PEM180/72 | B17: A.C. Service srl | C17: PEM180/72 | D17: 180 | E17: +3...-3 | F17: 36.03 | G17: 4.95 | H17: 44.7 | I17: 5.28 | J17: -151.98 | K17: 1.584 | L17: -0.49 | M17: 1000 | P17: 14.09951019 | Q17: mono | R17: 72 | T17: 1580 | U17: 808 | V17: 46 | X17: junction box | Y17: 15.5 | Z17: www.acservice-energy.it | AA17: - | AB17: - | AC17: - | AD17: - | AE17: - | AF17: =IF($O17="Sunpower Corp.",3,(IF(OR($Q17="mono",$Q17="poly",$Q17="HIT",$Q17="EFG",$Q17="mono-LGBC"),1,IF(OR($Q17="µc-Si / a-Si",$Q17="a-Si (single)",$Q17="a-Si (tandem)",$Q17="a-Si (triple)"),3,2)))) -> 1 | AG17: =IF($O17="Sunpower Corp.",3,(IF(OR($Q17="mono",$Q17="poly",$Q17="HIT",$Q17="EFG",$Q17="mono-LGBC"),1,2))) -> 1 | AH17: =IF($O17="Sunpower Corp.",3,(IF(OR($Q17="mono",$Q17="poly",$Q17="HIT",$Q17="EFG",$Q17="mono-LGBC"),1,IF(OR($Q17="µc-Si / a-Si",$Q17="a-Si (single)",$Q17="a-Si (tandem)",$Q17="a-Si (triple)"),3,2)))) -> 1 | AI17: 0 | AL17: 12260 | AO17: 15
A18: a2peak power Co., Ltd PEAK IN P210-60 (200) | B18: a2peak power Co., Ltd | C18: PEAK IN P210-60 (200) | D18: 200 | E18: +3...-3 | F18: 27.7 | G18: 7.22 | H18: 36 | I18: 7.54 | J18: -122.4 | K18: 4.0716 | L18: -0.42 | M18: 1000 | N18: Taiwan (Formosa) | O18: - | P18: 9.38086319 | Q18: poly | R18: 60 | S18: square | T18: 2000 | U18: 1066 | V18: 11 | W18: - | X18: junction box | Y18: 50 | Z18: www.a2peak.com.tw | AA18: - | AB18: - | AC18: - | AD18: - | AE18: - | AF18: =IF($O18="Sunpower Corp.",3,(IF(OR($Q18="mono",$Q18="poly",$Q18="HIT",$Q18="EFG",$Q18="mono-LGBC"),1,IF(OR($Q18="µc-Si / a-Si",$Q18="a-Si (single)",$Q18="a-Si (tandem)",$Q18="a-Si (triple)"),3,2)))) -> 1 | AG18: =IF($O18="Sunpower Corp.",3,(IF(OR($Q18="mono",$Q18="poly",$Q18="HIT",$Q18="EFG",$Q18="mono-LGBC"),1,2))) -> 1 | AH18: =IF($O18="Sunpower Corp.",3,(IF(OR($Q18="mono",$Q18="poly",$Q18="HIT",$Q18="EFG",$Q18="mono-LGBC"),1,IF(OR($Q18="µc-Si / a-Si",$Q18="a-Si (single)",$Q18="a-Si (tandem)",$Q18="a-Si (triple)"),3,2)))) -> 1 | AI18: 0 | AL18: 26514 | AO18: 16
A19: a2peak power Co., Ltd PEAK IN P210-60 (205) | B19: a2peak power Co., Ltd | C19: PEAK IN P210-60 (205) | D19: 205 | E19: +3...-3 | F19: 28.35 | G19: 7.23 | H19: 36.13 | I19: 7.6 | J19: -122.842 | K19: 4.104 | L19: -0.42 | M19: 1000 | N19: Taiwan (Formosa) | P19: 9.615385056 | Q19: poly | R19: 60 | S19: square | T19: 2000 | U19: 1066 | V19: 11 | X19: junction box | Y19: 50 | Z19: www.a2peak.com.tw | AA19: - | AB19: - | AC19: - | AD19: - | AE19: - | AF19: =IF($O19="Sunpower Corp.",3,(IF(OR($Q19="mono",$Q19="poly",$Q19="HIT",$Q19="EFG",$Q19="mono-LGBC"),1,IF(OR($Q19="µc-Si / a-Si",$Q19="a-Si (single)",$Q19="a-Si (tandem)",$Q19="a-Si (triple)"),3,2)))) -> 1 | AG19: =IF($O19="Sunpower Corp.",3,(IF(OR($Q19="mono",$Q19="poly",$Q19="HIT",$Q19="EFG",$Q19="mono-LGBC"),1,2))) -> 1 | AH19: =IF($O19="Sunpower Corp.",3,(IF(OR($Q19="mono",$Q19="poly",$Q19="HIT",$Q19="EFG",$Q19="mono-LGBC"),1,IF(OR($Q19="µc-Si / a-Si",$Q19="a-Si (single)",$Q19="a-Si (tandem)",$Q19="a-Si (triple)"),3,2)))) -> 1 | AI19: 0 | AL19: 26515 | AO19: 17
A20: a2peak power Co., Ltd PEAK IN P210-60 (210) | B20: a2peak power Co., Ltd | C20: PEAK IN P210-60 (210) | D20: 210 | E20: +3...-3 | F20: 28.97 | G20: 7.25 | H20: 36.28 | I20: 7.68 | J20: -123.352 | K20: 4.1472 | L20: -0.42 | M20: 1000 | N20: Taiwan (Formosa) | P20: 9.849905968 | Q20: poly | R20: 60 | S20: square | T20: 2000 | U20: 1066 | V20: 11 | X20: junction box | Y20: 50 | Z20: www.a2peak.com.tw | AA20: - | AB20: - | AC20: - | AD20: - | AE20: - | AF20: =IF($O20="Sunpower Corp.",3,(IF(OR($Q20="mono",$Q20="poly",$Q20="HIT",$Q20="EFG",$Q20="mono-LGBC"),1,IF(OR($Q20="µc-Si / a-Si",$Q20="a-Si (single)",$Q20="a-Si (tandem)",$Q20="a-Si (triple)"),3,2)))) -> 1 | AG20: =IF($O20="Sunpower Corp.",3,(IF(OR($Q20="mono",$Q20="poly",$Q20="HIT",$Q20="EFG",$Q20="mono-LGBC"),1,2))) -> 1 | AH20: =IF($O20="Sunpower Corp.",3,(IF(OR($Q20="mono",$Q20="poly",$Q20="HIT",$Q20="EFG",$Q20="mono-LGBC"),1,IF(OR($Q20="µc-Si / a-Si",$Q20="a-Si (single)",$Q20="a-Si (tandem)",$Q20="a-Si (triple)"),3,2)))) -> 1 | AI20: 0 | AL20: 26516 | AO20: 18
A21: a2peak power Co., Ltd PEAK IN P210-60 (215) | B21: a2peak power Co., Ltd | C21: PEAK IN P210-60 (215) | D21: 215 | E21: +3...-3 | F21: 29.61 | G21: 7.26 | H21: 36.37 | I21: 7.82 | J21: -123.658 | K21: 4.2228 | L21: -0.42 | M21: 1000 | N21: Taiwan (Formosa) | P21: 10.08442974 | Q21: poly | R21: 60 | S21: square | T21: 2000 | U21: 1066 | V21: 11 | X21: junction box | Y21: 50 | Z21: www.a2peak.com.tw | AA21: - | AB21: - | AC21: - | AD21: - | AE21: - | AF21: =IF($O21="Sunpower Corp.",3,(IF(OR($Q21="mono",$Q21="poly",$Q21="HIT",$Q21="EFG",$Q21="mono-LGBC"),1,IF(OR($Q21="µc-Si / a-Si",$Q21="a-Si (single)",$Q21="a-Si (tandem)",$Q21="a-Si (triple)"),3,2)))) -> 1 | AG21: =IF($O21="Sunpower Corp.",3,(IF(OR($Q21="mono",$Q21="poly",$Q21="HIT",$Q21="EFG",$Q21="mono-LGBC"),1,2))) -> 1 | AH21: =IF($O21="Sunpower Corp.",3,(IF(OR($Q21="mono",$Q21="poly",$Q21="HIT",$Q21="EFG",$Q21="mono-LGBC"),1,IF(OR($Q21="µc-Si / a-Si",$Q21="a-Si (single)",$Q21="a-Si (tandem)",$Q21="a-Si (triple)"),3,2)))) -> 1 | AI21: 0 | AL21: 26517 | AO21: 19
A22: a2peak power Co., Ltd PEAK IN P210-60 (220) | B22: a2peak power Co., Ltd | C22: PEAK IN P210-60 (220) | D22: 220 | E22: +3...-3 | F22: 30.22 | G22: 7.28 | H22: 36.49 | I22: 7.97 | J22: -124.066 | K22: 4.3038 | L22: -0.42 | M22: 1000 | N22: Taiwan (Formosa) | P22: 10.3189497 | Q22: poly | R22: 60 | S22: square | T22: 2000 | U22: 1066 | V22: 11 | X22: junction box | Y22: 50 | Z22: www.a2peak.com.tw | AA22: - | AB22: - | AC22: - | AD22: - | AE22: - | AF22: =IF($O22="Sunpower Corp.",3,(IF(OR($Q22="mono",$Q22="poly",$Q22="HIT",$Q22="EFG",$Q22="mono-LGBC"),1,IF(OR($Q22="µc-Si / a-Si",$Q22="a-Si (single)",$Q22="a-Si (tandem)",$Q22="a-Si (triple)"),3,2)))) -> 1 | AG22: =IF($O22="Sunpower Corp.",3,(IF(OR($Q22="mono",$Q22="poly",$Q22="HIT",$Q22="EFG",$Q22="mono-LGBC"),1,2))) -> 1 | AH22: =IF($O22="Sunpower Corp.",3,(IF(OR($Q22="mono",$Q22="poly",$Q22="HIT",$Q22="EFG",$Q22="mono-LGBC"),1,IF(OR($Q22="µc-Si / a-Si",$Q22="a-Si (single)",$Q22="a-Si (tandem)",$Q22="a-Si (triple)"),3,2)))) -> 1 | AI22: 0 | AL22: 26518 | AO22: 20
A23: a2peak power Co., Ltd PEAK IN P210-60 (225) | B23: a2peak power Co., Ltd | C23: PEAK IN P210-60 (225) | D23: 225 | E23: +3...-3 | F23: 30.82 | G23: 7.3 | H23: 36.58 | I23: 8.12 | J23: -124.372 | K23: 4.3848 | L23: -0.42 | M23: 1000 | N23: Taiwan (Formosa) | P23: 10.55346966 | Q23: poly | R23: 60 | S23: square | T23: 2000 | U23: 1066 | V23: 11 | X23: junction box | Y23: 50 | Z23: www.a2peak.com.tw | AA23: - | AB23: - | AC23: - | AD23: - | AE23: - | AF23: =IF($O23="Sunpower Corp.",3,(IF(OR($Q23="mono",$Q23="poly",$Q23="HIT",$Q23="EFG",$Q23="mono-LGBC"),1,IF(OR($Q23="µc-Si / a-Si",$Q23="a-Si (single)",$Q23="a-Si (tandem)",$Q23="a-Si (triple)"),3,2)))) -> 1 | AG23: =IF($O23="Sunpower Corp.",3,(IF(OR($Q23="mono",$Q23="poly",$Q23="HIT",$Q23="EFG",$Q23="mono-LGBC"),1,2))) -> 1 | AH23: =IF($O23="Sunpower Corp.",3,(IF(OR($Q23="mono",$Q23="poly",$Q23="HIT",$Q23="EFG",$Q23="mono-LGBC"),1,IF(OR($Q23="µc-Si / a-Si",$Q23="a-Si (single)",$Q23="a-Si (tandem)",$Q23="a-Si (triple)"),3,2)))) -> 1 | AI23: 0 | AL23: 26519 | AO23: 21
A24: a2peak power Co., Ltd PEAK ON P130-36 (120) | B24: a2peak power Co., Ltd | C24: PEAK ON P130-36 (120) | D24: 120 | E24: +3...-3 | F24: 16.83 | G24: 7.28 | H24: 21.6 | I24: 7.73 | J24: -73.44 | K24: 4.1742 | L24: -0.42 | M24: 1000 | N24: Taiwan (Formosa) | P24: 11.97089005 | Q24: poly | R24: 36 | S24: square | T24: 1472 | U24: 681 | V24: 40 | X24: junction box | Y24: 14 | Z24: www.a2peak.com.tw | AA24: - | AB24: - | AC24: - | AD24: - | AE24: - | AF24: =IF($O24="Sunpower Corp.",3,(IF(OR($Q24="mono",$Q24="poly",$Q24="HIT",$Q24="EFG",$Q24="mono-LGBC"),1,IF(OR($Q24="µc-Si / a-Si",$Q24="a-Si (single)",$Q24="a-Si (tandem)",$Q24="a-Si (triple)"),3,2)))) -> 1 | AG24: =IF($O24="Sunpower Corp.",3,(IF(OR($Q24="mono",$Q24="poly",$Q24="HIT",$Q24="EFG",$Q24="mono-LGBC"),1,2))) -> 1 | AH24: =IF($O24="Sunpower Corp.",3,(IF(OR($Q24="mono",$Q24="poly",$Q24="HIT",$Q24="EFG",$Q24="mono-LGBC"),1,IF(OR($Q24="µc-Si / a-Si",$Q24="a-Si (single)",$Q24="a-Si (tandem)",$Q24="a-Si (triple)"),3,2)))) -> 1 | AI24: 0 | AL24: 26492 | AO24: 22
A25: a2peak power Co., Ltd PEAK ON P130-36 (125) | B25: a2peak power Co., Ltd | C25: PEAK ON P130-36 (125) | D25: 125 | E25: +3...-3 | F25: 17.15 | G25: 7.44 | H25: 21.78 | I25: 7.98 | J25: -74.052 | K25: 4.3092 | L25: -0.42 | M25: 1000 | N25: Taiwan (Formosa) | P25: 12.4696703 | Q25: poly | R25: 36 | S25: square | T25: 1472 | U25: 681 | V25: 40 | Y25: 14 | Z25: www.a2peak.com.tw | AA25: - | AB25: - | AC25: - | AD25: - | AE25: - | AF25: =IF($O25="Sunpower Corp.",3,(IF(OR($Q25="mono",$Q25="poly",$Q25="HIT",$Q25="EFG",$Q25="mono-LGBC"),1,IF(OR($Q25="µc-Si / a-Si",$Q25="a-Si (single)",$Q25="a-Si (tandem)",$Q25="a-Si (triple)"),3,2)))) -> 1 | AG25: =IF($O25="Sunpower Corp.",3,(IF(OR($Q25="mono",$Q25="poly",$Q25="HIT",$Q25="EFG",$Q25="mono-LGBC"),1,2))) -> 1 | AH25: =IF($O25="Sunpower Corp.",3,(IF(OR($Q25="mono",$Q25="poly",$Q25="HIT",$Q25="EFG",$Q25="mono-LGBC"),1,IF(OR($Q25="µc-Si / a-Si",$Q25="a-Si (single)",$Q25="a-Si (tandem)",$Q25="a-Si (triple)"),3,2)))) -> 1 | AI25: 0 | AL25: 26493 | AO25: 23
A26: a2peak power Co., Ltd PEAK ON P130-36 (130) | B26: a2peak power Co., Ltd | C26: PEAK ON P130-36 (130) | D26: 130 | E26: +3...-3 | F26: 17.63 | G26: 7.52 | H26: 21.89 | I26: 8.2 | J26: -74.426 | K26: 4.428 | L26: -0.42 | M26: 1000 | N26: Taiwan (Formosa) | P26: 12.96846008 | Q26: poly | R26: 36 | S26: square | T26: 1472 | U26: 681 | V26: 40 | Y26: 14 | Z26: www.a2peak.com.tw | AA26: - | AB26: - | AC26: - | AD26: - | AE26: - | AF26: =IF($O26="Sunpower Corp.",3,(IF(OR($Q26="mono",$Q26="poly",$Q26="HIT",$Q26="EFG",$Q26="mono-LGBC"),1,IF(OR($Q26="µc-Si / a-Si",$Q26="a-Si (single)",$Q26="a-Si (tandem)",$Q26="a-Si (triple)"),3,2)))) -> 1 | AG26: =IF($O26="Sunpower Corp.",3,(IF(OR($Q26="mono",$Q26="poly",$Q26="HIT",$Q26="EFG",$Q26="mono-LGBC"),1,2))) -> 1 | AH26: =IF($O26="Sunpower Corp.",3,(IF(OR($Q26="mono",$Q26="poly",$Q26="HIT",$Q26="EFG",$Q26="mono-LGBC"),1,IF(OR($Q26="µc-Si / a-Si",$Q26="a-Si (single)",$Q26="a-Si (tandem)",$Q26="a-Si (triple)"),3,2)))) -> 1 | AI26: 0 | AL26: 26494 | AO26: 24
A27: a2peak power Co., Ltd PEAK ON P130-36 (135) | B27: a2peak power Co., Ltd | C27: PEAK ON P130-36 (135) | D27: 11000 | E27: +3...-3 | F27: 17.45 | G27: 97.5 | H27: 22.1 | I27: 8.42 | J27: -75.14 | K27: 4.5468 | L27: -0.42 | M27: 1000 | N27: Taiwan (Formosa) | P27: 13.46724987 | Q27: poly | R27: 36 | S27: square | T27: 1472 | U27: 681 | V27: 40 | Y27: 14 | Z27: www.a2peak.com.tw | AA27: - | AB27: - | AC27: - | AD27: - | AE27: - | AF27: =IF($O27="Sunpower Corp.",3,(IF(OR($Q27="mono",$Q27="poly",$Q27="HIT",$Q27="EFG",$Q27="mono-LGBC"),1,IF(OR($Q27="µc-Si / a-Si",$Q27="a-Si (single)",$Q27="a-Si (tandem)",$Q27="a-Si (triple)"),3,2)))) -> 1 | AG27: =IF($O27="Sunpower Corp.",3,(IF(OR($Q27="mono",$Q27="poly",$Q27="HIT",$Q27="EFG",$Q27="mono-LGBC"),1,2))) -> 1 | AH27: =IF($O27="Sunpower Corp.",3,(IF(OR($Q27="mono",$Q27="poly",$Q27="HIT",$Q27="EFG",$Q27="mono-LGBC"),1,IF(OR($Q27="µc-Si / a-Si",$Q27="a-Si (single)",$Q27="a-Si (tandem)",$Q27="a-Si (triple)"),3,2)))) -> 1 | AI27: 0 | AL27: 26495 | AO27: 25
A28: a2peak power Co., Ltd PEAK ON P130-36 (140) | B28: a2peak power Co., Ltd | C28: PEAK ON P130-36 (140) | D28: 140 | E28: +3...-3 | F28: 17.95 | G28: 7.94 | H28: 22.51 | I28: 8.52 | J28: -76.534 | K28: 4.6008 | L28: -0.42 | M28: 1000 | N28: Taiwan (Formosa) | P28: 13.96603012 | Q28: poly | R28: 36 | S28: square | T28: 1472 | U28: 681 | V28: 40 | W28: aluminum | X28: junction box Tyco | Y28: 14 | Z28: www.a2peak.com.tw | AA28: - | AB28: - | AC28: - | AD28: - | AE28: - | AF28: =IF($O28="Sunpower Corp.",3,(IF(OR($Q28="mono",$Q28="poly",$Q28="HIT",$Q28="EFG",$Q28="mono-LGBC"),1,IF(OR($Q28="µc-Si / a-Si",$Q28="a-Si (single)",$Q28="a-Si (tandem)",$Q28="a-Si (triple)"),3,2)))) -> 1 | AG28: =IF($O28="Sunpower Corp.",3,(IF(OR($Q28="mono",$Q28="poly",$Q28="HIT",$Q28="EFG",$Q28="mono-LGBC"),1,2))) -> 1 | AH28: =IF($O28="Sunpower Corp.",3,(IF(OR($Q28="mono",$Q28="poly",$Q28="HIT",$Q28="EFG",$Q28="mono-LGBC"),1,IF(OR($Q28="µc-Si / a-Si",$Q28="a-Si (single)",$Q28="a-Si (tandem)",$Q28="a-Si (triple)"),3,2)))) -> 1 | AI28: 0 | AL28: 26496 | AO28: 26
A29: a2peak power Co., Ltd PEAK ON P230-60 (220) | B29: a2peak power Co., Ltd | C29: PEAK ON P230-60 (220) | D29: 220 | E29: +3...-3 | F29: 29.2 | G29: 7.62 | H29: 36.49 | I29: 8.2 | J29: -124.066 | K29: 4.428 | L29: -0.42 | M29: 1000 | N29: Taiwan (Formosa) | P29: 13.51043987 | Q29: poly | R29: 60 | S29: square | T29: 1630 | U29: 999 | V29: 40 | W29: aluminum | X29: junction box MC | Y29: 19.6 | Z29: www.a2peak.com.tw | AA29: - | AB29: - | AC29: - | AD29: - | AE29: - | AF29: =IF($O29="Sunpower Corp.",3,(IF(OR($Q29="mono",$Q29="poly",$Q29="HIT",$Q29="EFG",$Q29="mono-LGBC"),1,IF(OR($Q29="µc-Si / a-Si",$Q29="a-Si (single)",$Q29="a-Si (tandem)",$Q29="a-Si (triple)"),3,2)))) -> 1 | AG29: =IF($O29="Sunpower Corp.",3,(IF(OR($Q29="mono",$Q29="poly",$Q29="HIT",$Q29="EFG",$Q29="mono-LGBC"),1,2))) -> 1 | AH29: =IF($O29="Sunpower Corp.",3,(IF(OR($Q29="mono",$Q29="poly",$Q29="HIT",$Q29="EFG",$Q29="mono-LGBC"),1,IF(OR($Q29="µc-Si / a-Si",$Q29="a-Si (single)",$Q29="a-Si (tandem)",$Q29="a-Si (triple)"),3,2)))) -> 1 | AI29: 0 | AL29: 26497 | AO29: 27
A30: a2peak power Co., Ltd PEAK ON P230-60 (225) | B30: a2peak power Co., Ltd | C30: PEAK ON P230-60 (225) | D30: 225 | E30: +3...-3 | F30: 29.38 | G30: 7.75 | H30: 36.68 | I30: 8.36 | J30: -124.712 | K30: 4.5144 | L30: -0.42 | M30: 1000 | N30: Taiwan (Formosa) | P30: 13.81750011 | Q30: poly | R30: 60 | S30: square | T30: 1630 | U30: 999 | V30: 40 | W30: aluminum | X30: junction box MC | Y30: 19.6 | Z30: www.a2peak.com.tw | AA30: - | AB30: - | AC30: - | AD30: - | AE30: - | AF30: =IF($O30="Sunpower Corp.",3,(IF(OR($Q30="mono",$Q30="poly",$Q30="HIT",$Q30="EFG",$Q30="mono-LGBC"),1,IF(OR($Q30="µc-Si / a-Si",$Q30="a-Si (single)",$Q30="a-Si (tandem)",$Q30="a-Si (triple)"),3,2)))) -> 1 | AG30: =IF($O30="Sunpower Corp.",3,(IF(OR($Q30="mono",$Q30="poly",$Q30="HIT",$Q30="EFG",$Q30="mono-LGBC"),1,2))) -> 1 | AH30: =IF($O30="Sunpower Corp.",3,(IF(OR($Q30="mono",$Q30="poly",$Q30="HIT",$Q30="EFG",$Q30="mono-LGBC"),1,IF(OR($Q30="µc-Si / a-Si",$Q30="a-Si (single)",$Q30="a-Si (tandem)",$Q30="a-Si (triple)"),3,2)))) -> 1 | AI30: 0 | AL30: 26498 | AO30: 28
A31: a2peak power Co., Ltd PEAK ON P230-60 (230) | B31: a2peak power Co., Ltd | C31: PEAK ON P230-60 (230) | D31: 230 | E31: +3...-3 | F31: 29.61 | G31: 7.86 | H31: 37.1 | I31: 8.42 | J31: -126.14 | K31: 4.5468 | L31: -0.42 | M31: 1000 | N31: Taiwan (Formosa) | P31: 14.12454987 | Q31: poly | R31: 60 | S31: square | T31: 1630 | U31: 999 | V31: 40 | W31: aluminum | X31: junction box MC | Y31: 19.6 | Z31: www.a2peak.com.tw | AA31: - | AB31: - | AC31: - | AD31: - | AE31: - | AF31: =IF($O31="Sunpower Corp.",3,(IF(OR($Q31="mono",$Q31="poly",$Q31="HIT",$Q31="EFG",$Q31="mono-LGBC"),1,IF(OR($Q31="µc-Si / a-Si",$Q31="a-Si (single)",$Q31="a-Si (tandem)",$Q31="a-Si (triple)"),3,2)))) -> 1 | AG31: =IF($O31="Sunpower Corp.",3,(IF(OR($Q31="mono",$Q31="poly",$Q31="HIT",$Q31="EFG",$Q31="mono-LGBC"),1,2))) -> 1 | AH31: =IF($O31="Sunpower Corp.",3,(IF(OR($Q31="mono",$Q31="poly",$Q31="HIT",$Q31="EFG",$Q31="mono-LGBC"),1,IF(OR($Q31="µc-Si / a-Si",$Q31="a-Si (single)",$Q31="a-Si (tandem)",$Q31="a-Si (triple)"),3,2)))) -> 1 | AI31: 0 | AL31: 26499 | AO31: 29
A32: a2peak power Co., Ltd PEAK ON P230-60 (235) | B32: a2peak power Co., Ltd | C32: PEAK ON P230-60 (235) | D32: 235 | E32: +3...-3 | F32: 29.92 | G32: 7.94 | H32: 37.2 | I32: 8.52 | J32: -126.48 | K32: 4.6008 | L32: -0.42 | M32: 1000 | N32: Taiwan (Formosa) | P32: 14.43161011 | Q32: poly | R32: 60 | S32: square | T32: 1630 | U32: 999 | V32: 40 | W32: aluminum | X32: junction box MC | Y32: 19.6 | Z32: www.a2peak.com.tw | AA32: - | AB32: - | AC32: - | AD32: - | AE32: - | AF32: =IF($O32="Sunpower Corp.",3,(IF(OR($Q32="mono",$Q32="poly",$Q32="HIT",$Q32="EFG",$Q32="mono-LGBC"),1,IF(OR($Q32="µc-Si / a-Si",$Q32="a-Si (single)",$Q32="a-Si (tandem)",$Q32="a-Si (triple)"),3,2)))) -> 1 | AG32: =IF($O32="Sunpower Corp.",3,(IF(OR($Q32="mono",$Q32="poly",$Q32="HIT",$Q32="EFG",$Q32="mono-LGBC"),1,2))) -> 1 | AH32: =IF($O32="Sunpower Corp.",3,(IF(OR($Q32="mono",$Q32="poly",$Q32="HIT",$Q32="EFG",$Q32="mono-LGBC"),1,IF(OR($Q32="µc-Si / a-Si",$Q32="a-Si (single)",$Q32="a-Si (tandem)",$Q32="a-Si (triple)"),3,2)))) -> 1 | AI32: 0 | AL32: 26500 | AO32: 30
A33: a2peak power Co., Ltd PEAK ON P230-60 (240) | B33: a2peak power Co., Ltd | C33: PEAK ON P230-60 (240) | D33: 240 | E33: +3...-3 | F33: 30.21 | G33: 8.03 | H33: 37.42 | I33: 8.63 | J33: -127.228 | K33: 4.6602 | L33: -0.42 | M33: 1000 | N33: Taiwan (Formosa) | P33: 14.73865986 | Q33: poly | R33: 60 | S33: square | T33: 1630 | U33: 999 | V33: 40 | W33: aluminum | X33: junction box MC | Y33: 19.6 | Z33: www.a2peak.com.tw | AA33: - | AB33: - | AC33: - | AD33: - | AE33: - | AF33: =IF($O33="Sunpower Corp.",3,(IF(OR($Q33="mono",$Q33="poly",$Q33="HIT",$Q33="EFG",$Q33="mono-LGBC"),1,IF(OR($Q33="µc-Si / a-Si",$Q33="a-Si (single)",$Q33="a-Si (tandem)",$Q33="a-Si (triple)"),3,2)))) -> 1 | AG33: =IF($O33="Sunpower Corp.",3,(IF(OR($Q33="mono",$Q33="poly",$Q33="HIT",$Q33="EFG",$Q33="mono-LGBC"),1,2))) -> 1 | AH33: =IF($O33="Sunpower Corp.",3,(IF(OR($Q33="mono",$Q33="poly",$Q33="HIT",$Q33="EFG",$Q33="mono-LGBC"),1,IF(OR($Q33="µc-Si / a-Si",$Q33="a-Si (single)",$Q33="a-Si (tandem)",$Q33="a-Si (triple)"),3,2)))) -> 1 | AI33: 0 | AL33: 26501 | AO33: 31
A34: a2peak power Co., Ltd PEAK ON P230-60 (245) | B34: a2peak power Co., Ltd | C34: PEAK ON P230-60 (245) | D34: 245 | E34: +3...-3 | F34: 30.75 | G34: 8.05 | H34: 37.49 | I34: 8.76 | J34: -127.466 | K34: 4.7304 | L34: -0.42 | M34: 1000 | N34: Taiwan (Formosa) | P34: 15.0457201 | Q34: poly | R34: 60 | S34: square | T34: 1630 | U34: 999 | V34: 40 | W34: aluminum | X34: junction box MC | Y34: 19.6 | Z34: www.a2peak.com.tw | AA34: - | AB34: - | AC34: - | AD34: - | AE34: - | AF34: =IF($O34="Sunpower Corp.",3,(IF(OR($Q34="mono",$Q34="poly",$Q34="HIT",$Q34="EFG",$Q34="mono-LGBC"),1,IF(OR($Q34="µc-Si / a-Si",$Q34="a-Si (single)",$Q34="a-Si (tandem)",$Q34="a-Si (triple)"),3,2)))) -> 1 | AG34: =IF($O34="Sunpower Corp.",3,(IF(OR($Q34="mono",$Q34="poly",$Q34="HIT",$Q34="EFG",$Q34="mono-LGBC"),1,2))) -> 1 | AH34: =IF($O34="Sunpower Corp.",3,(IF(OR($Q34="mono",$Q34="poly",$Q34="HIT",$Q34="EFG",$Q34="mono-LGBC"),1,IF(OR($Q34="µc-Si / a-Si",$Q34="a-Si (single)",$Q34="a-Si (tandem)",$Q34="a-Si (triple)"),3,2)))) -> 1 | AI34: 0 | AL34: 26502 | AO34: 32
A35: a2peak power Co., Ltd PEAK ON P230-60 BLACK (220) | B35: a2peak power Co., Ltd | C35: PEAK ON P230-60 BLACK (220) | D35: 220 | E35: +3...-3 | F35: 29.2 | G35: 7.62 | H35: 36.49 | I35: 8.2 | J35: -124.066 | K35: 4.428 | L35: -0.42 | M35: 1000 | N35: Taiwan (Formosa) | P35: 13.51043987 | Q35: poly | R35: 60 | S35: square | T35: 1630 | U35: 999 | V35: 40 | W35: aluminum | X35: junction box MC | Y35: 19.6 | Z35: www.a2peak.com.tw | AA35: - | AB35: - | AC35: - | AD35: - | AE35: - | AF35: =IF($O35="Sunpower Corp.",3,(IF(OR($Q35="mono",$Q35="poly",$Q35="HIT",$Q35="EFG",$Q35="mono-LGBC"),1,IF(OR($Q35="µc-Si / a-Si",$Q35="a-Si (single)",$Q35="a-Si (tandem)",$Q35="a-Si (triple)"),3,2)))) -> 1 | AG35: =IF($O35="Sunpower Corp.",3,(IF(OR($Q35="mono",$Q35="poly",$Q35="HIT",$Q35="EFG",$Q35="mono-LGBC"),1,2))) -> 1 | AH35: =IF($O35="Sunpower Corp.",3,(IF(OR($Q35="mono",$Q35="poly",$Q35="HIT",$Q35="EFG",$Q35="mono-LGBC"),1,IF(OR($Q35="µc-Si / a-Si",$Q35="a-Si (single)",$Q35="a-Si (tandem)",$Q35="a-Si (triple)"),3,2)))) -> 1 | AI35: 0 | AL35: 26530 | AO35: 33
A36: a2peak power Co., Ltd PEAK ON P230-60 BLACK (225) | B36: a2peak power Co., Ltd | C36: PEAK ON P230-60 BLACK (225) | D36: 225 | E36: +3...-3 | F36: 29.38 | G36: 7.75 | H36: 36.68 | I36: 8.36 | J36: -124.712 | K36: 4.5144 | L36: -0.42 | M36: 1000 | N36: Taiwan (Formosa) | P36: 13.81750011 | Q36: poly | R36: 60 | S36: square | T36: 1630 | U36: 999 | V36: 40 | W36: aluminum | X36: junction box MC | Y36: 19.6 | Z36: www.a2peak.com.tw | AA36: - | AB36: - | AC36: - | AD36: - | AE36: - | AF36: =IF($O36="Sunpower Corp.",3,(IF(OR($Q36="mono",$Q36="poly",$Q36="HIT",$Q36="EFG",$Q36="mono-LGBC"),1,IF(OR($Q36="µc-Si / a-Si",$Q36="a-Si (single)",$Q36="a-Si (tandem)",$Q36="a-Si (triple)"),3,2)))) -> 1 | AG36: =IF($O36="Sunpower Corp.",3,(IF(OR($Q36="mono",$Q36="poly",$Q36="HIT",$Q36="EFG",$Q36="mono-LGBC"),1,2))) -> 1 | AH36: =IF($O36="Sunpower Corp.",3,(IF(OR($Q36="mono",$Q36="poly",$Q36="HIT",$Q36="EFG",$Q36="mono-LGBC"),1,IF(OR($Q36="µc-Si / a-Si",$Q36="a-Si (single)",$Q36="a-Si (tandem)",$Q36="a-Si (triple)"),3,2)))) -> 1 | AI36: 0 | AL36: 26531 | AO36: 34
A37: a2peak power Co., Ltd PEAK ON P230-60 BLACK (230) | B37: a2peak power Co., Ltd | C37: PEAK ON P230-60 BLACK (230) | D37: 230 | E37: +3...-3 | F37: 29.61 | G37: 7.86 | H37: 37.1 | I37: 8.42 | J37: -126.14 | K37: 4.5468 | L37: -0.42 | M37: 1000 | N37: Taiwan (Formosa) | P37: 14.12454987 | Q37: poly | R37: 60 | S37: square | T37: 1630 | U37: 999 | V37: 40 | W37: aluminum | X37: junction box MC | Y37: 19.6 | Z37: www.a2peak.com.tw | AA37: - | AB37: - | AC37: - | AD37: - | AE37: - | AF37: =IF($O37="Sunpower Corp.",3,(IF(OR($Q37="mono",$Q37="poly",$Q37="HIT",$Q37="EFG",$Q37="mono-LGBC"),1,IF(OR($Q37="µc-Si / a-Si",$Q37="a-Si (single)",$Q37="a-Si (tandem)",$Q37="a-Si (triple)"),3,2)))) -> 1 | AG37: =IF($O37="Sunpower Corp.",3,(IF(OR($Q37="mono",$Q37="poly",$Q37="HIT",$Q37="EFG",$Q37="mono-LGBC"),1,2))) -> 1 | AH37: =IF($O37="Sunpower Corp.",3,(IF(OR($Q37="mono",$Q37="poly",$Q37="HIT",$Q37="EFG",$Q37="mono-LGBC"),1,IF(OR($Q37="µc-Si / a-Si",$Q37="a-Si (single)",$Q37="a-Si (tandem)",$Q37="a-Si (triple)"),3,2)))) -> 1 | AI37: 0 | AL37: 26532 | AO37: 35
A38: a2peak power Co., Ltd PEAK ON P230-60 BLACK (235) | B38: a2peak power Co., Ltd | C38: PEAK ON P230-60 BLACK (235) | D38: 235 | E38: +3...-3 | F38: 29.92 | G38: 7.94 | H38: 37.2 | I38: 8.52 | J38: -126.48 | K38: 4.6008 | L38: -0.42 | M38: 1000 | N38: Taiwan (Formosa) | P38: 14.43161011 | Q38: poly | R38: 60 | S38: square | T38: 1630 | U38: 999 | V38: 40 | W38: aluminum | X38: junction box MC | Y38: 19.6 | Z38: www.a2peak.com.tw | AA38: - | AB38: - | AC38: - | AD38: - | AE38: - | AF38: =IF($O38="Sunpower Corp.",3,(IF(OR($Q38="mono",$Q38="poly",$Q38="HIT",$Q38="EFG",$Q38="mono-LGBC"),1,IF(OR($Q38="µc-Si / a-Si",$Q38="a-Si (single)",$Q38="a-Si (tandem)",$Q38="a-Si (triple)"),3,2)))) -> 1 | AG38: =IF($O38="Sunpower Corp.",3,(IF(OR($Q38="mono",$Q38="poly",$Q38="HIT",$Q38="EFG",$Q38="mono-LGBC"),1,2))) -> 1 | AH38: =IF($O38="Sunpower Corp.",3,(IF(OR($Q38="mono",$Q38="poly",$Q38="HIT",$Q38="EFG",$Q38="mono-LGBC"),1,IF(OR($Q38="µc-Si / a-Si",$Q38="a-Si (single)",$Q38="a-Si (tandem)",$Q38="a-Si (triple)"),3,2)))) -> 1 | AI38: 0 | AL38: 26533 | AO38: 36
A39: a2peak power Co., Ltd PEAK ON P230-60 BLACK (240) | B39: a2peak power Co., Ltd | C39: PEAK ON P230-60 BLACK (240) | D39: 240 | E39: +3...-3 | F39: 30.21 | G39: 8.03 | H39: 37.42 | I39: 8.63 | J39: -127.228 | K39: 4.6602 | L39: -0.42 | M39: 1000 | N39: Taiwan (Formosa) | P39: 14.73865986 | Q39: poly | R39: 60 | S39: square | T39: 1630 | U39: 999 | V39: 40 | W39: aluminum | X39: junction box MC | Y39: 19.6 | Z39: www.a2peak.com.tw | AA39: - | AB39: - | AC39: - | AD39: - | AE39: - | AF39: =IF($O39="Sunpower Corp.",3,(IF(OR($Q39="mono",$Q39="poly",$Q39="HIT",$Q39="EFG",$Q39="mono-LGBC"),1,IF(OR($Q39="µc-Si / a-Si",$Q39="a-Si (single)",$Q39="a-Si (tandem)",$Q39="a-Si (triple)"),3,2)))) -> 1 | AG39: =IF($O39="Sunpower Corp.",3,(IF(OR($Q39="mono",$Q39="poly",$Q39="HIT",$Q39="EFG",$Q39="mono-LGBC"),1,2))) -> 1 | AH39: =IF($O39="Sunpower Corp.",3,(IF(OR($Q39="mono",$Q39="poly",$Q39="HIT",$Q39="EFG",$Q39="mono-LGBC"),1,IF(OR($Q39="µc-Si / a-Si",$Q39="a-Si (single)",$Q39="a-Si (tandem)",$Q39="a-Si (triple)"),3,2)))) -> 1 | AI39: 0 | AL39: 26534 | AO39: 37
A40: a2peak power Co., Ltd PEAK ON P230-60 BLACK (245) | B40: a2peak power Co., Ltd | C40: PEAK ON P230-60 BLACK (245) | D40: 245 | E40: +3...-3 | F40: 30.75 | G40: 8.05 | H40: 37.49 | I40: 8.76 | J40: -127.466 | K40: 4.7304 | L40: -0.42 | M40: 1000 | N40: Taiwan (Formosa) | P40: 15.0457201 | Q40: poly | R40: 60 | S40: square | T40: 1630 | U40: 999 | V40: 40 | W40: aluminum | X40: junction box MC | Y40: 19.6 | Z40: www.a2peak.com.tw | AA40: - | AB40: - | AC40: - | AD40: - | AE40: - | AF40: =IF($O40="Sunpower Corp.",3,(IF(OR($Q40="mono",$Q40="poly",$Q40="HIT",$Q40="EFG",$Q40="mono-LGBC"),1,IF(OR($Q40="µc-Si / a-Si",$Q40="a-Si (single)",$Q40="a-Si (tandem)",$Q40="a-Si (triple)"),3,2)))) -> 1 | AG40: =IF($O40="Sunpower Corp.",3,(IF(OR($Q40="mono",$Q40="poly",$Q40="HIT",$Q40="EFG",$Q40="mono-LGBC"),1,2))) -> 1 | AH40: =IF($O40="Sunpower Corp.",3,(IF(OR($Q40="mono",$Q40="poly",$Q40="HIT",$Q40="EFG",$Q40="mono-LGBC"),1,IF(OR($Q40="µc-Si / a-Si",$Q40="a-Si (single)",$Q40="a-Si (tandem)",$Q40="a-Si (triple)"),3,2)))) -> 1 | AI40: 0 | AL40: 26535 | AO40: 38
A41: a2peak power Co., Ltd PEAK ON P3-235-60 (230) | B41: a2peak power Co., Ltd | C41: PEAK ON P3-235-60 (230) | D41: 230 | E41: +3...-3 | F41: 29.81 | G41: 7.8 | H41: 37.11 | I41: 8.39 | J41: -126.174 | K41: 4.5306 | L41: -0.42 | M41: 1000 | N41: Taiwan (Formosa) | P41: 14.12454987 | Q41: poly | R41: 60 | S41: square | T41: 1630 | U41: 999 | V41: 40 | W41: aluminum | X41: junction box MC | Y41: 19.6 | Z41: www.a2peak.com.tw | AA41: - | AB41: - | AC41: - | AD41: - | AE41: - | AF41: =IF($O41="Sunpower Corp.",3,(IF(OR($Q41="mono",$Q41="poly",$Q41="HIT",$Q41="EFG",$Q41="mono-LGBC"),1,IF(OR($Q41="µc-Si / a-Si",$Q41="a-Si (single)",$Q41="a-Si (tandem)",$Q41="a-Si (triple)"),3,2)))) -> 1 | AG41: =IF($O41="Sunpower Corp.",3,(IF(OR($Q41="mono",$Q41="poly",$Q41="HIT",$Q41="EFG",$Q41="mono-LGBC"),1,2))) -> 1 | AH41: =IF($O41="Sunpower Corp.",3,(IF(OR($Q41="mono",$Q41="poly",$Q41="HIT",$Q41="EFG",$Q41="mono-LGBC"),1,IF(OR($Q41="µc-Si / a-Si",$Q41="a-Si (single)",$Q41="a-Si (tandem)",$Q41="a-Si (triple)"),3,2)))) -> 1 | AI41: 0 | AL41: 26503 | AO41: 39
A42: a2peak power Co., Ltd PEAK ON P3-235-60 (235) | B42: a2peak power Co., Ltd | C42: PEAK ON P3-235-60 (235) | D42: 235 | E42: +3...-3 | F42: 30.19 | G42: 7.87 | H42: 37.21 | I42: 8.48 | J42: -126.514 | K42: 4.5792 | L42: -0.42 | M42: 1000 | N42: Taiwan (Formosa) | P42: 14.43161011 | Q42: poly | R42: 60 | S42: square | T42: 1630 | U42: 999 | V42: 40 | W42: aluminum | X42: junction box MC | Y42: 19.6 | Z42: www.a2peak.com.tw | AA42: - | AB42: - | AC42: - | AD42: - | AE42: - | AF42: =IF($O42="Sunpower Corp.",3,(IF(OR($Q42="mono",$Q42="poly",$Q42="HIT",$Q42="EFG",$Q42="mono-LGBC"),1,IF(OR($Q42="µc-Si / a-Si",$Q42="a-Si (single)",$Q42="a-Si (tandem)",$Q42="a-Si (triple)"),3,2)))) -> 1 | AG42: =IF($O42="Sunpower Corp.",3,(IF(OR($Q42="mono",$Q42="poly",$Q42="HIT",$Q42="EFG",$Q42="mono-LGBC"),1,2))) -> 1 | AH42: =IF($O42="Sunpower Corp.",3,(IF(OR($Q42="mono",$Q42="poly",$Q42="HIT",$Q42="EFG",$Q42="mono-LGBC"),1,IF(OR($Q42="µc-Si / a-Si",$Q42="a-Si (single)",$Q42="a-Si (tandem)",$Q42="a-Si (triple)"),3,2)))) -> 1 | AI42: 0 | AL42: 26504 | AO42: 40
A43: a2peak power Co., Ltd PEAK ON P3-235-60 (240) | B43: a2peak power Co., Ltd | C43: PEAK ON P3-235-60 (240) | D43: 240 | E43: +3...-3 | F43: 30.67 | G43: 7.91 | H43: 37.43 | I43: 8.59 | J43: -127.262 | K43: 4.6386 | L43: -0.42 | M43: 1000 | N43: Taiwan (Formosa) | P43: 14.73865986 | Q43: poly | R43: 60 | S43: square | T43: 1630 | U43: 999 | V43: 40 | W43: aluminum | X43: junction box MC | Y43: 19.6 | Z43: www.a2peak.com.tw | AA43: - | AB43: - | AC43: - | AD43: - | AE43: - | AF43: =IF($O43="Sunpower Corp.",3,(IF(OR($Q43="mono",$Q43="poly",$Q43="HIT",$Q43="EFG",$Q43="mono-LGBC"),1,IF(OR($Q43="µc-Si / a-Si",$Q43="a-Si (single)",$Q43="a-Si (tandem)",$Q43="a-Si (triple)"),3,2)))) -> 1 | AG43: =IF($O43="Sunpower Corp.",3,(IF(OR($Q43="mono",$Q43="poly",$Q43="HIT",$Q43="EFG",$Q43="mono-LGBC"),1,2))) -> 1 | AH43: =IF($O43="Sunpower Corp.",3,(IF(OR($Q43="mono",$Q43="poly",$Q43="HIT",$Q43="EFG",$Q43="mono-LGBC"),1,IF(OR($Q43="µc-Si / a-Si",$Q43="a-Si (single)",$Q43="a-Si (tandem)",$Q43="a-Si (triple)"),3,2)))) -> 1 | AI43: 0 | AL43: 26505 | AO43: 41
A44: a2peak power Co., Ltd PEAK ON P3-235-60 (245) | B44: a2peak power Co., Ltd | C44: PEAK ON P3-235-60 (245) | D44: 245 | E44: +3...-3 | F44: 31.02 | G44: 7.98 | H44: 37.51 | I44: 8.74 | J44: -127.534 | K44: 4.7196 | L44: -0.42 | M44: 1000 | N44: Taiwan (Formosa) | P44: 15.0457201 | Q44: poly | R44: 60 | S44: square | T44: 1630 | U44: 999 | V44: 40 | W44: aluminum | X44: junction box MC | Y44: 19.6 | Z44: www.a2peak.com.tw | AA44: - | AB44: - | AC44: - | AD44: - | AE44: - | AF44: =IF($O44="Sunpower Corp.",3,(IF(OR($Q44="mono",$Q44="poly",$Q44="HIT",$Q44="EFG",$Q44="mono-LGBC"),1,IF(OR($Q44="µc-Si / a-Si",$Q44="a-Si (single)",$Q44="a-Si (tandem)",$Q44="a-Si (triple)"),3,2)))) -> 1 | AG44: =IF($O44="Sunpower Corp.",3,(IF(OR($Q44="mono",$Q44="poly",$Q44="HIT",$Q44="EFG",$Q44="mono-LGBC"),1,2))) -> 1 | AH44: =IF($O44="Sunpower Corp.",3,(IF(OR($Q44="mono",$Q44="poly",$Q44="HIT",$Q44="EFG",$Q44="mono-LGBC"),1,IF(OR($Q44="µc-Si / a-Si",$Q44="a-Si (single)",$Q44="a-Si (tandem)",$Q44="a-Si (triple)"),3,2)))) -> 1 | AI44: 0 | AL44: 26506 | AO44: 42
A45: a2peak power Co., Ltd PEAK ON P3-235-60 (250) | B45: a2peak power Co., Ltd | C45: PEAK ON P3-235-60 (250) | D45: 250 | E45: +3...-3 | F45: 31.49 | G45: 8.02 | H45: 37.78 | I45: 8.85 | J45: -128.452 | K45: 4.779 | L45: -0.42 | M45: 1000 | N45: Taiwan (Formosa) | P45: 15.35278034 | Q45: poly | R45: 60 | S45: square | T45: 1630 | U45: 999 | V45: 40 | W45: aluminum | X45: junction box MC | Y45: 19.6 | Z45: www.a2peak.com.tw | AA45: - | AB45: - | AC45: - | AD45: - | AE45: - | AF45: =IF($O45="Sunpower Corp.",3,(IF(OR($Q45="mono",$Q45="poly",$Q45="HIT",$Q45="EFG",$Q45="mono-LGBC"),1,IF(OR($Q45="µc-Si / a-Si",$Q45="a-Si (single)",$Q45="a-Si (tandem)",$Q45="a-Si (triple)"),3,2)))) -> 1 | AG45: =IF($O45="Sunpower Corp.",3,(IF(OR($Q45="mono",$Q45="poly",$Q45="HIT",$Q45="EFG",$Q45="mono-LGBC"),1,2))) -> 1 | AH45: =IF($O45="Sunpower Corp.",3,(IF(OR($Q45="mono",$Q45="poly",$Q45="HIT",$Q45="EFG",$Q45="mono-LGBC"),1,IF(OR($Q45="µc-Si / a-Si",$Q45="a-Si (single)",$Q45="a-Si (tandem)",$Q45="a-Si (triple)"),3,2)))) -> 1 | AI45: 0 | AL45: 26507 | AO45: 43
A46: a2peak power Co., Ltd PEAK ON P3-275-72 (265) | B46: a2peak power Co., Ltd | C46: PEAK ON P3-275-72 (265) | D46: 265 | E46: +3...-3 | F46: 35.29 | G46: 7.58 | H46: 43.61 | I46: 8.19 | J46: -148.274 | K46: 4.4226 | L46: -0.42 | M46: 1000 | N46: Taiwan (Formosa) | P46: 13.62430954 | Q46: poly | R46: 72 | S46: square | T46: 1947 | U46: 999 | V46: 40 | W46: aluminum | X46: junction box MC | Y46: 23 | Z46: www.a2peak.com.tw | AA46: - | AB46: - | AC46: - | AD46: - | AE46: - | AF46: =IF($O46="Sunpower Corp.",3,(IF(OR($Q46="mono",$Q46="poly",$Q46="HIT",$Q46="EFG",$Q46="mono-LGBC"),1,IF(OR($Q46="µc-Si / a-Si",$Q46="a-Si (single)",$Q46="a-Si (tandem)",$Q46="a-Si (triple)"),3,2)))) -> 1 | AG46: =IF($O46="Sunpower Corp.",3,(IF(OR($Q46="mono",$Q46="poly",$Q46="HIT",$Q46="EFG",$Q46="mono-LGBC"),1,2))) -> 1 | AH46: =IF($O46="Sunpower Corp.",3,(IF(OR($Q46="mono",$Q46="poly",$Q46="HIT",$Q46="EFG",$Q46="mono-LGBC"),1,IF(OR($Q46="µc-Si / a-Si",$Q46="a-Si (single)",$Q46="a-Si (tandem)",$Q46="a-Si (triple)"),3,2)))) -> 1 | AI46: 0 | AL46: 26508 | AO46: 44
A47: a2peak power Co., Ltd PEAK ON P3-275-72 (270) | B47: a2peak power Co., Ltd | C47: PEAK ON P3-275-72 (270) | D47: 270 | E47: +3...-3 | F47: 35.44 | G47: 7.69 | H47: 43.72 | I47: 8.31 | J47: -148.648 | K47: 4.4874 | L47: -0.42 | M47: 1000 | N47: Taiwan (Formosa) | P47: 13.88136959 | Q47: poly | R47: 72 | S47: square | T47: 1947 | U47: 999 | V47: 40 | W47: aluminum | X47: junction box MC | Y47: 23 | Z47: www.a2peak.com.tw | AA47: - | AB47: - | AC47: - | AD47: - | AE47: - | AF47: =IF($O47="Sunpower Corp.",3,(IF(OR($Q47="mono",$Q47="poly",$Q47="HIT",$Q47="EFG",$Q47="mono-LGBC"),1,IF(OR($Q47="µc-Si / a-Si",$Q47="a-Si (single)",$Q47="a-Si (tandem)",$Q47="a-Si (triple)"),3,2)))) -> 1 | AG47: =IF($O47="Sunpower Corp.",3,(IF(OR($Q47="mono",$Q47="poly",$Q47="HIT",$Q47="EFG",$Q47="mono-LGBC"),1,2))) -> 1 | AH47: =IF($O47="Sunpower Corp.",3,(IF(OR($Q47="mono",$Q47="poly",$Q47="HIT",$Q47="EFG",$Q47="mono-LGBC"),1,IF(OR($Q47="µc-Si / a-Si",$Q47="a-Si (single)",$Q47="a-Si (tandem)",$Q47="a-Si (triple)"),3,2)))) -> 1 | AI47: 0 | AL47: 26509 | AO47: 45
A48: a2peak power Co., Ltd PEAK ON P3-275-72 (275) | B48: a2peak power Co., Ltd | C48: PEAK ON P3-275-72 (275) | D48: 275 | E48: +3...-3 | F48: 35.58 | G48: 7.8 | H48: 43.97 | I48: 8.39 | J48: -149.498 | K48: 4.5306 | L48: -0.42 | M48: 1000 | N48: Taiwan (Formosa) | P48: 14.13842964 | Q48: poly | R48: 72 | S48: square | T48: 1947 | U48: 999 | V48: 40 | W48: aluminum | X48: junction box MC | Y48: 23 | Z48: www.a2peak.com.tw | AA48: - | AB48: - | AC48: - | AD48: - | AE48: - | AF48: =IF($O48="Sunpower Corp.",3,(IF(OR($Q48="mono",$Q48="poly",$Q48="HIT",$Q48="EFG",$Q48="mono-LGBC"),1,IF(OR($Q48="µc-Si / a-Si",$Q48="a-Si (single)",$Q48="a-Si (tandem)",$Q48="a-Si (triple)"),3,2)))) -> 1 | AG48: =IF($O48="Sunpower Corp.",3,(IF(OR($Q48="mono",$Q48="poly",$Q48="HIT",$Q48="EFG",$Q48="mono-LGBC"),1,2))) -> 1 | AH48: =IF($O48="Sunpower Corp.",3,(IF(OR($Q48="mono",$Q48="poly",$Q48="HIT",$Q48="EFG",$Q48="mono-LGBC"),1,IF(OR($Q48="µc-Si / a-Si",$Q48="a-Si (single)",$Q48="a-Si (tandem)",$Q48="a-Si (triple)"),3,2)))) -> 1 | AI48: 0 | AL48: 26510 | AO48: 46
A49: a2peak power Co., Ltd PEAK ON P3-275-72 (280) | B49: a2peak power Co., Ltd | C49: PEAK ON P3-275-72 (280) | D49: 280 | E49: +3...-3 | F49: 35.9 | G49: 7.87 | H49: 44.04 | I49: 8.48 | J49: -149.736 | K49: 4.5792 | L49: -0.42 | M49: 1000 | N49: Taiwan (Formosa) | P49: 14.39548969 | Q49: poly | R49: 72 | S49: square | T49: 1947 | U49: 999 | V49: 40 | W49: aluminum | X49: junction box MC | Y49: 23 | Z49: www.a2peak.com.tw | AA49: - | AB49: - | AC49: - | AD49: - | AE49: - | AF49: =IF($O49="Sunpower Corp.",3,(IF(OR($Q49="mono",$Q49="poly",$Q49="HIT",$Q49="EFG",$Q49="mono-LGBC"),1,IF(OR($Q49="µc-Si / a-Si",$Q49="a-Si (single)",$Q49="a-Si (tandem)",$Q49="a-Si (triple)"),3,2)))) -> 1 | AG49: =IF($O49="Sunpower Corp.",3,(IF(OR($Q49="mono",$Q49="poly",$Q49="HIT",$Q49="EFG",$Q49="mono-LGBC"),1,2))) -> 1 | AH49: =IF($O49="Sunpower Corp.",3,(IF(OR($Q49="mono",$Q49="poly",$Q49="HIT",$Q49="EFG",$Q49="mono-LGBC"),1,IF(OR($Q49="µc-Si / a-Si",$Q49="a-Si (single)",$Q49="a-Si (tandem)",$Q49="a-Si (triple)"),3,2)))) -> 1 | AI49: 0 | AL49: 26511 | AO49: 47
A50: a2peak power Co., Ltd PEAK ON P3-275-72 (285) | B50: a2peak power Co., Ltd | C50: PEAK ON P3-275-72 (285) | D50: 285 | E50: +3...-3 | F50: 36.35 | G50: 7.91 | H50: 44.17 | I50: 8.59 | J50: -150.178 | K50: 4.6386 | L50: -0.42 | M50: 1000 | N50: Taiwan (Formosa) | P50: 14.65256023 | Q50: poly | R50: 72 | S50: square | T50: 1947 | U50: 999 | V50: 40 | W50: aluminum | X50: junction box MC | Y50: 23 | Z50: www.a2peak.com.tw | AA50: - | AB50: - | AC50: - | AD50: - | AE50: - | AF50: =IF($O50="Sunpower Corp.",3,(IF(OR($Q50="mono",$Q50="poly",$Q50="HIT",$Q50="EFG",$Q50="mono-LGBC"),1,IF(OR($Q50="µc-Si / a-Si",$Q50="a-Si (single)",$Q50="a-Si (tandem)",$Q50="a-Si (triple)"),3,2)))) -> 1 | AG50: =IF($O50="Sunpower Corp.",3,(IF(OR($Q50="mono",$Q50="poly",$Q50="HIT",$Q50="EFG",$Q50="mono-LGBC"),1,2))) -> 1 | AH50: =IF($O50="Sunpower Corp.",3,(IF(OR($Q50="mono",$Q50="poly",$Q50="HIT",$Q50="EFG",$Q50="mono-LGBC"),1,IF(OR($Q50="µc-Si / a-Si",$Q50="a-Si (single)",$Q50="a-Si (tandem)",$Q50="a-Si (triple)"),3,2)))) -> 1 | AI50: 0 | AL50: 26512 | AO50: 48
A51: a2peak power Co., Ltd PEAK ON P3-275-72 (290) | B51: a2peak power Co., Ltd | C51: PEAK ON P3-275-72 (290) | D51: 290 | E51: +3...-3 | F51: 36.66 | G51: 7.98 | H51: 44.1 | I51: 8.74 | J51: -149.94 | K51: 4.7196 | L51: -0.42 | M51: 1000 | N51: Taiwan (Formosa) | P51: 14.90962029 | Q51: poly | R51: 72 | S51: square | T51: 1947 | U51: 999 | V51: 40 | W51: aluminum | X51: junction box MC | Y51: 23 | Z51: www.a2peak.com.tw | AA51: - | AB51: - | AC51: - | AD51: - | AE51: - | AF51: =IF($O51="Sunpower Corp.",3,(IF(OR($Q51="mono",$Q51="poly",$Q51="HIT",$Q51="EFG",$Q51="mono-LGBC"),1,IF(OR($Q51="µc-Si / a-Si",$Q51="a-Si (single)",$Q51="a-Si (tandem)",$Q51="a-Si (triple)"),3,2)))) -> 1 | AG51: =IF($O51="Sunpower Corp.",3,(IF(OR($Q51="mono",$Q51="poly",$Q51="HIT",$Q51="EFG",$Q51="mono-LGBC"),1,2))) -> 1 | AH51: =IF($O51="Sunpower Corp.",3,(IF(OR($Q51="mono",$Q51="poly",$Q51="HIT",$Q51="EFG",$Q51="mono-LGBC"),1,IF(OR($Q51="µc-Si / a-Si",$Q51="a-Si (single)",$Q51="a-Si (tandem)",$Q51="a-Si (triple)"),3,2)))) -> 1 | AI51: 0 | AL51: 26513 | AO51: 49
A52: Aavid Thermalloy ASMC-150M | B52: Aavid Thermalloy | C52: ASMC-150M | D52: 150 | E52: +5...-5 | F52: 33.2 | G52: 4.5 | H52: 43.5 | I52: 5.1 | J52: -160.95 | K52: 5.1 | L52: -0.45 | M52: 1000 | P52: 11.74958992 | Q52: mono | R52: 72 | S52: pseudo-square | T52: 1580 | U52: 808 | V52: 45 | W52: aluminum | X52: junction box | Y52: 15.5 | Z52: www.aavid.com/solar | AA52: - | AB52: - | AC52: - | AD52: - | AE52: - | AF52: =IF($O52="Sunpower Corp.",3,(IF(OR($Q52="mono",$Q52="poly",$Q52="HIT",$Q52="EFG",$Q52="mono-LGBC"),1,IF(OR($Q52="µc-Si / a-Si",$Q52="a-Si (single)",$Q52="a-Si (tandem)",$Q52="a-Si (triple)"),3,2)))) -> 1 | AG52: =IF($O52="Sunpower Corp.",3,(IF(OR($Q52="mono",$Q52="poly",$Q52="HIT",$Q52="EFG",$Q52="mono-LGBC"),1,2))) -> 1 | AH52: =IF($O52="Sunpower Corp.",3,(IF(OR($Q52="mono",$Q52="poly",$Q52="HIT",$Q52="EFG",$Q52="mono-LGBC"),1,IF(OR($Q52="µc-Si / a-Si",$Q52="a-Si (single)",$Q52="a-Si (tandem)",$Q52="a-Si (triple)"),3,2)))) -> 1 | AI52: 0 | AL52: 9758 | AO52: 50
A53: Aavid Thermalloy ASMC-175M | B53: Aavid Thermalloy | C53: ASMC-175M | D53: 175 | E53: +5...-5 | F53: 34.8 | G53: 5 | H53: 44.6 | I53: 5.5 | J53: -165.02 | K53: 5.5 | L53: -0.45 | M53: 1000 | P53: 13.70785999 | Q53: mono | R53: 72 | S53: pseudo-square | T53: 1580 | U53: 808 | V53: 45 | W53: aluminum | X53: junction box | Y53: 15.5 | Z53: www.aavid.com/solar | AA53: - | AB53: - | AC53: - | AD53: - | AE53: - | AF53: =IF($O53="Sunpower Corp.",3,(IF(OR($Q53="mono",$Q53="poly",$Q53="HIT",$Q53="EFG",$Q53="mono-LGBC"),1,IF(OR($Q53="µc-Si / a-Si",$Q53="a-Si (single)",$Q53="a-Si (tandem)",$Q53="a-Si (triple)"),3,2)))) -> 1 | AG53: =IF($O53="Sunpower Corp.",3,(IF(OR($Q53="mono",$Q53="poly",$Q53="HIT",$Q53="EFG",$Q53="mono-LGBC"),1,2))) -> 1 | AH53: =IF($O53="Sunpower Corp.",3,(IF(OR($Q53="mono",$Q53="poly",$Q53="HIT",$Q53="EFG",$Q53="mono-LGBC"),1,IF(OR($Q53="µc-Si / a-Si",$Q53="a-Si (single)",$Q53="a-Si (tandem)",$Q53="a-Si (triple)"),3,2)))) -> 1 | AI53: 0 | AL53: 9759 | AO53: 51
A54: Aavid Thermalloy ASMC-180M | B54: Aavid Thermalloy | C54: ASMC-180M | D54: 180 | E54: +5...-5 | F54: 35.1 | G54: 5.1 | H54: 44.8 | I54: 5.5 | J54: -165.76 | K54: 5.5 | L54: -0.45 | M54: 1000 | P54: 14.09951019 | Q54: mono | R54: 72 | S54: pseudo-square | T54: 1580 | U54: 808 | V54: 45 | W54: aluminum | X54: junction box | Y54: 15.5 | Z54: www.aavid.com/solar | AA54: - | AB54: - | AC54: - | AD54: - | AE54: - | AF54: =IF($O54="Sunpower Corp.",3,(IF(OR($Q54="mono",$Q54="poly",$Q54="HIT",$Q54="EFG",$Q54="mono-LGBC"),1,IF(OR($Q54="µc-Si / a-Si",$Q54="a-Si (single)",$Q54="a-Si (tandem)",$Q54="a-Si (triple)"),3,2)))) -> 1 | AG54: =IF($O54="Sunpower Corp.",3,(IF(OR($Q54="mono",$Q54="poly",$Q54="HIT",$Q54="EFG",$Q54="mono-LGBC"),1,2))) -> 1 | AH54: =IF($O54="Sunpower Corp.",3,(IF(OR($Q54="mono",$Q54="poly",$Q54="HIT",$Q54="EFG",$Q54="mono-LGBC"),1,IF(OR($Q54="µc-Si / a-Si",$Q54="a-Si (single)",$Q54="a-Si (tandem)",$Q54="a-Si (triple)"),3,2)))) -> 1 | AI54: 0 | AL54: 9760 | AO54: 52
A55: Aavid Thermalloy ASMC-190M | B55: Aavid Thermalloy | C55: ASMC-190M | D55: 190 | E55: +5...-5 | F55: 35.8 | G55: 5.3 | H55: 45.2 | I55: 5.7 | J55: -167.24 | K55: 5.7 | L55: -0.45 | M55: 1000 | P55: 14.88282013 | Q55: mono | R55: 72 | S55: pseudo-square | T55: 1580 | U55: 808 | V55: 45 | W55: aluminum | X55: junction box | Y55: 15.5 | Z55: www.aavid.com/solar | AA55: - | AB55: - | AC55: - | AD55: - | AE55: - | AF55: =IF($O55="Sunpower Corp.",3,(IF(OR($Q55="mono",$Q55="poly",$Q55="HIT",$Q55="EFG",$Q55="mono-LGBC"),1,IF(OR($Q55="µc-Si / a-Si",$Q55="a-Si (single)",$Q55="a-Si (tandem)",$Q55="a-Si (triple)"),3,2)))) -> 1 | AG55: =IF($O55="Sunpower Corp.",3,(IF(OR($Q55="mono",$Q55="poly",$Q55="HIT",$Q55="EFG",$Q55="mono-LGBC"),1,2))) -> 1 | AH55: =IF($O55="Sunpower Corp.",3,(IF(OR($Q55="mono",$Q55="poly",$Q55="HIT",$Q55="EFG",$Q55="mono-LGBC"),1,IF(OR($Q55="µc-Si / a-Si",$Q55="a-Si (single)",$Q55="a-Si (tandem)",$Q55="a-Si (triple)"),3,2)))) -> 1 | AI55: 0 | AL55: 9761 | AO55: 53
A56: Aavid Thermalloy ASMS-180C | B56: Aavid Thermalloy | C56: ASMS-180C | D56: 180 | E56: +5...-5 | F56: 36 | G56: 5 | H56: 44 | I56: 5.6 | J56: -145.2 | K56: 4.48 | L56: -0.47 | M56: 1000 | P56: 13.83603954 | Q56: mono | R56: 60 | S56: pseudo-square | T56: 1575 | U56: 826 | V56: 46 | W56: aluminum | X56: junction box | Y56: 16.3 | Z56: www.aavidsolar.com | AA56: - | AB56: - | AC56: - | AD56: - | AE56: - | AF56: =IF($O56="Sunpower Corp.",3,(IF(OR($Q56="mono",$Q56="poly",$Q56="HIT",$Q56="EFG",$Q56="mono-LGBC"),1,IF(OR($Q56="µc-Si / a-Si",$Q56="a-Si (single)",$Q56="a-Si (tandem)",$Q56="a-Si (triple)"),3,2)))) -> 1 | AG56: =IF($O56="Sunpower Corp.",3,(IF(OR($Q56="mono",$Q56="poly",$Q56="HIT",$Q56="EFG",$Q56="mono-LGBC"),1,2))) -> 1 | AH56: =IF($O56="Sunpower Corp.",3,(IF(OR($Q56="mono",$Q56="poly",$Q56="HIT",$Q56="EFG",$Q56="mono-LGBC"),1,IF(OR($Q56="µc-Si / a-Si",$Q56="a-Si (single)",$Q56="a-Si (tandem)",$Q56="a-Si (triple)"),3,2)))) -> 1 | AI56: 0 | AL56: 16542 | AO56: 54
A57: abakus Solar AG P220-60 (210W) | B57: abakus Solar AG | C57: P220-60 (210W) | D57: 210 | E57: +3...-3 | F57: 29.11 | G57: 7.31 | H57: 36.74 | I57: 8.09 | J57: -124.916 | K57: 4.3686 | L57: -0.42 | M57: 1000 | N57: Taiwan (Formosa) | P57: 12.59747982 | Q57: poly | R57: 60 | S57: square | T57: 1667 | U57: 1000 | V57: 40 | W57: aluminum | X57: junction box MC4 | Y57: 23 | Z57: www.abakus-solar.de | AA57: - | AB57: - | AC57: - | AD57: - | AE57: - | AF57: =IF($O57="Sunpower Corp.",3,(IF(OR($Q57="mono",$Q57="poly",$Q57="HIT",$Q57="EFG",$Q57="mono-LGBC"),1,IF(OR($Q57="µc-Si / a-Si",$Q57="a-Si (single)",$Q57="a-Si (tandem)",$Q57="a-Si (triple)"),3,2)))) -> 1 | AG57: =IF($O57="Sunpower Corp.",3,(IF(OR($Q57="mono",$Q57="poly",$Q57="HIT",$Q57="EFG",$Q57="mono-LGBC"),1,2))) -> 1 | AH57: =IF($O57="Sunpower Corp.",3,(IF(OR($Q57="mono",$Q57="poly",$Q57="HIT",$Q57="EFG",$Q57="mono-LGBC"),1,IF(OR($Q57="µc-Si / a-Si",$Q57="a-Si (single)",$Q57="a-Si (tandem)",$Q57="a-Si (triple)"),3,2)))) -> 1 | AI57: 0 | AL57: 22433 | AO57: 55
A58: abakus Solar AG P220-60 (215W) | B58: abakus Solar AG | C58: P220-60 (215W) | D58: 215 | E58: +3...-3 | F58: 29.17 | G58: 7.46 | H58: 36.76 | I58: 8.17 | J58: -124.984 | K58: 4.4118 | L58: -0.42 | M58: 1000 | N58: Taiwan (Formosa) | P58: 12.89741993 | Q58: poly | R58: 60 | S58: square | T58: 1667 | U58: 1000 | V58: 40 | W58: aluminum | X58: junction box MC4 | Y58: 23 | Z58: www.abakus-solar.de | AA58: - | AB58: - | AC58: - | AD58: - | AE58: - | AF58: =IF($O58="Sunpower Corp.",3,(IF(OR($Q58="mono",$Q58="poly",$Q58="HIT",$Q58="EFG",$Q58="mono-LGBC"),1,IF(OR($Q58="µc-Si / a-Si",$Q58="a-Si (single)",$Q58="a-Si (tandem)",$Q58="a-Si (triple)"),3,2)))) -> 1 | AG58: =IF($O58="Sunpower Corp.",3,(IF(OR($Q58="mono",$Q58="poly",$Q58="HIT",$Q58="EFG",$Q58="mono-LGBC"),1,2))) -> 1 | AH58: =IF($O58="Sunpower Corp.",3,(IF(OR($Q58="mono",$Q58="poly",$Q58="HIT",$Q58="EFG",$Q58="mono-LGBC"),1,IF(OR($Q58="µc-Si / a-Si",$Q58="a-Si (single)",$Q58="a-Si (tandem)",$Q58="a-Si (triple)"),3,2)))) -> 1 | AI58: 0 | AL58: 22434 | AO58: 56
A59: abakus Solar AG P220-60 (220W) | B59: abakus Solar AG | C59: P220-60 (220W) | D59: 220 | E59: +3...-3 | F59: 29.24 | G59: 7.61 | H59: 36.77 | I59: 8.22 | J59: -125.018 | K59: 4.4388 | L59: -0.42 | M59: 1000 | N59: Taiwan (Formosa) | P59: 13.19736004 | Q59: poly | R59: 60 | S59: square | T59: 1667 | U59: 1000 | V59: 40 | W59: aluminum | X59: junction box MC4 | Y59: 23 | Z59: www.abakus-solar.de | AA59: - | AB59: - | AC59: - | AD59: - | AE59: - | AF59: =IF($O59="Sunpower Corp.",3,(IF(OR($Q59="mono",$Q59="poly",$Q59="HIT",$Q59="EFG",$Q59="mono-LGBC"),1,IF(OR($Q59="µc-Si / a-Si",$Q59="a-Si (single)",$Q59="a-Si (tandem)",$Q59="a-Si (triple)"),3,2)))) -> 1 | AG59: =IF($O59="Sunpower Corp.",3,(IF(OR($Q59="mono",$Q59="poly",$Q59="HIT",$Q59="EFG",$Q59="mono-LGBC"),1,2))) -> 1 | AH59: =IF($O59="Sunpower Corp.",3,(IF(OR($Q59="mono",$Q59="poly",$Q59="HIT",$Q59="EFG",$Q59="mono-LGBC"),1,IF(OR($Q59="µc-Si / a-Si",$Q59="a-Si (single)",$Q59="a-Si (tandem)",$Q59="a-Si (triple)"),3,2)))) -> 1 | AI59: 0 | AL59: 22435 | AO59: 57
A60: abakus Solar AG P220-60 (225W) | B60: abakus Solar AG | C60: P220-60 (225W) | D60: 225 | E60: +3...-3 | F60: 29.38 | G60: 7.75 | H60: 36.79 | I60: 8.34 | J60: -125.086 | K60: 4.5036 | L60: -0.42 | M60: 1000 | N60: Taiwan (Formosa) | P60: 13.49730015 | Q60: poly | R60: 60 | S60: square | T60: 1667 | U60: 1000 | V60: 40 | W60: aluminum | X60: junction box MC4 | Y60: 23 | Z60: www.abakus-solar.de | AA60: - | AB60: - | AC60: - | AD60: - | AE60: - | AF60: =IF($O60="Sunpower Corp.",3,(IF(OR($Q60="mono",$Q60="poly",$Q60="HIT",$Q60="EFG",$Q60="mono-LGBC"),1,IF(OR($Q60="µc-Si / a-Si",$Q60="a-Si (single)",$Q60="a-Si (tandem)",$Q60="a-Si (triple)"),3,2)))) -> 1 | AG60: =IF($O60="Sunpower Corp.",3,(IF(OR($Q60="mono",$Q60="poly",$Q60="HIT",$Q60="EFG",$Q60="mono-LGBC"),1,2))) -> 1 | AH60: =IF($O60="Sunpower Corp.",3,(IF(OR($Q60="mono",$Q60="poly",$Q60="HIT",$Q60="EFG",$Q60="mono-LGBC"),1,IF(OR($Q60="µc-Si / a-Si",$Q60="a-Si (single)",$Q60="a-Si (tandem)",$Q60="a-Si (triple)"),3,2)))) -> 1 | AI60: 0 | AL60: 22436 | AO60: 58
A61: abakus Solar AG P220-60 (230W) | B61: abakus Solar AG | C61: P220-60 (230W) | D61: 230 | E61: +3...-3 | F61: 29.61 | G61: 7.86 | H61: 36.97 | I61: 8.37 | J61: -125.698 | K61: 4.5198 | L61: -0.42 | M61: 1000 | N61: Taiwan (Formosa) | P61: 13.79724026 | Q61: poly | R61: 60 | S61: square | T61: 1667 | U61: 1000 | V61: 40 | W61: aluminum | X61: junction box MC4 | Y61: 23 | Z61: www.abakus-solar.de | AA61: - | AB61: - | AC61: - | AD61: - | AE61: - | AF61: =IF($O61="Sunpower Corp.",3,(IF(OR($Q61="mono",$Q61="poly",$Q61="HIT",$Q61="EFG",$Q61="mono-LGBC"),1,IF(OR($Q61="µc-Si / a-Si",$Q61="a-Si (single)",$Q61="a-Si (tandem)",$Q61="a-Si (triple)"),3,2)))) -> 1 | AG61: =IF($O61="Sunpower Corp.",3,(IF(OR($Q61="mono",$Q61="poly",$Q61="HIT",$Q61="EFG",$Q61="mono-LGBC"),1,2))) -> 1 | AH61: =IF($O61="Sunpower Corp.",3,(IF(OR($Q61="mono",$Q61="poly",$Q61="HIT",$Q61="EFG",$Q61="mono-LGBC"),1,IF(OR($Q61="µc-Si / a-Si",$Q61="a-Si (single)",$Q61="a-Si (tandem)",$Q61="a-Si (triple)"),3,2)))) -> 1 | AI61: 0 | AL61: 22437 | AO61: 59
A62: abakus Solar AG P220-60 (235W) | B62: abakus Solar AG | C62: P220-60 (235W) | D62: 235 | E62: +3...-3 | F62: 29.92 | G62: 7.94 | H62: 37.2 | I62: 8.39 | J62: -126.48 | K62: 4.5306 | L62: -0.42 | M62: 1000 | N62: Taiwan (Formosa) | P62: 14.09718037 | Q62: poly | R62: 60 | S62: square | T62: 1667 | U62: 1000 | V62: 40 | W62: aluminum | X62: junction box MC4 | Y62: 23 | Z62: www.abakus-solar.de | AA62: - | AB62: - | AC62: - | AD62: - | AE62: - | AF62: =IF($O62="Sunpower Corp.",3,(IF(OR($Q62="mono",$Q62="poly",$Q62="HIT",$Q62="EFG",$Q62="mono-LGBC"),1,IF(OR($Q62="µc-Si / a-Si",$Q62="a-Si (single)",$Q62="a-Si (tandem)",$Q62="a-Si (triple)"),3,2)))) -> 1 | AG62: =IF($O62="Sunpower Corp.",3,(IF(OR($Q62="mono",$Q62="poly",$Q62="HIT",$Q62="EFG",$Q62="mono-LGBC"),1,2))) -> 1 | AH62: =IF($O62="Sunpower Corp.",3,(IF(OR($Q62="mono",$Q62="poly",$Q62="HIT",$Q62="EFG",$Q62="mono-LGBC"),1,IF(OR($Q62="µc-Si / a-Si",$Q62="a-Si (single)",$Q62="a-Si (tandem)",$Q62="a-Si (triple)"),3,2)))) -> 1 | AI62: 0 | AL62: 22438 | AO62: 60
A63: abakus Solar AG P220-60 (240W) | B63: abakus Solar AG | C63: P220-60 (240W) | D63: 240 | E63: +3...-3 | F63: 30.21 | G63: 8.03 | H63: 37.42 | I63: 8.41 | J63: -127.228 | K63: 4.5414 | L63: -0.42 | M63: 1000 | N63: Taiwan (Formosa) | P63: 14.39712048 | Q63: poly | R63: 60 | S63: square | T63: 1667 | U63: 1000 | V63: 40 | W63: aluminum | X63: junction box MC4 | Y63: 23 | Z63: www.abakus-solar.de | AA63: - | AB63: - | AC63: - | AD63: - | AE63: - | AF63: =IF($O63="Sunpower Corp.",3,(IF(OR($Q63="mono",$Q63="poly",$Q63="HIT",$Q63="EFG",$Q63="mono-LGBC"),1,IF(OR($Q63="µc-Si / a-Si",$Q63="a-Si (single)",$Q63="a-Si (tandem)",$Q63="a-Si (triple)"),3,2)))) -> 1 | AG63: =IF($O63="Sunpower Corp.",3,(IF(OR($Q63="mono",$Q63="poly",$Q63="HIT",$Q63="EFG",$Q63="mono-LGBC"),1,2))) -> 1 | AH63: =IF($O63="Sunpower Corp.",3,(IF(OR($Q63="mono",$Q63="poly",$Q63="HIT",$Q63="EFG",$Q63="mono-LGBC"),1,IF(OR($Q63="µc-Si / a-Si",$Q63="a-Si (single)",$Q63="a-Si (tandem)",$Q63="a-Si (triple)"),3,2)))) -> 1 | AI63: 0 | AL63: 22439 | AO63: 61
A64: abakus Solar AG Peak On M240-60 Black (230W) | B64: abakus Solar AG | C64: Peak On M240-60 Black (230W) | D64: 230 | E64: +2,17...0 | F64: 29.39 | G64: 7.92 | H64: 36.54 | I64: 8.58 | J64: -124.236 | K64: 4.6332 | L64: -0.42 | M64: 1000 | N64: Taiwan (Formosa) | P64: 14.11042976 | Q64: mono | R64: 60 | S64: pseudo-square | T64: 1630 | U64: 1000 | V64: 40 | W64: aluminum | X64: junction box | Y64: 19.6 | AA64: - | AB64: - | AC64: - | AD64: - | AE64: - | AF64: =IF($O64="Sunpower Corp.",3,(IF(OR($Q64="mono",$Q64="poly",$Q64="HIT",$Q64="EFG",$Q64="mono-LGBC"),1,IF(OR($Q64="µc-Si / a-Si",$Q64="a-Si (single)",$Q64="a-Si (tandem)",$Q64="a-Si (triple)"),3,2)))) -> 1 | AG64: =IF($O64="Sunpower Corp.",3,(IF(OR($Q64="mono",$Q64="poly",$Q64="HIT",$Q64="EFG",$Q64="mono-LGBC"),1,2))) -> 1 | AH64: =IF($O64="Sunpower Corp.",3,(IF(OR($Q64="mono",$Q64="poly",$Q64="HIT",$Q64="EFG",$Q64="mono-LGBC"),1,IF(OR($Q64="µc-Si / a-Si",$Q64="a-Si (single)",$Q64="a-Si (tandem)",$Q64="a-Si (triple)"),3,2)))) -> 1 | AI64: 0 | AL64: 31432 | AO64: 62
A65: abakus Solar AG Peak On M240-60 Black (235W) | B65: abakus Solar AG | C65: Peak On M240-60 Black (235W) | D65: 235 | E65: +2,13...0 | F65: 29.61 | G65: 8.02 | H65: 36.9 | I65: 8.66 | J65: -125.46 | K65: 4.6764 | L65: -0.42 | M65: 1000 | N65: Taiwan (Formosa) | P65: 14.41718006 | Q65: mono | R65: 60 | S65: pseudo-square | T65: 1630 | U65: 1000 | V65: 40 | W65: aluminum | X65: junction box | Y65: 19.6 | AA65: - | AB65: - | AC65: - | AD65: - | AE65: - | AF65: =IF($O65="Sunpower Corp.",3,(IF(OR($Q65="mono",$Q65="poly",$Q65="HIT",$Q65="EFG",$Q65="mono-LGBC"),1,IF(OR($Q65="µc-Si / a-Si",$Q65="a-Si (single)",$Q65="a-Si (tandem)",$Q65="a-Si (triple)"),3,2)))) -> 1 | AG65: =IF($O65="Sunpower Corp.",3,(IF(OR($Q65="mono",$Q65="poly",$Q65="HIT",$Q65="EFG",$Q65="mono-LGBC"),1,2))) -> 1 | AH65: =IF($O65="Sunpower Corp.",3,(IF(OR($Q65="mono",$Q65="poly",$Q65="HIT",$Q65="EFG",$Q65="mono-LGBC"),1,IF(OR($Q65="µc-Si / a-Si",$Q65="a-Si (single)",$Q65="a-Si (tandem)",$Q65="a-Si (triple)"),3,2)))) -> 1 | AI65: 0 | AL65: 31433 | AO65: 63
A66: abakus Solar AG Peak On M240-60 Black (240W) | B66: abakus Solar AG | C66: Peak On M240-60 Black (240W) | D66: 240 | E66: +2,08...0 | F66: 29.92 | G66: 8.11 | H66: 37.26 | I66: 8.74 | J66: -126.684 | K66: 4.7196 | L66: -0.42 | M66: 1000 | N66: Taiwan (Formosa) | P66: 14.72393036 | Q66: mono | R66: 60 | S66: pseudo-square | T66: 1630 | U66: 1000 | V66: 40 | W66: aluminum | X66: junction box | Y66: 19.6 | AA66: - | AB66: - | AC66: - | AD66: - | AE66: - | AF66: =IF($O66="Sunpower Corp.",3,(IF(OR($Q66="mono",$Q66="poly",$Q66="HIT",$Q66="EFG",$Q66="mono-LGBC"),1,IF(OR($Q66="µc-Si / a-Si",$Q66="a-Si (single)",$Q66="a-Si (tandem)",$Q66="a-Si (triple)"),3,2)))) -> 1 | AG66: =IF($O66="Sunpower Corp.",3,(IF(OR($Q66="mono",$Q66="poly",$Q66="HIT",$Q66="EFG",$Q66="mono-LGBC"),1,2))) -> 1 | AH66: =IF($O66="Sunpower Corp.",3,(IF(OR($Q66="mono",$Q66="poly",$Q66="HIT",$Q66="EFG",$Q66="mono-LGBC"),1,IF(OR($Q66="µc-Si / a-Si",$Q66="a-Si (single)",$Q66="a-Si (tandem)",$Q66="a-Si (triple)"),3,2)))) -> 1 | AI66: 0 | AL66: 31429 | AO66: 64
A67: abakus Solar AG Peak On M240-60 Black (245W) | B67: abakus Solar AG | C67: Peak On M240-60 Black (245W) | D67: 245 | E67: +2,04...0 | F67: 30.25 | G67: 8.18 | H67: 37.39 | I67: 8.81 | J67: -127.126 | K67: 4.7574 | L67: -0.42 | M67: 1000 | N67: Taiwan (Formosa) | P67: 15.03067017 | Q67: mono | R67: 60 | S67: pseudo-square | T67: 1630 | U67: 1000 | V67: 40 | W67: aluminum | X67: junction box | Y67: 19.6 | AA67: - | AB67: - | AC67: - | AD67: - | AE67: - | AF67: =IF($O67="Sunpower Corp.",3,(IF(OR($Q67="mono",$Q67="poly",$Q67="HIT",$Q67="EFG",$Q67="mono-LGBC"),1,IF(OR($Q67="µc-Si / a-Si",$Q67="a-Si (single)",$Q67="a-Si (tandem)",$Q67="a-Si (triple)"),3,2)))) -> 1 | AG67: =IF($O67="Sunpower Corp.",3,(IF(OR($Q67="mono",$Q67="poly",$Q67="HIT",$Q67="EFG",$Q67="mono-LGBC"),1,2))) -> 1 | AH67: =IF($O67="Sunpower Corp.",3,(IF(OR($Q67="mono",$Q67="poly",$Q67="HIT",$Q67="EFG",$Q67="mono-LGBC"),1,IF(OR($Q67="µc-Si / a-Si",$Q67="a-Si (single)",$Q67="a-Si (tandem)",$Q67="a-Si (triple)"),3,2)))) -> 1 | AI67: 0 | AL67: 31434 | AO67: 65
A68: abakus Solar AG Peak On M240-60 Black (250W) | B68: abakus Solar AG | C68: Peak On M240-60 Black (250W) | D68: 250 | E68: +2...0 | F68: 30.75 | G68: 8.21 | H68: 37.46 | I68: 8.95 | J68: -127.364 | K68: 4.833 | L68: -0.42 | M68: 1000 | N68: Taiwan (Formosa) | P68: 15.33742046 | Q68: mono | R68: 60 | S68: pseudo-square | T68: 1630 | U68: 1000 | V68: 40 | W68: aluminum | X68: junction box | Y68: 19.6 | AA68: - | AB68: - | AC68: - | AD68: - | AE68: - | AF68: =IF($O68="Sunpower Corp.",3,(IF(OR($Q68="mono",$Q68="poly",$Q68="HIT",$Q68="EFG",$Q68="mono-LGBC"),1,IF(OR($Q68="µc-Si / a-Si",$Q68="a-Si (single)",$Q68="a-Si (tandem)",$Q68="a-Si (triple)"),3,2)))) -> 1 | AG68: =IF($O68="Sunpower Corp.",3,(IF(OR($Q68="mono",$Q68="poly",$Q68="HIT",$Q68="EFG",$Q68="mono-LGBC"),1,2))) -> 1 | AH68: =IF($O68="Sunpower Corp.",3,(IF(OR($Q68="mono",$Q68="poly",$Q68="HIT",$Q68="EFG",$Q68="mono-LGBC"),1,IF(OR($Q68="µc-Si / a-Si",$Q68="a-Si (single)",$Q68="a-Si (tandem)",$Q68="a-Si (triple)"),3,2)))) -> 1 | AI68: 0 | AL68: 31435 | AO68: 66
A69: AblyTek Co. Ltd ablytek 195W mono | B69: AblyTek Co. Ltd | C69: ablytek 195W mono | D69: 195 | E69: +3...-3 | F69: 26.1 | G69: 7.52 | H69: 31.2 | I69: 8.08 | J69: -99.84 | K69: 2.424 | L69: -0.42 | M69: 1000 | N69: Taiwan (Formosa) | P69: 14.7332201 | Q69: mono | R69: 50 | S69: pseudo-square | T69: 1620 | U69: 817 | V69: 35 | W69: aluminum | X69: junction box | Y69: 21.5 | Z69: www.ablytek.com | AA69: - | AB69: - | AC69: - | AD69: - | AE69: - | AF69: =IF($O69="Sunpower Corp.",3,(IF(OR($Q69="mono",$Q69="poly",$Q69="HIT",$Q69="EFG",$Q69="mono-LGBC"),1,IF(OR($Q69="µc-Si / a-Si",$Q69="a-Si (single)",$Q69="a-Si (tandem)",$Q69="a-Si (triple)"),3,2)))) -> 1 | AG69: =IF($O69="Sunpower Corp.",3,(IF(OR($Q69="mono",$Q69="poly",$Q69="HIT",$Q69="EFG",$Q69="mono-LGBC"),1,2))) -> 1 | AH69: =IF($O69="Sunpower Corp.",3,(IF(OR($Q69="mono",$Q69="poly",$Q69="HIT",$Q69="EFG",$Q69="mono-LGBC"),1,IF(OR($Q69="µc-Si / a-Si",$Q69="a-Si (single)",$Q69="a-Si (tandem)",$Q69="a-Si (triple)"),3,2)))) -> 1 | AI69: 0 | AL69: 30540 | AO69: 67
A70: AblyTek Co. Ltd ablytek 200W mono | B70: AblyTek Co. Ltd | C70: ablytek 200W mono | D70: 200 | E70: +3...-3 | F70: 26.2 | G70: 7.66 | H70: 31.45 | I70: 8.15 | J70: -100.64 | K70: 2.445 | L70: -0.42 | M70: 1000 | N70: Taiwan (Formosa) | P70: 15.11098957 | Q70: mono | R70: 50 | S70: pseudo-square | T70: 1620 | U70: 817 | V70: 35 | W70: aluminum | X70: junction box | Y70: 21.5 | Z70: www.ablytek.com | AA70: - | AB70: - | AC70: - | AD70: - | AE70: - | AF70: =IF($O70="Sunpower Corp.",3,(IF(OR($Q70="mono",$Q70="poly",$Q70="HIT",$Q70="EFG",$Q70="mono-LGBC"),1,IF(OR($Q70="µc-Si / a-Si",$Q70="a-Si (single)",$Q70="a-Si (tandem)",$Q70="a-Si (triple)"),3,2)))) -> 1 | AG70: =IF($O70="Sunpower Corp.",3,(IF(OR($Q70="mono",$Q70="poly",$Q70="HIT",$Q70="EFG",$Q70="mono-LGBC"),1,2))) -> 1 | AH70: =IF($O70="Sunpower Corp.",3,(IF(OR($Q70="mono",$Q70="poly",$Q70="HIT",$Q70="EFG",$Q70="mono-LGBC"),1,IF(OR($Q70="µc-Si / a-Si",$Q70="a-Si (single)",$Q70="a-Si (tandem)",$Q70="a-Si (triple)"),3,2)))) -> 1 | AI70: 0 | AL70: 30541 | AO70: 68
A71: AblyTek Co. Ltd ablytek 205W mono | B71: AblyTek Co. Ltd | C71: ablytek 205W mono | D71: 205 | E71: +3...-3 | F71: 26.3 | G71: 7.85 | H71: 31.55 | I71: 8.25 | J71: -100.96 | K71: 2.475 | L71: -0.42 | M71: 1000 | N71: Taiwan (Formosa) | P71: 15.48875999 | Q71: mono | R71: 50 | S71: pseudo-square | T71: 1620 | U71: 817 | V71: 35 | W71: aluminum | X71: junction box | Y71: 21.5 | Z71: www.ablytek.com | AA71: - | AB71: - | AC71: - | AD71: - | AE71: - | AF71: =IF($O71="Sunpower Corp.",3,(IF(OR($Q71="mono",$Q71="poly",$Q71="HIT",$Q71="EFG",$Q71="mono-LGBC"),1,IF(OR($Q71="µc-Si / a-Si",$Q71="a-Si (single)",$Q71="a-Si (tandem)",$Q71="a-Si (triple)"),3,2)))) -> 1 | AG71: =IF($O71="Sunpower Corp.",3,(IF(OR($Q71="mono",$Q71="poly",$Q71="HIT",$Q71="EFG",$Q71="mono-LGBC"),1,2))) -> 1 | AH71: =IF($O71="Sunpower Corp.",3,(IF(OR($Q71="mono",$Q71="poly",$Q71="HIT",$Q71="EFG",$Q71="mono-LGBC"),1,IF(OR($Q71="µc-Si / a-Si",$Q71="a-Si (single)",$Q71="a-Si (tandem)",$Q71="a-Si (triple)"),3,2)))) -> 1 | AI71: 0 | AL71: 30542 | AO71: 69
A72: AblyTek Co. Ltd ablytek 240W mono | B72: AblyTek Co. Ltd | C72: ablytek 240W mono | D72: 240 | E72: +3...-3 | F72: 31.4 | G72: 7.66 | H72: 37.74 | I72: 8.15 | J72: -120.768 | K72: 2.445 | L72: -0.42 | M72: 1000 | N72: Taiwan (Formosa) | P72: 15.19468021 | Q72: mono | R72: 60 | S72: pseudo-square | T72: 1620 | U72: 975 | V72: 35 | W72: aluminum | X72: junction box | Y72: 21.5 | Z72: www.ablytek.com | AA72: - | AB72: - | AC72: - | AD72: - | AE72: - | AF72: =IF($O72="Sunpower Corp.",3,(IF(OR($Q72="mono",$Q72="poly",$Q72="HIT",$Q72="EFG",$Q72="mono-LGBC"),1,IF(OR($Q72="µc-Si / a-Si",$Q72="a-Si (single)",$Q72="a-Si (tandem)",$Q72="a-Si (triple)"),3,2)))) -> 1 | AG72: =IF($O72="Sunpower Corp.",3,(IF(OR($Q72="mono",$Q72="poly",$Q72="HIT",$Q72="EFG",$Q72="mono-LGBC"),1,2))) -> 1 | AH72: =IF($O72="Sunpower Corp.",3,(IF(OR($Q72="mono",$Q72="poly",$Q72="HIT",$Q72="EFG",$Q72="mono-LGBC"),1,IF(OR($Q72="µc-Si / a-Si",$Q72="a-Si (single)",$Q72="a-Si (tandem)",$Q72="a-Si (triple)"),3,2)))) -> 1 | AI72: 0 | AL72: 28220 | AO72: 70
A73: AblyTek Co. Ltd ablytek 245W mono | B73: AblyTek Co. Ltd | C73: ablytek 245W mono | D73: 245 | E73: +3...-3 | F73: 31.5 | G73: 7.8 | H73: 37.86 | I73: 8.23 | J73: -121.152 | K73: 2.469 | L73: -0.42 | M73: 1000 | N73: Taiwan (Formosa) | P73: 15.51124001 | Q73: mono | R73: 60 | S73: pseudo-square | T73: 1620 | U73: 975 | V73: 35 | W73: aluminum | X73: junction box | Y73: 21.5 | Z73: www.ablytek.com | AA73: - | AB73: - | AC73: - | AD73: - | AE73: - | AF73: =IF($O73="Sunpower Corp.",3,(IF(OR($Q73="mono",$Q73="poly",$Q73="HIT",$Q73="EFG",$Q73="mono-LGBC"),1,IF(OR($Q73="µc-Si / a-Si",$Q73="a-Si (single)",$Q73="a-Si (tandem)",$Q73="a-Si (triple)"),3,2)))) -> 1 | AG73: =IF($O73="Sunpower Corp.",3,(IF(OR($Q73="mono",$Q73="poly",$Q73="HIT",$Q73="EFG",$Q73="mono-LGBC"),1,2))) -> 1 | AH73: =IF($O73="Sunpower Corp.",3,(IF(OR($Q73="mono",$Q73="poly",$Q73="HIT",$Q73="EFG",$Q73="mono-LGBC"),1,IF(OR($Q73="µc-Si / a-Si",$Q73="a-Si (single)",$Q73="a-Si (tandem)",$Q73="a-Si (triple)"),3,2)))) -> 1 | AI73: 0 | AL73: 28221 | AO73: 71
A74: AblyTek Co. Ltd ablytek 6PN66 125W | B74: AblyTek Co. Ltd | C74: ablytek 6PN66 125W | D74: 125 | E74: +3...0 | F74: 15.81 | G74: 7.91 | H74: 20.14 | I74: 8.48 | J74: -72.504 | K74: 4.24 | L74: -0.46 | M74: 1000 | N74: Taiwan (Formosa) | P74: 12.43937016 | Q74: poly | R74: 36 | S74: square | T74: 1014 | U74: 991 | V74: 40 | W74: aluminum | X74: junction box | Y74: 13.8 | Z74: www.ablytek.com | AA74: - | AB74: - | AC74: - | AD74: - | AE74: - | AF74: =IF($O74="Sunpower Corp.",3,(IF(OR($Q74="mono",$Q74="poly",$Q74="HIT",$Q74="EFG",$Q74="mono-LGBC"),1,IF(OR($Q74="µc-Si / a-Si",$Q74="a-Si (single)",$Q74="a-Si (tandem)",$Q74="a-Si (triple)"),3,2)))) -> 1 | AG74: =IF($O74="Sunpower Corp.",3,(IF(OR($Q74="mono",$Q74="poly",$Q74="HIT",$Q74="EFG",$Q74="mono-LGBC"),1,2))) -> 1 | AH74: =IF($O74="Sunpower Corp.",3,(IF(OR($Q74="mono",$Q74="poly",$Q74="HIT",$Q74="EFG",$Q74="mono-LGBC"),1,IF(OR($Q74="µc-Si / a-Si",$Q74="a-Si (single)",$Q74="a-Si (tandem)",$Q74="a-Si (triple)"),3,2)))) -> 1 | AI74: 0 | AL74: 28218 | AO74: 72
A75: AblyTek Co. Ltd ablytek 6PN66 135W | B75: AblyTek Co. Ltd | C75: ablytek 6PN66 135W | D75: 135 | E75: +3...0 | F75: 18.36 | G75: 7.39 | H75: 22.1 | I75: 7.89 | J75: -79.56 | K75: 3.945 | L75: -0.46 | M75: 1000 | N75: Taiwan (Formosa) | P75: 13.43451977 | Q75: poly | R75: 36 | S75: square | T75: 1014 | U75: 991 | V75: 40 | W75: aluminum | X75: junction box | Y75: 13.8 | Z75: www.ablytek.com | AA75: - | AB75: - | AC75: - | AD75: - | AE75: - | AF75: =IF($O75="Sunpower Corp.",3,(IF(OR($Q75="mono",$Q75="poly",$Q75="HIT",$Q75="EFG",$Q75="mono-LGBC"),1,IF(OR($Q75="µc-Si / a-Si",$Q75="a-Si (single)",$Q75="a-Si (tandem)",$Q75="a-Si (triple)"),3,2)))) -> 1 | AG75: =IF($O75="Sunpower Corp.",3,(IF(OR($Q75="mono",$Q75="poly",$Q75="HIT",$Q75="EFG",$Q75="mono-LGBC"),1,2))) -> 1 | AH75: =IF($O75="Sunpower Corp.",3,(IF(OR($Q75="mono",$Q75="poly",$Q75="HIT",$Q75="EFG",$Q75="mono-LGBC"),1,IF(OR($Q75="µc-Si / a-Si",$Q75="a-Si (single)",$Q75="a-Si (tandem)",$Q75="a-Si (triple)"),3,2)))) -> 1 | AI75: 0 | AL75: 30533 | AO75: 73
A76: AblyTek Co. Ltd ablytek 6PN68 175W | B76: AblyTek Co. Ltd | C76: ablytek 6PN68 175W | D76: 175 | E76: +3...0 | F76: 22.14 | G76: 7.91 | H76: 28.19 | I76: 8.48 | J76: -101.484 | K76: 4.24 | L76: -0.46 | M76: 1000 | N76: Taiwan (Formosa) | P76: 13.27738953 | Q76: poly | R76: 48 | S76: square | T76: 1330 | U76: 991 | V76: 40 | W76: aluminum | X76: junction box | Y76: 18 | Z76: www.ablytek.com | AA76: - | AB76: - | AC76: - | AD76: - | AE76: - | AF76: =IF($O76="Sunpower Corp.",3,(IF(OR($Q76="mono",$Q76="poly",$Q76="HIT",$Q76="EFG",$Q76="mono-LGBC"),1,IF(OR($Q76="µc-Si / a-Si",$Q76="a-Si (single)",$Q76="a-Si (tandem)",$Q76="a-Si (triple)"),3,2)))) -> 1 | AG76: =IF($O76="Sunpower Corp.",3,(IF(OR($Q76="mono",$Q76="poly",$Q76="HIT",$Q76="EFG",$Q76="mono-LGBC"),1,2))) -> 1 | AH76: =IF($O76="Sunpower Corp.",3,(IF(OR($Q76="mono",$Q76="poly",$Q76="HIT",$Q76="EFG",$Q76="mono-LGBC"),1,IF(OR($Q76="µc-Si / a-Si",$Q76="a-Si (single)",$Q76="a-Si (tandem)",$Q76="a-Si (triple)"),3,2)))) -> 1 | AI76: 0 | AL76: 28217 | AO76: 74
A77: AblyTek Co. Ltd ablytek 6PN68 180W | B77: AblyTek Co. Ltd | C77: ablytek 6PN68 180W | D77: 180 | E77: +3...0 | F77: 24.38 | G77: 7.41 | H77: 29.33 | I77: 7.93 | J77: -105.588 | K77: 3.965 | L77: -0.46 | M77: 1000 | N77: Taiwan (Formosa) | P77: 13.65674019 | Q77: poly | R77: 48 | S77: square | T77: 1330 | U77: 991 | V77: 40 | W77: aluminum | X77: junction box | Y77: 18 | Z77: www.ablytek.com | AA77: - | AB77: - | AC77: - | AD77: - | AE77: - | AF77: =IF($O77="Sunpower Corp.",3,(IF(OR($Q77="mono",$Q77="poly",$Q77="HIT",$Q77="EFG",$Q77="mono-LGBC"),1,IF(OR($Q77="µc-Si / a-Si",$Q77="a-Si (single)",$Q77="a-Si (tandem)",$Q77="a-Si (triple)"),3,2)))) -> 1 | AG77: =IF($O77="Sunpower Corp.",3,(IF(OR($Q77="mono",$Q77="poly",$Q77="HIT",$Q77="EFG",$Q77="mono-LGBC"),1,2))) -> 1 | AH77: =IF($O77="Sunpower Corp.",3,(IF(OR($Q77="mono",$Q77="poly",$Q77="HIT",$Q77="EFG",$Q77="mono-LGBC"),1,IF(OR($Q77="µc-Si / a-Si",$Q77="a-Si (single)",$Q77="a-Si (tandem)",$Q77="a-Si (triple)"),3,2)))) -> 1 | AI77: 0 | AL77: 30534 | AO77: 75
A78: AblyTek Co. Ltd ablytek 6PN69 200W | B78: AblyTek Co. Ltd | C78: ablytek 6PN69 200W | D78: 200 | E78: +3...0 | F78: 25.28 | G78: 7.93 | H78: 32.21 | I78: 8.48 | J78: -115.956 | K78: 4.24 | L78: -0.46 | M78: 1000 | N78: Taiwan (Formosa) | P78: 13.56293011 | Q78: poly | R78: 54 | S78: square | T78: 1488 | U78: 991 | V78: 40 | W78: aluminum | X78: junction box | Y78: 20.2 | Z78: www.ablytek.com | AA78: - | AB78: - | AC78: - | AD78: - | AE78: - | AF78: =IF($O78="Sunpower Corp.",3,(IF(OR($Q78="mono",$Q78="poly",$Q78="HIT",$Q78="EFG",$Q78="mono-LGBC"),1,IF(OR($Q78="µc-Si / a-Si",$Q78="a-Si (single)",$Q78="a-Si (tandem)",$Q78="a-Si (triple)"),3,2)))) -> 1 | AG78: =IF($O78="Sunpower Corp.",3,(IF(OR($Q78="mono",$Q78="poly",$Q78="HIT",$Q78="EFG",$Q78="mono-LGBC"),1,2))) -> 1 | AH78: =IF($O78="Sunpower Corp.",3,(IF(OR($Q78="mono",$Q78="poly",$Q78="HIT",$Q78="EFG",$Q78="mono-LGBC"),1,IF(OR($Q78="µc-Si / a-Si",$Q78="a-Si (single)",$Q78="a-Si (tandem)",$Q78="a-Si (triple)"),3,2)))) -> 1 | AI78: 0 | AL78: 28216 | AO78: 76
A79: AblyTek Co. Ltd ablytek 6PN69 205W | B79: AblyTek Co. Ltd | C79: ablytek 6PN69 205W | D79: 205 | E79: +3...0 | F79: 27.54 | G79: 7.47 | H79: 33.16 | I79: 7.98 | J79: -119.376 | K79: 3.99 | L79: -0.46 | M79: 1000 | N79: Taiwan (Formosa) | P79: 13.90200043 | Q79: poly | R79: 54 | S79: square | T79: 1488 | U79: 991 | V79: 40 | W79: aluminum | X79: junction box | Y79: 20.2 | Z79: www.ablytek.com | AA79: - | AB79: - | AC79: - | AD79: - | AE79: - | AF79: =IF($O79="Sunpower Corp.",3,(IF(OR($Q79="mono",$Q79="poly",$Q79="HIT",$Q79="EFG",$Q79="mono-LGBC"),1,IF(OR($Q79="µc-Si / a-Si",$Q79="a-Si (single)",$Q79="a-Si (tandem)",$Q79="a-Si (triple)"),3,2)))) -> 1 | AG79: =IF($O79="Sunpower Corp.",3,(IF(OR($Q79="mono",$Q79="poly",$Q79="HIT",$Q79="EFG",$Q79="mono-LGBC"),1,2))) -> 1 | AH79: =IF($O79="Sunpower Corp.",3,(IF(OR($Q79="mono",$Q79="poly",$Q79="HIT",$Q79="EFG",$Q79="mono-LGBC"),1,IF(OR($Q79="µc-Si / a-Si",$Q79="a-Si (single)",$Q79="a-Si (tandem)",$Q79="a-Si (triple)"),3,2)))) -> 1 | AI79: 0 | AL79: 30535 | AO79: 77
A80: AblyTek Co. Ltd ablytek 6PN6A 230W | B80: AblyTek Co. Ltd | C80: ablytek 6PN6A 230W | D80: 230 | E80: +3...0 | F80: 30.72 | G80: 7.53 | H80: 36.96 | I80: 8.04 | J80: -133.056 | K80: 4.02 | L80: -0.46 | M80: 1000 | N80: Taiwan (Formosa) | P80: 14.10017014 | Q80: poly | R80: 60 | S80: square | T80: 1646 | U80: 991 | V80: 40 | W80: aluminum | X80: junction box | Y80: 22.3 | Z80: www.ablytek.com | AA80: - | AB80: - | AC80: - | AD80: - | AE80: - | AF80: =IF($O80="Sunpower Corp.",3,(IF(OR($Q80="mono",$Q80="poly",$Q80="HIT",$Q80="EFG",$Q80="mono-LGBC"),1,IF(OR($Q80="µc-Si / a-Si",$Q80="a-Si (single)",$Q80="a-Si (tandem)",$Q80="a-Si (triple)"),3,2)))) -> 1 | AG80: =IF($O80="Sunpower Corp.",3,(IF(OR($Q80="mono",$Q80="poly",$Q80="HIT",$Q80="EFG",$Q80="mono-LGBC"),1,2))) -> 1 | AH80: =IF($O80="Sunpower Corp.",3,(IF(OR($Q80="mono",$Q80="poly",$Q80="HIT",$Q80="EFG",$Q80="mono-LGBC"),1,IF(OR($Q80="µc-Si / a-Si",$Q80="a-Si (single)",$Q80="a-Si (tandem)",$Q80="a-Si (triple)"),3,2)))) -> 1 | AI80: 0 | AL80: 28214 | AO80: 78
A81: AblyTek Co. Ltd ablytek BIPV 120W (6x6) | B81: AblyTek Co. Ltd | C81: ablytek BIPV 120W (6x6) | D81: 120 | E81: +3...0 | F81: 17 | G81: 7.1 | H81: 20.6 | I81: 7.6 | J81: -74.16 | K81: 3.8 | L81: -0.046 | M81: 1000 | N81: Taiwan (Formosa) | P81: 10.27101994 | Q81: poly | R81: 36 | S81: square | T81: 1096 | U81: 1066 | V81: 13.5 | W81: frameless | X81: junction box | Y81: 36.5 | Z81: www.ablytek.com | AA81: - | AB81: - | AC81: - | AD81: - | AE81: - | AF81: =IF($O81="Sunpower Corp.",3,(IF(OR($Q81="mono",$Q81="poly",$Q81="HIT",$Q81="EFG",$Q81="mono-LGBC"),1,IF(OR($Q81="µc-Si / a-Si",$Q81="a-Si (single)",$Q81="a-Si (tandem)",$Q81="a-Si (triple)"),3,2)))) -> 1 | AG81: =IF($O81="Sunpower Corp.",3,(IF(OR($Q81="mono",$Q81="poly",$Q81="HIT",$Q81="EFG",$Q81="mono-LGBC"),1,2))) -> 1 | AH81: =IF($O81="Sunpower Corp.",3,(IF(OR($Q81="mono",$Q81="poly",$Q81="HIT",$Q81="EFG",$Q81="mono-LGBC"),1,IF(OR($Q81="µc-Si / a-Si",$Q81="a-Si (single)",$Q81="a-Si (tandem)",$Q81="a-Si (triple)"),3,2)))) -> 1 | AI81: 0 | AL81: 28228 | AO81: 79
A82: AblyTek Co. Ltd ablytek BIPV 130W (6x6) | B82: AblyTek Co. Ltd | C82: ablytek BIPV 130W (6x6) | D82: 130 | E82: +3...0 | F82: 18.5 | G82: 7.1 | H82: 22.54 | I82: 7.61 | J82: -81.144 | K82: 3.805 | L82: -0.046 | M82: 1000 | N82: Taiwan (Formosa) | P82: 11.12693977 | Q82: poly | R82: 36 | S82: square | T82: 1096 | U82: 1066 | V82: 13.5 | W82: frameless | X82: junction box | Y82: 36.5 | Z82: www.ablytek.com | AA82: - | AB82: - | AC82: - | AD82: - | AE82: - | AF82: =IF($O82="Sunpower Corp.",3,(IF(OR($Q82="mono",$Q82="poly",$Q82="HIT",$Q82="EFG",$Q82="mono-LGBC"),1,IF(OR($Q82="µc-Si / a-Si",$Q82="a-Si (single)",$Q82="a-Si (tandem)",$Q82="a-Si (triple)"),3,2)))) -> 1 | AG82: =IF($O82="Sunpower Corp.",3,(IF(OR($Q82="mono",$Q82="poly",$Q82="HIT",$Q82="EFG",$Q82="mono-LGBC"),1,2))) -> 1 | AH82: =IF($O82="Sunpower Corp.",3,(IF(OR($Q82="mono",$Q82="poly",$Q82="HIT",$Q82="EFG",$Q82="mono-LGBC"),1,IF(OR($Q82="µc-Si / a-Si",$Q82="a-Si (single)",$Q82="a-Si (tandem)",$Q82="a-Si (triple)"),3,2)))) -> 1 | AI82: 0 | AL82: 30536 | AO82: 80
A83: AblyTek Co. Ltd ablytek BIPV 160W (6x8) | B83: AblyTek Co. Ltd | C83: ablytek BIPV 160W (6x8) | D83: 160 | E83: +3...0 | F83: 22.7 | G83: 7.1 | H83: 28.8 | I83: 7.6 | J83: -103.68 | K83: 3.8 | L83: -0.046 | M83: 1000 | N83: Taiwan (Formosa) | P83: 10.51076984 | Q83: poly | R83: 48 | S83: square | T83: 1428 | U83: 1066 | V83: 13.5 | W83: frameless | X83: junction box | Y83: 50.5 | Z83: www.ablytek.com | AA83: - | AB83: - | AC83: - | AD83: - | AE83: - | AF83: =IF($O83="Sunpower Corp.",3,(IF(OR($Q83="mono",$Q83="poly",$Q83="HIT",$Q83="EFG",$Q83="mono-LGBC"),1,IF(OR($Q83="µc-Si / a-Si",$Q83="a-Si (single)",$Q83="a-Si (tandem)",$Q83="a-Si (triple)"),3,2)))) -> 1 | AG83: =IF($O83="Sunpower Corp.",3,(IF(OR($Q83="mono",$Q83="poly",$Q83="HIT",$Q83="EFG",$Q83="mono-LGBC"),1,2))) -> 1 | AH83: =IF($O83="Sunpower Corp.",3,(IF(OR($Q83="mono",$Q83="poly",$Q83="HIT",$Q83="EFG",$Q83="mono-LGBC"),1,IF(OR($Q83="µc-Si / a-Si",$Q83="a-Si (single)",$Q83="a-Si (tandem)",$Q83="a-Si (triple)"),3,2)))) -> 1 | AI83: 0 | AL83: 28226 | AO83: 81
A84: AblyTek Co. Ltd ablytek BIPV 175W (6x8) | B84: AblyTek Co. Ltd | C84: ablytek BIPV 175W (6x8) | D84: 175 | E84: +3...0 | F84: 24.67 | G84: 7.1 | H84: 30.048 | I84: 7.61 | J84: -108.1728 | K84: 3.805 | L84: -0.046 | M84: 1000 | N84: Taiwan (Formosa) | P84: 11.49615955 | Q84: poly | R84: 48 | S84: square | T84: 1428 | U84: 1066 | V84: 13.5 | W84: frameless | X84: junction box | Y84: 50.5 | Z84: www.ablytek.com | AA84: - | AB84: - | AC84: - | AD84: - | AE84: - | AF84: =IF($O84="Sunpower Corp.",3,(IF(OR($Q84="mono",$Q84="poly",$Q84="HIT",$Q84="EFG",$Q84="mono-LGBC"),1,IF(OR($Q84="µc-Si / a-Si",$Q84="a-Si (single)",$Q84="a-Si (tandem)",$Q84="a-Si (triple)"),3,2)))) -> 1 | AG84: =IF($O84="Sunpower Corp.",3,(IF(OR($Q84="mono",$Q84="poly",$Q84="HIT",$Q84="EFG",$Q84="mono-LGBC"),1,2))) -> 1 | AH84: =IF($O84="Sunpower Corp.",3,(IF(OR($Q84="mono",$Q84="poly",$Q84="HIT",$Q84="EFG",$Q84="mono-LGBC"),1,IF(OR($Q84="µc-Si / a-Si",$Q84="a-Si (single)",$Q84="a-Si (tandem)",$Q84="a-Si (triple)"),3,2)))) -> 1 | AI84: 0 | AL84: 30537 | AO84: 82
A85: AblyTek Co. Ltd ablytek BIPV 185W (6x9) | B85: AblyTek Co. Ltd | C85: ablytek BIPV 185W (6x9) | D85: 185 | E85: +3...0 | F85: 25.9 | G85: 7.2 | H85: 32.7 | I85: 7.7 | J85: -117.72 | K85: 3.85 | L85: -0.046 | M85: 1000 | N85: Taiwan (Formosa) | P85: 10.88745022 | Q85: poly | R85: 54 | S85: square | T85: 1594 | U85: 1066 | V85: 13.5 | W85: frameless | X85: junction box | Y85: 57.2 | Z85: www.ablytek.com | AA85: - | AB85: - | AC85: - | AD85: - | AE85: - | AF85: =IF($O85="Sunpower Corp.",3,(IF(OR($Q85="mono",$Q85="poly",$Q85="HIT",$Q85="EFG",$Q85="mono-LGBC"),1,IF(OR($Q85="µc-Si / a-Si",$Q85="a-Si (single)",$Q85="a-Si (tandem)",$Q85="a-Si (triple)"),3,2)))) -> 1 | AG85: =IF($O85="Sunpower Corp.",3,(IF(OR($Q85="mono",$Q85="poly",$Q85="HIT",$Q85="EFG",$Q85="mono-LGBC"),1,2))) -> 1 | AH85: =IF($O85="Sunpower Corp.",3,(IF(OR($Q85="mono",$Q85="poly",$Q85="HIT",$Q85="EFG",$Q85="mono-LGBC"),1,IF(OR($Q85="µc-Si / a-Si",$Q85="a-Si (single)",$Q85="a-Si (tandem)",$Q85="a-Si (triple)"),3,2)))) -> 1 | AI85: 0 | AL85: 28225 | AO85: 83
A86: AblyTek Co. Ltd ablytek BIPV 195W (6x9) | B86: AblyTek Co. Ltd | C86: ablytek BIPV 195W (6x9) | D86: 195 | E86: +3...0 | F86: 27.76 | G86: 7.1 | H86: 33.8 | I86: 7.61 | J86: -121.68 | K86: 3.805 | L86: -0.046 | M86: 1000 | N86: Taiwan (Formosa) | P86: 11.47595978 | Q86: poly | R86: 54 | S86: square | T86: 1594 | U86: 1066 | V86: 13.5 | W86: frameless | X86: junction box | Y86: 57.2 | Z86: www.ablytek.com | AA86: - | AB86: - | AC86: - | AD86: - | AE86: - | AF86: =IF($O86="Sunpower Corp.",3,(IF(OR($Q86="mono",$Q86="poly",$Q86="HIT",$Q86="EFG",$Q86="mono-LGBC"),1,IF(OR($Q86="µc-Si / a-Si",$Q86="a-Si (single)",$Q86="a-Si (tandem)",$Q86="a-Si (triple)"),3,2)))) -> 1 | AG86: =IF($O86="Sunpower Corp.",3,(IF(OR($Q86="mono",$Q86="poly",$Q86="HIT",$Q86="EFG",$Q86="mono-LGBC"),1,2))) -> 1 | AH86: =IF($O86="Sunpower Corp.",3,(IF(OR($Q86="mono",$Q86="poly",$Q86="HIT",$Q86="EFG",$Q86="mono-LGBC"),1,IF(OR($Q86="µc-Si / a-Si",$Q86="a-Si (single)",$Q86="a-Si (tandem)",$Q86="a-Si (triple)"),3,2)))) -> 1 | AI86: 0 | AL86: 30538 | AO86: 84
A87: AblyTek Co. Ltd ablytek BIPV 205W (6x10) | B87: AblyTek Co. Ltd | C87: ablytek BIPV 205W (6x10) | D87: 205 | E87: +3...0 | F87: 28.6 | G87: 7.2 | H87: 37.1 | I87: 7.7 | J87: -133.56 | K87: 3.85 | L87: -0.046 | M87: 1000 | N87: Taiwan (Formosa) | P87: 10.92656994 | Q87: poly | R87: 60 | S87: square | T87: 1760 | U87: 1066 | V87: 13.5 | W87: frameless | X87: junction box | Y87: 65 | Z87: www.ablytek.com | AA87: - | AB87: - | AC87: - | AD87: - | AE87: - | AF87: =IF($O87="Sunpower Corp.",3,(IF(OR($Q87="mono",$Q87="poly",$Q87="HIT",$Q87="EFG",$Q87="mono-LGBC"),1,IF(OR($Q87="µc-Si / a-Si",$Q87="a-Si (single)",$Q87="a-Si (tandem)",$Q87="a-Si (triple)"),3,2)))) -> 1 | AG87: =IF($O87="Sunpower Corp.",3,(IF(OR($Q87="mono",$Q87="poly",$Q87="HIT",$Q87="EFG",$Q87="mono-LGBC"),1,2))) -> 1 | AH87: =IF($O87="Sunpower Corp.",3,(IF(OR($Q87="mono",$Q87="poly",$Q87="HIT",$Q87="EFG",$Q87="mono-LGBC"),1,IF(OR($Q87="µc-Si / a-Si",$Q87="a-Si (single)",$Q87="a-Si (tandem)",$Q87="a-Si (triple)"),3,2)))) -> 1 | AI87: 0 | AL87: 28222 | AO87: 85
A88: AblyTek Co. Ltd ablytek BIPV 215W (6x10) | B88: AblyTek Co. Ltd | C88: ablytek BIPV 215W (6x10) | D88: 215 | E88: +3...0 | F88: 30.84 | G88: 7.1 | H88: 37.56 | I88: 7.61 | J88: -135.216 | K88: 3.805 | L88: -0.046 | M88: 1000 | N88: Taiwan (Formosa) | P88: 11.45958042 | Q88: poly | R88: 60 | S88: square | T88: 1760 | U88: 1066 | V88: 13.5 | W88: frameless | X88: junction box | Y88: 65 | Z88: www.ablytek.com | AA88: - | AB88: - | AC88: - | AD88: - | AE88: - | AF88: =IF($O88="Sunpower Corp.",3,(IF(OR($Q88="mono",$Q88="poly",$Q88="HIT",$Q88="EFG",$Q88="mono-LGBC"),1,IF(OR($Q88="µc-Si / a-Si",$Q88="a-Si (single)",$Q88="a-Si (tandem)",$Q88="a-Si (triple)"),3,2)))) -> 1 | AG88: =IF($O88="Sunpower Corp.",3,(IF(OR($Q88="mono",$Q88="poly",$Q88="HIT",$Q88="EFG",$Q88="mono-LGBC"),1,2))) -> 1 | AH88: =IF($O88="Sunpower Corp.",3,(IF(OR($Q88="mono",$Q88="poly",$Q88="HIT",$Q88="EFG",$Q88="mono-LGBC"),1,IF(OR($Q88="µc-Si / a-Si",$Q88="a-Si (single)",$Q88="a-Si (tandem)",$Q88="a-Si (triple)"),3,2)))) -> 1 | AI88: 0 | AL88: 30539 | AO88: 86
A89: AblyTek Co. Ltd ablytek RoofTile 50W | B89: AblyTek Co. Ltd | C89: ablytek RoofTile 50W | D89: 50 | E89: +... | F89: 7.06 | G89: 7.119 | H89: 8.708 | I89: 8.02 | J89: -31.3488 | K89: 4.01 | L89: -0.46 | M89: 1000 | N89: Taiwan (Formosa) | P89: 11.07102966 | Q89: poly | R89: 14 | S89: square | T89: 1167 | U89: 387 | V89: 35 | W89: aluminum | X89: junction box | Y89: 5.67 | Z89: www.ablytek.com | AA89: - | AB89: - | AC89: - | AD89: - | AE89: - | AF89: =IF($O89="Sunpower Corp.",3,(IF(OR($Q89="mono",$Q89="poly",$Q89="HIT",$Q89="EFG",$Q89="mono-LGBC"),1,IF(OR($Q89="µc-Si / a-Si",$Q89="a-Si (single)",$Q89="a-Si (tandem)",$Q89="a-Si (triple)"),3,2)))) -> 1 | AG89: =IF($O89="Sunpower Corp.",3,(IF(OR($Q89="mono",$Q89="poly",$Q89="HIT",$Q89="EFG",$Q89="mono-LGBC"),1,2))) -> 1 | AH89: =IF($O89="Sunpower Corp.",3,(IF(OR($Q89="mono",$Q89="poly",$Q89="HIT",$Q89="EFG",$Q89="mono-LGBC"),1,IF(OR($Q89="µc-Si / a-Si",$Q89="a-Si (single)",$Q89="a-Si (tandem)",$Q89="a-Si (triple)"),3,2)))) -> 1 | AI89: 0 | AL89: 28230 | AO89: 87
A90: Abound Solar Inc. AB1-60 | B90: Abound Solar Inc. | C90: AB1-60 | D90: 60,0 | E90: 50,0 | F90: 34,2 | G90: 1,78 | H90: 44,0 | I90: 2,14 | J90: -176,0 | K90: 1,07 | L90: -0,37 | M90: 1000,0 | N90: USA | O90: - | P90: 8,33 | Q90: CdTe | R90: - | S90: - | T90: 1200,0 | U90: 600,0 | V90: 8,1 | W90: frameless | X90: junction box MC4 | Y90: 12,0 | Z90: www.aboundsolar.com | AA90: - | AB90: - | AC90: - | AD90: - | AE90: - | AF90: =IF($O90="Sunpower Corp.",3,(IF(OR($Q90="mono",$Q90="poly",$Q90="HIT",$Q90="EFG",$Q90="mono-LGBC"),1,IF(OR($Q90="µc-Si / a-Si",$Q90="a-Si (single)",$Q90="a-Si (tandem)",$Q90="a-Si (triple)"),3,2)))) -> 2 | AG90: =IF($O90="Sunpower Corp.",3,(IF(OR($Q90="mono",$Q90="poly",$Q90="HIT",$Q90="EFG",$Q90="mono-LGBC"),1,2))) -> 2 | AH90: =IF($O90="Sunpower Corp.",3,(IF(OR($Q90="mono",$Q90="poly",$Q90="HIT",$Q90="EFG",$Q90="mono-LGBC"),1,IF(OR($Q90="µc-Si / a-Si",$Q90="a-Si (single)",$Q90="a-Si (tandem)",$Q90="a-Si (triple)"),3,2)))) -> 2 | AI90: 0 | AL90: 16425 | AO90: 88
A91: Abound Solar Inc. AB1-62 | B91: Abound Solar Inc. | C91: AB1-62 | D91: 62.5 | E91: +5...0 | F91: 35 | G91: 1.82 | H91: 44.2 | I91: 2.14 | J91: -176.8 | K91: 1.07 | L91: -0.37 | M91: 1000 | N91: USA | P91: 8.680555344 | Q91: CdTe | T91: 1200 | U91: 600 | V91: 8.1 | W91: frameless | X91: junction box MC4 | Y91: 12 | Z91: www.aboundsolar.com | AA91: - | AB91: - | AC91: - | AD91: - | AE91: - | AF91: =IF($O91="Sunpower Corp.",3,(IF(OR($Q91="mono",$Q91="poly",$Q91="HIT",$Q91="EFG",$Q91="mono-LGBC"),1,IF(OR($Q91="µc-Si / a-Si",$Q91="a-Si (single)",$Q91="a-Si (tandem)",$Q91="a-Si (triple)"),3,2)))) -> 2 | AG91: =IF($O91="Sunpower Corp.",3,(IF(OR($Q91="mono",$Q91="poly",$Q91="HIT",$Q91="EFG",$Q91="mono-LGBC"),1,2))) -> 2 | AH91: =IF($O91="Sunpower Corp.",3,(IF(OR($Q91="mono",$Q91="poly",$Q91="HIT",$Q91="EFG",$Q91="mono-LGBC"),1,IF(OR($Q91="µc-Si / a-Si",$Q91="a-Si (single)",$Q91="a-Si (tandem)",$Q91="a-Si (triple)"),3,2)))) -> 2 | AI91: 0 | AL91: 16424 | AO91: 89
A92: Abound Solar Inc. AB1-65 | B92: Abound Solar Inc. | C92: AB1-65 | D92: 65 | E92: +5...0 | F92: 35.8 | G92: 1.86 | H92: 44.5 | I92: 2.15 | J92: -178 | K92: 1.075 | L92: -0.37 | M92: 1000 | N92: USA | P92: 9.027777672 | Q92: CdTe | T92: 1200 | U92: 600 | V92: 8.1 | W92: frameless | X92: junction box MC4 | Y92: 12 | Z92: www.aboundsolar.com | AA92: - | AB92: - | AC92: - | AD92: - | AE92: - | AF92: =IF($O92="Sunpower Corp.",3,(IF(OR($Q92="mono",$Q92="poly",$Q92="HIT",$Q92="EFG",$Q92="mono-LGBC"),1,IF(OR($Q92="µc-Si / a-Si",$Q92="a-Si (single)",$Q92="a-Si (tandem)",$Q92="a-Si (triple)"),3,2)))) -> 2 | AG92: =IF($O92="Sunpower Corp.",3,(IF(OR($Q92="mono",$Q92="poly",$Q92="HIT",$Q92="EFG",$Q92="mono-LGBC"),1,2))) -> 2 | AH92: =IF($O92="Sunpower Corp.",3,(IF(OR($Q92="mono",$Q92="poly",$Q92="HIT",$Q92="EFG",$Q92="mono-LGBC"),1,IF(OR($Q92="µc-Si / a-Si",$Q92="a-Si (single)",$Q92="a-Si (tandem)",$Q92="a-Si (triple)"),3,2)))) -> 2 | AI92: 0 | AL92: 16423 | AO92: 90
A93: Abound Solar Inc. AB1-67 | B93: Abound Solar Inc. | C93: AB1-67 | D93: 67.5 | E93: +5...0 | F93: 36.5 | G93: 1.89 | H93: 44.7 | I93: 2.15 | J93: -178.8 | K93: 1.075 | L93: -0.37 | M93: 1000 | N93: USA | P93: 9.375 | Q93: CdTe | T93: 1200 | U93: 600 | V93: 8.1 | W93: frameless | X93: junction box MC4 | Y93: 12 | Z93: www.aboundsolar.com | AA93: - | AB93: - | AC93: - | AD93: - | AE93: - | AF93: =IF($O93="Sunpower Corp.",3,(IF(OR($Q93="mono",$Q93="poly",$Q93="HIT",$Q93="EFG",$Q93="mono-LGBC"),1,IF(OR($Q93="µc-Si / a-Si",$Q93="a-Si (single)",$Q93="a-Si (tandem)",$Q93="a-Si (triple)"),3,2)))) -> 2 | AG93: =IF($O93="Sunpower Corp.",3,(IF(OR($Q93="mono",$Q93="poly",$Q93="HIT",$Q93="EFG",$Q93="mono-LGBC"),1,2))) -> 2 | AH93: =IF($O93="Sunpower Corp.",3,(IF(OR($Q93="mono",$Q93="poly",$Q93="HIT",$Q93="EFG",$Q93="mono-LGBC"),1,IF(OR($Q93="µc-Si / a-Si",$Q93="a-Si (single)",$Q93="a-Si (tandem)",$Q93="a-Si (triple)"),3,2)))) -> 2 | AI93: 0 | AL93: 11756 | AO93: 91
A94: Abound Solar Inc. AB1-70 | B94: Abound Solar Inc. | C94: AB1-70 | D94: 70 | E94: +5...0 | F94: 37.3 | G94: 1.93 | H94: 45 | I94: 2.16 | J94: -180 | K94: 1.08 | L94: -0.37 | M94: 1000 | N94: USA | P94: 9.722222328 | Q94: CdTe | T94: 1200 | U94: 600 | V94: 8.1 | W94: frameless | X94: junction box MC4 | Y94: 12 | Z94: www.aboundsolar.com | AA94: - | AB94: - | AC94: - | AD94: - | AE94: - | AF94: =IF($O94="Sunpower Corp.",3,(IF(OR($Q94="mono",$Q94="poly",$Q94="HIT",$Q94="EFG",$Q94="mono-LGBC"),1,IF(OR($Q94="µc-Si / a-Si",$Q94="a-Si (single)",$Q94="a-Si (tandem)",$Q94="a-Si (triple)"),3,2)))) -> 2 | AG94: =IF($O94="Sunpower Corp.",3,(IF(OR($Q94="mono",$Q94="poly",$Q94="HIT",$Q94="EFG",$Q94="mono-LGBC"),1,2))) -> 2 | AH94: =IF($O94="Sunpower Corp.",3,(IF(OR($Q94="mono",$Q94="poly",$Q94="HIT",$Q94="EFG",$Q94="mono-LGBC"),1,IF(OR($Q94="µc-Si / a-Si",$Q94="a-Si (single)",$Q94="a-Si (tandem)",$Q94="a-Si (triple)"),3,2)))) -> 2 | AI94: 0 | AL94: 11757 | AO94: 92
A95: Abound Solar Inc. AB1-72 | B95: Abound Solar Inc. | C95: AB1-72 | D95: 72.5 | E95: +5...0 | F95: 40.2 | G95: 1.81 | H95: 47.8 | I95: 2.28 | J95: -191.2 | K95: 1.14 | L95: -0.37 | M95: 1000 | N95: USA | P95: 10.06943989 | Q95: CdTe | T95: 1200 | U95: 600 | V95: 7.2 | W95: frameless | X95: junction box MC4 | Y95: 12 | Z95: www.aboundsolar.com | AA95: - | AB95: - | AC95: - | AD95: - | AE95: - | AF95: =IF($O95="Sunpower Corp.",3,(IF(OR($Q95="mono",$Q95="poly",$Q95="HIT",$Q95="EFG",$Q95="mono-LGBC"),1,IF(OR($Q95="µc-Si / a-Si",$Q95="a-Si (single)",$Q95="a-Si (tandem)",$Q95="a-Si (triple)"),3,2)))) -> 2 | AG95: =IF($O95="Sunpower Corp.",3,(IF(OR($Q95="mono",$Q95="poly",$Q95="HIT",$Q95="EFG",$Q95="mono-LGBC"),1,2))) -> 2 | AH95: =IF($O95="Sunpower Corp.",3,(IF(OR($Q95="mono",$Q95="poly",$Q95="HIT",$Q95="EFG",$Q95="mono-LGBC"),1,IF(OR($Q95="µc-Si / a-Si",$Q95="a-Si (single)",$Q95="a-Si (tandem)",$Q95="a-Si (triple)"),3,2)))) -> 2 | AI95: 0 | AL95: 11758 | AO95: 93
A96: Accusolarpower Co., Ltd. ASP409-A(110W) | B96: Accusolarpower Co., Ltd. | C96: ASP409-A(110W) | D96: 110 | E96: +3...-3 | F96: 17.05 | G96: 6.46 | H96: 21.45 | I96: 7.21 | J96: -72.93 | K96: 6.489 | L96: -0.37 | M96: 1000 | P96: 11.36880016 | Q96: poly | R96: 36 | S96: square | T96: 1466 | U96: 660 | V96: 38.1 | X96: junction box Tyco | Y96: 11.8 | Z96: www.accusolarcorp.com | AA96: - | AB96: - | AC96: - | AD96: - | AE96: - | AF96: =IF($O96="Sunpower Corp.",3,(IF(OR($Q96="mono",$Q96="poly",$Q96="HIT",$Q96="EFG",$Q96="mono-LGBC"),1,IF(OR($Q96="µc-Si / a-Si",$Q96="a-Si (single)",$Q96="a-Si (tandem)",$Q96="a-Si (triple)"),3,2)))) -> 1 | AG96: =IF($O96="Sunpower Corp.",3,(IF(OR($Q96="mono",$Q96="poly",$Q96="HIT",$Q96="EFG",$Q96="mono-LGBC"),1,2))) -> 1 | AH96: =IF($O96="Sunpower Corp.",3,(IF(OR($Q96="mono",$Q96="poly",$Q96="HIT",$Q96="EFG",$Q96="mono-LGBC"),1,IF(OR($Q96="µc-Si / a-Si",$Q96="a-Si (single)",$Q96="a-Si (tandem)",$Q96="a-Si (triple)"),3,2)))) -> 1 | AI96: 0 | AL96: 16555 | AO96: 94
A97: Accusolarpower Co., Ltd. ASP409-A(115W) | B97: Accusolarpower Co., Ltd. | C97: ASP409-A(115W) | D97: 115 | E97: +3...-3 | F97: 17.16 | G97: 6.7 | H97: 21.56 | I97: 7.4 | J97: -73.304 | K97: 6.66 | L97: -0.37 | M97: 1000 | P97: 11.88556957 | Q97: poly | R97: 36 | S97: square | T97: 1466 | U97: 660 | V97: 38.1 | X97: junction box Tyco | Y97: 11.8 | Z97: www.accusolarcorp.com | AA97: - | AB97: - | AC97: - | AD97: - | AE97: - | AF97: =IF($O97="Sunpower Corp.",3,(IF(OR($Q97="mono",$Q97="poly",$Q97="HIT",$Q97="EFG",$Q97="mono-LGBC"),1,IF(OR($Q97="µc-Si / a-Si",$Q97="a-Si (single)",$Q97="a-Si (tandem)",$Q97="a-Si (triple)"),3,2)))) -> 1 | AG97: =IF($O97="Sunpower Corp.",3,(IF(OR($Q97="mono",$Q97="poly",$Q97="HIT",$Q97="EFG",$Q97="mono-LGBC"),1,2))) -> 1 | AH97: =IF($O97="Sunpower Corp.",3,(IF(OR($Q97="mono",$Q97="poly",$Q97="HIT",$Q97="EFG",$Q97="mono-LGBC"),1,IF(OR($Q97="µc-Si / a-Si",$Q97="a-Si (single)",$Q97="a-Si (tandem)",$Q97="a-Si (triple)"),3,2)))) -> 1 | AI97: 0 | AL97: 16556 | AO97: 95
A98: Accusolarpower Co., Ltd. ASP409-A(120W) | B98: Accusolarpower Co., Ltd. | C98: ASP409-A(120W) | D98: 120 | E98: +3...-3 | F98: 17.34 | G98: 6.93 | H98: 21.85 | I98: 7.77 | J98: -74.29 | K98: 6.993 | L98: -0.37 | M98: 1000 | P98: 12.4023304 | Q98: poly | R98: 36 | S98: square | T98: 1466 | U98: 660 | V98: 38.1 | X98: junction box Tyco | Y98: 11.8 | Z98: www.accusolarcorp.com | AA98: - | AB98: - | AC98: - | AD98: - | AE98: - | AF98: =IF($O98="Sunpower Corp.",3,(IF(OR($Q98="mono",$Q98="poly",$Q98="HIT",$Q98="EFG",$Q98="mono-LGBC"),1,IF(OR($Q98="µc-Si / a-Si",$Q98="a-Si (single)",$Q98="a-Si (tandem)",$Q98="a-Si (triple)"),3,2)))) -> 1 | AG98: =IF($O98="Sunpower Corp.",3,(IF(OR($Q98="mono",$Q98="poly",$Q98="HIT",$Q98="EFG",$Q98="mono-LGBC"),1,2))) -> 1 | AH98: =IF($O98="Sunpower Corp.",3,(IF(OR($Q98="mono",$Q98="poly",$Q98="HIT",$Q98="EFG",$Q98="mono-LGBC"),1,IF(OR($Q98="µc-Si / a-Si",$Q98="a-Si (single)",$Q98="a-Si (tandem)",$Q98="a-Si (triple)"),3,2)))) -> 1 | AI98: 0 | AL98: 16557 | AO98: 96
A99: Accusolarpower Co., Ltd. ASP409-A(125W) | B99: Accusolarpower Co., Ltd. | C99: ASP409-A(125W) | D99: 125 | E99: +3...-3 | F99: 17.55 | G99: 7.13 | H99: 21.89 | I99: 7.86 | J99: -74.426 | K99: 7.074 | L99: -0.37 | M99: 1000 | P99: 12.91909981 | Q99: poly | R99: 36 | S99: square | T99: 1466 | U99: 660 | V99: 38.1 | X99: junction box Tyco | Y99: 11.8 | Z99: www.accusolarcorp.com | AA99: - | AB99: - | AC99: - | AD99: - | AE99: - | AF99: =IF($O99="Sunpower Corp.",3,(IF(OR($Q99="mono",$Q99="poly",$Q99="HIT",$Q99="EFG",$Q99="mono-LGBC"),1,IF(OR($Q99="µc-Si / a-Si",$Q99="a-Si (single)",$Q99="a-Si (tandem)",$Q99="a-Si (triple)"),3,2)))) -> 1 | AG99: =IF($O99="Sunpower Corp.",3,(IF(OR($Q99="mono",$Q99="poly",$Q99="HIT",$Q99="EFG",$Q99="mono-LGBC"),1,2))) -> 1 | AH99: =IF($O99="Sunpower Corp.",3,(IF(OR($Q99="mono",$Q99="poly",$Q99="HIT",$Q99="EFG",$Q99="mono-LGBC"),1,IF(OR($Q99="µc-Si / a-Si",$Q99="a-Si (single)",$Q99="a-Si (tandem)",$Q99="a-Si (triple)"),3,2)))) -> 1 | AI99: 0 | AL99: 16558 | AO99: 97
A100: Accusolarpower Co., Ltd. ASP409-A(130W) | B100: Accusolarpower Co., Ltd. | C100: ASP409-A(130W) | D100: 130 | E100: +3...-3 | F100: 17.75 | G100: 7.33 | H100: 22.1 | I100: 8.06 | J100: -75.14 | K100: 7.254 | L100: -0.37 | M100: 1000 | P100: 13.43585968 | Q100: poly | R100: 36 | S100: square | T100: 1466 | U100: 660 | V100: 38.1 | X100: junction box Tyco | Y100: 11.8 | Z100: www.accusolarcorp.com | AA100: - | AB100: - | AC100: - | AD100: - | AE100: - | AF100: =IF($O100="Sunpower Corp.",3,(IF(OR($Q100="mono",$Q100="poly",$Q100="HIT",$Q100="EFG",$Q100="mono-LGBC"),1,IF(OR($Q100="µc-Si / a-Si",$Q100="a-Si (single)",$Q100="a-Si (tandem)",$Q100="a-Si (triple)"),3,2)))) -> 1 | AG100: =IF($O100="Sunpower Corp.",3,(IF(OR($Q100="mono",$Q100="poly",$Q100="HIT",$Q100="EFG",$Q100="mono-LGBC"),1,2))) -> 1 | AH100: =IF($O100="Sunpower Corp.",3,(IF(OR($Q100="mono",$Q100="poly",$Q100="HIT",$Q100="EFG",$Q100="mono-LGBC"),1,IF(OR($Q100="µc-Si / a-Si",$Q100="a-Si (single)",$Q100="a-Si (tandem)",$Q100="a-Si (triple)"),3,2)))) -> 1 | AI100: 0 | AL100: 16559 | AO100: 98
A101: Accusolarpower Co., Ltd. ASP409-B(70W) | B101: Accusolarpower Co., Ltd. | C101: ASP409-B(70W) | D101: 70 | E101: +3...-3 | F101: 16.5 | G101: 4.25 | H101: 21.24 | I101: 4.59 | J101: -72.216 | K101: 4.131 | L101: -0.37 | M101: 1000 | P101: 10.76867008 | Q101: mono | R101: 36 | S101: pseudo-square | T101: 1206 | U101: 539 | V101: 38.1 | X101: junction box | Y101: 8.2 | Z101: www.accusolarcorp.com | AA101: - | AB101: - | AC101: - | AD101: - | AE101: - | AF101: =IF($O101="Sunpower Corp.",3,(IF(OR($Q101="mono",$Q101="poly",$Q101="HIT",$Q101="EFG",$Q101="mono-LGBC"),1,IF(OR($Q101="µc-Si / a-Si",$Q101="a-Si (single)",$Q101="a-Si (tandem)",$Q101="a-Si (triple)"),3,2)))) -> 1 | AG101: =IF($O101="Sunpower Corp.",3,(IF(OR($Q101="mono",$Q101="poly",$Q101="HIT",$Q101="EFG",$Q101="mono-LGBC"),1,2))) -> 1 | AH101: =IF($O101="Sunpower Corp.",3,(IF(OR($Q101="mono",$Q101="poly",$Q101="HIT",$Q101="EFG",$Q101="mono-LGBC"),1,IF(OR($Q101="µc-Si / a-Si",$Q101="a-Si (single)",$Q101="a-Si (tandem)",$Q101="a-Si (triple)"),3,2)))) -> 1 | AI101: 0 | AL101: 16562 | AO101: 99
A102: Accusolarpower Co., Ltd. ASP409-B(75W) | B102: Accusolarpower Co., Ltd. | C102: ASP409-B(75W) | D102: 75 | E102: +3...-3 | F102: 16.85 | G102: 4.46 | H102: 21.56 | I102: 4.79 | J102: -73.304 | K102: 4.311 | L102: -0.37 | M102: 1000 | P102: 11.53785992 | Q102: mono | R102: 36 | S102: pseudo-square | T102: 1206 | U102: 539 | V102: 38.1 | X102: junction box | Y102: 8.2 | Z102: www.accusolarcorp.com | AA102: - | AB102: - | AC102: - | AD102: - | AE102: - | AF102: =IF($O102="Sunpower Corp.",3,(IF(OR($Q102="mono",$Q102="poly",$Q102="HIT",$Q102="EFG",$Q102="mono-LGBC"),1,IF(OR($Q102="µc-Si / a-Si",$Q102="a-Si (single)",$Q102="a-Si (tandem)",$Q102="a-Si (triple)"),3,2)))) -> 1 | AG102: =IF($O102="Sunpower Corp.",3,(IF(OR($Q102="mono",$Q102="poly",$Q102="HIT",$Q102="EFG",$Q102="mono-LGBC"),1,2))) -> 1 | AH102: =IF($O102="Sunpower Corp.",3,(IF(OR($Q102="mono",$Q102="poly",$Q102="HIT",$Q102="EFG",$Q102="mono-LGBC"),1,IF(OR($Q102="µc-Si / a-Si",$Q102="a-Si (single)",$Q102="a-Si (tandem)",$Q102="a-Si (triple)"),3,2)))) -> 1 | AI102: 0 | AL102: 16563 | AO102: 100
A103: Accusolarpower Co., Ltd. ASP409-B(80W) | B103: Accusolarpower Co., Ltd. | C103: ASP409-B(80W) | D103: 80 | E103: +3...-3 | F103: 17.21 | G103: 4.65 | H103: 21.81 | I103: 5 | J103: -74.154 | K103: 4.5 | L103: -0.37 | M103: 1000 | P103: 12.30704975 | Q103: mono | R103: 36 | S103: pseudo-square | T103: 1206 | U103: 539 | V103: 38.1 | X103: junction box | Y103: 8.2 | Z103: www.accusolarcorp.com | AA103: - | AB103: - | AC103: - | AD103: - | AE103: - | AF103: =IF($O103="Sunpower Corp.",3,(IF(OR($Q103="mono",$Q103="poly",$Q103="HIT",$Q103="EFG",$Q103="mono-LGBC"),1,IF(OR($Q103="µc-Si / a-Si",$Q103="a-Si (single)",$Q103="a-Si (tandem)",$Q103="a-Si (triple)"),3,2)))) -> 1 | AG103: =IF($O103="Sunpower Corp.",3,(IF(OR($Q103="mono",$Q103="poly",$Q103="HIT",$Q103="EFG",$Q103="mono-LGBC"),1,2))) -> 1 | AH103: =IF($O103="Sunpower Corp.",3,(IF(OR($Q103="mono",$Q103="poly",$Q103="HIT",$Q103="EFG",$Q103="mono-LGBC"),1,IF(OR($Q103="µc-Si / a-Si",$Q103="a-Si (single)",$Q103="a-Si (tandem)",$Q103="a-Si (triple)"),3,2)))) -> 1 | AI103: 0 | AL103: 16564 | AO103: 101
A104: Accusolarpower Co., Ltd. ASP409-B(85W) | B104: Accusolarpower Co., Ltd. | C104: ASP409-B(85W) | D104: 85 | E104: +3...-3 | F104: 17.55 | G104: 4.85 | H104: 22.03 | I104: 5.17 | J104: -74.902 | K104: 4.653 | L104: -0.37 | M104: 1000 | P104: 13.07623959 | Q104: mono | R104: 36 | S104: pseudo-square | T104: 1206 | U104: 539 | V104: 38.1 | X104: junction box | Y104: 8.2 | Z104: www.accusolarcorp.com | AA104: - | AB104: - | AC104: - | AD104: - | AE104: - | AF104: =IF($O104="Sunpower Corp.",3,(IF(OR($Q104="mono",$Q104="poly",$Q104="HIT",$Q104="EFG",$Q104="mono-LGBC"),1,IF(OR($Q104="µc-Si / a-Si",$Q104="a-Si (single)",$Q104="a-Si (tandem)",$Q104="a-Si (triple)"),3,2)))) -> 1 | AG104: =IF($O104="Sunpower Corp.",3,(IF(OR($Q104="mono",$Q104="poly",$Q104="HIT",$Q104="EFG",$Q104="mono-LGBC"),1,2))) -> 1 | AH104: =IF($O104="Sunpower Corp.",3,(IF(OR($Q104="mono",$Q104="poly",$Q104="HIT",$Q104="EFG",$Q104="mono-LGBC"),1,IF(OR($Q104="µc-Si / a-Si",$Q104="a-Si (single)",$Q104="a-Si (tandem)",$Q104="a-Si (triple)"),3,2)))) -> 1 | AI104: 0 | AL104: 16565 | AO104: 102
A105: Accusolarpower Co., Ltd. ASP409-B(90W) | B105: Accusolarpower Co., Ltd. | C105: ASP409-B(90W) | D105: 90 | E105: +3...-3 | F105: 17.9 | G105: 5.03 | H105: 22.35 | I105: 5.35 | J105: -75.99 | K105: 4.815 | L105: -0.37 | M105: 1000 | P105: 13.84543037 | Q105: mono | R105: 36 | S105: pseudo-square | T105: 1206 | U105: 539 | V105: 38.1 | X105: junction box | Y105: 8.2 | Z105: www.accusolarcorp.com | AA105: - | AB105: - | AC105: - | AD105: - | AE105: - | AF105: =IF($O105="Sunpower Corp.",3,(IF(OR($Q105="mono",$Q105="poly",$Q105="HIT",$Q105="EFG",$Q105="mono-LGBC"),1,IF(OR($Q105="µc-Si / a-Si",$Q105="a-Si (single)",$Q105="a-Si (tandem)",$Q105="a-Si (triple)"),3,2)))) -> 1 | AG105: =IF($O105="Sunpower Corp.",3,(IF(OR($Q105="mono",$Q105="poly",$Q105="HIT",$Q105="EFG",$Q105="mono-LGBC"),1,2))) -> 1 | AH105: =IF($O105="Sunpower Corp.",3,(IF(OR($Q105="mono",$Q105="poly",$Q105="HIT",$Q105="EFG",$Q105="mono-LGBC"),1,IF(OR($Q105="µc-Si / a-Si",$Q105="a-Si (single)",$Q105="a-Si (tandem)",$Q105="a-Si (triple)"),3,2)))) -> 1 | AI105: 0 | AL105: 16566 | AO105: 103
A106: Accusolarpower Co., Ltd. ASP608-A(160W) | B106: Accusolarpower Co., Ltd. | C106: ASP608-A(160W) | D106: 160 | E106: +3...-3 | F106: 22.73 | G106: 7.04 | H106: 28.99 | I106: 7.62 | J106: -98.566 | K106: 6.858 | L106: -0.37 | M106: 1000 | P106: 12.34654045 | Q106: poly | R106: 48 | S106: square | T106: 1309 | U106: 990 | V106: 38.1 | X106: junction box | Y106: 14.9 | Z106: www.accusolarcorp.com | AA106: - | AB106: - | AC106: - | AD106: - | AE106: - | AF106: =IF($O106="Sunpower Corp.",3,(IF(OR($Q106="mono",$Q106="poly",$Q106="HIT",$Q106="EFG",$Q106="mono-LGBC"),1,IF(OR($Q106="µc-Si / a-Si",$Q106="a-Si (single)",$Q106="a-Si (tandem)",$Q106="a-Si (triple)"),3,2)))) -> 1 | AG106: =IF($O106="Sunpower Corp.",3,(IF(OR($Q106="mono",$Q106="poly",$Q106="HIT",$Q106="EFG",$Q106="mono-LGBC"),1,2))) -> 1 | AH106: =IF($O106="Sunpower Corp.",3,(IF(OR($Q106="mono",$Q106="poly",$Q106="HIT",$Q106="EFG",$Q106="mono-LGBC"),1,IF(OR($Q106="µc-Si / a-Si",$Q106="a-Si (single)",$Q106="a-Si (tandem)",$Q106="a-Si (triple)"),3,2)))) -> 1 | AI106: 0 | AL106: 16567 | AO106: 104
A107: Accusolarpower Co., Ltd. ASP608-A(165W) | B107: Accusolarpower Co., Ltd. | C107: ASP608-A(165W) | D107: 165 | E107: +3...-3 | F107: 22.8 | G107: 7.24 | H107: 29.13 | I107: 7.77 | J107: -99.042 | K107: 6.993 | L107: -0.37 | M107: 1000 | P107: 12.73237038 | Q107: poly | R107: 48 | S107: square | T107: 1309 | U107: 990 | V107: 38.1 | X107: junction box | Y107: 14.9 | Z107: www.accusolarcorp.com | AA107: - | AB107: - | AC107: - | AD107: - | AE107: - | AF107: =IF($O107="Sunpower Corp.",3,(IF(OR($Q107="mono",$Q107="poly",$Q107="HIT",$Q107="EFG",$Q107="mono-LGBC"),1,IF(OR($Q107="µc-Si / a-Si",$Q107="a-Si (single)",$Q107="a-Si (tandem)",$Q107="a-Si (triple)"),3,2)))) -> 1 | AG107: =IF($O107="Sunpower Corp.",3,(IF(OR($Q107="mono",$Q107="poly",$Q107="HIT",$Q107="EFG",$Q107="mono-LGBC"),1,2))) -> 1 | AH107: =IF($O107="Sunpower Corp.",3,(IF(OR($Q107="mono",$Q107="poly",$Q107="HIT",$Q107="EFG",$Q107="mono-LGBC"),1,IF(OR($Q107="µc-Si / a-Si",$Q107="a-Si (single)",$Q107="a-Si (tandem)",$Q107="a-Si (triple)"),3,2)))) -> 1 | AI107: 0 | AL107: 16568 | AO107: 105
A108: Accusolarpower Co., Ltd. ASP608-A(170W) | B108: Accusolarpower Co., Ltd. | C108: ASP608-A(170W) | D108: 170 | E108: +3...-3 | F108: 22.9 | G108: 7.43 | H108: 29.37 | I108: 8 | J108: -99.858 | K108: 7.2 | L108: -0.37 | M108: 1000 | P108: 13.11818981 | Q108: poly | R108: 48 | S108: square | T108: 1309 | U108: 990 | V108: 38.1 | X108: junction box | Y108: 14.9 | Z108: www.accusolarcorp.com | AA108: - | AB108: - | AC108: - | AD108: - | AE108: - | AF108: =IF($O108="Sunpower Corp.",3,(IF(OR($Q108="mono",$Q108="poly",$Q108="HIT",$Q108="EFG",$Q108="mono-LGBC"),1,IF(OR($Q108="µc-Si / a-Si",$Q108="a-Si (single)",$Q108="a-Si (tandem)",$Q108="a-Si (triple)"),3,2)))) -> 1 | AG108: =IF($O108="Sunpower Corp.",3,(IF(OR($Q108="mono",$Q108="poly",$Q108="HIT",$Q108="EFG",$Q108="mono-LGBC"),1,2))) -> 1 | AH108: =IF($O108="Sunpower Corp.",3,(IF(OR($Q108="mono",$Q108="poly",$Q108="HIT",$Q108="EFG",$Q108="mono-LGBC"),1,IF(OR($Q108="µc-Si / a-Si",$Q108="a-Si (single)",$Q108="a-Si (tandem)",$Q108="a-Si (triple)"),3,2)))) -> 1 | AI108: 0 | AL108: 16569 | AO108: 106
A109: Accusolarpower Co., Ltd. ASP608-A(175W) | B109: Accusolarpower Co., Ltd. | C109: ASP608-A(175W) | D109: 175 | E109: +3...-3 | F109: 22.97 | G109: 7.62 | H109: 29.52 | I109: 8.13 | J109: -100.368 | K109: 7.317 | L109: -0.37 | M109: 1000 | P109: 13.50401974 | Q109: poly | R109: 48 | S109: square | T109: 1309 | U109: 990 | V109: 38.1 | X109: junction box | Y109: 14.9 | Z109: www.accusolarcorp.com | AA109: - | AB109: - | AC109: - | AD109: - | AE109: - | AF109: =IF($O109="Sunpower Corp.",3,(IF(OR($Q109="mono",$Q109="poly",$Q109="HIT",$Q109="EFG",$Q109="mono-LGBC"),1,IF(OR($Q109="µc-Si / a-Si",$Q109="a-Si (single)",$Q109="a-Si (tandem)",$Q109="a-Si (triple)"),3,2)))) -> 1 | AG109: =IF($O109="Sunpower Corp.",3,(IF(OR($Q109="mono",$Q109="poly",$Q109="HIT",$Q109="EFG",$Q109="mono-LGBC"),1,2))) -> 1 | AH109: =IF($O109="Sunpower Corp.",3,(IF(OR($Q109="mono",$Q109="poly",$Q109="HIT",$Q109="EFG",$Q109="mono-LGBC"),1,IF(OR($Q109="µc-Si / a-Si",$Q109="a-Si (single)",$Q109="a-Si (tandem)",$Q109="a-Si (triple)"),3,2)))) -> 1 | AI109: 0 | AL109: 16570 | AO109: 107
A110: Accusolarpower Co., Ltd. ASP608-A(180W) | B110: Accusolarpower Co., Ltd. | C110: ASP608-A(180W) | D110: 180 | E110: +3...-3 | F110: 23.05 | G110: 7.81 | H110: 29.66 | I110: 8.27 | J110: -100.844 | K110: 7.443 | L110: -0.37 | M110: 1000 | P110: 13.88984966 | Q110: poly | R110: 48 | S110: square | T110: 1309 | U110: 990 | V110: 38.1 | X110: junction box | Y110: 14.9 | Z110: www.accusolarcorp.com | AA110: - | AB110: - | AC110: - | AD110: - | AE110: - | AF110: =IF($O110="Sunpower Corp.",3,(IF(OR($Q110="mono",$Q110="poly",$Q110="HIT",$Q110="EFG",$Q110="mono-LGBC"),1,IF(OR($Q110="µc-Si / a-Si",$Q110="a-Si (single)",$Q110="a-Si (tandem)",$Q110="a-Si (triple)"),3,2)))) -> 1 | AG110: =IF($O110="Sunpower Corp.",3,(IF(OR($Q110="mono",$Q110="poly",$Q110="HIT",$Q110="EFG",$Q110="mono-LGBC"),1,2))) -> 1 | AH110: =IF($O110="Sunpower Corp.",3,(IF(OR($Q110="mono",$Q110="poly",$Q110="HIT",$Q110="EFG",$Q110="mono-LGBC"),1,IF(OR($Q110="µc-Si / a-Si",$Q110="a-Si (single)",$Q110="a-Si (tandem)",$Q110="a-Si (triple)"),3,2)))) -> 1 | AI110: 0 | AL110: 16571 | AO110: 108
A111: Accusolarpower Co., Ltd. ASP610-A(200W) | B111: Accusolarpower Co., Ltd. | C111: ASP610-A(200W) | D111: 200 | E111: +3...-3 | F111: 28.44 | G111: 7.04 | H111: 36.24 | I111: 7.62 | J111: -123.216 | K111: 6.858 | L111: -0.37 | M111: 1000 | P111: 12.42436981 | Q111: poly | R111: 60 | S111: square | T111: 1626 | U111: 990 | V111: 38.1 | X111: junction box | Y111: 20 | Z111: www.accusolarcorp.com | AA111: - | AB111: - | AC111: - | AD111: - | AE111: - | AF111: =IF($O111="Sunpower Corp.",3,(IF(OR($Q111="mono",$Q111="poly",$Q111="HIT",$Q111="EFG",$Q111="mono-LGBC"),1,IF(OR($Q111="µc-Si / a-Si",$Q111="a-Si (single)",$Q111="a-Si (tandem)",$Q111="a-Si (triple)"),3,2)))) -> 1 | AG111: =IF($O111="Sunpower Corp.",3,(IF(OR($Q111="mono",$Q111="poly",$Q111="HIT",$Q111="EFG",$Q111="mono-LGBC"),1,2))) -> 1 | AH111: =IF($O111="Sunpower Corp.",3,(IF(OR($Q111="mono",$Q111="poly",$Q111="HIT",$Q111="EFG",$Q111="mono-LGBC"),1,IF(OR($Q111="µc-Si / a-Si",$Q111="a-Si (single)",$Q111="a-Si (tandem)",$Q111="a-Si (triple)"),3,2)))) -> 1 | AI111: 0 | AL111: 16572 | AO111: 109
A112: Accusolarpower Co., Ltd. ASP610-A(205W) | B112: Accusolarpower Co., Ltd. | C112: ASP610-A(205W) | D112: 205 | E112: +3...-3 | F112: 28.6 | G112: 7.17 | H112: 36.42 | I112: 7.77 | J112: -123.828 | K112: 6.993 | L112: -0.37 | M112: 1000 | P112: 12.73497963 | Q112: poly | R112: 60 | S112: square | T112: 1626 | U112: 990 | V112: 38.1 | X112: junction box | Y112: 20 | Z112: www.accusolarcorp.com | AA112: - | AB112: - | AC112: - | AD112: - | AE112: - | AF112: =IF($O112="Sunpower Corp.",3,(IF(OR($Q112="mono",$Q112="poly",$Q112="HIT",$Q112="EFG",$Q112="mono-LGBC"),1,IF(OR($Q112="µc-Si / a-Si",$Q112="a-Si (single)",$Q112="a-Si (tandem)",$Q112="a-Si (triple)"),3,2)))) -> 1 | AG112: =IF($O112="Sunpower Corp.",3,(IF(OR($Q112="mono",$Q112="poly",$Q112="HIT",$Q112="EFG",$Q112="mono-LGBC"),1,2))) -> 1 | AH112: =IF($O112="Sunpower Corp.",3,(IF(OR($Q112="mono",$Q112="poly",$Q112="HIT",$Q112="EFG",$Q112="mono-LGBC"),1,IF(OR($Q112="µc-Si / a-Si",$Q112="a-Si (single)",$Q112="a-Si (tandem)",$Q112="a-Si (triple)"),3,2)))) -> 1 | AI112: 0 | AL112: 16573 | AO112: 110
A113: Accusolarpower Co., Ltd. ASP610-A(210W) | B113: Accusolarpower Co., Ltd. | C113: ASP610-A(210W) | D113: 210 | E113: +3...-3 | F113: 28.72 | G113: 7.32 | H113: 36.6 | I113: 7.93 | J113: -124.44 | K113: 7.137 | L113: -0.37 | M113: 1000 | P113: 13.04557991 | Q113: poly | R113: 60 | S113: square | T113: 1626 | U113: 990 | V113: 38.1 | X113: junction box | Y113: 20 | Z113: www.accusolarcorp.com | AA113: - | AB113: - | AC113: - | AD113: - | AE113: - | AF113: =IF($O113="Sunpower Corp.",3,(IF(OR($Q113="mono",$Q113="poly",$Q113="HIT",$Q113="EFG",$Q113="mono-LGBC"),1,IF(OR($Q113="µc-Si / a-Si",$Q113="a-Si (single)",$Q113="a-Si (tandem)",$Q113="a-Si (triple)"),3,2)))) -> 1 | AG113: =IF($O113="Sunpower Corp.",3,(IF(OR($Q113="mono",$Q113="poly",$Q113="HIT",$Q113="EFG",$Q113="mono-LGBC"),1,2))) -> 1 | AH113: =IF($O113="Sunpower Corp.",3,(IF(OR($Q113="mono",$Q113="poly",$Q113="HIT",$Q113="EFG",$Q113="mono-LGBC"),1,IF(OR($Q113="µc-Si / a-Si",$Q113="a-Si (single)",$Q113="a-Si (tandem)",$Q113="a-Si (triple)"),3,2)))) -> 1 | AI113: 0 | AL113: 16574 | AO113: 111
A114: Accusolarpower Co., Ltd. ASP610-A(215W) | B114: Accusolarpower Co., Ltd. | C114: ASP610-A(215W) | D114: 215 | E114: +3...-3 | F114: 28.86 | G114: 7.45 | H114: 36.72 | I114: 8 | J114: -124.848 | K114: 7.2 | L114: -0.37 | M114: 1000 | P114: 13.35618973 | Q114: poly | R114: 60 | S114: square | T114: 1626 | U114: 990 | V114: 38.1 | X114: junction box | Y114: 20 | Z114: www.accusolarcorp.com | AA114: - | AB114: - | AC114: - | AD114: - | AE114: - | AF114: =IF($O114="Sunpower Corp.",3,(IF(OR($Q114="mono",$Q114="poly",$Q114="HIT",$Q114="EFG",$Q114="mono-LGBC"),1,IF(OR($Q114="µc-Si / a-Si",$Q114="a-Si (single)",$Q114="a-Si (tandem)",$Q114="a-Si (triple)"),3,2)))) -> 1 | AG114: =IF($O114="Sunpower Corp.",3,(IF(OR($Q114="mono",$Q114="poly",$Q114="HIT",$Q114="EFG",$Q114="mono-LGBC"),1,2))) -> 1 | AH114: =IF($O114="Sunpower Corp.",3,(IF(OR($Q114="mono",$Q114="poly",$Q114="HIT",$Q114="EFG",$Q114="mono-LGBC"),1,IF(OR($Q114="µc-Si / a-Si",$Q114="a-Si (single)",$Q114="a-Si (tandem)",$Q114="a-Si (triple)"),3,2)))) -> 1 | AI114: 0 | AL114: 16575 | AO114: 112
A115: Accusolarpower Co., Ltd. ASP610-A(220W) | B115: Accusolarpower Co., Ltd. | C115: ASP610-A(220W) | D115: 220 | E115: +3...-3 | F115: 29.2 | G115: 7.54 | H115: 36.9 | I115: 8.13 | J115: -125.46 | K115: 7.317 | L115: -0.37 | M115: 1000 | P115: 13.66679955 | Q115: poly | R115: 60 | S115: square | T115: 1626 | U115: 990 | V115: 38.1 | X115: junction box | Y115: 20 | Z115: www.accusolarcorp.com | AA115: - | AB115: - | AC115: - | AD115: - | AE115: - | AF115: =IF($O115="Sunpower Corp.",3,(IF(OR($Q115="mono",$Q115="poly",$Q115="HIT",$Q115="EFG",$Q115="mono-LGBC"),1,IF(OR($Q115="µc-Si / a-Si",$Q115="a-Si (single)",$Q115="a-Si (tandem)",$Q115="a-Si (triple)"),3,2)))) -> 1 | AG115: =IF($O115="Sunpower Corp.",3,(IF(OR($Q115="mono",$Q115="poly",$Q115="HIT",$Q115="EFG",$Q115="mono-LGBC"),1,2))) -> 1 | AH115: =IF($O115="Sunpower Corp.",3,(IF(OR($Q115="mono",$Q115="poly",$Q115="HIT",$Q115="EFG",$Q115="mono-LGBC"),1,IF(OR($Q115="µc-Si / a-Si",$Q115="a-Si (single)",$Q115="a-Si (tandem)",$Q115="a-Si (triple)"),3,2)))) -> 1 | AI115: 0 | AL115: 16576 | AO115: 113
A116: Accusolarpower Co., Ltd. ASP610-A(225W) | B116: Accusolarpower Co., Ltd. | C116: ASP610-A(225W) | D116: 225 | E116: +3...-3 | F116: 29.34 | G116: 7.67 | H116: 37.08 | I116: 8.27 | J116: -126.072 | K116: 7.443 | L116: -0.37 | M116: 1000 | P116: 13.97741032 | Q116: poly | R116: 60 | S116: square | T116: 1626 | U116: 990 | V116: 38.1 | X116: junction box | Y116: 20 | Z116: www.accusolarcorp.com | AA116: - | AB116: - | AC116: - | AD116: - | AE116: - | AF116: =IF($O116="Sunpower Corp.",3,(IF(OR($Q116="mono",$Q116="poly",$Q116="HIT",$Q116="EFG",$Q116="mono-LGBC"),1,IF(OR($Q116="µc-Si / a-Si",$Q116="a-Si (single)",$Q116="a-Si (tandem)",$Q116="a-Si (triple)"),3,2)))) -> 1 | AG116: =IF($O116="Sunpower Corp.",3,(IF(OR($Q116="mono",$Q116="poly",$Q116="HIT",$Q116="EFG",$Q116="mono-LGBC"),1,2))) -> 1 | AH116: =IF($O116="Sunpower Corp.",3,(IF(OR($Q116="mono",$Q116="poly",$Q116="HIT",$Q116="EFG",$Q116="mono-LGBC"),1,IF(OR($Q116="µc-Si / a-Si",$Q116="a-Si (single)",$Q116="a-Si (tandem)",$Q116="a-Si (triple)"),3,2)))) -> 1 | AI116: 0 | AL116: 16577 | AO116: 114
A117: Accusolarpower Co., Ltd. ASP610-A(230W) | B117: Accusolarpower Co., Ltd. | C117: ASP610-A(230W) | D117: 230 | E117: +3...-3 | F117: 29.49 | G117: 7.8 | H117: 37.2 | I117: 8.39 | J117: -126.48 | K117: 7.551 | L117: -0.37 | M117: 1000 | P117: 14.28802013 | Q117: poly | R117: 60 | S117: square | T117: 1626 | U117: 990 | V117: 38.1 | X117: junction box | Y117: 20 | Z117: www.accusolarcorp.com | AA117: - | AB117: - | AC117: - | AD117: - | AE117: - | AF117: =IF($O117="Sunpower Corp.",3,(IF(OR($Q117="mono",$Q117="poly",$Q117="HIT",$Q117="EFG",$Q117="mono-LGBC"),1,IF(OR($Q117="µc-Si / a-Si",$Q117="a-Si (single)",$Q117="a-Si (tandem)",$Q117="a-Si (triple)"),3,2)))) -> 1 | AG117: =IF($O117="Sunpower Corp.",3,(IF(OR($Q117="mono",$Q117="poly",$Q117="HIT",$Q117="EFG",$Q117="mono-LGBC"),1,2))) -> 1 | AH117: =IF($O117="Sunpower Corp.",3,(IF(OR($Q117="mono",$Q117="poly",$Q117="HIT",$Q117="EFG",$Q117="mono-LGBC"),1,IF(OR($Q117="µc-Si / a-Si",$Q117="a-Si (single)",$Q117="a-Si (tandem)",$Q117="a-Si (triple)"),3,2)))) -> 1 | AI117: 0 | AL117: 16578 | AO117: 115
A118: Accusolarpower Co., Ltd. ASP610-A(235W) | B118: Accusolarpower Co., Ltd. | C118: ASP610-A(235W) | D118: 235 | E118: +3...-3 | F118: 29.63 | G118: 7.93 | H118: 37.26 | I118: 8.45 | J118: -126.684 | K118: 7.605 | L118: -0.37 | M118: 1000 | P118: 14.59862995 | Q118: poly | R118: 60 | S118: square | T118: 1626 | U118: 990 | V118: 38.1 | X118: junction box | Y118: 20 | Z118: www.accusolarcorp.com | AA118: - | AB118: - | AC118: - | AD118: - | AE118: - | AF118: =IF($O118="Sunpower Corp.",3,(IF(OR($Q118="mono",$Q118="poly",$Q118="HIT",$Q118="EFG",$Q118="mono-LGBC"),1,IF(OR($Q118="µc-Si / a-Si",$Q118="a-Si (single)",$Q118="a-Si (tandem)",$Q118="a-Si (triple)"),3,2)))) -> 1 | AG118: =IF($O118="Sunpower Corp.",3,(IF(OR($Q118="mono",$Q118="poly",$Q118="HIT",$Q118="EFG",$Q118="mono-LGBC"),1,2))) -> 1 | AH118: =IF($O118="Sunpower Corp.",3,(IF(OR($Q118="mono",$Q118="poly",$Q118="HIT",$Q118="EFG",$Q118="mono-LGBC"),1,IF(OR($Q118="µc-Si / a-Si",$Q118="a-Si (single)",$Q118="a-Si (tandem)",$Q118="a-Si (triple)"),3,2)))) -> 1 | AI118: 0 | AL118: 16579 | AO118: 116
A119: Accusolarpower Co., Ltd. ASP610-A(240W) | B119: Accusolarpower Co., Ltd. | C119: ASP610-A(240W) | D119: 240 | E119: +3...-3 | F119: 29.77 | G119: 8.06 | H119: 37.38 | I119: 8.57 | J119: -127.092 | K119: 7.713 | L119: -0.37 | M119: 1000 | P119: 14.90923977 | Q119: poly | R119: 60 | S119: square | T119: 1626 | U119: 990 | V119: 38.1 | X119: junction box | Y119: 20 | Z119: www.accusolarcorp.com | AA119: - | AB119: - | AC119: - | AD119: - | AE119: - | AF119: =IF($O119="Sunpower Corp.",3,(IF(OR($Q119="mono",$Q119="poly",$Q119="HIT",$Q119="EFG",$Q119="mono-LGBC"),1,IF(OR($Q119="µc-Si / a-Si",$Q119="a-Si (single)",$Q119="a-Si (tandem)",$Q119="a-Si (triple)"),3,2)))) -> 1 | AG119: =IF($O119="Sunpower Corp.",3,(IF(OR($Q119="mono",$Q119="poly",$Q119="HIT",$Q119="EFG",$Q119="mono-LGBC"),1,2))) -> 1 | AH119: =IF($O119="Sunpower Corp.",3,(IF(OR($Q119="mono",$Q119="poly",$Q119="HIT",$Q119="EFG",$Q119="mono-LGBC"),1,IF(OR($Q119="µc-Si / a-Si",$Q119="a-Si (single)",$Q119="a-Si (tandem)",$Q119="a-Si (triple)"),3,2)))) -> 1 | AI119: 0 | AL119: 16580 | AO119: 117
A120: Accusolarpower Co., Ltd. ASP612-B(160W) | B120: Accusolarpower Co., Ltd. | C120: ASP612-B(160W) | D120: 160 | E120: +3...-3 | F120: 35.1 | G120: 4.56 | H120: 43.56 | I120: 4.95 | J120: -148.104 | K120: 4.455 | L120: -0.37 | M120: 1000 | P120: 12.51741028 | Q120: mono | R120: 72 | S120: pseudo-square | T120: 1580 | U120: 809 | V120: 38.1 | X120: junction box | Y120: 14.9 | Z120: www.accusolarcorp.com | AA120: - | AB120: - | AC120: - | AD120: - | AE120: - | AF120: =IF($O120="Sunpower Corp.",3,(IF(OR($Q120="mono",$Q120="poly",$Q120="HIT",$Q120="EFG",$Q120="mono-LGBC"),1,IF(OR($Q120="µc-Si / a-Si",$Q120="a-Si (single)",$Q120="a-Si (tandem)",$Q120="a-Si (triple)"),3,2)))) -> 1 | AG120: =IF($O120="Sunpower Corp.",3,(IF(OR($Q120="mono",$Q120="poly",$Q120="HIT",$Q120="EFG",$Q120="mono-LGBC"),1,2))) -> 1 | AH120: =IF($O120="Sunpower Corp.",3,(IF(OR($Q120="mono",$Q120="poly",$Q120="HIT",$Q120="EFG",$Q120="mono-LGBC"),1,IF(OR($Q120="µc-Si / a-Si",$Q120="a-Si (single)",$Q120="a-Si (tandem)",$Q120="a-Si (triple)"),3,2)))) -> 1 | AI120: 0 | AL120: 16581 | AO120: 118
A121: Accusolarpower Co., Ltd. ASP612-B(165W) | B121: Accusolarpower Co., Ltd. | C121: ASP612-B(165W) | D121: 165 | E121: +3...-3 | F121: 35.3 | G121: 4.58 | H121: 43.84 | I121: 5.08 | J121: -149.056 | K121: 4.572 | L121: -0.37 | M121: 1000 | P121: 12.90857983 | Q121: mono | R121: 72 | S121: pseudo-square | T121: 1580 | U121: 809 | V121: 38.1 | X121: junction box | Y121: 14.9 | Z121: www.accusolarcorp.com | AA121: - | AB121: - | AC121: - | AD121: - | AE121: - | AF121: =IF($O121="Sunpower Corp.",3,(IF(OR($Q121="mono",$Q121="poly",$Q121="HIT",$Q121="EFG",$Q121="mono-LGBC"),1,IF(OR($Q121="µc-Si / a-Si",$Q121="a-Si (single)",$Q121="a-Si (tandem)",$Q121="a-Si (triple)"),3,2)))) -> 1 | AG121: =IF($O121="Sunpower Corp.",3,(IF(OR($Q121="mono",$Q121="poly",$Q121="HIT",$Q121="EFG",$Q121="mono-LGBC"),1,2))) -> 1 | AH121: =IF($O121="Sunpower Corp.",3,(IF(OR($Q121="mono",$Q121="poly",$Q121="HIT",$Q121="EFG",$Q121="mono-LGBC"),1,IF(OR($Q121="µc-Si / a-Si",$Q121="a-Si (single)",$Q121="a-Si (tandem)",$Q121="a-Si (triple)"),3,2)))) -> 1 | AI121: 0 | AL121: 16582 | AO121: 119
A122: Accusolarpower Co., Ltd. ASP612-B(170W) | B122: Accusolarpower Co., Ltd. | C122: ASP612-B(170W) | D122: 170 | E122: +3...-3 | F122: 35.5 | G122: 4.79 | H122: 44.06 | I122: 5.17 | J122: -149.804 | K122: 4.653 | L122: -0.37 | M122: 1000 | P122: 13.29973984 | Q122: mono | R122: 72 | S122: pseudo-square | T122: 1580 | U122: 809 | V122: 38.1 | X122: junction box | Y122: 14.9 | Z122: www.accusolarcorp.com | AA122: - | AB122: - | AC122: - | AD122: - | AE122: - | AF122: =IF($O122="Sunpower Corp.",3,(IF(OR($Q122="mono",$Q122="poly",$Q122="HIT",$Q122="EFG",$Q122="mono-LGBC"),1,IF(OR($Q122="µc-Si / a-Si",$Q122="a-Si (single)",$Q122="a-Si (tandem)",$Q122="a-Si (triple)"),3,2)))) -> 1 | AG122: =IF($O122="Sunpower Corp.",3,(IF(OR($Q122="mono",$Q122="poly",$Q122="HIT",$Q122="EFG",$Q122="mono-LGBC"),1,2))) -> 1 | AH122: =IF($O122="Sunpower Corp.",3,(IF(OR($Q122="mono",$Q122="poly",$Q122="HIT",$Q122="EFG",$Q122="mono-LGBC"),1,IF(OR($Q122="µc-Si / a-Si",$Q122="a-Si (single)",$Q122="a-Si (tandem)",$Q122="a-Si (triple)"),3,2)))) -> 1 | AI122: 0 | AL122: 16583 | AO122: 120
A123: Accusolarpower Co., Ltd. ASP612-B(175W) | B123: Accusolarpower Co., Ltd. | C123: ASP612-B(175W) | D123: 175 | E123: +3...-3 | F123: 35.8 | G123: 4.89 | H123: 44.42 | I123: 5.29 | J123: -151.028 | K123: 4.761 | L123: -0.37 | M123: 1000 | P123: 13.69091034 | Q123: mono | R123: 72 | S123: pseudo-square | T123: 1580 | U123: 809 | V123: 38.1 | X123: junction box | Y123: 14.9 | Z123: www.accusolarcorp.com | AA123: - | AB123: - | AC123: - | AD123: - | AE123: - | AF123: =IF($O123="Sunpower Corp.",3,(IF(OR($Q123="mono",$Q123="poly",$Q123="HIT",$Q123="EFG",$Q123="mono-LGBC"),1,IF(OR($Q123="µc-Si / a-Si",$Q123="a-Si (single)",$Q123="a-Si (tandem)",$Q123="a-Si (triple)"),3,2)))) -> 1 | AG123: =IF($O123="Sunpower Corp.",3,(IF(OR($Q123="mono",$Q123="poly",$Q123="HIT",$Q123="EFG",$Q123="mono-LGBC"),1,2))) -> 1 | AH123: =IF($O123="Sunpower Corp.",3,(IF(OR($Q123="mono",$Q123="poly",$Q123="HIT",$Q123="EFG",$Q123="mono-LGBC"),1,IF(OR($Q123="µc-Si / a-Si",$Q123="a-Si (single)",$Q123="a-Si (tandem)",$Q123="a-Si (triple)"),3,2)))) -> 1 | AI123: 0 | AL123: 16584 | AO123: 121
A124: Accusolarpower Co., Ltd. ASP612-B(180W) | B124: Accusolarpower Co., Ltd. | C124: ASP612-B(180W) | D124: 180 | E124: +3...-3 | F124: 36 | G124: 5.01 | H124: 44.7 | I124: 5.35 | J124: -151.98 | K124: 4.815 | L124: -0.37 | M124: 1000 | P124: 14.08207989 | Q124: mono | R124: 72 | S124: pseudo-square | T124: 1580 | U124: 809 | V124: 38.1 | X124: junction box | Y124: 14.9 | Z124: www.accusolarcorp.com | AA124: - | AB124: - | AC124: - | AD124: - | AE124: - | AF124: =IF($O124="Sunpower Corp.",3,(IF(OR($Q124="mono",$Q124="poly",$Q124="HIT",$Q124="EFG",$Q124="mono-LGBC"),1,IF(OR($Q124="µc-Si / a-Si",$Q124="a-Si (single)",$Q124="a-Si (tandem)",$Q124="a-Si (triple)"),3,2)))) -> 1 | AG124: =IF($O124="Sunpower Corp.",3,(IF(OR($Q124="mono",$Q124="poly",$Q124="HIT",$Q124="EFG",$Q124="mono-LGBC"),1,2))) -> 1 | AH124: =IF($O124="Sunpower Corp.",3,(IF(OR($Q124="mono",$Q124="poly",$Q124="HIT",$Q124="EFG",$Q124="mono-LGBC"),1,IF(OR($Q124="µc-Si / a-Si",$Q124="a-Si (single)",$Q124="a-Si (tandem)",$Q124="a-Si (triple)"),3,2)))) -> 1 | AI124: 0 | AL124: 16585 | AO124: 122
A125: Accusolarpower Co., Ltd. ASP612-B(185W) | B125: Accusolarpower Co., Ltd. | C125: ASP612-B(185W) | D125: 185 | E125: +3...-3 | F125: 36.1 | G125: 5.14 | H125: 45.1 | I125: 5.43 | J125: -153.34 | K125: 4.887 | L125: -0.37 | M125: 1000 | P125: 14.47325039 | Q125: mono | R125: 72 | S125: pseudo-square | T125: 1580 | U125: 809 | V125: 38.1 | X125: junction box | Y125: 14.9 | Z125: www.accusolarcorp.com | AA125: - | AB125: - | AC125: - | AD125: - | AE125: - | AF125: =IF($O125="Sunpower Corp.",3,(IF(OR($Q125="mono",$Q125="poly",$Q125="HIT",$Q125="EFG",$Q125="mono-LGBC"),1,IF(OR($Q125="µc-Si / a-Si",$Q125="a-Si (single)",$Q125="a-Si (tandem)",$Q125="a-Si (triple)"),3,2)))) -> 1 | AG125: =IF($O125="Sunpower Corp.",3,(IF(OR($Q125="mono",$Q125="poly",$Q125="HIT",$Q125="EFG",$Q125="mono-LGBC"),1,2))) -> 1 | AH125: =IF($O125="Sunpower Corp.",3,(IF(OR($Q125="mono",$Q125="poly",$Q125="HIT",$Q125="EFG",$Q125="mono-LGBC"),1,IF(OR($Q125="µc-Si / a-Si",$Q125="a-Si (single)",$Q125="a-Si (tandem)",$Q125="a-Si (triple)"),3,2)))) -> 1 | AI125: 0 | AL125: 16586 | AO125: 123
A126: AD Solar Energy (China) AD 125x92,2-35m 55W | B126: AD Solar Energy (China) | C126: AD 125x92,2-35m 55W | D126: 55 | E126: +3...-3 | F126: 17.1 | G126: 3.22 | H126: 21 | I126: 3.76 | J126: -73.5 | K126: 1.504 | L126: -0.5 | M126: 1000 | P126: 11.31221962 | Q126: mono | T126: 715 | U126: 680 | V126: 40 | W126: aluminum | X126: junction box | Y126: 6.5 | Z126: www.adsolarchina.com | AA126: - | AB126: - | AC126: - | AD126: - | AE126: - | AF126: =IF($O126="Sunpower Corp.",3,(IF(OR($Q126="mono",$Q126="poly",$Q126="HIT",$Q126="EFG",$Q126="mono-LGBC"),1,IF(OR($Q126="µc-Si / a-Si",$Q126="a-Si (single)",$Q126="a-Si (tandem)",$Q126="a-Si (triple)"),3,2)))) -> 1 | AG126: =IF($O126="Sunpower Corp.",3,(IF(OR($Q126="mono",$Q126="poly",$Q126="HIT",$Q126="EFG",$Q126="mono-LGBC"),1,2))) -> 1 | AH126: =IF($O126="Sunpower Corp.",3,(IF(OR($Q126="mono",$Q126="poly",$Q126="HIT",$Q126="EFG",$Q126="mono-LGBC"),1,IF(OR($Q126="µc-Si / a-Si",$Q126="a-Si (single)",$Q126="a-Si (tandem)",$Q126="a-Si (triple)"),3,2)))) -> 1 | AI126: 0 | AL126: 26191 | AO126: 124
A127: AD Solar Energy (China) AD 125x92,2-35m 60W | B127: AD Solar Energy (China) | C127: AD 125x92,2-35m 60W | D127: 60 | E127: +3...-3 | F127: 17.1 | G127: 3.45 | H127: 21.3 | I127: 3.9 | J127: -74.55 | K127: 1.56 | L127: -0.5 | M127: 1000 | P127: 12.34060001 | Q127: mono | R127: 35 | T127: 715 | U127: 680 | V127: 40 | W127: aluminum | X127: junction box | Y127: 6.5 | Z127: www.adsolarchina.com | AA127: - | AB127: - | AC127: - | AD127: - | AE127: - | AF127: =IF($O127="Sunpower Corp.",3,(IF(OR($Q127="mono",$Q127="poly",$Q127="HIT",$Q127="EFG",$Q127="mono-LGBC"),1,IF(OR($Q127="µc-Si / a-Si",$Q127="a-Si (single)",$Q127="a-Si (tandem)",$Q127="a-Si (triple)"),3,2)))) -> 1 | AG127: =IF($O127="Sunpower Corp.",3,(IF(OR($Q127="mono",$Q127="poly",$Q127="HIT",$Q127="EFG",$Q127="mono-LGBC"),1,2))) -> 1 | AH127: =IF($O127="Sunpower Corp.",3,(IF(OR($Q127="mono",$Q127="poly",$Q127="HIT",$Q127="EFG",$Q127="mono-LGBC"),1,IF(OR($Q127="µc-Si / a-Si",$Q127="a-Si (single)",$Q127="a-Si (tandem)",$Q127="a-Si (triple)"),3,2)))) -> 1 | AI127: 0 | AL127: 26138 | AO127: 125
A128: AD Solar Energy (China) AD 125x92,2-70m 110W | B128: AD Solar Energy (China) | C128: AD 125x92,2-70m 110W | D128: 110 | E128: +3...-3 | F128: 34.2 | G128: 3.22 | H128: 42 | I128: 3.76 | J128: -147 | K128: 1.504 | L128: -0.35 | M128: 1000 | P128: 11.72208023 | Q128: mono | T128: 1380 | U128: 680 | V128: 40 | W128: aluminum | X128: junction box | Y128: 12 | Z128: www.adsolarchina.com | AA128: - | AB128: - | AC128: - | AD128: - | AE128: - | AF128: =IF($O128="Sunpower Corp.",3,(IF(OR($Q128="mono",$Q128="poly",$Q128="HIT",$Q128="EFG",$Q128="mono-LGBC"),1,IF(OR($Q128="µc-Si / a-Si",$Q128="a-Si (single)",$Q128="a-Si (tandem)",$Q128="a-Si (triple)"),3,2)))) -> 1 | AG128: =IF($O128="Sunpower Corp.",3,(IF(OR($Q128="mono",$Q128="poly",$Q128="HIT",$Q128="EFG",$Q128="mono-LGBC"),1,2))) -> 1 | AH128: =IF($O128="Sunpower Corp.",3,(IF(OR($Q128="mono",$Q128="poly",$Q128="HIT",$Q128="EFG",$Q128="mono-LGBC"),1,IF(OR($Q128="µc-Si / a-Si",$Q128="a-Si (single)",$Q128="a-Si (tandem)",$Q128="a-Si (triple)"),3,2)))) -> 1 | AI128: 0 | AL128: 26133 | AO128: 126
A129: AD Solar Energy (China) AD 125x92,2-70m 120W | B129: AD Solar Energy (China) | C129: AD 125x92,2-70m 120W | D129: 120 | E129: +3...-3 | F129: 34.8 | G129: 3.45 | H129: 42.6 | I129: 3.9 | J129: -149.1 | K129: 1.56 | L129: -0.5 | M129: 1000 | P129: 12.78771973 | Q129: mono | T129: 1380 | U129: 680 | V129: 40 | W129: aluminum | X129: junction box | Y129: 12 | Z129: www.adsolarchina.com | AA129: - | AB129: - | AC129: - | AD129: - | AE129: - | AF129: =IF($O129="Sunpower Corp.",3,(IF(OR($Q129="mono",$Q129="poly",$Q129="HIT",$Q129="EFG",$Q129="mono-LGBC"),1,IF(OR($Q129="µc-Si / a-Si",$Q129="a-Si (single)",$Q129="a-Si (tandem)",$Q129="a-Si (triple)"),3,2)))) -> 1 | AG129: =IF($O129="Sunpower Corp.",3,(IF(OR($Q129="mono",$Q129="poly",$Q129="HIT",$Q129="EFG",$Q129="mono-LGBC"),1,2))) -> 1 | AH129: =IF($O129="Sunpower Corp.",3,(IF(OR($Q129="mono",$Q129="poly",$Q129="HIT",$Q129="EFG",$Q129="mono-LGBC"),1,IF(OR($Q129="µc-Si / a-Si",$Q129="a-Si (single)",$Q129="a-Si (tandem)",$Q129="a-Si (triple)"),3,2)))) -> 1 | AI129: 0 | AL129: 26132 | AO129: 127
A130: Advanced Green Technologies PVL-144 | B130: Advanced Green Technologies | C130: PVL-144 | D130: 144 | E130: +5...-5 | F130: 33 | G130: 4.36 | H130: 46.2 | I130: 5.3 | J130: -175.56 | K130: 5.3 | L130: -0.21 | M130: 1000 | O130: United Solar Ovonic LLC | P130: 6.662088871 | Q130: a-Si | R130: 22 | S130: rectangular | T130: 5486 | U130: 394 | V130: 4 | W130: frameless | X130: cable | Y130: 7.7 | Z130: www.agt.com | AA130: - | AB130: - | AC130: - | AD130: - | AE130: - | AF130: =IF($O130="Sunpower Corp.",3,(IF(OR($Q130="mono",$Q130="poly",$Q130="HIT",$Q130="EFG",$Q130="mono-LGBC"),1,IF(OR($Q130="µc-Si / a-Si",$Q130="a-Si (single)",$Q130="a-Si (tandem)",$Q130="a-Si (triple)"),3,2)))) -> 2 | AG130: =IF($O130="Sunpower Corp.",3,(IF(OR($Q130="mono",$Q130="poly",$Q130="HIT",$Q130="EFG",$Q130="mono-LGBC"),1,2))) -> 2 | AH130: =IF($O130="Sunpower Corp.",3,(IF(OR($Q130="mono",$Q130="poly",$Q130="HIT",$Q130="EFG",$Q130="mono-LGBC"),1,IF(OR($Q130="µc-Si / a-Si",$Q130="a-Si (single)",$Q130="a-Si (tandem)",$Q130="a-Si (triple)"),3,2)))) -> 2 | AI130: 0 | AL130: 21790 | AO130: 128
A131: Advanced Solar Photonics AP-220PK | B131: Advanced Solar Photonics | C131: AP-220PK | D131: 220 | E131: +3...-3 | F131: 29.07 | G131: 7.57 | H131: 36.46 | I131: 8.12 | J131: -123.964 | K131: 4.872 | L131: -0.4 | P131: 13.44089985 | Q131: poly | R131: 60 | S131: square | T131: 1655 | U131: 989 | V131: 39 | W131: aluminum | X131: junction box | Y131: 19.6 | Z131: www.advancedsolarphotonics.com | AA131: - | AB131: - | AC131: - | AD131: - | AE131: - | AF131: =IF($O131="Sunpower Corp.",3,(IF(OR($Q131="mono",$Q131="poly",$Q131="HIT",$Q131="EFG",$Q131="mono-LGBC"),1,IF(OR($Q131="µc-Si / a-Si",$Q131="a-Si (single)",$Q131="a-Si (tandem)",$Q131="a-Si (triple)"),3,2)))) -> 1 | AG131: =IF($O131="Sunpower Corp.",3,(IF(OR($Q131="mono",$Q131="poly",$Q131="HIT",$Q131="EFG",$Q131="mono-LGBC"),1,2))) -> 1 | AH131: =IF($O131="Sunpower Corp.",3,(IF(OR($Q131="mono",$Q131="poly",$Q131="HIT",$Q131="EFG",$Q131="mono-LGBC"),1,IF(OR($Q131="µc-Si / a-Si",$Q131="a-Si (single)",$Q131="a-Si (tandem)",$Q131="a-Si (triple)"),3,2)))) -> 1 | AI131: 0 | AL131: 25026 | AO131: 129
A132: Advanced Solar Photonics AP-225PK | B132: Advanced Solar Photonics | C132: AP-225PK | D132: 225 | E132: +3...-3 | F132: 29.44 | G132: 7.65 | H132: 36.66 | I132: 8.21 | J132: -124.644 | K132: 4.926 | L132: -0.4 | P132: 13.74637985 | Q132: poly | R132: 60 | S132: square | T132: 1655 | U132: 989 | V132: 39 | W132: aluminum | X132: junction box | Y132: 19.6 | Z132: www.advancedsolarphotonics.com | AA132: - | AB132: - | AC132: - | AD132: - | AE132: - | AF132: =IF($O132="Sunpower Corp.",3,(IF(OR($Q132="mono",$Q132="poly",$Q132="HIT",$Q132="EFG",$Q132="mono-LGBC"),1,IF(OR($Q132="µc-Si / a-Si",$Q132="a-Si (single)",$Q132="a-Si (tandem)",$Q132="a-Si (triple)"),3,2)))) -> 1 | AG132: =IF($O132="Sunpower Corp.",3,(IF(OR($Q132="mono",$Q132="poly",$Q132="HIT",$Q132="EFG",$Q132="mono-LGBC"),1,2))) -> 1 | AH132: =IF($O132="Sunpower Corp.",3,(IF(OR($Q132="mono",$Q132="poly",$Q132="HIT",$Q132="EFG",$Q132="mono-LGBC"),1,IF(OR($Q132="µc-Si / a-Si",$Q132="a-Si (single)",$Q132="a-Si (tandem)",$Q132="a-Si (triple)"),3,2)))) -> 1 | AI132: 0 | AL132: 25027 | AO132: 130
A133: Advanced Solar Photonics AP-230PK | B133: Advanced Solar Photonics | C133: AP-230PK | D133: 230 | E133: +3...-3 | F133: 29.81 | G133: 7.72 | H133: 36.86 | I133: 8.3 | J133: -125.324 | K133: 4.98 | L133: -0.4 | P133: 14.05185032 | Q133: poly | R133: 60 | S133: square | T133: 1655 | U133: 989 | V133: 39 | W133: aluminum | X133: junction box | Y133: 19.6 | Z133: www.advancedsolarphotonics.com | AA133: - | AB133: - | AC133: - | AD133: - | AE133: - | AF133: =IF($O133="Sunpower Corp.",3,(IF(OR($Q133="mono",$Q133="poly",$Q133="HIT",$Q133="EFG",$Q133="mono-LGBC"),1,IF(OR($Q133="µc-Si / a-Si",$Q133="a-Si (single)",$Q133="a-Si (tandem)",$Q133="a-Si (triple)"),3,2)))) -> 1 | AG133: =IF($O133="Sunpower Corp.",3,(IF(OR($Q133="mono",$Q133="poly",$Q133="HIT",$Q133="EFG",$Q133="mono-LGBC"),1,2))) -> 1 | AH133: =IF($O133="Sunpower Corp.",3,(IF(OR($Q133="mono",$Q133="poly",$Q133="HIT",$Q133="EFG",$Q133="mono-LGBC"),1,IF(OR($Q133="µc-Si / a-Si",$Q133="a-Si (single)",$Q133="a-Si (tandem)",$Q133="a-Si (triple)"),3,2)))) -> 1 | AI133: 0 | AL133: 25028 | AO133: 131
A134: Advanced Solar Photonics AP-235PK | B134: Advanced Solar Photonics | C134: AP-235PK | D134: 235 | E134: +3...-3 | F134: 30.18 | G134: 7.79 | H134: 37.06 | I134: 8.39 | J134: -126.004 | K134: 5.034 | L134: -0.4 | P134: 14.35733032 | Q134: poly | R134: 60 | S134: square | T134: 1655 | U134: 989 | V134: 39 | W134: aluminum | X134: junction box | Y134: 19.6 | Z134: www.advancedsolarphotonics.com | AA134: - | AB134: - | AC134: - | AD134: - | AE134: - | AF134: =IF($O134="Sunpower Corp.",3,(IF(OR($Q134="mono",$Q134="poly",$Q134="HIT",$Q134="EFG",$Q134="mono-LGBC"),1,IF(OR($Q134="µc-Si / a-Si",$Q134="a-Si (single)",$Q134="a-Si (tandem)",$Q134="a-Si (triple)"),3,2)))) -> 1 | AG134: =IF($O134="Sunpower Corp.",3,(IF(OR($Q134="mono",$Q134="poly",$Q134="HIT",$Q134="EFG",$Q134="mono-LGBC"),1,2))) -> 1 | AH134: =IF($O134="Sunpower Corp.",3,(IF(OR($Q134="mono",$Q134="poly",$Q134="HIT",$Q134="EFG",$Q134="mono-LGBC"),1,IF(OR($Q134="µc-Si / a-Si",$Q134="a-Si (single)",$Q134="a-Si (tandem)",$Q134="a-Si (triple)"),3,2)))) -> 1 | AI134: 0 | AL134: 25029 | AO134: 132
A135: Advanced Solar Photonics AP-240PK | B135: Advanced Solar Photonics | C135: AP-240PK | D135: 240 | E135: +3...-3 | F135: 30.54 | G135: 7.87 | H135: 37.26 | I135: 8.48 | J135: -126.684 | K135: 5.088 | L135: -0.4 | P135: 14.66279984 | Q135: poly | R135: 60 | S135: square | T135: 1655 | U135: 989 | V135: 39 | W135: aluminum | X135: junction box | Y135: 19.6 | Z135: www.advancedsolarphotonics.com | AA135: - | AB135: - | AC135: - | AD135: - | AE135: - | AF135: =IF($O135="Sunpower Corp.",3,(IF(OR($Q135="mono",$Q135="poly",$Q135="HIT",$Q135="EFG",$Q135="mono-LGBC"),1,IF(OR($Q135="µc-Si / a-Si",$Q135="a-Si (single)",$Q135="a-Si (tandem)",$Q135="a-Si (triple)"),3,2)))) -> 1 | AG135: =IF($O135="Sunpower Corp.",3,(IF(OR($Q135="mono",$Q135="poly",$Q135="HIT",$Q135="EFG",$Q135="mono-LGBC"),1,2))) -> 1 | AH135: =IF($O135="Sunpower Corp.",3,(IF(OR($Q135="mono",$Q135="poly",$Q135="HIT",$Q135="EFG",$Q135="mono-LGBC"),1,IF(OR($Q135="µc-Si / a-Si",$Q135="a-Si (single)",$Q135="a-Si (tandem)",$Q135="a-Si (triple)"),3,2)))) -> 1 | AI135: 0 | AL135: 25030 | AO135: 133
A136: Advanced Solar Photonics ASP-138SM | B136: Advanced Solar Photonics | C136: ASP-138SM | D136: 138 | E136: +3...-3 | F136: 17 | G136: 8.72 | H136: 21 | I136: 8.72 | J136: -73.5 | K136: 2.616 | L136: -0.46 | P136: 14.81322002 | Q136: mono | R136: 32 | S136: pseudo-square | T136: 1370 | U136: 680 | V136: 6 | W136: frameless | X136: junction box MC4 | Y136: 8.2 | Z136: www.advancedsolarphotonics.com | AA136: - | AB136: - | AC136: - | AD136: - | AE136: - | AF136: =IF($O136="Sunpower Corp.",3,(IF(OR($Q136="mono",$Q136="poly",$Q136="HIT",$Q136="EFG",$Q136="mono-LGBC"),1,IF(OR($Q136="µc-Si / a-Si",$Q136="a-Si (single)",$Q136="a-Si (tandem)",$Q136="a-Si (triple)"),3,2)))) -> 1 | AG136: =IF($O136="Sunpower Corp.",3,(IF(OR($Q136="mono",$Q136="poly",$Q136="HIT",$Q136="EFG",$Q136="mono-LGBC"),1,2))) -> 1 | AH136: =IF($O136="Sunpower Corp.",3,(IF(OR($Q136="mono",$Q136="poly",$Q136="HIT",$Q136="EFG",$Q136="mono-LGBC"),1,IF(OR($Q136="µc-Si / a-Si",$Q136="a-Si (single)",$Q136="a-Si (tandem)",$Q136="a-Si (triple)"),3,2)))) -> 1 | AI136: 0 | AL136: 26849 | AO136: 134
A137: Advanced Solar Photonics ASP-230M | B137: Advanced Solar Photonics | C137: ASP-230M | D137: 230 | E137: +3...-3 | F137: 30 | G137: 7.67 | H137: 36 | I137: 8.59 | J137: -122.4 | K137: 7.731 | L137: -0.37 | P137: 14.05181026 | Q137: mono | R137: 60 | S137: pseudo-square | T137: 1650 | U137: 992 | V137: 46 | W137: aluminum | X137: junction box MC4 | Y137: 18.5 | Z137: www.advancedsolarphotonics.com | AA137: - | AB137: - | AC137: - | AD137: - | AE137: - | AF137: =IF($O137="Sunpower Corp.",3,(IF(OR($Q137="mono",$Q137="poly",$Q137="HIT",$Q137="EFG",$Q137="mono-LGBC"),1,IF(OR($Q137="µc-Si / a-Si",$Q137="a-Si (single)",$Q137="a-Si (tandem)",$Q137="a-Si (triple)"),3,2)))) -> 1 | AG137: =IF($O137="Sunpower Corp.",3,(IF(OR($Q137="mono",$Q137="poly",$Q137="HIT",$Q137="EFG",$Q137="mono-LGBC"),1,2))) -> 1 | AH137: =IF($O137="Sunpower Corp.",3,(IF(OR($Q137="mono",$Q137="poly",$Q137="HIT",$Q137="EFG",$Q137="mono-LGBC"),1,IF(OR($Q137="µc-Si / a-Si",$Q137="a-Si (single)",$Q137="a-Si (tandem)",$Q137="a-Si (triple)"),3,2)))) -> 1 | AI137: 0 | AL137: 25031 | AO137: 135
A138: Advanced Solar Photonics ASP-235M | B138: Advanced Solar Photonics | C138: ASP-235M | D138: 235 | E138: +3...-3 | F138: 30 | G138: 7.83 | H138: 36 | I138: 8.77 | J138: -122.4 | K138: 7.893 | L138: -0.37 | P138: 14.35727978 | Q138: mono | R138: 60 | S138: pseudo-square | T138: 1650 | U138: 992 | V138: 46 | W138: aluminum | X138: junction box MC4 | Y138: 18.5 | Z138: www.advancedsolarphotonics.com | AA138: - | AB138: - | AC138: - | AD138: - | AE138: - | AF138: =IF($O138="Sunpower Corp.",3,(IF(OR($Q138="mono",$Q138="poly",$Q138="HIT",$Q138="EFG",$Q138="mono-LGBC"),1,IF(OR($Q138="µc-Si / a-Si",$Q138="a-Si (single)",$Q138="a-Si (tandem)",$Q138="a-Si (triple)"),3,2)))) -> 1 | AG138: =IF($O138="Sunpower Corp.",3,(IF(OR($Q138="mono",$Q138="poly",$Q138="HIT",$Q138="EFG",$Q138="mono-LGBC"),1,2))) -> 1 | AH138: =IF($O138="Sunpower Corp.",3,(IF(OR($Q138="mono",$Q138="poly",$Q138="HIT",$Q138="EFG",$Q138="mono-LGBC"),1,IF(OR($Q138="µc-Si / a-Si",$Q138="a-Si (single)",$Q138="a-Si (tandem)",$Q138="a-Si (triple)"),3,2)))) -> 1 | AI138: 0 | AL138: 25032 | AO138: 136
A139: Advanced Solar Photonics ASP-240M | B139: Advanced Solar Photonics | C139: ASP-240M | D139: 240 | E139: +3...-3 | F139: 30 | G139: 8 | H139: 36 | I139: 8.96 | J139: -122.4 | K139: 8.064 | L139: -0.37 | P139: 14.66275978 | Q139: mono | R139: 60 | S139: pseudo-square | T139: 1650 | U139: 992 | V139: 46 | W139: aluminum | X139: junction box MC4 | Y139: 18.5 | Z139: www.advancedsolarphotonics.com | AA139: - | AB139: - | AC139: - | AD139: - | AE139: - | AF139: =IF($O139="Sunpower Corp.",3,(IF(OR($Q139="mono",$Q139="poly",$Q139="HIT",$Q139="EFG",$Q139="mono-LGBC"),1,IF(OR($Q139="µc-Si / a-Si",$Q139="a-Si (single)",$Q139="a-Si (tandem)",$Q139="a-Si (triple)"),3,2)))) -> 1 | AG139: =IF($O139="Sunpower Corp.",3,(IF(OR($Q139="mono",$Q139="poly",$Q139="HIT",$Q139="EFG",$Q139="mono-LGBC"),1,2))) -> 1 | AH139: =IF($O139="Sunpower Corp.",3,(IF(OR($Q139="mono",$Q139="poly",$Q139="HIT",$Q139="EFG",$Q139="mono-LGBC"),1,IF(OR($Q139="µc-Si / a-Si",$Q139="a-Si (single)",$Q139="a-Si (tandem)",$Q139="a-Si (triple)"),3,2)))) -> 1 | AI139: 0 | AL139: 25033 | AO139: 137
A140: Advanced Solar Photonics ASP-245M | B140: Advanced Solar Photonics | C140: ASP-245M | D140: 245 | E140: +3...-3 | F140: 30.6 | G140: 8.03 | H140: 36.7 | I140: 8.97 | J140: -124.78 | K140: 8.073 | L140: -0.37 | P140: 14.96823025 | Q140: mono | R140: 60 | S140: pseudo-square | T140: 1650 | U140: 992 | V140: 46 | W140: aluminum | X140: junction box MC4 | Y140: 18.5 | Z140: www.advancedsolarphotonics.com | AA140: - | AB140: - | AC140: - | AD140: - | AE140: - | AF140: =IF($O140="Sunpower Corp.",3,(IF(OR($Q140="mono",$Q140="poly",$Q140="HIT",$Q140="EFG",$Q140="mono-LGBC"),1,IF(OR($Q140="µc-Si / a-Si",$Q140="a-Si (single)",$Q140="a-Si (tandem)",$Q140="a-Si (triple)"),3,2)))) -> 1 | AG140: =IF($O140="Sunpower Corp.",3,(IF(OR($Q140="mono",$Q140="poly",$Q140="HIT",$Q140="EFG",$Q140="mono-LGBC"),1,2))) -> 1 | AH140: =IF($O140="Sunpower Corp.",3,(IF(OR($Q140="mono",$Q140="poly",$Q140="HIT",$Q140="EFG",$Q140="mono-LGBC"),1,IF(OR($Q140="µc-Si / a-Si",$Q140="a-Si (single)",$Q140="a-Si (tandem)",$Q140="a-Si (triple)"),3,2)))) -> 1 | AI140: 0 | AL140: 25034 | AO140: 138
A141: Advanced Solar Photonics ASP-250M | B141: Advanced Solar Photonics | C141: ASP-250M | D141: 250 | E141: +3...-3 | F141: 30.7 | G141: 8.14 | H141: 36.8 | I141: 8.99 | J141: -125.12 | K141: 8.091 | L141: -0.37 | P141: 15.27369976 | Q141: mono | R141: 60 | S141: pseudo-square | T141: 1650 | U141: 992 | V141: 46 | W141: aluminum | X141: junction box MC4 | Y141: 18.5 | Z141: www.advancedsolarphotonics.com | AA141: - | AB141: - | AC141: - | AD141: - | AE141: - | AF141: =IF($O141="Sunpower Corp.",3,(IF(OR($Q141="mono",$Q141="poly",$Q141="HIT",$Q141="EFG",$Q141="mono-LGBC"),1,IF(OR($Q141="µc-Si / a-Si",$Q141="a-Si (single)",$Q141="a-Si (tandem)",$Q141="a-Si (triple)"),3,2)))) -> 1 | AG141: =IF($O141="Sunpower Corp.",3,(IF(OR($Q141="mono",$Q141="poly",$Q141="HIT",$Q141="EFG",$Q141="mono-LGBC"),1,2))) -> 1 | AH141: =IF($O141="Sunpower Corp.",3,(IF(OR($Q141="mono",$Q141="poly",$Q141="HIT",$Q141="EFG",$Q141="mono-LGBC"),1,IF(OR($Q141="µc-Si / a-Si",$Q141="a-Si (single)",$Q141="a-Si (tandem)",$Q141="a-Si (triple)"),3,2)))) -> 1 | AI141: 0 | AL141: 25035 | AO141: 139
A142: Advanced Solar Photonics ASP-390M | B142: Advanced Solar Photonics | C142: ASP-390M | D142: 390 | E142: +2...-2 | F142: 49.38 | G142: 7.92 | H142: 59.62 | I142: 8.42 | J142: -238.48 | K142: 4.21 | L142: -0.5 | M142: 1000 | P142: 15.21251011 | Q142: mono | R142: 96 | S142: pseudo-square | T142: 1960 | U142: 1308 | V142: 40 | W142: aluminum | X142: junction box MC4 | Y142: 35.5 | Z142: www.advancedsolarphotonics.com | AA142: - | AB142: - | AC142: - | AD142: - | AE142: - | AF142: =IF($O142="Sunpower Corp.",3,(IF(OR($Q142="mono",$Q142="poly",$Q142="HIT",$Q142="EFG",$Q142="mono-LGBC"),1,IF(OR($Q142="µc-Si / a-Si",$Q142="a-Si (single)",$Q142="a-Si (tandem)",$Q142="a-Si (triple)"),3,2)))) -> 1 | AG142: =IF($O142="Sunpower Corp.",3,(IF(OR($Q142="mono",$Q142="poly",$Q142="HIT",$Q142="EFG",$Q142="mono-LGBC"),1,2))) -> 1 | AH142: =IF($O142="Sunpower Corp.",3,(IF(OR($Q142="mono",$Q142="poly",$Q142="HIT",$Q142="EFG",$Q142="mono-LGBC"),1,IF(OR($Q142="µc-Si / a-Si",$Q142="a-Si (single)",$Q142="a-Si (tandem)",$Q142="a-Si (triple)"),3,2)))) -> 1 | AI142: 0 | AL142: 26857 | AO142: 140
A143: Advanced Solar Photonics ASP-414IS | B143: Advanced Solar Photonics | C143: ASP-414IS | D143: 414 | E143: +3...-3 | F143: 50.6 | G143: 8.184 | H143: 60.6 | I143: 8.72 | J143: -212.1 | K143: 2.616 | L143: -0.46 | P143: 15.03431988 | Q143: mono | R143: 96 | S143: pseudo-square | T143: 2010 | U143: 1370 | V143: 6 | W143: frameless | X143: junction box MC4 | Y143: 22.7 | Z143: www.advancedsolarphotonics.com | AA143: - | AB143: - | AC143: - | AD143: - | AE143: - | AF143: =IF($O143="Sunpower Corp.",3,(IF(OR($Q143="mono",$Q143="poly",$Q143="HIT",$Q143="EFG",$Q143="mono-LGBC"),1,IF(OR($Q143="µc-Si / a-Si",$Q143="a-Si (single)",$Q143="a-Si (tandem)",$Q143="a-Si (triple)"),3,2)))) -> 1 | AG143: =IF($O143="Sunpower Corp.",3,(IF(OR($Q143="mono",$Q143="poly",$Q143="HIT",$Q143="EFG",$Q143="mono-LGBC"),1,2))) -> 1 | AH143: =IF($O143="Sunpower Corp.",3,(IF(OR($Q143="mono",$Q143="poly",$Q143="HIT",$Q143="EFG",$Q143="mono-LGBC"),1,IF(OR($Q143="µc-Si / a-Si",$Q143="a-Si (single)",$Q143="a-Si (tandem)",$Q143="a-Si (triple)"),3,2)))) -> 1 | AI143: 0 | AL143: 26858 | AO143: 141
A144: Advanced Solar Photonics ASP-828IS | B144: Advanced Solar Photonics | C144: ASP-828IS | D144: 828 | E144: +3...-3 | F144: 101.2 | G144: 8.184 | H144: 121.2 | I144: 8.72 | J144: -424.2 | K144: 4.36 | L144: -0.46 | P144: 15.66238022 | Q144: mono | R144: 192 | S144: pseudo-square | T144: 2638 | U144: 2004 | V144: 6 | W144: frameless | X144: junction box MC4 | Y144: 41.7 | Z144: www.advancedsolarphotonics.com | AA144: - | AB144: - | AC144: - | AD144: - | AE144: - | AF144: =IF($O144="Sunpower Corp.",3,(IF(OR($Q144="mono",$Q144="poly",$Q144="HIT",$Q144="EFG",$Q144="mono-LGBC"),1,IF(OR($Q144="µc-Si / a-Si",$Q144="a-Si (single)",$Q144="a-Si (tandem)",$Q144="a-Si (triple)"),3,2)))) -> 1 | AG144: =IF($O144="Sunpower Corp.",3,(IF(OR($Q144="mono",$Q144="poly",$Q144="HIT",$Q144="EFG",$Q144="mono-LGBC"),1,2))) -> 1 | AH144: =IF($O144="Sunpower Corp.",3,(IF(OR($Q144="mono",$Q144="poly",$Q144="HIT",$Q144="EFG",$Q144="mono-LGBC"),1,IF(OR($Q144="µc-Si / a-Si",$Q144="a-Si (single)",$Q144="a-Si (tandem)",$Q144="a-Si (triple)"),3,2)))) -> 1 | AI144: 0 | AL144: 26859 | AO144: 142
A145: Advanced-Bioenergy BIO-155 mono | B145: Advanced-Bioenergy | C145: BIO-155 mono | D145: 155 | E145: +3...0 | F145: 34.4 | G145: 4.51 | H145: 43.2 | I145: 4.98 | J145: -149.904 | K145: 1.3944 | L145: -0.471 | M145: 1000 | P145: 12.14124966 | Q145: mono | R145: 72 | S145: pseudo-square | T145: 1580 | U145: 808 | W145: aluminum | X145: junction box MC4 | Y145: 16 | Z145: www.bioenergysolar.com | AA145: - | AB145: - | AC145: - | AD145: - | AE145: - | AF145: =IF($O145="Sunpower Corp.",3,(IF(OR($Q145="mono",$Q145="poly",$Q145="HIT",$Q145="EFG",$Q145="mono-LGBC"),1,IF(OR($Q145="µc-Si / a-Si",$Q145="a-Si (single)",$Q145="a-Si (tandem)",$Q145="a-Si (triple)"),3,2)))) -> 1 | AG145: =IF($O145="Sunpower Corp.",3,(IF(OR($Q145="mono",$Q145="poly",$Q145="HIT",$Q145="EFG",$Q145="mono-LGBC"),1,2))) -> 1 | AH145: =IF($O145="Sunpower Corp.",3,(IF(OR($Q145="mono",$Q145="poly",$Q145="HIT",$Q145="EFG",$Q145="mono-LGBC"),1,IF(OR($Q145="µc-Si / a-Si",$Q145="a-Si (single)",$Q145="a-Si (tandem)",$Q145="a-Si (triple)"),3,2)))) -> 1 | AI145: 0 | AL145: 18952 | AO145: 143
A146: Advanced-Bioenergy BIO-160 mono | B146: Advanced-Bioenergy | C146: BIO-160 mono | D146: 160 | E146: +3...0 | F146: 34.4 | G146: 4.66 | H146: 43.2 | I146: 5 | J146: -149.904 | K146: 1.4 | L146: -0.471 | M146: 1000 | P146: 12.53289986 | Q146: mono | R146: 72 | S146: pseudo-square | T146: 1580 | U146: 808 | W146: aluminum | X146: junction box MC4 | Y146: 16 | Z146: www.bioenergysolar.com | AA146: - | AB146: - | AC146: - | AD146: - | AE146: - | AF146: =IF($O146="Sunpower Corp.",3,(IF(OR($Q146="mono",$Q146="poly",$Q146="HIT",$Q146="EFG",$Q146="mono-LGBC"),1,IF(OR($Q146="µc-Si / a-Si",$Q146="a-Si (single)",$Q146="a-Si (tandem)",$Q146="a-Si (triple)"),3,2)))) -> 1 | AG146: =IF($O146="Sunpower Corp.",3,(IF(OR($Q146="mono",$Q146="poly",$Q146="HIT",$Q146="EFG",$Q146="mono-LGBC"),1,2))) -> 1 | AH146: =IF($O146="Sunpower Corp.",3,(IF(OR($Q146="mono",$Q146="poly",$Q146="HIT",$Q146="EFG",$Q146="mono-LGBC"),1,IF(OR($Q146="µc-Si / a-Si",$Q146="a-Si (single)",$Q146="a-Si (tandem)",$Q146="a-Si (triple)"),3,2)))) -> 1 | AI146: 0 | AL146: 18953 | AO146: 144
A147: Advanced-Bioenergy BIO-160 poly | B147: Advanced-Bioenergy | C147: BIO-160 poly | D147: 160 | E147: +3...0 | F147: 22.9 | G147: 7 | H147: 28.8 | I147: 7.6 | J147: -100.8 | K147: 4.18 | L147: -0.48 | M147: 1000 | P147: 12.18204975 | Q147: poly | R147: 60 | S147: square | T147: 1324 | U147: 992 | V147: 45 | W147: aluminum | X147: junction box MC4 | Y147: 16 | Z147: www.bioenergysolar.com | AA147: - | AB147: - | AC147: - | AD147: - | AE147: - | AF147: =IF($O147="Sunpower Corp.",3,(IF(OR($Q147="mono",$Q147="poly",$Q147="HIT",$Q147="EFG",$Q147="mono-LGBC"),1,IF(OR($Q147="µc-Si / a-Si",$Q147="a-Si (single)",$Q147="a-Si (tandem)",$Q147="a-Si (triple)"),3,2)))) -> 1 | AG147: =IF($O147="Sunpower Corp.",3,(IF(OR($Q147="mono",$Q147="poly",$Q147="HIT",$Q147="EFG",$Q147="mono-LGBC"),1,2))) -> 1 | AH147: =IF($O147="Sunpower Corp.",3,(IF(OR($Q147="mono",$Q147="poly",$Q147="HIT",$Q147="EFG",$Q147="mono-LGBC"),1,IF(OR($Q147="µc-Si / a-Si",$Q147="a-Si (single)",$Q147="a-Si (tandem)",$Q147="a-Si (triple)"),3,2)))) -> 1 | AI147: 0 | AL147: 19162 | AO147: 145
A148: Advanced-Bioenergy BIO-165 mono | B148: Advanced-Bioenergy | C148: BIO-165 mono | D148: 165 | E148: +3...0 | F148: 34.5 | G148: 4.78 | H148: 43.6 | I148: 5.1 | J148: -151.292 | K148: 1.428 | L148: -0.471 | M148: 1000 | P148: 12.92455006 | Q148: mono | R148: 72 | S148: pseudo-square | T148: 1580 | U148: 808 | W148: aluminum | X148: junction box MC4 | Y148: 16 | Z148: www.bioenergysolar.com | AA148: - | AB148: - | AC148: - | AD148: - | AE148: - | AF148: =IF($O148="Sunpower Corp.",3,(IF(OR($Q148="mono",$Q148="poly",$Q148="HIT",$Q148="EFG",$Q148="mono-LGBC"),1,IF(OR($Q148="µc-Si / a-Si",$Q148="a-Si (single)",$Q148="a-Si (tandem)",$Q148="a-Si (triple)"),3,2)))) -> 1 | AG148: =IF($O148="Sunpower Corp.",3,(IF(OR($Q148="mono",$Q148="poly",$Q148="HIT",$Q148="EFG",$Q148="mono-LGBC"),1,2))) -> 1 | AH148: =IF($O148="Sunpower Corp.",3,(IF(OR($Q148="mono",$Q148="poly",$Q148="HIT",$Q148="EFG",$Q148="mono-LGBC"),1,IF(OR($Q148="µc-Si / a-Si",$Q148="a-Si (single)",$Q148="a-Si (tandem)",$Q148="a-Si (triple)"),3,2)))) -> 1 | AI148: 0 | AL148: 18954 | AO148: 146
A149: Advanced-Bioenergy BIO-165 poly | B149: Advanced-Bioenergy | C149: BIO-165 poly | D149: 165 | E149: +3...0 | F149: 23 | G149: 7.5 | H149: 29 | I149: 7.9 | J149: -101.5 | K149: 4.345 | L149: -0.48 | M149: 1000 | P149: 12.56274033 | Q149: poly | R149: 60 | S149: square | T149: 1324 | U149: 992 | V149: 45 | W149: aluminum | X149: junction box MC4 | Y149: 16 | Z149: www.bioenergysolar.com | AA149: - | AB149: - | AC149: - | AD149: - | AE149: - | AF149: =IF($O149="Sunpower Corp.",3,(IF(OR($Q149="mono",$Q149="poly",$Q149="HIT",$Q149="EFG",$Q149="mono-LGBC"),1,IF(OR($Q149="µc-Si / a-Si",$Q149="a-Si (single)",$Q149="a-Si (tandem)",$Q149="a-Si (triple)"),3,2)))) -> 1 | AG149: =IF($O149="Sunpower Corp.",3,(IF(OR($Q149="mono",$Q149="poly",$Q149="HIT",$Q149="EFG",$Q149="mono-LGBC"),1,2))) -> 1 | AH149: =IF($O149="Sunpower Corp.",3,(IF(OR($Q149="mono",$Q149="poly",$Q149="HIT",$Q149="EFG",$Q149="mono-LGBC"),1,IF(OR($Q149="µc-Si / a-Si",$Q149="a-Si (single)",$Q149="a-Si (tandem)",$Q149="a-Si (triple)"),3,2)))) -> 1 | AI149: 0 | AL149: 19163 | AO149: 147
A150: Advanced-Bioenergy BIO-170 mono | B150: Advanced-Bioenergy | C150: BIO-170 mono | D150: 170 | E150: +3...0 | F150: 35.2 | G150: 4.83 | H150: 43.8 | I150: 5.14 | J150: -151.986 | K150: 1.4392 | L150: -0.471 | M150: 1000 | P150: 13.31620979 | Q150: mono | R150: 72 | S150: pseudo-square | T150: 1580 | U150: 808 | W150: aluminum | X150: junction box MC4 | Y150: 16 | Z150: www.bioenergysolar.com | AA150: - | AB150: - | AC150: - | AD150: - | AE150: - | AF150: =IF($O150="Sunpower Corp.",3,(IF(OR($Q150="mono",$Q150="poly",$Q150="HIT",$Q150="EFG",$Q150="mono-LGBC"),1,IF(OR($Q150="µc-Si / a-Si",$Q150="a-Si (single)",$Q150="a-Si (tandem)",$Q150="a-Si (triple)"),3,2)))) -> 1 | AG150: =IF($O150="Sunpower Corp.",3,(IF(OR($Q150="mono",$Q150="poly",$Q150="HIT",$Q150="EFG",$Q150="mono-LGBC"),1,2))) -> 1 | AH150: =IF($O150="Sunpower Corp.",3,(IF(OR($Q150="mono",$Q150="poly",$Q150="HIT",$Q150="EFG",$Q150="mono-LGBC"),1,IF(OR($Q150="µc-Si / a-Si",$Q150="a-Si (single)",$Q150="a-Si (tandem)",$Q150="a-Si (triple)"),3,2)))) -> 1 | AI150: 0 | AL150: 18955 | AO150: 148
A151: Advanced-Bioenergy BIO-170 poly | B151: Advanced-Bioenergy | C151: BIO-170 poly | D151: 170 | E151: +3...0 | F151: 23.5 | G151: 7.2 | H151: 29 | I151: 8 | J151: -101.5 | K151: 4.4 | L151: -0.48 | M151: 1000 | P151: 12.94342995 | Q151: poly | R151: 60 | S151: square | T151: 1324 | U151: 992 | V151: 45 | W151: aluminum | X151: junction box MC4 | Y151: 16 | Z151: www.bioenergysolar.com | AA151: - | AB151: - | AC151: - | AD151: - | AE151: - | AF151: =IF($O151="Sunpower Corp.",3,(IF(OR($Q151="mono",$Q151="poly",$Q151="HIT",$Q151="EFG",$Q151="mono-LGBC"),1,IF(OR($Q151="µc-Si / a-Si",$Q151="a-Si (single)",$Q151="a-Si (tandem)",$Q151="a-Si (triple)"),3,2)))) -> 1 | AG151: =IF($O151="Sunpower Corp.",3,(IF(OR($Q151="mono",$Q151="poly",$Q151="HIT",$Q151="EFG",$Q151="mono-LGBC"),1,2))) -> 1 | AH151: =IF($O151="Sunpower Corp.",3,(IF(OR($Q151="mono",$Q151="poly",$Q151="HIT",$Q151="EFG",$Q151="mono-LGBC"),1,IF(OR($Q151="µc-Si / a-Si",$Q151="a-Si (single)",$Q151="a-Si (tandem)",$Q151="a-Si (triple)"),3,2)))) -> 1 | AI151: 0 | AL151: 19164 | AO151: 149
A152: Advanced-Bioenergy BIO-175 mono | B152: Advanced-Bioenergy | C152: BIO-175 mono | D152: 175 | E152: +3...0 | F152: 35.3 | G152: 4.96 | H152: 44.2 | I152: 5.2 | J152: -153.374 | K152: 1.456 | L152: -0.471 | M152: 1000 | P152: 13.70785999 | Q152: mono | R152: 72 | S152: pseudo-square | T152: 1580 | U152: 808 | W152: aluminum | X152: junction box MC4 | Y152: 15.5 | Z152: www.bioenergysolar.com | AA152: - | AB152: - | AC152: - | AD152: - | AE152: - | AF152: =IF($O152="Sunpower Corp.",3,(IF(OR($Q152="mono",$Q152="poly",$Q152="HIT",$Q152="EFG",$Q152="mono-LGBC"),1,IF(OR($Q152="µc-Si / a-Si",$Q152="a-Si (single)",$Q152="a-Si (tandem)",$Q152="a-Si (triple)"),3,2)))) -> 1 | AG152: =IF($O152="Sunpower Corp.",3,(IF(OR($Q152="mono",$Q152="poly",$Q152="HIT",$Q152="EFG",$Q152="mono-LGBC"),1,2))) -> 1 | AH152: =IF($O152="Sunpower Corp.",3,(IF(OR($Q152="mono",$Q152="poly",$Q152="HIT",$Q152="EFG",$Q152="mono-LGBC"),1,IF(OR($Q152="µc-Si / a-Si",$Q152="a-Si (single)",$Q152="a-Si (tandem)",$Q152="a-Si (triple)"),3,2)))) -> 1 | AI152: 0 | AL152: 18956 | AO152: 150
A153: Advanced-Bioenergy BIO-180 mono | B153: Advanced-Bioenergy | C153: BIO-180 mono | D153: 180 | E153: +3...0 | F153: 36 | G153: 5 | H153: 44.8 | I153: 5.3 | J153: -155.456 | K153: 1.484 | L153: -0.471 | M153: 1000 | P153: 14.09951019 | Q153: mono | R153: 72 | S153: pseudo-square | T153: 1580 | U153: 808 | W153: aluminum | X153: junction box MC4 | Y153: 15.5 | Z153: www.bioenergysolar.com | AA153: - | AB153: - | AC153: - | AD153: - | AE153: - | AF153: =IF($O153="Sunpower Corp.",3,(IF(OR($Q153="mono",$Q153="poly",$Q153="HIT",$Q153="EFG",$Q153="mono-LGBC"),1,IF(OR($Q153="µc-Si / a-Si",$Q153="a-Si (single)",$Q153="a-Si (tandem)",$Q153="a-Si (triple)"),3,2)))) -> 1 | AG153: =IF($O153="Sunpower Corp.",3,(IF(OR($Q153="mono",$Q153="poly",$Q153="HIT",$Q153="EFG",$Q153="mono-LGBC"),1,2))) -> 1 | AH153: =IF($O153="Sunpower Corp.",3,(IF(OR($Q153="mono",$Q153="poly",$Q153="HIT",$Q153="EFG",$Q153="mono-LGBC"),1,IF(OR($Q153="µc-Si / a-Si",$Q153="a-Si (single)",$Q153="a-Si (tandem)",$Q153="a-Si (triple)"),3,2)))) -> 1 | AI153: 0 | AL153: 18957 | AO153: 151
A154: Advanced-Bioenergy BIO-180 poly | B154: Advanced-Bioenergy | C154: BIO-180 poly | D154: 180 | E154: +3...0 | F154: 24.4 | G154: 7.4 | H154: 29.1 | I154: 8.16 | J154: -101.85 | K154: 4.488 | L154: -0.48 | M154: 1000 | P154: 13.70479965 | Q154: poly | R154: 60 | S154: square | T154: 1324 | U154: 992 | V154: 45 | W154: aluminum | X154: junction box MC4 | Y154: 16 | Z154: www.bioenergysolar.com | AA154: - | AB154: - | AC154: - | AD154: - | AE154: - | AF154: =IF($O154="Sunpower Corp.",3,(IF(OR($Q154="mono",$Q154="poly",$Q154="HIT",$Q154="EFG",$Q154="mono-LGBC"),1,IF(OR($Q154="µc-Si / a-Si",$Q154="a-Si (single)",$Q154="a-Si (tandem)",$Q154="a-Si (triple)"),3,2)))) -> 1 | AG154: =IF($O154="Sunpower Corp.",3,(IF(OR($Q154="mono",$Q154="poly",$Q154="HIT",$Q154="EFG",$Q154="mono-LGBC"),1,2))) -> 1 | AH154: =IF($O154="Sunpower Corp.",3,(IF(OR($Q154="mono",$Q154="poly",$Q154="HIT",$Q154="EFG",$Q154="mono-LGBC"),1,IF(OR($Q154="µc-Si / a-Si",$Q154="a-Si (single)",$Q154="a-Si (tandem)",$Q154="a-Si (triple)"),3,2)))) -> 1 | AI154: 0 | AL154: 19165 | AO154: 152
A155: Advanced-Bioenergy BIO-185 mono | B155: Advanced-Bioenergy | C155: BIO-185 mono | D155: 185 | E155: +3...0 | F155: 36.27 | G155: 5.1 | H155: 45 | I155: 5.5 | J155: -156.15 | K155: 1.54 | L155: -0.471 | M155: 1000 | P155: 14.49116039 | Q155: mono | R155: 72 | S155: pseudo-square | T155: 1580 | U155: 808 | W155: aluminum | X155: junction box MC4 | Y155: 15.5 | Z155: www.bioenergysolar.com | AA155: - | AB155: - | AC155: - | AD155: - | AE155: - | AF155: =IF($O155="Sunpower Corp.",3,(IF(OR($Q155="mono",$Q155="poly",$Q155="HIT",$Q155="EFG",$Q155="mono-LGBC"),1,IF(OR($Q155="µc-Si / a-Si",$Q155="a-Si (single)",$Q155="a-Si (tandem)",$Q155="a-Si (triple)"),3,2)))) -> 1 | AG155: =IF($O155="Sunpower Corp.",3,(IF(OR($Q155="mono",$Q155="poly",$Q155="HIT",$Q155="EFG",$Q155="mono-LGBC"),1,2))) -> 1 | AH155: =IF($O155="Sunpower Corp.",3,(IF(OR($Q155="mono",$Q155="poly",$Q155="HIT",$Q155="EFG",$Q155="mono-LGBC"),1,IF(OR($Q155="µc-Si / a-Si",$Q155="a-Si (single)",$Q155="a-Si (tandem)",$Q155="a-Si (triple)"),3,2)))) -> 1 | AI155: 0 | AL155: 18958 | AO155: 153
A156: Advanced-Bioenergy BIO-200 poly | B156: Advanced-Bioenergy | C156: BIO-200 poly | D156: 200 | E156: +3...0 | F156: 28.53 | G156: 7.01 | H156: 36.12 | I156: 7.7 | J156: -125.3364 | K156: 4.235 | L156: -0.48 | M156: 1000 | P156: 12.18204975 | Q156: poly | R156: 60 | S156: square | T156: 1655 | U156: 992 | V156: 45 | W156: aluminum | X156: junction box MC4 | Y156: 22.5 | Z156: www.bioenergysolar.com | AA156: - | AB156: - | AC156: - | AD156: - | AE156: - | AF156: =IF($O156="Sunpower Corp.",3,(IF(OR($Q156="mono",$Q156="poly",$Q156="HIT",$Q156="EFG",$Q156="mono-LGBC"),1,IF(OR($Q156="µc-Si / a-Si",$Q156="a-Si (single)",$Q156="a-Si (tandem)",$Q156="a-Si (triple)"),3,2)))) -> 1 | AG156: =IF($O156="Sunpower Corp.",3,(IF(OR($Q156="mono",$Q156="poly",$Q156="HIT",$Q156="EFG",$Q156="mono-LGBC"),1,2))) -> 1 | AH156: =IF($O156="Sunpower Corp.",3,(IF(OR($Q156="mono",$Q156="poly",$Q156="HIT",$Q156="EFG",$Q156="mono-LGBC"),1,IF(OR($Q156="µc-Si / a-Si",$Q156="a-Si (single)",$Q156="a-Si (tandem)",$Q156="a-Si (triple)"),3,2)))) -> 1 | AI156: 0 | AL156: 19166 | AO156: 154
A157: Advanced-Bioenergy BIO-210 poly | B157: Advanced-Bioenergy | C157: BIO-210 poly | D157: 210 | E157: +3...0 | F157: 29.4 | G157: 7.15 | H157: 36.18 | I157: 7.97 | J157: -125.5446 | K157: 4.3835 | L157: -0.48 | M157: 1000 | P157: 12.79115009 | Q157: poly | R157: 60 | S157: square | T157: 1655 | U157: 992 | V157: 45 | W157: aluminum | X157: junction box MC4 | Y157: 22.5 | Z157: www.bioenergysolar.com | AA157: - | AB157: - | AC157: - | AD157: - | AE157: - | AF157: =IF($O157="Sunpower Corp.",3,(IF(OR($Q157="mono",$Q157="poly",$Q157="HIT",$Q157="EFG",$Q157="mono-LGBC"),1,IF(OR($Q157="µc-Si / a-Si",$Q157="a-Si (single)",$Q157="a-Si (tandem)",$Q157="a-Si (triple)"),3,2)))) -> 1 | AG157: =IF($O157="Sunpower Corp.",3,(IF(OR($Q157="mono",$Q157="poly",$Q157="HIT",$Q157="EFG",$Q157="mono-LGBC"),1,2))) -> 1 | AH157: =IF($O157="Sunpower Corp.",3,(IF(OR($Q157="mono",$Q157="poly",$Q157="HIT",$Q157="EFG",$Q157="mono-LGBC"),1,IF(OR($Q157="µc-Si / a-Si",$Q157="a-Si (single)",$Q157="a-Si (tandem)",$Q157="a-Si (triple)"),3,2)))) -> 1 | AI157: 0 | AL157: 19167 | AO157: 155
A158: Advanced-Bioenergy BIO-220 poly | B158: Advanced-Bioenergy | C158: BIO-220 poly | D158: 220 | E158: +3...0 | F158: 30 | G158: 7.34 | H158: 36.6 | I158: 8.1 | J158: -127.002 | K158: 4.455 | L158: -0.48 | M158: 1000 | P158: 13.40025043 | Q158: poly | R158: 60 | S158: square | T158: 1655 | U158: 992 | V158: 45 | W158: aluminum | X158: junction box MC4 | Y158: 22.5 | Z158: www.bioenergysolar.com | AA158: - | AB158: - | AC158: - | AD158: - | AE158: - | AF158: =IF($O158="Sunpower Corp.",3,(IF(OR($Q158="mono",$Q158="poly",$Q158="HIT",$Q158="EFG",$Q158="mono-LGBC"),1,IF(OR($Q158="µc-Si / a-Si",$Q158="a-Si (single)",$Q158="a-Si (tandem)",$Q158="a-Si (triple)"),3,2)))) -> 1 | AG158: =IF($O158="Sunpower Corp.",3,(IF(OR($Q158="mono",$Q158="poly",$Q158="HIT",$Q158="EFG",$Q158="mono-LGBC"),1,2))) -> 1 | AH158: =IF($O158="Sunpower Corp.",3,(IF(OR($Q158="mono",$Q158="poly",$Q158="HIT",$Q158="EFG",$Q158="mono-LGBC"),1,IF(OR($Q158="µc-Si / a-Si",$Q158="a-Si (single)",$Q158="a-Si (tandem)",$Q158="a-Si (triple)"),3,2)))) -> 1 | AI158: 0 | AL158: 19168 | AO158: 156
A159: Advanced-Bioenergy BIO-230 poly | B159: Advanced-Bioenergy | C159: BIO-230 poly | D159: 230 | E159: +3...0 | F159: 30.2 | G159: 7.62 | H159: 36.9 | I159: 8.31 | J159: -128.043 | K159: 4.5705 | L159: -0.48 | M159: 1000 | P159: 14.00936031 | Q159: poly | R159: 60 | S159: square | T159: 1655 | U159: 992 | V159: 45 | W159: aluminum | X159: junction box MC4 | Y159: 22.5 | Z159: www.bioenergysolar.com | AA159: - | AB159: - | AC159: - | AD159: - | AE159: - | AF159: =IF($O159="Sunpower Corp.",3,(IF(OR($Q159="mono",$Q159="poly",$Q159="HIT",$Q159="EFG",$Q159="mono-LGBC"),1,IF(OR($Q159="µc-Si / a-Si",$Q159="a-Si (single)",$Q159="a-Si (tandem)",$Q159="a-Si (triple)"),3,2)))) -> 1 | AG159: =IF($O159="Sunpower Corp.",3,(IF(OR($Q159="mono",$Q159="poly",$Q159="HIT",$Q159="EFG",$Q159="mono-LGBC"),1,2))) -> 1 | AH159: =IF($O159="Sunpower Corp.",3,(IF(OR($Q159="mono",$Q159="poly",$Q159="HIT",$Q159="EFG",$Q159="mono-LGBC"),1,IF(OR($Q159="µc-Si / a-Si",$Q159="a-Si (single)",$Q159="a-Si (tandem)",$Q159="a-Si (triple)"),3,2)))) -> 1 | AI159: 0 | AL159: 19169 | AO159: 157
A160: Advanced-Bioenergy BIO-240 poly | B160: Advanced-Bioenergy | C160: BIO-240 poly | D160: 240 | E160: +3...0 | F160: 34.24 | G160: 7.01 | H160: 43.3 | I160: 7.7 | J160: -150.251 | K160: 4.235 | L160: -0.48 | M160: 1000 | P160: 12.36888981 | Q160: poly | R160: 60 | S160: square | T160: 1956 | U160: 992 | V160: 45 | W160: aluminum | X160: junction box MC4 | Y160: 26 | Z160: www.bioenergysolar.com | AA160: - | AB160: - | AC160: - | AD160: - | AE160: - | AF160: =IF($O160="Sunpower Corp.",3,(IF(OR($Q160="mono",$Q160="poly",$Q160="HIT",$Q160="EFG",$Q160="mono-LGBC"),1,IF(OR($Q160="µc-Si / a-Si",$Q160="a-Si (single)",$Q160="a-Si (tandem)",$Q160="a-Si (triple)"),3,2)))) -> 1 | AG160: =IF($O160="Sunpower Corp.",3,(IF(OR($Q160="mono",$Q160="poly",$Q160="HIT",$Q160="EFG",$Q160="mono-LGBC"),1,2))) -> 1 | AH160: =IF($O160="Sunpower Corp.",3,(IF(OR($Q160="mono",$Q160="poly",$Q160="HIT",$Q160="EFG",$Q160="mono-LGBC"),1,IF(OR($Q160="µc-Si / a-Si",$Q160="a-Si (single)",$Q160="a-Si (tandem)",$Q160="a-Si (triple)"),3,2)))) -> 1 | AI160: 0 | AL160: 19170 | AO160: 158
A161: Advanced-Bioenergy BIO-250 poly | B161: Advanced-Bioenergy | C161: BIO-250 poly | D161: 250 | E161: +3...0 | F161: 34.87 | G161: 7.17 | H161: 43.4 | I161: 7.97 | J161: -150.598 | K161: 4.3835 | L161: -0.48 | M161: 1000 | P161: 12.88426018 | Q161: poly | R161: 60 | S161: square | T161: 1956 | U161: 992 | V161: 45 | W161: aluminum | X161: junction box MC4 | Y161: 26 | Z161: www.bioenergysolar.com | AA161: - | AB161: - | AC161: - | AD161: - | AE161: - | AF161: =IF($O161="Sunpower Corp.",3,(IF(OR($Q161="mono",$Q161="poly",$Q161="HIT",$Q161="EFG",$Q161="mono-LGBC"),1,IF(OR($Q161="µc-Si / a-Si",$Q161="a-Si (single)",$Q161="a-Si (tandem)",$Q161="a-Si (triple)"),3,2)))) -> 1 | AG161: =IF($O161="Sunpower Corp.",3,(IF(OR($Q161="mono",$Q161="poly",$Q161="HIT",$Q161="EFG",$Q161="mono-LGBC"),1,2))) -> 1 | AH161: =IF($O161="Sunpower Corp.",3,(IF(OR($Q161="mono",$Q161="poly",$Q161="HIT",$Q161="EFG",$Q161="mono-LGBC"),1,IF(OR($Q161="µc-Si / a-Si",$Q161="a-Si (single)",$Q161="a-Si (tandem)",$Q161="a-Si (triple)"),3,2)))) -> 1 | AI161: 0 | AL161: 19171 | AO161: 159
A162: Advanced-Bioenergy BIO-260 poly | B162: Advanced-Bioenergy | C162: BIO-260 poly | D162: 260 | E162: +3...0 | F162: 35.6 | G162: 7.3 | H162: 43.5 | I162: 8.05 | J162: -150.945 | K162: 4.4275 | L162: -0.48 | M162: 1000 | P162: 13.39962959 | Q162: poly | R162: 60 | S162: square | T162: 1956 | U162: 992 | V162: 45 | W162: aluminum | X162: junction box MC4 | Y162: 26 | Z162: www.bioenergysolar.com | AA162: - | AB162: - | AC162: - | AD162: - | AE162: - | AF162: =IF($O162="Sunpower Corp.",3,(IF(OR($Q162="mono",$Q162="poly",$Q162="HIT",$Q162="EFG",$Q162="mono-LGBC"),1,IF(OR($Q162="µc-Si / a-Si",$Q162="a-Si (single)",$Q162="a-Si (tandem)",$Q162="a-Si (triple)"),3,2)))) -> 1 | AG162: =IF($O162="Sunpower Corp.",3,(IF(OR($Q162="mono",$Q162="poly",$Q162="HIT",$Q162="EFG",$Q162="mono-LGBC"),1,2))) -> 1 | AH162: =IF($O162="Sunpower Corp.",3,(IF(OR($Q162="mono",$Q162="poly",$Q162="HIT",$Q162="EFG",$Q162="mono-LGBC"),1,IF(OR($Q162="µc-Si / a-Si",$Q162="a-Si (single)",$Q162="a-Si (tandem)",$Q162="a-Si (triple)"),3,2)))) -> 1 | AI162: 0 | AL162: 19172 | AO162: 160
A163: AE Solar GmbH AE CQ 180M | B163: AE Solar GmbH | C163: AE CQ 180M | D163: 180 | E163: +3...0 | F163: 35.3 | G163: 5.1 | H163: 44.35 | I163: 5.35 | J163: -154.338 | K163: 1.6585 | L163: -0.5 | M163: 1000 | P163: 14.09951019 | Q163: mono | R163: 72 | S163: pseudo-square | T163: 1580 | U163: 808 | V163: 50 | W163: aluminum | X163: junction box MC4 | Y163: 16.5 | Z163: www.ae-solar.com | AA163: - | AB163: - | AC163: - | AD163: - | AE163: - | AF163: =IF($O163="Sunpower Corp.",3,(IF(OR($Q163="mono",$Q163="poly",$Q163="HIT",$Q163="EFG",$Q163="mono-LGBC"),1,IF(OR($Q163="µc-Si / a-Si",$Q163="a-Si (single)",$Q163="a-Si (tandem)",$Q163="a-Si (triple)"),3,2)))) -> 1 | AG163: =IF($O163="Sunpower Corp.",3,(IF(OR($Q163="mono",$Q163="poly",$Q163="HIT",$Q163="EFG",$Q163="mono-LGBC"),1,2))) -> 1 | AH163: =IF($O163="Sunpower Corp.",3,(IF(OR($Q163="mono",$Q163="poly",$Q163="HIT",$Q163="EFG",$Q163="mono-LGBC"),1,IF(OR($Q163="µc-Si / a-Si",$Q163="a-Si (single)",$Q163="a-Si (tandem)",$Q163="a-Si (triple)"),3,2)))) -> 1 | AI163: 0 | AL163: 29178 | AO163: 161
A164: AE Solar GmbH AE CQ 185M | B164: AE Solar GmbH | C164: AE CQ 185M | D164: 185 | E164: +3...0 | F164: 35.58 | G164: 5.2 | H164: 45.2 | I164: 5.4 | J164: -157.296 | K164: 1.674 | L164: -0.5 | M164: 1000 | P164: 14.49116039 | Q164: mono | R164: 72 | S164: pseudo-square | T164: 1580 | U164: 808 | V164: 50 | W164: aluminum | X164: junction box MC4 | Y164: 16.5 | Z164: www.ae-solar.com | AA164: - | AB164: - | AC164: - | AD164: - | AE164: - | AF164: =IF($O164="Sunpower Corp.",3,(IF(OR($Q164="mono",$Q164="poly",$Q164="HIT",$Q164="EFG",$Q164="mono-LGBC"),1,IF(OR($Q164="µc-Si / a-Si",$Q164="a-Si (single)",$Q164="a-Si (tandem)",$Q164="a-Si (triple)"),3,2)))) -> 1 | AG164: =IF($O164="Sunpower Corp.",3,(IF(OR($Q164="mono",$Q164="poly",$Q164="HIT",$Q164="EFG",$Q164="mono-LGBC"),1,2))) -> 1 | AH164: =IF($O164="Sunpower Corp.",3,(IF(OR($Q164="mono",$Q164="poly",$Q164="HIT",$Q164="EFG",$Q164="mono-LGBC"),1,IF(OR($Q164="µc-Si / a-Si",$Q164="a-Si (single)",$Q164="a-Si (tandem)",$Q164="a-Si (triple)"),3,2)))) -> 1 | AI164: 0 | AL164: 29179 | AO164: 162
A165: AE Solar GmbH AE CQ 190M | B165: AE Solar GmbH | C165: AE CQ 190M | D165: 190 | E165: +3...0 | F165: 36.2 | G165: 5.25 | H165: 45.4 | I165: 5.51 | J165: -157.992 | K165: 1.7081 | L165: -0.5 | M165: 1000 | P165: 14.88282013 | Q165: mono | R165: 72 | S165: pseudo-square | T165: 1580 | U165: 808 | V165: 50 | W165: aluminum | X165: junction box MC4 | Y165: 16.5 | Z165: www.ae-solar.com | AA165: - | AB165: - | AC165: - | AD165: - | AE165: - | AF165: =IF($O165="Sunpower Corp.",3,(IF(OR($Q165="mono",$Q165="poly",$Q165="HIT",$Q165="EFG",$Q165="mono-LGBC"),1,IF(OR($Q165="µc-Si / a-Si",$Q165="a-Si (single)",$Q165="a-Si (tandem)",$Q165="a-Si (triple)"),3,2)))) -> 1 | AG165: =IF($O165="Sunpower Corp.",3,(IF(OR($Q165="mono",$Q165="poly",$Q165="HIT",$Q165="EFG",$Q165="mono-LGBC"),1,2))) -> 1 | AH165: =IF($O165="Sunpower Corp.",3,(IF(OR($Q165="mono",$Q165="poly",$Q165="HIT",$Q165="EFG",$Q165="mono-LGBC"),1,IF(OR($Q165="µc-Si / a-Si",$Q165="a-Si (single)",$Q165="a-Si (tandem)",$Q165="a-Si (triple)"),3,2)))) -> 1 | AI165: 0 | AL165: 29180 | AO165: 163
A166: AE Solar GmbH AE CQ 195M | B166: AE Solar GmbH | C166: AE CQ 195M | D166: 195 | E166: +3...0 | F166: 36.74 | G166: 5.31 | H166: 45.5 | I166: 5.65 | J166: -158.34 | K166: 1.7515 | L166: -0.5 | M166: 1000 | P166: 15.27447033 | Q166: mono | R166: 72 | S166: pseudo-square | T166: 1580 | U166: 808 | V166: 50 | W166: aluminum | X166: junction box MC4 | Y166: 16.5 | Z166: www.ae-solar.com | AA166: - | AB166: - | AC166: - | AD166: - | AE166: - | AF166: =IF($O166="Sunpower Corp.",3,(IF(OR($Q166="mono",$Q166="poly",$Q166="HIT",$Q166="EFG",$Q166="mono-LGBC"),1,IF(OR($Q166="µc-Si / a-Si",$Q166="a-Si (single)",$Q166="a-Si (tandem)",$Q166="a-Si (triple)"),3,2)))) -> 1 | AG166: =IF($O166="Sunpower Corp.",3,(IF(OR($Q166="mono",$Q166="poly",$Q166="HIT",$Q166="EFG",$Q166="mono-LGBC"),1,2))) -> 1 | AH166: =IF($O166="Sunpower Corp.",3,(IF(OR($Q166="mono",$Q166="poly",$Q166="HIT",$Q166="EFG",$Q166="mono-LGBC"),1,IF(OR($Q166="µc-Si / a-Si",$Q166="a-Si (single)",$Q166="a-Si (tandem)",$Q166="a-Si (triple)"),3,2)))) -> 1 | AI166: 0 | AL166: 29181 | AO166: 164
A167: AE Solar GmbH AE CQ 215P | B167: AE Solar GmbH | C167: AE CQ 215P | D167: 215 | E167: +3...0 | F167: 30.81 | G167: 6.98 | H167: 38 | I167: 7.4 | J167: -117.8 | K167: 2.22 | L167: -0.38 | M167: 1000 | P167: 13.21547985 | Q167: poly | R167: 60 | S167: square | T167: 1640 | U167: 992 | V167: 50 | W167: aluminum | X167: junction box MC4 | Y167: 18 | Z167: www.ae-solar.com | AA167: - | AB167: - | AC167: - | AD167: - | AE167: - | AF167: =IF($O167="Sunpower Corp.",3,(IF(OR($Q167="mono",$Q167="poly",$Q167="HIT",$Q167="EFG",$Q167="mono-LGBC"),1,IF(OR($Q167="µc-Si / a-Si",$Q167="a-Si (single)",$Q167="a-Si (tandem)",$Q167="a-Si (triple)"),3,2)))) -> 1 | AG167: =IF($O167="Sunpower Corp.",3,(IF(OR($Q167="mono",$Q167="poly",$Q167="HIT",$Q167="EFG",$Q167="mono-LGBC"),1,2))) -> 1 | AH167: =IF($O167="Sunpower Corp.",3,(IF(OR($Q167="mono",$Q167="poly",$Q167="HIT",$Q167="EFG",$Q167="mono-LGBC"),1,IF(OR($Q167="µc-Si / a-Si",$Q167="a-Si (single)",$Q167="a-Si (tandem)",$Q167="a-Si (triple)"),3,2)))) -> 1 | AI167: 0 | AL167: 29168 | AO167: 165
A168: AE Solar GmbH AE CQ 220P | B168: AE Solar GmbH | C168: AE CQ 220P | D168: 220 | E168: +3...0 | F168: 31.2 | G168: 7.05 | H168: 38.4 | I168: 7.5 | J168: -119.04 | K168: 2.25 | L168: -0.38 | M168: 1000 | P168: 13.52282047 | Q168: poly | R168: 60 | S168: square | T168: 1640 | U168: 992 | V168: 50 | W168: aluminum | X168: junction box MC4 | Y168: 18 | Z168: www.ae-solar.com | AA168: - | AB168: - | AC168: - | AD168: - | AE168: - | AF168: =IF($O168="Sunpower Corp.",3,(IF(OR($Q168="mono",$Q168="poly",$Q168="HIT",$Q168="EFG",$Q168="mono-LGBC"),1,IF(OR($Q168="µc-Si / a-Si",$Q168="a-Si (single)",$Q168="a-Si (tandem)",$Q168="a-Si (triple)"),3,2)))) -> 1 | AG168: =IF($O168="Sunpower Corp.",3,(IF(OR($Q168="mono",$Q168="poly",$Q168="HIT",$Q168="EFG",$Q168="mono-LGBC"),1,2))) -> 1 | AH168: =IF($O168="Sunpower Corp.",3,(IF(OR($Q168="mono",$Q168="poly",$Q168="HIT",$Q168="EFG",$Q168="mono-LGBC"),1,IF(OR($Q168="µc-Si / a-Si",$Q168="a-Si (single)",$Q168="a-Si (tandem)",$Q168="a-Si (triple)"),3,2)))) -> 1 | AI168: 0 | AL168: 29169 | AO168: 166
A169: AE Solar GmbH AE CQ 225P | B169: AE Solar GmbH | C169: AE CQ 225P | D169: 225 | E169: +3...0 | F169: 29.53 | G169: 7.62 | H169: 37.39 | I169: 8.13 | J169: -115.909 | K169: 2.439 | L169: -0.38 | M169: 1000 | P169: 13.83014965 | Q169: poly | R169: 60 | S169: square | T169: 1640 | U169: 992 | V169: 50 | W169: aluminum | X169: junction box MC4 | Y169: 18 | Z169: www.ae-solar.com | AA169: - | AB169: - | AC169: - | AD169: - | AE169: - | AF169: =IF($O169="Sunpower Corp.",3,(IF(OR($Q169="mono",$Q169="poly",$Q169="HIT",$Q169="EFG",$Q169="mono-LGBC"),1,IF(OR($Q169="µc-Si / a-Si",$Q169="a-Si (single)",$Q169="a-Si (tandem)",$Q169="a-Si (triple)"),3,2)))) -> 1 | AG169: =IF($O169="Sunpower Corp.",3,(IF(OR($Q169="mono",$Q169="poly",$Q169="HIT",$Q169="EFG",$Q169="mono-LGBC"),1,2))) -> 1 | AH169: =IF($O169="Sunpower Corp.",3,(IF(OR($Q169="mono",$Q169="poly",$Q169="HIT",$Q169="EFG",$Q169="mono-LGBC"),1,IF(OR($Q169="µc-Si / a-Si",$Q169="a-Si (single)",$Q169="a-Si (tandem)",$Q169="a-Si (triple)"),3,2)))) -> 1 | AI169: 0 | AL169: 29170 | AO169: 167
A170: AE Solar GmbH AE CQ 230P | B170: AE Solar GmbH | C170: AE CQ 230P | D170: 230 | E170: +3...0 | F170: 29.99 | G170: 7.67 | H170: 37.59 | I170: 8.19 | J170: -116.529 | K170: 2.457 | L170: -0.38 | M170: 1000 | P170: 14.13749027 | Q170: poly | R170: 60 | S170: square | T170: 1640 | U170: 992 | V170: 50 | W170: aluminum | X170: junction box MC4 | Y170: 18 | Z170: www.ae-solar.com | AA170: - | AB170: - | AC170: - | AD170: - | AE170: - | AF170: =IF($O170="Sunpower Corp.",3,(IF(OR($Q170="mono",$Q170="poly",$Q170="HIT",$Q170="EFG",$Q170="mono-LGBC"),1,IF(OR($Q170="µc-Si / a-Si",$Q170="a-Si (single)",$Q170="a-Si (tandem)",$Q170="a-Si (triple)"),3,2)))) -> 1 | AG170: =IF($O170="Sunpower Corp.",3,(IF(OR($Q170="mono",$Q170="poly",$Q170="HIT",$Q170="EFG",$Q170="mono-LGBC"),1,2))) -> 1 | AH170: =IF($O170="Sunpower Corp.",3,(IF(OR($Q170="mono",$Q170="poly",$Q170="HIT",$Q170="EFG",$Q170="mono-LGBC"),1,IF(OR($Q170="µc-Si / a-Si",$Q170="a-Si (single)",$Q170="a-Si (tandem)",$Q170="a-Si (triple)"),3,2)))) -> 1 | AI170: 0 | AL170: 29171 | AO170: 168
A171: AE Solar GmbH AE CQ 235P | B171: AE Solar GmbH | C171: AE CQ 235P | D171: 235 | E171: +3...0 | F171: 30.37 | G171: 7.74 | H171: 38.53 | I171: 8.24 | J171: -119.443 | K171: 2.472 | L171: -0.38 | M171: 1000 | P171: 14.44482994 | Q171: poly | R171: 60 | S171: square | T171: 1640 | U171: 992 | V171: 50 | W171: aluminum | X171: junction box MC4 | Y171: 18 | Z171: www.ae-solar.com | AA171: - | AB171: - | AC171: - | AD171: - | AE171: - | AF171: =IF($O171="Sunpower Corp.",3,(IF(OR($Q171="mono",$Q171="poly",$Q171="HIT",$Q171="EFG",$Q171="mono-LGBC"),1,IF(OR($Q171="µc-Si / a-Si",$Q171="a-Si (single)",$Q171="a-Si (tandem)",$Q171="a-Si (triple)"),3,2)))) -> 1 | AG171: =IF($O171="Sunpower Corp.",3,(IF(OR($Q171="mono",$Q171="poly",$Q171="HIT",$Q171="EFG",$Q171="mono-LGBC"),1,2))) -> 1 | AH171: =IF($O171="Sunpower Corp.",3,(IF(OR($Q171="mono",$Q171="poly",$Q171="HIT",$Q171="EFG",$Q171="mono-LGBC"),1,IF(OR($Q171="µc-Si / a-Si",$Q171="a-Si (single)",$Q171="a-Si (tandem)",$Q171="a-Si (triple)"),3,2)))) -> 1 | AI171: 0 | AL171: 29172 | AO171: 169
A172: AE Solar GmbH AE CQ 265P | B172: AE Solar GmbH | C172: AE CQ 265P | D172: 265 | E172: +3...0 | F172: 35.24 | G172: 7.52 | H172: 43.8 | I172: 8.05 | J172: -135.78 | K172: 2.415 | L172: -0.38 | M172: 1000 | P172: 13.65732002 | Q172: poly | R172: 72 | S172: square | T172: 1956 | U172: 992 | V172: 50 | W172: aluminum | X172: junction box MC4 | Y172: 23 | Z172: www.ae-solar.com | AA172: - | AB172: - | AC172: - | AD172: - | AE172: - | AF172: =IF($O172="Sunpower Corp.",3,(IF(OR($Q172="mono",$Q172="poly",$Q172="HIT",$Q172="EFG",$Q172="mono-LGBC"),1,IF(OR($Q172="µc-Si / a-Si",$Q172="a-Si (single)",$Q172="a-Si (tandem)",$Q172="a-Si (triple)"),3,2)))) -> 1 | AG172: =IF($O172="Sunpower Corp.",3,(IF(OR($Q172="mono",$Q172="poly",$Q172="HIT",$Q172="EFG",$Q172="mono-LGBC"),1,2))) -> 1 | AH172: =IF($O172="Sunpower Corp.",3,(IF(OR($Q172="mono",$Q172="poly",$Q172="HIT",$Q172="EFG",$Q172="mono-LGBC"),1,IF(OR($Q172="µc-Si / a-Si",$Q172="a-Si (single)",$Q172="a-Si (tandem)",$Q172="a-Si (triple)"),3,2)))) -> 1 | AI172: 0 | AL172: 29173 | AO172: 170
A173: AE Solar GmbH AE CQ 270P | B173: AE Solar GmbH | C173: AE CQ 270P | D173: 270 | E173: +3...0 | F173: 35.24 | G173: 7.66 | H173: 43.8 | I173: 8.1 | J173: -135.78 | K173: 2.43 | L173: -0.38 | M173: 1000 | P173: 13.91499996 | Q173: poly | R173: 72 | S173: square | T173: 1956 | U173: 992 | V173: 50 | W173: aluminum | X173: junction box MC4 | Y173: 23 | Z173: www.ae-solar.com | AA173: - | AB173: - | AC173: - | AD173: - | AE173: - | AF173: =IF($O173="Sunpower Corp.",3,(IF(OR($Q173="mono",$Q173="poly",$Q173="HIT",$Q173="EFG",$Q173="mono-LGBC"),1,IF(OR($Q173="µc-Si / a-Si",$Q173="a-Si (single)",$Q173="a-Si (tandem)",$Q173="a-Si (triple)"),3,2)))) -> 1 | AG173: =IF($O173="Sunpower Corp.",3,(IF(OR($Q173="mono",$Q173="poly",$Q173="HIT",$Q173="EFG",$Q173="mono-LGBC"),1,2))) -> 1 | AH173: =IF($O173="Sunpower Corp.",3,(IF(OR($Q173="mono",$Q173="poly",$Q173="HIT",$Q173="EFG",$Q173="mono-LGBC"),1,IF(OR($Q173="µc-Si / a-Si",$Q173="a-Si (single)",$Q173="a-Si (tandem)",$Q173="a-Si (triple)"),3,2)))) -> 1 | AI173: 0 | AL173: 29174 | AO173: 171
A174: AE Solar GmbH AE CQ 275P | B174: AE Solar GmbH | C174: AE CQ 275P | D174: 275 | E174: +3...0 | F174: 35.54 | G174: 7.74 | H174: 43.8 | I174: 8.28 | J174: -135.78 | K174: 2.484 | L174: -0.38 | M174: 1000 | P174: 14.17269039 | Q174: poly | R174: 72 | S174: square | T174: 1956 | U174: 992 | V174: 50 | W174: aluminum | X174: junction box MC4 | Y174: 23 | Z174: www.ae-solar.com | AA174: - | AB174: - | AC174: - | AD174: - | AE174: - | AF174: =IF($O174="Sunpower Corp.",3,(IF(OR($Q174="mono",$Q174="poly",$Q174="HIT",$Q174="EFG",$Q174="mono-LGBC"),1,IF(OR($Q174="µc-Si / a-Si",$Q174="a-Si (single)",$Q174="a-Si (tandem)",$Q174="a-Si (triple)"),3,2)))) -> 1 | AG174: =IF($O174="Sunpower Corp.",3,(IF(OR($Q174="mono",$Q174="poly",$Q174="HIT",$Q174="EFG",$Q174="mono-LGBC"),1,2))) -> 1 | AH174: =IF($O174="Sunpower Corp.",3,(IF(OR($Q174="mono",$Q174="poly",$Q174="HIT",$Q174="EFG",$Q174="mono-LGBC"),1,IF(OR($Q174="µc-Si / a-Si",$Q174="a-Si (single)",$Q174="a-Si (tandem)",$Q174="a-Si (triple)"),3,2)))) -> 1 | AI174: 0 | AL174: 29175 | AO174: 172
A175: AE Solar GmbH AE CQ 280P | B175: AE Solar GmbH | C175: AE CQ 280P | D175: 280 | E175: +3...0 | F175: 35.68 | G175: 7.85 | H175: 44.2 | I175: 8.3 | J175: -137.02 | K175: 2.49 | L175: -0.38 | M175: 1000 | P175: 14.43037033 | Q175: poly | R175: 72 | S175: square | T175: 1956 | U175: 992 | V175: 50 | W175: aluminum | X175: junction box MC4 | Y175: 23 | Z175: www.ae-solar.com | AA175: - | AB175: - | AC175: - | AD175: - | AE175: - | AF175: =IF($O175="Sunpower Corp.",3,(IF(OR($Q175="mono",$Q175="poly",$Q175="HIT",$Q175="EFG",$Q175="mono-LGBC"),1,IF(OR($Q175="µc-Si / a-Si",$Q175="a-Si (single)",$Q175="a-Si (tandem)",$Q175="a-Si (triple)"),3,2)))) -> 1 | AG175: =IF($O175="Sunpower Corp.",3,(IF(OR($Q175="mono",$Q175="poly",$Q175="HIT",$Q175="EFG",$Q175="mono-LGBC"),1,2))) -> 1 | AH175: =IF($O175="Sunpower Corp.",3,(IF(OR($Q175="mono",$Q175="poly",$Q175="HIT",$Q175="EFG",$Q175="mono-LGBC"),1,IF(OR($Q175="µc-Si / a-Si",$Q175="a-Si (single)",$Q175="a-Si (tandem)",$Q175="a-Si (triple)"),3,2)))) -> 1 | AI175: 0 | AL175: 29176 | AO175: 173
A176: AE Solar GmbH AE CQ 285P | B176: AE Solar GmbH | C176: AE CQ 285P | D176: 285 | E176: +3...0 | F176: 35.81 | G176: 7.96 | H176: 44.3 | I176: 8.42 | J176: -137.33 | K176: 2.526 | L176: -0.38 | M176: 1000 | P176: 14.68805981 | Q176: poly | R176: 72 | S176: square | T176: 1956 | U176: 992 | V176: 50 | W176: aluminum | X176: junction box MC4 | Y176: 23 | Z176: www.ae-solar.com | AA176: - | AB176: - | AC176: - | AD176: - | AE176: - | AF176: =IF($O176="Sunpower Corp.",3,(IF(OR($Q176="mono",$Q176="poly",$Q176="HIT",$Q176="EFG",$Q176="mono-LGBC"),1,IF(OR($Q176="µc-Si / a-Si",$Q176="a-Si (single)",$Q176="a-Si (tandem)",$Q176="a-Si (triple)"),3,2)))) -> 1 | AG176: =IF($O176="Sunpower Corp.",3,(IF(OR($Q176="mono",$Q176="poly",$Q176="HIT",$Q176="EFG",$Q176="mono-LGBC"),1,2))) -> 1 | AH176: =IF($O176="Sunpower Corp.",3,(IF(OR($Q176="mono",$Q176="poly",$Q176="HIT",$Q176="EFG",$Q176="mono-LGBC"),1,IF(OR($Q176="µc-Si / a-Si",$Q176="a-Si (single)",$Q176="a-Si (tandem)",$Q176="a-Si (triple)"),3,2)))) -> 1 | AI176: 0 | AL176: 29177 | AO176: 174
A177: AEET Vertriebs GmbH AEET-GS-50W | B177: AEET Vertriebs GmbH | C177: AEET-GS-50W | D177: 50 | E177: +5...-5 | F177: 43 | G177: 1.17 | H177: 62 | I177: 1.42 | J177: -204.6 | K177: 1.278 | L177: -0.22 | M177: 1000 | P177: 6.324511051 | Q177: a-Si (single) | T177: 1245 | U177: 635 | V177: 7.5 | X177: junction box | Y177: 14.4 | Z177: www.aeet-vertrieb.com | AA177: - | AB177: - | AC177: - | AD177: - | AE177: - | AF177: =IF($O177="Sunpower Corp.",3,(IF(OR($Q177="mono",$Q177="poly",$Q177="HIT",$Q177="EFG",$Q177="mono-LGBC"),1,IF(OR($Q177="µc-Si / a-Si",$Q177="a-Si (single)",$Q177="a-Si (tandem)",$Q177="a-Si (triple)"),3,2)))) -> 3 | AG177: =IF($O177="Sunpower Corp.",3,(IF(OR($Q177="mono",$Q177="poly",$Q177="HIT",$Q177="EFG",$Q177="mono-LGBC"),1,2))) -> 2 | AH177: =IF($O177="Sunpower Corp.",3,(IF(OR($Q177="mono",$Q177="poly",$Q177="HIT",$Q177="EFG",$Q177="mono-LGBC"),1,IF(OR($Q177="µc-Si / a-Si",$Q177="a-Si (single)",$Q177="a-Si (tandem)",$Q177="a-Si (triple)"),3,2)))) -> 3 | AI177: 0 | AL177: 24274 | AO177: 175
A178: AEET Vertriebs GmbH AEET-GS-55W | B178: AEET Vertriebs GmbH | C178: AEET-GS-55W | D178: 55 | E178: +5...-5 | F178: 46.6 | G178: 1.18 | H178: 62.8 | I178: 1.46 | J178: -207.24 | K178: 1.314 | L178: -0.22 | M178: 1000 | P178: 6.956962109 | Q178: a-Si (single) | T178: 1245 | U178: 635 | V178: 7.5 | X178: junction box | Y178: 14.4 | Z178: www.aeet-vertrieb.com | AA178: - | AB178: - | AC178: - | AD178: - | AE178: - | AF178: =IF($O178="Sunpower Corp.",3,(IF(OR($Q178="mono",$Q178="poly",$Q178="HIT",$Q178="EFG",$Q178="mono-LGBC"),1,IF(OR($Q178="µc-Si / a-Si",$Q178="a-Si (single)",$Q178="a-Si (tandem)",$Q178="a-Si (triple)"),3,2)))) -> 3 | AG178: =IF($O178="Sunpower Corp.",3,(IF(OR($Q178="mono",$Q178="poly",$Q178="HIT",$Q178="EFG",$Q178="mono-LGBC"),1,2))) -> 2 | AH178: =IF($O178="Sunpower Corp.",3,(IF(OR($Q178="mono",$Q178="poly",$Q178="HIT",$Q178="EFG",$Q178="mono-LGBC"),1,IF(OR($Q178="µc-Si / a-Si",$Q178="a-Si (single)",$Q178="a-Si (tandem)",$Q178="a-Si (triple)"),3,2)))) -> 3 | AI178: 0 | AL178: 24275 | AO178: 176
A179: AEET Vertriebs GmbH AEET-NH-100AT_3A | B179: AEET Vertriebs GmbH | C179: AEET-NH-100AT_3A | D179: 95 | E179: +... | G179: 2.6 | H179: 50 | I179: 3.24 | J179: -170 | K179: 2.916 | L179: -0.2 | M179: 1000 | P179: 6.030994892 | Q179: a-Si (single) | T179: 1414 | U179: 1114 | V179: 35.3 | Y179: 20.5 | Z179: www.aeet-vertrieb.com | AA179: - | AB179: - | AC179: - | AD179: - | AE179: - | AF179: =IF($O179="Sunpower Corp.",3,(IF(OR($Q179="mono",$Q179="poly",$Q179="HIT",$Q179="EFG",$Q179="mono-LGBC"),1,IF(OR($Q179="µc-Si / a-Si",$Q179="a-Si (single)",$Q179="a-Si (tandem)",$Q179="a-Si (triple)"),3,2)))) -> 3 | AG179: =IF($O179="Sunpower Corp.",3,(IF(OR($Q179="mono",$Q179="poly",$Q179="HIT",$Q179="EFG",$Q179="mono-LGBC"),1,2))) -> 2 | AH179: =IF($O179="Sunpower Corp.",3,(IF(OR($Q179="mono",$Q179="poly",$Q179="HIT",$Q179="EFG",$Q179="mono-LGBC"),1,IF(OR($Q179="µc-Si / a-Si",$Q179="a-Si (single)",$Q179="a-Si (tandem)",$Q179="a-Si (triple)"),3,2)))) -> 3 | AI179: 0 | AL179: 24281 | AO179: 177
A180: AEET Vertriebs GmbH AEET-NH-100AT_4A | B180: AEET Vertriebs GmbH | C180: AEET-NH-100AT_4A | D180: 100 | E180: +... | G180: 2.66 | H180: 50.5 | I180: 3.3 | J180: -171.7 | K180: 2.97 | L180: -0.2 | M180: 1000 | P180: 6.348415852 | Q180: a-Si (single) | T180: 1414 | U180: 1114 | V180: 35.3 | Y180: 20.5 | Z180: www.aeet-vertrieb.com | AA180: - | AB180: - | AC180: - | AD180: - | AE180: - | AF180: =IF($O180="Sunpower Corp.",3,(IF(OR($Q180="mono",$Q180="poly",$Q180="HIT",$Q180="EFG",$Q180="mono-LGBC"),1,IF(OR($Q180="µc-Si / a-Si",$Q180="a-Si (single)",$Q180="a-Si (tandem)",$Q180="a-Si (triple)"),3,2)))) -> 3 | AG180: =IF($O180="Sunpower Corp.",3,(IF(OR($Q180="mono",$Q180="poly",$Q180="HIT",$Q180="EFG",$Q180="mono-LGBC"),1,2))) -> 2 | AH180: =IF($O180="Sunpower Corp.",3,(IF(OR($Q180="mono",$Q180="poly",$Q180="HIT",$Q180="EFG",$Q180="mono-LGBC"),1,IF(OR($Q180="µc-Si / a-Si",$Q180="a-Si (single)",$Q180="a-Si (tandem)",$Q180="a-Si (triple)"),3,2)))) -> 3 | AI180: 0 | AL180: 24280 | AO180: 178
A181: AEET Vertriebs GmbH AEET-NT-130AX | B181: AEET Vertriebs GmbH | C181: AEET-NT-130AX | D181: 130 | E181: +5...-5 | G181: 2.2 | H181: 76.8 | I181: 2.72 | J181: -230.4 | K181: 1.904 | L181: -0.24 | M181: 1000 | P181: 8.252941132 | Q181: µc-Si | T181: 1414 | U181: 1114 | V181: 35.3 | X181: junction box MC4 | Y181: 20.5 | Z181: www.aeet-vertrieb.com | AA181: - | AB181: - | AC181: - | AD181: - | AE181: - | AF181: =IF($O181="Sunpower Corp.",3,(IF(OR($Q181="mono",$Q181="poly",$Q181="HIT",$Q181="EFG",$Q181="mono-LGBC"),1,IF(OR($Q181="µc-Si / a-Si",$Q181="a-Si (single)",$Q181="a-Si (tandem)",$Q181="a-Si (triple)"),3,2)))) -> 2 | AG181: =IF($O181="Sunpower Corp.",3,(IF(OR($Q181="mono",$Q181="poly",$Q181="HIT",$Q181="EFG",$Q181="mono-LGBC"),1,2))) -> 2 | AH181: =IF($O181="Sunpower Corp.",3,(IF(OR($Q181="mono",$Q181="poly",$Q181="HIT",$Q181="EFG",$Q181="mono-LGBC"),1,IF(OR($Q181="µc-Si / a-Si",$Q181="a-Si (single)",$Q181="a-Si (tandem)",$Q181="a-Si (triple)"),3,2)))) -> 2 | AI181: 0 | AL181: 24285 | AO181: 179
A182: AEET Vertriebs GmbH AEET-NT-135AX | B182: AEET Vertriebs GmbH | C182: AEET-NT-135AX | D182: 135 | E182: +5...-5 | G182: 2.17 | H182: 78.4 | I182: 2.52 | J182: -250.88 | K182: 1.764 | L182: -0.28 | M182: 1000 | P182: 8.570362091 | Q182: µc-Si | T182: 1414 | U182: 1114 | V182: 35.3 | X182: junction box MC4 | Y182: 20.5 | Z182: www.aeet-vertrieb.com | AA182: - | AB182: - | AC182: - | AD182: - | AE182: - | AF182: =IF($O182="Sunpower Corp.",3,(IF(OR($Q182="mono",$Q182="poly",$Q182="HIT",$Q182="EFG",$Q182="mono-LGBC"),1,IF(OR($Q182="µc-Si / a-Si",$Q182="a-Si (single)",$Q182="a-Si (tandem)",$Q182="a-Si (triple)"),3,2)))) -> 2 | AG182: =IF($O182="Sunpower Corp.",3,(IF(OR($Q182="mono",$Q182="poly",$Q182="HIT",$Q182="EFG",$Q182="mono-LGBC"),1,2))) -> 2 | AH182: =IF($O182="Sunpower Corp.",3,(IF(OR($Q182="mono",$Q182="poly",$Q182="HIT",$Q182="EFG",$Q182="mono-LGBC"),1,IF(OR($Q182="µc-Si / a-Si",$Q182="a-Si (single)",$Q182="a-Si (tandem)",$Q182="a-Si (triple)"),3,2)))) -> 2 | AI182: 0 | AL182: 24284 | AO182: 180
A183: AEET Vertriebs GmbH AEET-NT-140AX | B183: AEET Vertriebs GmbH | C183: AEET-NT-140AX | D183: 140 | E183: +5...-5 | G183: 2.25 | H183: 78.4 | I183: 2.59 | J183: -250.88 | K183: 1.813 | L183: -0.28 | M183: 1000 | P183: 8.887783051 | Q183: µc-Si | T183: 1414 | U183: 1114 | V183: 35.3 | X183: junction box MC4 | Y183: 20.5 | Z183: www.aeet-vertrieb.com | AA183: - | AB183: - | AC183: - | AD183: - | AE183: - | AF183: =IF($O183="Sunpower Corp.",3,(IF(OR($Q183="mono",$Q183="poly",$Q183="HIT",$Q183="EFG",$Q183="mono-LGBC"),1,IF(OR($Q183="µc-Si / a-Si",$Q183="a-Si (single)",$Q183="a-Si (tandem)",$Q183="a-Si (triple)"),3,2)))) -> 2 | AG183: =IF($O183="Sunpower Corp.",3,(IF(OR($Q183="mono",$Q183="poly",$Q183="HIT",$Q183="EFG",$Q183="mono-LGBC"),1,2))) -> 2 | AH183: =IF($O183="Sunpower Corp.",3,(IF(OR($Q183="mono",$Q183="poly",$Q183="HIT",$Q183="EFG",$Q183="mono-LGBC"),1,IF(OR($Q183="µc-Si / a-Si",$Q183="a-Si (single)",$Q183="a-Si (tandem)",$Q183="a-Si (triple)"),3,2)))) -> 2 | AI183: 0 | AL183: 24283 | AO183: 181
A184: AEET Vertriebs GmbH AEET-NT-145AX | B184: AEET Vertriebs GmbH | C184: AEET-NT-145AX | D184: 145 | E184: +5...-5 | G184: 2.32 | H184: 78.4 | I184: 2.67 | J184: -250.88 | K184: 1.869 | L184: -0.28 | M184: 1000 | P184: 9.20520401 | Q184: µc-Si | T184: 1414 | U184: 1114 | V184: 35.3 | X184: junction box MC4 | Y184: 20.5 | Z184: www.aeet-vertrieb.com | AA184: - | AB184: - | AC184: - | AD184: - | AE184: - | AF184: =IF($O184="Sunpower Corp.",3,(IF(OR($Q184="mono",$Q184="poly",$Q184="HIT",$Q184="EFG",$Q184="mono-LGBC"),1,IF(OR($Q184="µc-Si / a-Si",$Q184="a-Si (single)",$Q184="a-Si (tandem)",$Q184="a-Si (triple)"),3,2)))) -> 2 | AG184: =IF($O184="Sunpower Corp.",3,(IF(OR($Q184="mono",$Q184="poly",$Q184="HIT",$Q184="EFG",$Q184="mono-LGBC"),1,2))) -> 2 | AH184: =IF($O184="Sunpower Corp.",3,(IF(OR($Q184="mono",$Q184="poly",$Q184="HIT",$Q184="EFG",$Q184="mono-LGBC"),1,IF(OR($Q184="µc-Si / a-Si",$Q184="a-Si (single)",$Q184="a-Si (tandem)",$Q184="a-Si (triple)"),3,2)))) -> 2 | AI184: 0 | AL184: 24282 | AO184: 182
A185: AEET Vertriebs GmbH AEET-QS50W | B185: AEET Vertriebs GmbH | C185: AEET-QS50W | D185: 50 | E185: +... | F185: 59.5 | G185: 0.84 | H185: 78.5 | I185: 1.16 | J185: -243.35 | K185: 0.812 | L185: -0.21 | M185: 1000 | P185: 4.502946854 | Q185: a-Si (single) | T185: 1402 | U185: 792 | V185: 35 | Y185: 19.9 | Z185: www.aeet-vertrieb.com | AA185: - | AB185: - | AC185: - | AD185: - | AE185: - | AF185: =IF($O185="Sunpower Corp.",3,(IF(OR($Q185="mono",$Q185="poly",$Q185="HIT",$Q185="EFG",$Q185="mono-LGBC"),1,IF(OR($Q185="µc-Si / a-Si",$Q185="a-Si (single)",$Q185="a-Si (tandem)",$Q185="a-Si (triple)"),3,2)))) -> 3 | AG185: =IF($O185="Sunpower Corp.",3,(IF(OR($Q185="mono",$Q185="poly",$Q185="HIT",$Q185="EFG",$Q185="mono-LGBC"),1,2))) -> 2 | AH185: =IF($O185="Sunpower Corp.",3,(IF(OR($Q185="mono",$Q185="poly",$Q185="HIT",$Q185="EFG",$Q185="mono-LGBC"),1,IF(OR($Q185="µc-Si / a-Si",$Q185="a-Si (single)",$Q185="a-Si (tandem)",$Q185="a-Si (triple)"),3,2)))) -> 3 | AI185: 0 | AL185: 24277 | AO185: 183
A186: AEET Vertriebs GmbH AEET-QS55W | B186: AEET Vertriebs GmbH | C186: AEET-QS55W | D186: 55 | E186: +... | F186: 60.2 | G186: 0.91 | H186: 79 | I186: 1.18 | J186: -244.9 | K186: 0.826 | L186: -0.21 | M186: 1000 | P186: 4.953240871 | Q186: a-Si (single) | T186: 1402 | U186: 792 | V186: 35 | Y186: 19.9 | Z186: www.aeet-vertrieb.com | AA186: - | AB186: - | AC186: - | AD186: - | AE186: - | AF186: =IF($O186="Sunpower Corp.",3,(IF(OR($Q186="mono",$Q186="poly",$Q186="HIT",$Q186="EFG",$Q186="mono-LGBC"),1,IF(OR($Q186="µc-Si / a-Si",$Q186="a-Si (single)",$Q186="a-Si (tandem)",$Q186="a-Si (triple)"),3,2)))) -> 3 | AG186: =IF($O186="Sunpower Corp.",3,(IF(OR($Q186="mono",$Q186="poly",$Q186="HIT",$Q186="EFG",$Q186="mono-LGBC"),1,2))) -> 2 | AH186: =IF($O186="Sunpower Corp.",3,(IF(OR($Q186="mono",$Q186="poly",$Q186="HIT",$Q186="EFG",$Q186="mono-LGBC"),1,IF(OR($Q186="µc-Si / a-Si",$Q186="a-Si (single)",$Q186="a-Si (tandem)",$Q186="a-Si (triple)"),3,2)))) -> 3 | AI186: 0 | AL186: 24278 | AO186: 184
A187: AEET Vertriebs GmbH AEET-QS60W | B187: AEET Vertriebs GmbH | C187: AEET-QS60W | D187: 60 | E187: +... | F187: 62.3 | G187: 0.96 | H187: 80.3 | I187: 1.22 | J187: -248.93 | K187: 0.854 | L187: -0.21 | M187: 1000 | P187: 5.403535843 | Q187: a-Si (single) | T187: 1402 | U187: 792 | V187: 35 | Y187: 19.9 | Z187: www.aeet-vertrieb.com | AA187: - | AB187: - | AC187: - | AD187: - | AE187: - | AF187: =IF($O187="Sunpower Corp.",3,(IF(OR($Q187="mono",$Q187="poly",$Q187="HIT",$Q187="EFG",$Q187="mono-LGBC"),1,IF(OR($Q187="µc-Si / a-Si",$Q187="a-Si (single)",$Q187="a-Si (tandem)",$Q187="a-Si (triple)"),3,2)))) -> 3 | AG187: =IF($O187="Sunpower Corp.",3,(IF(OR($Q187="mono",$Q187="poly",$Q187="HIT",$Q187="EFG",$Q187="mono-LGBC"),1,2))) -> 2 | AH187: =IF($O187="Sunpower Corp.",3,(IF(OR($Q187="mono",$Q187="poly",$Q187="HIT",$Q187="EFG",$Q187="mono-LGBC"),1,IF(OR($Q187="µc-Si / a-Si",$Q187="a-Si (single)",$Q187="a-Si (tandem)",$Q187="a-Si (triple)"),3,2)))) -> 3 | AI187: 0 | AL187: 24279 | AO187: 185
A188: AEET Vertriebs GmbH AEET-QS85W | B188: AEET Vertriebs GmbH | C188: AEET-QS85W | D188: 85 | E188: +... | F188: 87.5 | G188: 0.98 | H188: 114.2 | I188: 1.19 | J188: -354.02 | K188: 0.833 | L188: -0.21 | M188: 1000 | P188: 5.466111183 | Q188: a-Si (single) | T188: 1406 | U188: 1106 | V188: 35 | Y188: 28.3 | Z188: www.aeet-vertrieb.com | AA188: - | AB188: - | AC188: - | AD188: - | AE188: - | AF188: =IF($O188="Sunpower Corp.",3,(IF(OR($Q188="mono",$Q188="poly",$Q188="HIT",$Q188="EFG",$Q188="mono-LGBC"),1,IF(OR($Q188="µc-Si / a-Si",$Q188="a-Si (single)",$Q188="a-Si (tandem)",$Q188="a-Si (triple)"),3,2)))) -> 3 | AG188: =IF($O188="Sunpower Corp.",3,(IF(OR($Q188="mono",$Q188="poly",$Q188="HIT",$Q188="EFG",$Q188="mono-LGBC"),1,2))) -> 2 | AH188: =IF($O188="Sunpower Corp.",3,(IF(OR($Q188="mono",$Q188="poly",$Q188="HIT",$Q188="EFG",$Q188="mono-LGBC"),1,IF(OR($Q188="µc-Si / a-Si",$Q188="a-Si (single)",$Q188="a-Si (tandem)",$Q188="a-Si (triple)"),3,2)))) -> 3 | AI188: 0 | AL188: 24276 | AO188: 186
A189: AEET Vertriebs GmbH AEET-US-180M | B189: AEET Vertriebs GmbH | C189: AEET-US-180M | D189: 180 | E189: +3...-3 | F189: 36.8 | G189: 4.9 | H189: 44.8 | I189: 5.25 | J189: -170.24 | K189: 0 | L189: -0.45 | M189: 1000 | P189: 14.09951019 | Q189: mono | R189: 72 | S189: pseudo-square | T189: 1580 | U189: 808 | V189: 35 | X189: junction box MC4 | Y189: 16 | Z189: www.aeet-vertrieb.com | AA189: - | AB189: - | AC189: - | AD189: - | AE189: - | AF189: =IF($O189="Sunpower Corp.",3,(IF(OR($Q189="mono",$Q189="poly",$Q189="HIT",$Q189="EFG",$Q189="mono-LGBC"),1,IF(OR($Q189="µc-Si / a-Si",$Q189="a-Si (single)",$Q189="a-Si (tandem)",$Q189="a-Si (triple)"),3,2)))) -> 1 | AG189: =IF($O189="Sunpower Corp.",3,(IF(OR($Q189="mono",$Q189="poly",$Q189="HIT",$Q189="EFG",$Q189="mono-LGBC"),1,2))) -> 1 | AH189: =IF($O189="Sunpower Corp.",3,(IF(OR($Q189="mono",$Q189="poly",$Q189="HIT",$Q189="EFG",$Q189="mono-LGBC"),1,IF(OR($Q189="µc-Si / a-Si",$Q189="a-Si (single)",$Q189="a-Si (tandem)",$Q189="a-Si (triple)"),3,2)))) -> 1 | AI189: 0 | AL189: 24286 | AO189: 187
A190: AEET Vertriebs GmbH AEET-US-185M | B190: AEET Vertriebs GmbH | C190: AEET-US-185M | D190: 185 | E190: +3...-3 | F190: 37.5 | G190: 4.95 | H190: 44.9 | I190: 5.3 | J190: -170.62 | K190: 0 | L190: -0.45 | M190: 1000 | P190: 14.49116039 | Q190: mono | R190: 72 | S190: pseudo-square | T190: 1580 | U190: 808 | V190: 35 | X190: junction box MC4 | Y190: 16 | Z190: www.aeet-vertrieb.com | AA190: - | AB190: - | AC190: - | AD190: - | AE190: - | AF190: =IF($O190="Sunpower Corp.",3,(IF(OR($Q190="mono",$Q190="poly",$Q190="HIT",$Q190="EFG",$Q190="mono-LGBC"),1,IF(OR($Q190="µc-Si / a-Si",$Q190="a-Si (single)",$Q190="a-Si (tandem)",$Q190="a-Si (triple)"),3,2)))) -> 1 | AG190: =IF($O190="Sunpower Corp.",3,(IF(OR($Q190="mono",$Q190="poly",$Q190="HIT",$Q190="EFG",$Q190="mono-LGBC"),1,2))) -> 1 | AH190: =IF($O190="Sunpower Corp.",3,(IF(OR($Q190="mono",$Q190="poly",$Q190="HIT",$Q190="EFG",$Q190="mono-LGBC"),1,IF(OR($Q190="µc-Si / a-Si",$Q190="a-Si (single)",$Q190="a-Si (tandem)",$Q190="a-Si (triple)"),3,2)))) -> 1 | AI190: 0 | AL190: 24287 | AO190: 188
A191: AJIT Solar Ltd. ASPL-E36 | B191: AJIT Solar Ltd. | C191: ASPL-E36 | D191: 75 | E191: +3...-3 | F191: 17.5 | G191: 4.82 | H191: 22.3 | I191: 5.14 | J191: -78.05 | K191: 2.57 | L191: -0.45 | M191: 1000 | P191: 11.55926991 | Q191: mono | R191: 60 | S191: pseudo-square | T191: 806 | U191: 805 | V191: 42 | W191: aluminum | X191: junction box | Z191: www.ajitsolar.com | AA191: - | AB191: - | AC191: - | AD191: - | AE191: - | AF191: =IF($O191="Sunpower Corp.",3,(IF(OR($Q191="mono",$Q191="poly",$Q191="HIT",$Q191="EFG",$Q191="mono-LGBC"),1,IF(OR($Q191="µc-Si / a-Si",$Q191="a-Si (single)",$Q191="a-Si (tandem)",$Q191="a-Si (triple)"),3,2)))) -> 1 | AG191: =IF($O191="Sunpower Corp.",3,(IF(OR($Q191="mono",$Q191="poly",$Q191="HIT",$Q191="EFG",$Q191="mono-LGBC"),1,2))) -> 1 | AH191: =IF($O191="Sunpower Corp.",3,(IF(OR($Q191="mono",$Q191="poly",$Q191="HIT",$Q191="EFG",$Q191="mono-LGBC"),1,IF(OR($Q191="µc-Si / a-Si",$Q191="a-Si (single)",$Q191="a-Si (tandem)",$Q191="a-Si (triple)"),3,2)))) -> 1 | AI191: 0 | AL191: 13646 | AO191: 189
A192: AJIT Solar Ltd. ASPL-P72 | B192: AJIT Solar Ltd. | C192: ASPL-P72 | D192: 280 | E192: +3...-3 | F192: 35.5 | G192: 7.88 | H192: 44.5 | I192: 8.3 | J192: -155.75 | K192: 4.15 | L192: -0.45 | M192: 1000 | P192: 14.07034969 | Q192: mono | R192: 72 | S192: pseudo-square | T192: 1990 | U192: 1000 | V192: 42 | W192: aluminum | X192: junction box | Y192: 25 | Z192: www.ajitsolar.com | AA192: - | AB192: - | AC192: - | AD192: - | AE192: - | AF192: =IF($O192="Sunpower Corp.",3,(IF(OR($Q192="mono",$Q192="poly",$Q192="HIT",$Q192="EFG",$Q192="mono-LGBC"),1,IF(OR($Q192="µc-Si / a-Si",$Q192="a-Si (single)",$Q192="a-Si (tandem)",$Q192="a-Si (triple)"),3,2)))) -> 1 | AG192: =IF($O192="Sunpower Corp.",3,(IF(OR($Q192="mono",$Q192="poly",$Q192="HIT",$Q192="EFG",$Q192="mono-LGBC"),1,2))) -> 1 | AH192: =IF($O192="Sunpower Corp.",3,(IF(OR($Q192="mono",$Q192="poly",$Q192="HIT",$Q192="EFG",$Q192="mono-LGBC"),1,IF(OR($Q192="µc-Si / a-Si",$Q192="a-Si (single)",$Q192="a-Si (tandem)",$Q192="a-Si (triple)"),3,2)))) -> 1 | AI192: 0 | AL192: 13644 | AO192: 190
A193: AJIT Solar Ltd. ASPL-V60 | B193: AJIT Solar Ltd. | C193: ASPL-V60 | D193: 220 | E193: +3...-3 | F193: 29 | G193: 7.6 | H193: 36 | I193: 8.28 | J193: -126 | K193: 4.14 | L193: -0.45 | M193: 1000 | P193: 13.27960968 | Q193: mono | R193: 60 | S193: pseudo-square | T193: 1665 | U193: 995 | V193: 42 | W193: aluminum | X193: junction box | Z193: www.ajitsolar.com | AA193: - | AB193: - | AC193: - | AD193: - | AE193: - | AF193: =IF($O193="Sunpower Corp.",3,(IF(OR($Q193="mono",$Q193="poly",$Q193="HIT",$Q193="EFG",$Q193="mono-LGBC"),1,IF(OR($Q193="µc-Si / a-Si",$Q193="a-Si (single)",$Q193="a-Si (tandem)",$Q193="a-Si (triple)"),3,2)))) -> 1 | AG193: =IF($O193="Sunpower Corp.",3,(IF(OR($Q193="mono",$Q193="poly",$Q193="HIT",$Q193="EFG",$Q193="mono-LGBC"),1,2))) -> 1 | AH193: =IF($O193="Sunpower Corp.",3,(IF(OR($Q193="mono",$Q193="poly",$Q193="HIT",$Q193="EFG",$Q193="mono-LGBC"),1,IF(OR($Q193="µc-Si / a-Si",$Q193="a-Si (single)",$Q193="a-Si (tandem)",$Q193="a-Si (triple)"),3,2)))) -> 1 | AI193: 0 | AL193: 13645 | AO193: 191
A194: Akhter Group PLC Akhter 135 | B194: Akhter Group PLC | C194: Akhter 135 | D194: 135 | E194: +3...-3 | F194: 18.2 | G194: 7.52 | H194: 22.5 | I194: 8.1 | J194: -65.25 | K194: 7.29 | L194: -0.32 | M194: 1000 | N194: Pakistan | O194: Q-Cells AG | P194: 13.95240974 | Q194: poly | R194: 36 | S194: square | T194: 1455 | U194: 665 | V194: 34 | W194: aluminum | X194: cable MC new | Y194: 12 | Z194: www.akhterrenewables.com | AA194: - | AB194: - | AC194: - | AD194: - | AE194: - | AF194: =IF($O194="Sunpower Corp.",3,(IF(OR($Q194="mono",$Q194="poly",$Q194="HIT",$Q194="EFG",$Q194="mono-LGBC"),1,IF(OR($Q194="µc-Si / a-Si",$Q194="a-Si (single)",$Q194="a-Si (tandem)",$Q194="a-Si (triple)"),3,2)))) -> 1 | AG194: =IF($O194="Sunpower Corp.",3,(IF(OR($Q194="mono",$Q194="poly",$Q194="HIT",$Q194="EFG",$Q194="mono-LGBC"),1,2))) -> 1 | AH194: =IF($O194="Sunpower Corp.",3,(IF(OR($Q194="mono",$Q194="poly",$Q194="HIT",$Q194="EFG",$Q194="mono-LGBC"),1,IF(OR($Q194="µc-Si / a-Si",$Q194="a-Si (single)",$Q194="a-Si (tandem)",$Q194="a-Si (triple)"),3,2)))) -> 1 | AI194: 0 | AL194: 3595 | AO194: 192
A195: Akhter Group PLC Akhter 200 | B195: Akhter Group PLC | C195: Akhter 200 | D195: 200 | E195: +3...-3 | F195: 27.3 | G195: 7.5 | H195: 33.75 | I195: 8.08 | J195: -97.875 | K195: 7.272 | L195: -0.32 | M195: 1000 | N195: Pakistan | O195: Q-Cells AG | P195: 14.2442503 | Q195: poly | R195: 54 | S195: square | T195: 1455 | U195: 965 | V195: 34 | W195: aluminum | X195: cable MC new | Y195: 18 | Z195: www.akhterrenewables.com | AA195: - | AB195: - | AC195: - | AD195: - | AE195: - | AF195: =IF($O195="Sunpower Corp.",3,(IF(OR($Q195="mono",$Q195="poly",$Q195="HIT",$Q195="EFG",$Q195="mono-LGBC"),1,IF(OR($Q195="µc-Si / a-Si",$Q195="a-Si (single)",$Q195="a-Si (tandem)",$Q195="a-Si (triple)"),3,2)))) -> 1 | AG195: =IF($O195="Sunpower Corp.",3,(IF(OR($Q195="mono",$Q195="poly",$Q195="HIT",$Q195="EFG",$Q195="mono-LGBC"),1,2))) -> 1 | AH195: =IF($O195="Sunpower Corp.",3,(IF(OR($Q195="mono",$Q195="poly",$Q195="HIT",$Q195="EFG",$Q195="mono-LGBC"),1,IF(OR($Q195="µc-Si / a-Si",$Q195="a-Si (single)",$Q195="a-Si (tandem)",$Q195="a-Si (triple)"),3,2)))) -> 1 | AI195: 0 | AL195: 3594 | AO195: 193
A196: Akhter Group PLC Akhter 220 | B196: Akhter Group PLC | C196: Akhter 220 | D196: 220 | E196: +3...-3 | F196: 30.3 | G196: 7.5 | H196: 37.5 | I196: 8.1 | J196: -108.75 | K196: 7.29 | L196: -0.32 | M196: 1000 | N196: Pakistan | O196: Q-Cells AG | P196: 13.74462986 | Q196: poly | R196: 60 | S196: square | T196: 1625 | U196: 985 | V196: 34 | W196: aluminum | X196: cable MC new | Y196: 20 | Z196: www.akhterrenewables.com | AA196: - | AB196: - | AC196: - | AD196: - | AE196: - | AF196: =IF($O196="Sunpower Corp.",3,(IF(OR($Q196="mono",$Q196="poly",$Q196="HIT",$Q196="EFG",$Q196="mono-LGBC"),1,IF(OR($Q196="µc-Si / a-Si",$Q196="a-Si (single)",$Q196="a-Si (tandem)",$Q196="a-Si (triple)"),3,2)))) -> 1 | AG196: =IF($O196="Sunpower Corp.",3,(IF(OR($Q196="mono",$Q196="poly",$Q196="HIT",$Q196="EFG",$Q196="mono-LGBC"),1,2))) -> 1 | AH196: =IF($O196="Sunpower Corp.",3,(IF(OR($Q196="mono",$Q196="poly",$Q196="HIT",$Q196="EFG",$Q196="mono-LGBC"),1,IF(OR($Q196="µc-Si / a-Si",$Q196="a-Si (single)",$Q196="a-Si (tandem)",$Q196="a-Si (triple)"),3,2)))) -> 1 | AI196: 0 | AL196: 5679 | AO196: 194
A197: Akhter Group PLC Akhter 245 | B197: Akhter Group PLC | C197: Akhter 245 | D197: 245 | E197: +3...-3 | F197: 33.37 | G197: 7.55 | H197: 41.25 | I197: 8.13 | J197: -119.625 | K197: 7.317 | L197: -0.32 | M197: 1000 | N197: Pakistan | O197: Q-Cells AG | P197: 14.38448048 | Q197: poly | R197: 66 | S197: square | T197: 1765 | U197: 965 | V197: 34 | W197: aluminum | X197: cable MC new | Y197: 22 | Z197: www.akhterrenewables.com | AA197: - | AB197: - | AC197: - | AD197: - | AE197: - | AF197: =IF($O197="Sunpower Corp.",3,(IF(OR($Q197="mono",$Q197="poly",$Q197="HIT",$Q197="EFG",$Q197="mono-LGBC"),1,IF(OR($Q197="µc-Si / a-Si",$Q197="a-Si (single)",$Q197="a-Si (tandem)",$Q197="a-Si (triple)"),3,2)))) -> 1 | AG197: =IF($O197="Sunpower Corp.",3,(IF(OR($Q197="mono",$Q197="poly",$Q197="HIT",$Q197="EFG",$Q197="mono-LGBC"),1,2))) -> 1 | AH197: =IF($O197="Sunpower Corp.",3,(IF(OR($Q197="mono",$Q197="poly",$Q197="HIT",$Q197="EFG",$Q197="mono-LGBC"),1,IF(OR($Q197="µc-Si / a-Si",$Q197="a-Si (single)",$Q197="a-Si (tandem)",$Q197="a-Si (triple)"),3,2)))) -> 1 | AI197: 0 | AL197: 3601 | AO197: 195
A198: Akhter Group PLC Akhter 90 | B198: Akhter Group PLC | C198: Akhter 90 | D198: 90 | E198: +3...-3 | F198: 18.2 | G198: 5.01 | H198: 22.5 | I198: 5.4 | J198: -65.25 | K198: 4.86 | L198: -0.32 | M198: 1000 | N198: Pakistan | O198: Q-Cells AG | P198: 13.73993015 | Q198: poly | R198: 36 | S198: square | T198: 985 | U198: 665 | V198: 34 | W198: aluminum | X198: cable MC new | Y198: 8.5 | Z198: www.akhterrenewables.com | AA198: - | AB198: - | AC198: - | AD198: - | AE198: - | AF198: =IF($O198="Sunpower Corp.",3,(IF(OR($Q198="mono",$Q198="poly",$Q198="HIT",$Q198="EFG",$Q198="mono-LGBC"),1,IF(OR($Q198="µc-Si / a-Si",$Q198="a-Si (single)",$Q198="a-Si (tandem)",$Q198="a-Si (triple)"),3,2)))) -> 1 | AG198: =IF($O198="Sunpower Corp.",3,(IF(OR($Q198="mono",$Q198="poly",$Q198="HIT",$Q198="EFG",$Q198="mono-LGBC"),1,2))) -> 1 | AH198: =IF($O198="Sunpower Corp.",3,(IF(OR($Q198="mono",$Q198="poly",$Q198="HIT",$Q198="EFG",$Q198="mono-LGBC"),1,IF(OR($Q198="µc-Si / a-Si",$Q198="a-Si (single)",$Q198="a-Si (tandem)",$Q198="a-Si (triple)"),3,2)))) -> 1 | AI198: 0 | AL198: 3596 | AO198: 196
